Workbook

Sheet AER only (hidden)
B1: Data in these columns used for data validation and database purposes.
B2: Date last modified: | C2: 2017-01-16 | D2: added (Albury and Victora) for AGN
C3: 2016-10-17 | D3: updated TransGrid's correct legal name, corrected TasNetworks (T) to June financial year
C4: 2017-02-01 | D4: inserted Power and Water, added NRs (dms_FeederCat_1 and dms_FeederCat_2)
C5: 2017-03-03 | D5: inserted AEMO as a business | AC5: FOR ELECTRICITY BUSINESSES ONLY
AC6: Feeder Types | AG6: TasNetworks (D) | AH6: MAIFI flag | AI6: Feeder Names
AC7: CBD | AD7: Urban | AE7: Short rural | AF7: long rural | AG7: EXTRA
B8: dms_TradingName_List | C8: dms_TradingNameFull_List | D8: dms_ABN_List | E8: dms_JurisdictionList | F8: dms_Sector_List | G8: dms_Segment_List | H8: dms_FormControl_List | I8: dms_RPT_List | J8: dms_RPTMonth_List | K8: dms_CRCPlength_List | L8: dms_FRCPlength_List | M8: dms_663_List | N8: dms_DeterminationRef_List | O8: dms_Addr1_List | P8: dms_Addr2_List | Q8: dms_Suburb_List | R8: dms_State_List | S8: dms_PostCode_List | T8: dms_PAddr1_List | U8: dms_PAddr2_List | V8: dms_PSuburb_List | W8: dms_PState_List | X8: dms_PPostCode_List | Y8: dms_ContactName1_List | Z8: dms_ContactPh1_List | AA8: dms_ContactEmail_List | AB8: Column1 | AC8: dms_CBD_flag | AD8: dms_Urban_flag | AE8: dms_ShortRural_flag | AF8: dms_LongRural_flag | AG8: dms_FeederType_5_flag | AH8: dms_MAIFI_flag_List | AI8: dms_FeederName_1 | AJ8: dms_FeederName_2 | AK8: dms_FeederName_3 | AL8: dms_FeederName_4 | AM8: dms_FeederName_5
B9: ActewAGL Distribution | C9: ActewAGL Distribution | D9: 76670568688 | E9: ACT | F9: Electricity | G9: Distribution | H9: Revenue cap | I9: Financial | J9: June | K9: 5 | L9: 5 | M9: 5 | N9: 2014-19 Distribution Determination | O9: 40 Bunda Street | Q9: CANBERRA | R9: ACT | S9: 2600 | T9: GPO BOX 366 | V9: CANBERRA | W9: ACT | X9: 2601 | Y9: Robert Walker | Z9: 02 6248 3847 | AA9: robert.walker@actewagle.com.au | AC9: NO | AD9: YES | AE9: YES | AF9: NO | AG9: NO | AI9: CBD | AJ9: Urban | AK9: Short rural | AL9: Long rural | AN9: ActewAGL Distribution
B10: ActewAGL Distribution (Tx Assets) | C10: ActewAGL Distribution (Tx Assets) | D10: 76670568688 | E10: ACT | F10: Electricity | G10: Distribution | H10: Revenue cap | I10: Financial | J10: June | K10: 5 | L10: 5 | M10: 5 | N10: distribution determination | O10: 40 Bunda Street | Q10: CANBERRA | R10: ACT | S10: 2600 | T10: GPO BOX 366 | V10: CANBERRA | W10: ACT | X10: 2601 | Y10: Robert Walker | Z10: 02 6248 3847 | AA10: robert.walker@actewagle.com.au | AI10: CBD | AJ10: Urban | AK10: Short rural | AL10: Long rural | AN10: ActewAGL Distribution (Tx Assets)
B11: ActewAGL Gas | C11: ActewAGL Gas | D11: 76670568688 | E11: ACT | F11: Gas | G11: Distribution | H11: Weighted average price cap | I11: Financial | J11: June | K11: 5 | L11: 5 | M11: x | O11: 40 Bunda Street | Q11: CANBERRA | R11: ACT | S11: 2600 | T11: GPO BOX 366 | V11: CANBERRA | W11: ACT | X11: 2601 | Y11: Philip Deamer | Z11: 02 6248 3438 | AA11: GasAAReview@actewagl.com.au | AN11: ActewAGL Gas
B12: AEMO | C12: Australian Energy Market Operator Ltd | D12: 94072010327 | E12: Vic | F12: Electricity | G12: Transmission | H12: - | I12: Financial | J12: March | K12: 5 | L12: 5 | M12: x | N12: - | O12: Level 22 | P12: 530 Collins Street | Q12: MELBOURNE | R12: VIC | S12: 3000 | T12: GPO Box 2008 | V12: MELBOURNE | W12: VIC | X12: 3001 | AN12: AEMO
B13: AGN (Albury and Victoria) | C13: Australian Gas Networks Limited (reporting data for Albury and Victoria) | D13: 19078551685 | E13: Vic | F13: Gas | G13: Distribution | H13: Weighted average price cap | I13: Calendar | J13: December | K13: 5 | L13: 5 | M13: x | O13: Level 6 | P13: 400 King William Street | Q13: ADELAIDE | R13: SA | S13: 5000 | T13: PO Box 6468 | U13: Halifax Street | V13: ADELAIDE | W13: SA | X13: 5000 | Y13: Craig de Laine | Z13: 08 8418 1129 | AA13: craig.delaine@agn.com.au | AI13: CBD | AJ13: Urban | AK13: Short rural | AL13: Long rural | AN13: AGN (Albury)
B14: AGN (Albury) | C14: Australian Gas Networks Limited (reporting data for Albury) | D14: 19078551685 | E14: Vic | F14: Gas | G14: Distribution | H14: Weighted average price cap | I14: Calendar | J14: December | K14: 5 | L14: 5 | M14: x | O14: Level 6 | P14: 400 King William Street | Q14: ADELAIDE | R14: SA | S14: 5000 | T14: PO Box 6468 | U14: Halifax Street | V14: ADELAIDE | W14: SA | X14: 5000 | Y14: Craig de Laine | Z14: 08 8418 1129 | AA14: craig.delaine@agn.com.au | AI14: CBD | AJ14: Urban | AK14: Short rural | AL14: Long rural
B15: AGN (SA) | C15: Australian Gas Networks Limited (reporting data for SA) | D15: 19078551685 | E15: SA | F15: Gas | G15: Distribution | H15: Weighted average price cap | I15: Financial | J15: June | K15: 5 | L15: 5 | M15: 5 | N15: distribution determination | O15: Level 6 | P15: 400 King William Street | Q15: ADELAIDE | R15: SA | S15: 5000 | T15: PO Box 6468 | U15: Halifax Street | V15: ADELAIDE | W15: SA | X15: 5000 | Y15: Craig de Laine | Z15: 08 8418 1129 | AA15: craig.delaine@agn.com.au | AN15: AGN (SA)
B16: AGN (Victoria) | C16: Australian Gas Networks Limited (reporting data for Victoria) | D16: 19078551685 | E16: Vic | F16: Gas | G16: Distribution | H16: Weighted average price cap | I16: Calendar | J16: December | K16: 5 | L16: 5 | M16: x | AN16: AGN (Victoria)
B17: Amadeus | C17: APT Pipelines (NT) Pty Ltd | D17: 39009737393 | E17: NT | F17: Gas | G17: Transmission | H17: Weighted average price cap | I17: Financial | J17: June | K17: 5 | L17: 5 | M17: x | N17: n/a | O17: Level 19, HSBC Building | P17: 580 George Street | Q17: SYDNEY | R17: NSW | S17: 2000 | T17: Level 19, HSBC Building | U17: 580 George Street | V17: SYDNEY | W17: NSW | X17: 2000 | Y17: Alexandra Curran | Z17: 02 9275 0020 | AA17: alexandra.curran@apa.com.au | AN17: Amadeus
B18: APA GasNet | C18: APA GasNet Australia (Operations) Pty Ltd | D18: 065083009 | E18: Vic | F18: Gas | G18: Transmission | H18: Weighted average price cap | I18: Calendar | J18: December | K18: 5 | L18: 5 | M18: x | O18: Level 19, HSBC Building | P18: 580 George Street | Q18: SYDNEY | R18: NSW | S18: 2000 | T18: PO Box R41 | V18: ROYAL EXCHANGE | W18: NSW | X18: 1225 | Z18: 02 9693 0000 | AN18: APA GasNet
B19: Ausgrid | C19: Ausgrid | D19: 78508211731 | E19: NSW | F19: Electricity | G19: Distribution | H19: Revenue cap | I19: Financial | J19: June | K19: 5 | L19: 5 | M19: 5 | N19: 2014-19 Distribution Determination | O19: 570 George St | Q19: SYDNEY | R19: NSW | S19: 2000 | T19: GPO Box 4009 | V19: SYDNEY | W19: NSW | X19: 2001 | Y19: John Thomson | Z19: (02) 9269 2312 | AA19: john.thomson@ausgrid.com.au | AC19: YES | AD19: YES | AE19: YES | AF19: YES | AG19: NO | AI19: CBD | AJ19: Urban | AK19: Short rural | AL19: Long rural | AN19: Ausgrid
B20: Ausgrid (Tx Assets) | C20: Ausgrid (Tx Assets) | D20: 67505337385 | E20: NSW | F20: Electricity | G20: Distribution | H20: Revenue cap | I20: Financial | J20: June | K20: 5 | L20: 5 | M20: 5 | N20: distribution determination | R20: NSW | AI20: CBD | AJ20: Urban | AK20: Short rural | AL20: Long rural | AN20: Ausgrid (Tx Assets)
B21: AusNet (D) | C21: AusNet Electricity Services Pty Ltd | D21: 91064651118 | E21: Vic | F21: Electricity | G21: Distribution | H21: Revenue cap | I21: Calendar | J21: December | K21: 5 | L21: 5 | M21: 2 | N21: 2016-20 Distribution Determination | O21: Level 32 | P21: 2 Southbank Boulevard | Q21: SOUTHBANK | R21: Vic | S21: 3006 | T21: Locked Bag 14051 | V21: MELBOURNE CITY MAIL CENTRE | W21: VIC | X21: 8001 | Y21: Hannah Williams | Z21: 03 9683 4088 | AA21: hwilliams@powercor.com.au | AD21: YES | AE21: YES | AF21: YES | AG21: NO | AI21: CBD | AJ21: Urban | AK21: Short rural | AL21: Long rural | AN21: AusNet (D)
B22: AusNet (Gas) | C22: AusNet Gas Services | D22: 086015036 | E22: Vic | F22: Gas | G22: Distribution | H22: Weighted average price cap | I22: Calendar | J22: December | K22: 5 | L22: 5 | M22: X | AN22: AusNet (Gas)
B23: AusNet (T) | C23: Ausnet Services (Transmission) Ltd | D23: 48116124362 | E23: Vic | F23: Electricity | G23: Transmission | H23: Revenue cap | I23: Financial | J23: March | K23: 5 | L23: 5 | M23: 2 | N23: transmission determination | O23: Level 32 | P23: 2 Southbank Boulevard | Q23: SOUTHBANK | R23: Vic | S23: 3006 | T23: Locked Bag 14051 | V23: MELBOURNE CITY MAIL CENTRE | W23: Vic | X23: 8001 | Y23: Clare Thompson | Z23: 03 9695 6670 | AA23: clare.e.thompson@ausnetservices.com.au | AI23: CBD | AJ23: Urban | AK23: Short rural | AL23: Long rural | AN23: AusNet (T)
B24: Australian Distribution Co. | C24: Australian Distribution Co. | D24: 11222333444 | E24: - | F24: Electricity | G24: Distribution | H24: Revenue cap | I24: Financial | J24: June | K24: 5 | L24: 5 | M24: 2 | N24: distribution determination | O24: 123 Straight Street | Q24: SYDNEY | R24: NSW | S24: 2000 | T24: PO Box 123 | V24: SYDNEY | W24: NSW | X24: 2000 | Y24: Bob Smith | Z24: 02 1234 5678 | AA24: bob@auselec.net.au | AI24: CBD | AJ24: Urban | AK24: Short rural | AL24: Long rural | AN24: Australian Distribution Co.
B25: Australian Distribution Co. (Vic) | C25: Australian Distribution Co. (Victoria) | D25: 11222333444 | E25: Vic | F25: Electricity | G25: Distribution | H25: Revenue cap | I25: Calendar | J25: December | K25: 5 | L25: 5 | M25: 2 | N25: distribution determination | O25: 123 Straight Street | Q25: MELBOURNE | R25: Vic | S25: 3000 | T25: PO Box 123 | V25: MELBOURNE | W25: VIC | X25: 3000 | Y25: Bob Smith | Z25: 02 1234 5678 | AA25: bob@auselec.net.au | AI25: CBD | AJ25: Urban | AK25: Short rural | AL25: Long rural | AN25: Australian Distribution Co. (Vic)
B26: Australian Transmission Co. | C26: Australian Transmission Co. | D26: 11222333444 | E26: - | F26: Electricity | G26: Transmission | H26: Revenue cap | I26: Financial | J26: June | K26: 5 | L26: 5 | M26: 5 | N26: transmission determination | O26: 123 Straight Street | Q26: SYDNEY | R26: NSW | S26: 2000 | T26: PO Box 123 | V26: SYDNEY | W26: NSW | X26: 2000 | Y26: Bob Smith | Z26: 02 1234 5678 | AA26: bob@auselec.net.au | AI26: CBD | AJ26: Urban | AK26: Short rural | AL26: Long rural | AN26: Australian Transmission Co.
B27: CitiPower | C27: CitiPower | D27: 76064651056 | E27: Vic | F27: Electricity | G27: Distribution | H27: Revenue cap | I27: Calendar | J27: December | K27: 5 | L27: 5 | M27: 2 | N27: 2016-20 Distribution Determination | O27: 40 Market Street | Q27: MELBOURNE | R27: Vic | S27: 3000 | T27: Locked Bag 14090 | V27: MELBOURNE | W27: VIC | X27: 8001 | Y27: Hannah Williams | Z27: 03 9683 4088 | AA27: hwilliams@powercor.com.au | AC27: YES | AD27: YES | AE27: NO | AF27: NO | AG27: NO | AI27: CBD | AJ27: Urban | AK27: Short rural | AL27: Long rural | AN27: CitiPower
B28: Directlink | C28: Directlink | D28: 16779340889 | E28: Qld | F28: Electricity | G28: Transmission | H28: Revenue cap | I28: Financial | J28: June | K28: 9 | L28: 5 | M28: 5 | N28: transmission determination | O28: Level 19, HSBC Building | P28: 580 George Street | Q28: SYDNEY | R28: NSW | S28: 2000 | T28: PO Box R41 | V28: ROYAL EXCHANGE | W28: NSW | X28: 1225 | Y28: Scott Young | Z28: 02 9275 0031 | AA28: scott.young@apa.com.au | AI28: CBD | AJ28: Urban | AK28: Short rural | AL28: Long rural | AN28: Directlink
B29: ElectraNet | C29: ElectraNet | D29: 41094482416 | E29: SA | F29: Electricity | G29: Transmission | H29: Revenue cap | I29: Financial | J29: June | K29: 5 | L29: 5 | M29: 5 | N29: transmission determination | O29: 52-55 East Terrace | P29: Rymill Park | Q29: ADELAIDE | R29: SA | S29: 5000 | T29: PO Box 7096 | U29: Hutt Street Post Office | V29: ADELAIDE | W29: SA | X29: 5000 | Y29: Bill Jackson | Z29: 08 8404 7969 | AA29: jackson.bill@electranet.com.au | AI29: CBD | AJ29: Urban | AK29: Short rural | AL29: Long rural | AN29: ElectraNet
B30: Endeavour Energy | C30: Endeavour Energy | D30: 59253130878 | E30: NSW | F30: Electricity | G30: Distribution | H30: Revenue cap | I30: Financial | J30: June | K30: 5 | L30: 5 | M30: 5 | N30: 2014-19 Distribution Determination | O30: 51 Huntingwood Drive | Q30: HUNTINGWOOD | R30: NSW | S30: 2148 | T30: PO Box 811 | V30: SEVEN HILLS | W30: NSW | X30: 1730 | Y30: Jon Hocking | Z30: 02 9853 4386 / 0407 348 156 | AA30: Jon.Hocking@Endeavourenergy.com.au | AC30: NO | AD30: YES | AE30: YES | AF30: YES | AG30: NO | AI30: CBD | AJ30: Urban | AK30: Short rural | AL30: Long rural | AN30: Endeavour Energy
B31: Energex | C31: Energex | D31: 40078849055 | E31: Qld | F31: Electricity | G31: Distribution | H31: Revenue cap | I31: Financial | J31: June | K31: 5 | L31: 5 | M31: 5 | N31: 2015-20 Distribution Determination | O31: 26 Reddacliff Street | Q31: NEWSTEAD | R31: Qld | S31: 4006 | T31: 26 Reddacliff Street | V31: NEWSTEAD | W31: QLD | X31: 4006 | Y31: Nicola Roscoe | Z31: 07 3664 5891 | AA31: nicolaroscoe@energex.com.au | AC31: YES | AD31: YES | AE31: YES | AF31: NO | AG31: NO | AI31: CBD | AJ31: Urban | AK31: Short rural | AL31: Long rural | AN31: Energex
B32: Ergon Energy | C32: Ergon Energy | D32: 50087646062 | E32: Qld | F32: Electricity | G32: Distribution | H32: Revenue cap | I32: Financial | J32: June | K32: 5 | L32: 5 | M32: 5 | N32: 2015-20 Distribution Determination | O32: 22 Walker Street | Q32: TOWNSVILLE | R32: Qld | S32: 4810 | T32: Po Box 264 | V32: FORTITUDE VALLEY | W32: QLD | X32: 4006 | Y32: Jenny Doyle, Group Manager Regulatory Affairs | Z32: (07) 3851 6416 | AA32: jenny.doyle@ergon.com.au | AC32: NO | AD32: YES | AE32: YES | AF32: YES | AG32: NO | AI32: CBD | AJ32: Urban | AK32: Short rural | AL32: Long rural | AN32: Ergon Energy
B33: Essential Energy | C33: Essential Energy | D33: 37428185226 | E33: NSW | F33: Electricity | G33: Distribution | H33: Revenue cap | I33: Financial | J33: June | K33: 5 | L33: 5 | M33: 5 | N33: 2014-19 Distribution Determination | O33: 8 Buller Street | Q33: PORT MACQUARIE | R33: NSW | S33: 2444 | T33: PO Box 5730 | V33: PORT MACQUARIE | W33: NSW | X33: 2444 | Y33: Catherine Waddell | Z33: 02 6338 3553 | AA33: catherine.waddell@essentialenergy.com.au | AE33: YES | AF33: YES | AG33: NO | AI33: CBD | AJ33: Urban | AK33: Short rural | AL33: Long rural | AN33: Essential Energy
B34: Jemena Electricity | C34: Jemena Electricity | D34: 82064651083 | E34: Vic | F34: Electricity | G34: Distribution | H34: Revenue cap | I34: Calendar | J34: December | K34: 5 | L34: 5 | M34: 2 | N34: 2016-20 Distribution Determination | O34: Level 16 | P34: 567 Collins Street | Q34: MELBOURNE | R34: VIC | S34: 3000 | T34: PO Box 16182 | V34: MELBOURNE | W34: VIC | X34: 8001 | Y34: Matthew Serpell | Z34: 03 9173 8231 | AA34: matthew.serpell@jemena.com.au | AE34: YES | AF34: NO | AG34: NO | AI34: CBD | AJ34: Urban | AK34: Short rural | AL34: Long rural | AN34: Jemena Electricity
B35: JGN | C35: Jemena Gas Networks (NSW) Ltd | D35: 003 004 322 | E35: NSW | F35: Gas | G35: Distribution | H35: Weighted average price cap | I35: Financial | J35: June | K35: 5 | L35: 5 | AN35: JGN
B36: Multinet Gas | C36: Multinet Gas (DB No.1) Pty Ltd (ACN 086 026 986), Multinet Gas (DB No.2) Pty Ltd (ACN 086 230 122) | D36: 086026986 | E36: Vic | F36: Gas | G36: Distribution | H36: Weighted average price cap | I36: Calendar | J36: December | K36: 5 | L36: 5 | M36: x | O36: 6 Nexus Court | Q36: MULGRAVE | R36: Vic | S36: 3149 | Y36: Stephanie McDougall | Z36: 03 8846 9538 | AA36: Stephanie.McDougall@ue.com.au | AN36: Multinet Gas
B37: Murraylink | C37: Murraylink | D37: 79181207909 | E37: SA | F37: Electricity | G37: Transmission | H37: Revenue cap | I37: Financial | J37: June | K37: 5 | L37: 5 | M37: 5 | N37: transmission determination | AI37: CBD | AJ37: Urban | AK37: Short rural | AL37: Long rural | AN37: Murraylink
B38: Power and Water | C38: Power and Water Corporation | D38: 15947352360 | E38: NT | F38: Electricity | G38: Distribution | H38: Revenue cap | I38: Financial | J38: June | K38: 5 | L38: 5 | M38: x | N38: distribution determination | O38: GPO Box 1921 | Q38: DARWIN | R38: NT | S38: 0801 | T38: GPO Box 1921 | V38: DARWIN | W38: NT | X38: 0801 | Y38: Lucy Moon | Z38: 08 8924 5822 | AA38: Lucy.Moon@powerwater.com.au | AC38: YES | AD38: YES | AE38: YES | AF38: YES | AG38: NO
B39: Powercor Australia | C39: Powercor Australia | D39: 89064651109 | E39: Vic | F39: Electricity | G39: Distribution | H39: Revenue cap | I39: Calendar | J39: December | K39: 5 | L39: 5 | M39: 2 | N39: 2016-20 Distribution Determination | O39: 40 Market Street | Q39: MELBOURNE | R39: Vic | S39: 3000 | T39: Locked bag 14090 | V39: MELBOURNE | W39: VIC | X39: 8001 | Y39: Hannah Williams | Z39: 03 9683 4088 | AA39: hwilliams@powercor.com.au | AE39: YES | AF39: YES | AG39: NO | AI39: CBD | AJ39: Urban | AK39: Short rural | AL39: Long rural | AN39: Powercor Australia
B40: Powerlink | C40: Queensland Electricity Transmission Corporation Limited trading as Powerlink Queensland | D40: 82078849233 | E40: Qld | F40: Electricity | G40: Transmission | H40: Revenue cap | I40: Financial | J40: June | K40: 5 | L40: 5 | M40: 5 | N40: transmission determination | O40: 33 Harold St | Q40: VIRGINIA | R40: Qld | S40: 4014 | T40: PO Box 1193 | V40: VIRGINIA | W40: QLD | X40: 4014 | Y40: Jennifer Harris | Z40: 07 3860 2667 | AA40: jharris@powerlink.com.au | AI40: CBD | AJ40: Urban | AK40: Short rural | AL40: Long rural | AN40: Powerlink
B41: Roma to Brisbane Pipeline | C41: APT Petroleum Pipelines Limited t/a Roma to Brisbane Pipeline | D41: 009 737 393 | E41: Qld | F41: Gas | G41: Transmission | H41: Weighted average price cap | I41: Financial | J41: June | K41: 5 | L41: 5 | M41: x | N41: n/a | O41: 580 George Street | Q41: SYDNEY | R41: NSW | S41: 2000 | T41: PO Box R41 | V41: ROYAL EXCHANGE | W41: NSW | X41: 1225 | Y41: Mark Allen | Z41: 02 9275 0010 | AA41: mark.allen@apa.com.au | AI41: CBD | AJ41: Urban | AK41: Short rural | AL41: Long rural | AN41: Roma to Brisbane Pipeline
B42: SA Power Networks | C42: SA Power Networks | D42: 13332330749 | E42: SA | F42: Electricity | G42: Distribution | H42: Revenue cap | I42: Financial | J42: June | K42: 5 | L42: 5 | M42: 5 | N42: 2015-20 Distribution Determination | O42: 1 Anzac Highway | Q42: KESWICK | R42: SA | S42: 5035 | T42: GPO Box 77 | V42: ADELAIDE | W42: SA | X42: 5000 | Y42: Richard Sibly | Z42: 08 8404 5613 | AA42: richard.sibly@sapowernetworks.com.au | AE42: YES | AF42: YES | AG42: NO | AI42: CBD | AJ42: Urban | AK42: Short rural | AL42: Long rural | AN42: SA Power Networks
B43: TasNetworks (D) | C43: TasNetworks (D) | D43: 24167357299 | E43: Tas | F43: Electricity | G43: Distribution | H43: Revenue cap | I43: Financial | J43: June | K43: 5 | L43: 5 | M43: 5 | N43: distribution determination | O43: 1-7 Maria Street | Q43: LENAH VALLEY | R43: Tas | S43: 7008 | T43: PO Box 606 | V43: MOONAH | W43: Tas | X43: 7009 | Y43: John Sayers | Z43: 03 6271 6469 | AA43: john.sayers@tasnetworks.com.au | AE43: YES | AF43: YES | AG43: YES | AI43: Critical Infrastructure | AJ43: High density commercial | AK43: Urban | AL43: High density rural | AM43: Low density rural | AN43: TasNetworks (D)
B44: TasNetworks (T) | C44: TasNetworks (T) | D44: 24167357299 | E44: Tas | F44: Electricity | G44: Transmission | H44: Revenue cap | I44: Financial | J44: June | K44: 5 | L44: 5 | M44: 5 | N44: transmission determination | O44: 1-7 Maria Street | Q44: LENAH VALLEY | R44: Tas | S44: 7008 | T44: PO Box 606 | V44: MOONAH | W44: Tas | X44: 7009 | Y44: John Sayers | Z44: 03 6271 6469 | AA44: john.sayers@tasnetworks.com.au | AI44: CBD | AJ44: Urban | AK44: Short rural | AL44: Long rural | AN44: TasNetworks (T)
B45: TransGrid | C45: NSW Electricity Networks Operations Pty Ltd trading as TransGrid | D45: 609169959 | E45: NSW | F45: Electricity | G45: Transmission | H45: Revenue cap | I45: Financial | J45: June | K45: 5 | L45: 4 | M45: 5 | N45: transmission determination | O45: 180 Thomas Street | Q45: SYDNEY | R45: NSW | S45: 2000 | T45: PO Box A1000 | V45: SYDNEY SOUTH | W45: NSW | X45: 1235 | Y45: Garrie Chubb | Z45: 0408 210 221 | AA45: garrie.chubb@transgrid.com.au | AI45: CBD | AJ45: Urban | AK45: Short rural | AL45: Long rural | AN45: TransGrid
B46: United Energy | C46: United Energy | D46: 70064651029 | E46: Vic | F46: Electricity | G46: Distribution | H46: Revenue cap | I46: Calendar | J46: December | K46: 5 | L46: 5 | M46: 2 | N46: 2016-20 Distribution Determination | O46: Level 3 | P46: 6 Nexus Court | Q46: MULGRAVE | R46: Vic | S46: 3149 | T46: PO Box 449 | V46: MOUNT WAVERLEY | W46: VIC | X46: 3170 | Y46: Mathew Abraham | Z46: 03 8846 9758 | AA46: mathew.abraham@ue.com.au | AE46: YES | AF46: NO | AG46: NO | AI46: CBD | AJ46: Urban | AK46: Short rural | AL46: Long rural | AN46: United Energy
B47: Western Power (D) | C47: Western Power (D) | D47: 18540492861 | E47: WA | F47: Electricity | G47: Distribution | H47: Revenue cap | I47: Financial | J47: June | K47: 12 | L47: 4 | M47: x | N47: distribution determination | O47: 363 Wellington Street | Q47: PERTH | R47: WA | S47: 6000 | T47: GPO Box L921 | V47: PERTH | W47: WA | X47: 6842 | Y47: Judy Hunter | Z47: 08 9326 6239 | AA47: judy.hunter@westernpower.com.au | AE47: YES | AF47: YES | AG47: NO | AH47: NO | AI47: CBD | AJ47: Urban | AK47: Short rural | AL47: Long rural | AN47: Western Power (D)
B48: Western Power (T) | C48: Western Power (T) | D48: 18540492861 | E48: WA | F48: Electricity | G48: Transmission | H48: Revenue cap | I48: Financial | J48: June | K48: 12 | L48: 4 | M48: x | N48: transmission determination | O48: 363 Wellington Street | Q48: PERTH | R48: WA | S48: 6000 | T48: GPO Box L921 | V48: PERTH | W48: WA | X48: 6842 | Y48: Judy Hunter | Z48: 08 9326 6239 | AA48: judy.hunter@westernpower.com.au | AE48: YES | AF48: YES | AG48: NO | AI48: CBD | AJ48: Urban | AK48: Short rural | AL48: Long rural | AN48: Western Power (T)
W51: For EB & Reset RINs only | AC51: For AARs only
B52: The Reg Year Ending (dms_RYE) must be set to the last year of the regulatory period. For forecast data is is usually (FRCP_y5) for actual it is a single year (CRY). For historical actual data the RYE will need to be set manually in the business details sheet by setting the dms_Multiyear_flag to 1 and putting the correct value in 'dms_Specified_FinalYear. See cells C67:C68 | G52: =IF(dms_RPT="financial",VALUE(LEFT(CRCP_y1,4)-1)&"-"&TEXT(VALUE(RIGHT(CRCP_y1,2)-1),"00"),VALUE(LEFT(CRCP_y1,4)-1)) -> 2011-12 | N52: Drop down selector box for CA & Reset RINs. | O52: For CA & Reset RINs only | W52: for DNSP only | AC52: For DNSPs only | AI52: Reason for interruption | AJ52: dms_Reason_Interruption_Detailed | AK52: dms_Reason_Interruption
B53: dms_Model_List | C53: DELETE NR 'CRY' IF NOT AN ANNUAL RIN (EB, CA , ARR) | E53: dms_RYE_Formula_Result | N53: dms_0203_ProjectType | O53: dms_020303_01_UOM | P53: dms_020501_01_UOM | Q53: dms_020501_02_UOM | R53: dms_020501_03_UOM | S53: dms_020501_04_UOM | T53: dms_020603_01_UOM | U53: dms_040102_01_UOM | V53: dms_040102_04_UOM | W53: dms_030601_01_UOM | X53: dms_030601_02_UOM | Y53: dms_030701_01_UOM | Z53: dms_030702_01_UOM | AA53: dms_030703_01_UOM | AC53: dms_030605_UOM | AD53: dms_03060703_UOM | AI53: Animal | AJ53: Animal impact | AK53: Animal
B54: ARR | C54: ANNUAL REPORTING STATEMENT | E54: =LEFT(dms_SingleYear_FinalYear_Result,2)&RIGHT(dms_SingleYear_FinalYear_Result,2) -> 2017 | F54: =LEFT(dms_SingleYear_FinalYear_Result,2)&RIGHT(dms_SingleYear_FinalYear_Result,2) | H54: Formula errors are OK | N54: New line on new route - single circuit | O54: Circuit line length in km | P54: 0's | Q54: 0's | R54: 0's | S54: 0's | T54: 0's | U54: 0's | V54: days | W54: minutes/customer | X54: minutes/customer | Y54: Customer / km | Z54: % | AA54: km | AC54: number | AD54: number | AJ54: Animal nesting/burrowing, etc and other | AK54: Asset failure
B55: CA | C55: CATEGORY ANALYSIS | E55: =LEFT(dms_SingleYear_FinalYear_Result,2)&RIGHT(dms_SingleYear_FinalYear_Result,2) -> 2017 | F55: =LEFT(dms_SingleYear_FinalYear_Result,2)&RIGHT(dms_SingleYear_FinalYear_Result,2) | H55: Formula errors are OK | N55: New line on new route - dual circuit | O55: Circuit line length in km | P55: 0's | Q55: 0's | R55: 0's | S55: 0's | T55: 0's | U55: 0's | V55: 0's | W55: minutes/customer | X55: minutes/customer | Y55: MWh/customer | Z55: Number of spans | AC55: number | AD55: number | AJ55: Other | AK55: Other
B56: CPI | C56: CPI | N56: New line on new route - other | O56: Circuit line length in km | P56: MVA added | Q56: MVA added | R56: MVA added | S56: MVA added | T56: 0's | U56: 0's | V56: $0s | W56: interruptions/customer | X56: interruptions/customer | Y56: kVA / customer | Z56: Number of spans | AC56: number | AD56: number | AI56: Asset failure | AJ56: LV | AK56: Overloads
B57: EB | C57: ECONOMIC BENCHMARKING | E57: =LEFT(dms_SingleYear_FinalYear_Result,2)&RIGHT(dms_SingleYear_FinalYear_Result,2) -> 2017 | F57: =LEFT(dms_SingleYear_FinalYear_Result,2)&RIGHT(dms_SingleYear_FinalYear_Result,2) | H57: Formula errors are OK | N57: Line rebuild over existing route - single circuit | O57: Circuit line length in km | P57: 0's | Q57: 0's | R57: 0's | S57: 0's | T57: 0's | U57: $0s | V57: 0's | W57: interruptions/customer | X57: interruptions/customer | Z57: Number of spans | AC57: number | AD57: number | AJ57: Distribution substation | AK57: Planned
B58: PTRM | C58: POST TAX REVENUE MODEL | E58: =LEFT(dms_MultiYear_FinalYear_Result,2)&RIGHT(dms_MultiYear_FinalYear_Result,2) -> 2022 | F58: =LEFT(dms_MultiYear_FinalYear_Result,2)&RIGHT(dms_MultiYear_FinalYear_Result,2) | N58: Line rebuild over existing route - dual circuit | O58: Number | P58: total spend $0s | Q58: total spend $0s | R58: total spend $0s | S58: total spend $0s | T58: (per cent) | Z58: Number of spans | AC58: number | AD58: (per cent) | AJ58: HV | AK58: Network business
B59: Reset | C59: REGULATORY REPORTING STATEMENT | E59: =LEFT(dms_MultiYear_FinalYear_Result,2)&RIGHT(dms_MultiYear_FinalYear_Result,2) -> 2022 | F59: =LEFT(dms_MultiYear_FinalYear_Result,2)&RIGHT(dms_MultiYear_FinalYear_Result,2) | H59: Formula errors are OK | N59: Reconductor - Single circuit | O59: Number | P59: net circuit km added | Q59: net circuit km added | R59: net circuit km added | S59: net circuit km added | Z59: Years | AC59: number | AJ59: Zone substation | AK59: Third party
B60: RFM | C60: ROLL FORWARD MODEL | E60: =LEFT(dms_CRCP_FinalYear_Result,2)&RIGHT(dms_CRCP_FinalYear_Result,2) -> 2017 | F60: =LEFT(dms_CRCP_FinalYear_Result,2)&RIGHT(dms_CRCP_FinalYear_Result,2) | N60: Reconductor - Dual circuit | O60: Number | P60: total spend $0s | Q60: total spend $0s | R60: total spend $0s | S60: total spend $0s | Z60: Years | AC60: number | AJ60: Subtransmission | AK60: Unknown
B61: WACC | C61: WEIGHTED AVERAGE COST OF CAPITAL | E61: =LEFT(dms_MultiYear_FinalYear_Result,2)&RIGHT(dms_MultiYear_FinalYear_Result,2) -> 2022 | F61: =LEFT(dms_MultiYear_FinalYear_Result,2)&RIGHT(dms_MultiYear_FinalYear_Result,2) | N61: Other | P61: net circuit km added | Q61: net circuit km added | R61: net circuit km added | S61: net circuit km added | Z61: Trees | AC61: number | AI61: Other | AJ61: insert description of 'other' | AK61: Vegetation
P62: total spend $0s | Q62: total spend $0s | R62: total spend $0s | S62: total spend $0s | Z62: Trees | AC62: number | AI62: Overloads | AJ62: - | AK62: Weather
B63: dms_DataQuality_List | P63: 0's | R63: $0s | Z63: Defects | AC63: number | AI63: Planned | AJ63: - | AK63: 2 - STPIS Exclusion (3.3)(a)
B64: Actual | P64: 0's | Z64: Defects | AC64: number | AI64: Network business | AJ64: Network error | AK64: 3 - STPIS Exclusion (3.3)(a)
B65: Estimate | P65: 0's | Z65: Spans | AC65: number | AJ65: Switching and protection error | AK65: 4 - STPIS Exclusion (3.3)(a)
B66: Consolidated | P66: $0s | Z66: km | AC66: (per cent) | AI66: Third party | AJ66: Fire | AK66: 5 - STPIS Exclusion (3.3)(a)
B67: Recast | Z67: Spans | AC67: (per cent) | AJ67: Other | AK67: 6 - STPIS Exclusion (3.3)(a)
B68: Public | AJ68: Dig-in | AK68: 7 - STPIS Exclusion (3.3)(a)
AJ69: Unauthorised access
B70: For all files either AER or business needs to be able to specify the type of submission | C70: For PTRM & RFM templates we must provide a choice in case they change their form of control - otherwise it is drawn from the business specific lookup table above. | O70: For PTRM files - this field set the text for the named range "DMS_Xfactor" which in all cases is simply the text "x factors" - this saves putting in each old gas PTRM file | W70: for TNSP only | AJ70: Vehicle impact
B71: dms_SourceList | C71: dms_FormControl_Choices | O71: DMS_Xfactor | W71: dms_030601_01_UOM | Y71: dms_030701_01_UOM | Z71: dms_030702_01_UOM | AI71: Unknown | AJ71: Unknown
B72: After appeal | C72: Revenue cap | O72: x factors | W72: % | Y72: Number of spans | Z72: km | AI72: Vegetation | AJ72: Blow-in/Fall-in - NSP responsibility
B73: Draft decision | C73: Revenue yield | W73: number | Y73: Years | Z73: % | AJ73: Grow-in - NSP responsibility
B74: Final decision | C74: Weighted average price cap | W74: number | Y74: Trees | Z74: km | AJ74: Blow-in/Fall-in - Other responsible party
B75: PTRM update 1 | W75: % | Y75: Defects | Z75: number | AJ75: Grow-in - Other responsible party
B76: PTRM update 2 | W76: number | Y76: Number of spans | AI76: Weather
B77: PTRM update 3 | W77: number | Y77: km | AI77: 2 - STPIS Exclusion (3.3)(a)
B78: PTRM update 4 | W78: % | Y78: km | AI78: 3 - STPIS Exclusion (3.3)(a)
B79: PTRM update 5 | W79: number | Y79: Number of spans | AI79: 4 - STPIS Exclusion (3.3)(a)
B80: PTRM update 6 | W80: number | AI80: 5 - STPIS Exclusion (3.3)(a)
B81: PTRM update 7 | W81: % | AI81: 6 - STPIS Exclusion (3.3)(a)
B82: Regulatory proposal | W82: number | AI82: 7 - STPIS Exclusion (3.3)(a)
B83: Reporting | W83: %
B84: Revised regulatory proposal | W84: number
W85: %
W86: number
B90: These are indeces and lookup values for various dates. All step from the value placed in FRCP_y1 on the business and other details worksheet | L90: These date tables are currently used in the Recast templates to provide column headings and conditional formatting
B91: dms_FRCPlength_Num_List | C91: dms_FinalYear_List | D91: dms_CRCPlength_Num_List | E91: dms_CFinalYear_List | F91: dms_FRCP_years | H91: dms_CRCP_years | J91: dms_CRCP_index | L91: CRY from input cell on business sheet | M91: CRY - financial | N91: dms_FinYears | O91: CRY calendar | P91: dms_CalYears
B92: 1 | C92: dms_FRCP_y1 | D92: 1 | E92: CRCP_y1 | F92: =FRCP_y1 -> 2017-18 | G92: dms_FRCP_y1 | H92: =IF(dms_RPT="financial",VALUE(LEFT(dms_FRCP_y1,4)-1)&"-"&TEXT(VALUE(MID(dms_FRCP_y1,3,2)),"00"),VALUE(LEFT(dms_FRCP_y1,4)-1)) -> 2016-17 | I92: dms_CRCP_yZ | J92: 1 | L92: =CRY -> 2016-17 | M92: =VALUE(LEFT(CRY,4))&"-"&TEXT(MID(CRY,3,2)+1,"00") -> 2016-17 | N92: dms_CRYf_y1 | O92: =VALUE(LEFT(CRY,4)+1) -> 2017 | P92: dms_CRYc_y1
B93: 2 | C93: dms_FRCP_y2 | D93: 2 | E93: CRCP_y2 | F93: =IF(dms_RPT="financial",VALUE(LEFT(dms_FRCP_y1,4)+1)&"-"&TEXT(VALUE(RIGHT(dms_FRCP_y1,2)+1),"00"),VALUE(LEFT(dms_FRCP_y1,4)+1)) -> 2018-19 | G93: dms_FRCP_y2 | H93: =IF(dms_RPT="financial",VALUE(LEFT(dms_CRCP_yZ,4)-1)&"-"&TEXT(VALUE(MID(dms_CRCP_yZ,3,2)),"00"),VALUE(LEFT(dms_CRCP_yZ,4)-1)) -> 2015-16 | I93: dms_CRCP_yY | J93: 2 | M93: =VALUE(LEFT(dms_CRYf_y1,4)+1)&"-"&TEXT(MID(dms_CRYf_y1,3,2)+2,"00") -> 2017-18 | N93: dms_CRYf_y2 | O93: =VALUE(LEFT(dms_CRYc_y1,4)+1) -> 2018 | P93: dms_CRYc_y2
B94: 3 | C94: dms_FRCP_y3 | D94: 3 | E94: CRCP_y3 | F94: =IF(dms_RPT="financial",VALUE(LEFT(dms_FRCP_y2,4)+1)&"-"&TEXT(VALUE(RIGHT(dms_FRCP_y2,2)+1),"00"),VALUE(LEFT(dms_FRCP_y2,4)+1)) -> 2019-20 | G94: dms_FRCP_y3 | H94: =IF(dms_RPT="financial",VALUE(LEFT(dms_CRCP_yY,4)-1)&"-"&TEXT(VALUE(MID(dms_CRCP_yY,3,2)),"00"),VALUE(LEFT(dms_CRCP_yY,4)-1)) -> 2014-15 | I94: dms_CRCP_yX | J94: 3 | M94: =VALUE(LEFT(dms_CRYf_y2,4)+1)&"-"&TEXT(MID(dms_CRYf_y2,3,2)+2,"00") -> 2018-19 | N94: dms_CRYf_y3 | O94: =VALUE(LEFT(dms_CRYc_y2,4)+1) -> 2019 | P94: dms_CRYc_y3
B95: 4 | C95: dms_FRCP_y4 | D95: 4 | E95: CRCP_y4 | F95: =IF(dms_RPT="financial",VALUE(LEFT(dms_FRCP_y3,4)+1)&"-"&TEXT(VALUE(RIGHT(dms_FRCP_y3,2)+1),"00"),VALUE(LEFT(dms_FRCP_y3,4)+1)) -> 2020-21 | G95: dms_FRCP_y4 | H95: =IF(dms_RPT="financial",VALUE(LEFT(dms_CRCP_yX,4)-1)&"-"&TEXT(VALUE(MID(dms_CRCP_yX,3,2)),"00"),VALUE(LEFT(dms_CRCP_yX,4)-1)) -> 2013-14 | I95: dms_CRCP_yW | J95: 4 | M95: =VALUE(LEFT(dms_CRYf_y3,4)+1)&"-"&TEXT(MID(dms_CRYf_y3,3,2)+2,"00") -> 2019-20 | N95: dms_CRYf_y4 | O95: =VALUE(LEFT(dms_CRYc_y3,4)+1) -> 2020 | P95: dms_CRYc_y4
B96: 5 | C96: dms_FRCP_y5 | D96: 5 | E96: CRCP_y5 | F96: =IF(dms_RPT="financial",VALUE(LEFT(dms_FRCP_y4,4)+1)&"-"&TEXT(VALUE(RIGHT(dms_FRCP_y4,2)+1),"00"),VALUE(LEFT(dms_FRCP_y4,4)+1)) -> 2021-22 | G96: dms_FRCP_y5 | H96: =IF(dms_RPT="financial",VALUE(LEFT(dms_CRCP_yW,4)-1)&"-"&TEXT(VALUE(MID(dms_CRCP_yW,3,2)),"00"),VALUE(LEFT(dms_CRCP_yW,4)-1)) -> 2012-13 | I96: dms_CRCP_yV | J96: 5 | M96: =VALUE(LEFT(dms_CRYf_y4,4)+1)&"-"&TEXT(MID(dms_CRYf_y4,3,2)+2,"00") -> 2020-21 | N96: dms_CRYf_y5 | O96: =VALUE(LEFT(dms_CRYc_y4,4)+1) -> 2021 | P96: dms_CRYc_y5
B97: 6 | C97: dms_FRCP_y6 | D97: 6 | E97: CRCP_y6 | F97: =IF(dms_RPT="financial",VALUE(LEFT(dms_FRCP_y5,4)+1)&"-"&TEXT(VALUE(RIGHT(dms_FRCP_y5,2)+1),"00"),VALUE(LEFT(dms_FRCP_y5,4)+1)) -> 2022-23 | G97: dms_FRCP_y6 | H97: =IF(dms_RPT="financial",VALUE(LEFT(dms_CRCP_yV,4)-1)&"-"&TEXT(VALUE(MID(dms_CRCP_yV,3,2)),"00"),VALUE(LEFT(dms_CRCP_yV,4)-1)) -> 2011-12 | I97: dms_CRCP_yU | J97: 6 | M97: =VALUE(LEFT(dms_CRYf_y5,4)+1)&"-"&TEXT(MID(dms_CRYf_y5,3,2)+2,"00") -> 2021-22 | N97: dms_CRYf_y6 | O97: =VALUE(LEFT(dms_CRYc_y5,4)+1) -> 2022 | P97: dms_CRYc_y6
B98: 7 | C98: dms_FRCP_y7 | D98: 7 | E98: CRCP_y7 | F98: =IF(dms_RPT="financial",VALUE(LEFT(dms_FRCP_y6,4)+1)&"-"&TEXT(VALUE(RIGHT(dms_FRCP_y6,2)+1),"00"),VALUE(LEFT(dms_FRCP_y6,4)+1)) -> 2023-24 | G98: dms_FRCP_y7 | H98: =IF(dms_RPT="financial",VALUE(LEFT(dms_CRCP_yU,4)-1)&"-"&TEXT(VALUE(MID(dms_CRCP_yU,3,2)),"00"),VALUE(LEFT(dms_CRCP_yU,4)-1)) -> 2010-11 | I98: dms_CRCP_yT | J98: 7 | M98: =VALUE(LEFT(dms_CRYf_y6,4)+1)&"-"&TEXT(MID(dms_CRYf_y6,3,2)+2,"00") -> 2022-23 | N98: dms_CRYf_y7 | O98: =VALUE(LEFT(dms_CRYc_y6,4)+1) -> 2023 | P98: dms_CRYc_y7
B99: 8 | C99: dms_FRCP_y8 | D99: 8 | E99: CRCP_y8 | F99: =IF(dms_RPT="financial",VALUE(LEFT(dms_FRCP_y7,4)+1)&"-"&TEXT(VALUE(RIGHT(dms_FRCP_y7,2)+1),"00"),VALUE(LEFT(dms_FRCP_y7,4)+1)) -> 2024-25 | G99: dms_FRCP_y8 | H99: =IF(dms_RPT="financial",VALUE(LEFT(dms_CRCP_yT,4)-1)&"-"&TEXT(VALUE(MID(dms_CRCP_yT,3,2)),"00"),VALUE(LEFT(dms_CRCP_yT,4)-1)) -> 2009-10 | I99: dms_CRCP_yS | J99: 8 | M99: =VALUE(LEFT(dms_CRYf_y7,4)+1)&"-"&TEXT(MID(dms_CRYf_y7,3,2)+2,"00") -> 2023-24 | N99: dms_CRYf_y8 | O99: =VALUE(LEFT(dms_CRYc_y7,4)+1) -> 2024 | P99: dms_CRYc_y8
B100: 9 | C100: dms_FRCP_y9 | D100: 9 | E100: CRCP_y9 | F100: =IF(dms_RPT="financial",VALUE(LEFT(dms_FRCP_y8,4)+1)&"-"&TEXT(VALUE(RIGHT(dms_FRCP_y8,2)+1),"00"),VALUE(LEFT(dms_FRCP_y8,4)+1)) -> 2025-26 | G100: dms_FRCP_y9 | H100: =IF(dms_RPT="financial",VALUE(LEFT(dms_CRCP_yS,4)-1)&"-"&TEXT(VALUE(MID(dms_CRCP_yS,3,2)),"00"),VALUE(LEFT(dms_CRCP_yS,4)-1)) -> 2008-09 | I100: dms_CRCP_yR | J100: 9 | M100: =VALUE(LEFT(dms_CRYf_y8,4)+1)&"-"&TEXT(MID(dms_CRYf_y8,3,2)+2,"00") -> 2024-25 | N100: dms_CRYf_y9 | O100: =VALUE(LEFT(dms_CRYc_y8,4)+1) -> 2025 | P100: dms_CRYc_y9
B101: 10 | C101: dms_FRCP_y10 | D101: 10 | E101: CRCP_y10 | F101: =IF(dms_RPT="financial",VALUE(LEFT(dms_FRCP_y9,4)+1)&"-"&TEXT(VALUE(RIGHT(dms_FRCP_y9,2)+1),"00"),VALUE(LEFT(dms_FRCP_y9,4)+1)) -> 2026-27 | G101: dms_FRCP_y10 | H101: =IF(dms_RPT="financial",VALUE(LEFT(dms_CRCP_yR,4)-1)&"-"&TEXT(VALUE(MID(dms_CRCP_yR,3,2)),"00"),VALUE(LEFT(dms_CRCP_yR,4)-1)) -> 2007-08 | I101: dms_CRCP_yQ | J101: 10 | M101: =VALUE(LEFT(dms_CRYf_y9,4)+1)&"-"&TEXT(MID(dms_CRYf_y9,3,2)+2,"00") -> 2025-26 | N101: dms_CRYf_y10 | O101: =VALUE(LEFT(dms_CRYc_y9,4)+1) -> 2026 | P101: dms_CRYc_y10
B102: 11 | C102: dms_FRCP_y11 | D102: 11 | E102: CRCP_y11 | F102: =IF(dms_RPT="financial",VALUE(LEFT(dms_FRCP_y10,4)+1)&"-"&TEXT(VALUE(RIGHT(dms_FRCP_y10,2)+1),"00"),VALUE(LEFT(dms_FRCP_y10,4)+1)) -> 2027-28 | G102: dms_FRCP_y11 | H102: =IF(dms_RPT="financial",VALUE(LEFT(dms_CRCP_yQ,4)-1)&"-"&TEXT(VALUE(MID(dms_CRCP_yQ,3,2)),"00"),VALUE(LEFT(dms_CRCP_yQ,4)-1)) -> 2006-07 | I102: dms_CRCP_yP | J102: 11 | M102: =VALUE(LEFT(dms_CRYf_y10,4)+1)&"-"&TEXT(MID(dms_CRYf_y10,3,2)+2,"00") -> 2026-27 | N102: dms_CRYf_y11 | O102: =VALUE(LEFT(dms_CRYc_y10,4)+1) -> 2027 | P102: dms_CRYc_y11
B103: 12 | C103: dms_FRCP_y12 | D103: 12 | E103: CRCP_y12 | F103: =IF(dms_RPT="financial",VALUE(LEFT(dms_FRCP_y11,4)+1)&"-"&TEXT(VALUE(RIGHT(dms_FRCP_y11,2)+1),"00"),VALUE(LEFT(dms_FRCP_y11,4)+1)) -> 2028-29 | G103: dms_FRCP_y12 | H103: =IF(dms_RPT="financial",VALUE(LEFT(dms_CRCP_yP,4)-1)&"-"&TEXT(VALUE(MID(dms_CRCP_yP,3,2)),"00"),VALUE(LEFT(dms_CRCP_yP,4)-1)) -> 2005-06 | I103: dms_CRCP_yO | J103: 12 | M103: =VALUE(LEFT(dms_CRYf_y11,4)+1)&"-"&TEXT(MID(dms_CRYf_y11,3,2)+2,"00") -> 2027-28 | N103: dms_CRYf_y12 | O103: =VALUE(LEFT(dms_CRYc_y11,4)+1) -> 2028 | P103: dms_CRYc_y12
B104: 13 | C104: dms_FRCP_y13 | D104: 13 | E104: CRCP_y13 | F104: =IF(dms_RPT="financial",VALUE(LEFT(dms_FRCP_y12,4)+1)&"-"&TEXT(VALUE(RIGHT(dms_FRCP_y12,2)+1),"00"),VALUE(LEFT(dms_FRCP_y12,4)+1)) -> 2029-30 | G104: dms_FRCP_y13 | H104: =IF(dms_RPT="financial",VALUE(LEFT(dms_CRCP_yO,4)-1)&"-"&TEXT(VALUE(MID(dms_CRCP_yO,3,2)),"00"),VALUE(LEFT(dms_CRCP_yO,4)-1)) -> 2004-05 | I104: dms_CRCP_yN | J104: 13 | M104: =VALUE(LEFT(dms_CRYf_y12,4)+1)&"-"&TEXT(MID(dms_CRYf_y12,3,2)+2,"00") -> 2028-29 | N104: dms_CRYf_y13 | O104: =VALUE(LEFT(dms_CRYc_y12,4)+1) -> 2029 | P104: dms_CRYc_y13
B105: 14 | C105: dms_FRCP_y14 | D105: 14 | E105: CRCP_y14 | F105: =IF(dms_RPT="financial",VALUE(LEFT(dms_FRCP_y13,4)+1)&"-"&TEXT(VALUE(RIGHT(dms_FRCP_y13,2)+1),"00"),VALUE(LEFT(dms_FRCP_y13,4)+1)) -> 2030-31 | G105: dms_FRCP_y14 | H105: =IF(dms_RPT="financial",VALUE(LEFT(dms_CRCP_yN,4)-1)&"-"&TEXT(VALUE(MID(dms_CRCP_yN,3,2)),"00"),VALUE(LEFT(dms_CRCP_yN,4)-1)) -> 2003-04 | I105: dms_CRCP_yM | J105: 14 | M105: =VALUE(LEFT(dms_CRYf_y13,4)+1)&"-"&TEXT(MID(dms_CRYf_y13,3,2)+2,"00") -> 2029-30 | N105: dms_CRYf_y14 | O105: =VALUE(LEFT(dms_CRYc_y13,4)+1) -> 2030 | P105: dms_CRYc_y14
B106: 15 | C106: dms_FRCP_y15 | D106: 15 | E106: CRCP_y15 | F106: =IF(dms_RPT="financial",VALUE(LEFT(dms_FRCP_y14,4)+1)&"-"&TEXT(VALUE(RIGHT(dms_FRCP_y14,2)+1),"00"),VALUE(LEFT(dms_FRCP_y14,4)+1)) -> 2031-32 | G106: dms_FRCP_y15 | H106: =IF(dms_RPT="financial",VALUE(LEFT(dms_CRCP_yM,4)-1)&"-"&TEXT(VALUE(MID(dms_CRCP_yM,3,2)),"00"),VALUE(LEFT(dms_CRCP_yM,4)-1)) -> 2002-03 | I106: dms_CRCP_yL | J106: 15 | M106: =VALUE(LEFT(dms_CRYf_y14,4)+1)&"-"&TEXT(MID(dms_CRYf_y14,3,2)+2,"00") -> 2030-31 | N106: dms_CRYf_y15 | O106: =VALUE(LEFT(dms_CRYc_y14,4)+1) -> 2031 | P106: dms_CRYc_y15
M107: =VALUE(LEFT(dms_CRYf_y15,4)+1)&"-"&TEXT(MID(dms_CRYf_y15,3,2)+2,"00") -> 2031-32 | N107: dms_CRYf_y16 | O107: =VALUE(LEFT(dms_CRYc_y15,4)+1) -> 2032 | P107: dms_CRYc_y16
B108: These are drop down lists for businesses to select the correct FRCP_y1 on the business and other details worksheet. This also populates the column headings in the worksheets | M108: =VALUE(LEFT(dms_CRYf_y16,4)+1)&"-"&TEXT(MID(dms_CRYf_y16,3,2)+2,"00") -> 2032-33 | N108: dms_CRYf_y17 | O108: =VALUE(LEFT(dms_CRYc_y16,4)+1) -> 2033 | P108: dms_CRYc_y17
B109: dms_RCP_fyear_list | C109: dms_CRY_ListF | D109: dms_CRY_ListC | E109: dms_RCP_cyear_list | F109: dms_FRCP_fyear_list | G109: dms_FRCP_ListF | H109: dms_FRCP_ListC | I109: dms_FRCP_cyear_list | M109: =VALUE(LEFT(dms_CRYf_y17,4)+1)&"-"&TEXT(MID(dms_CRYf_y17,3,2)+2,"00") -> 2033-34 | N109: dms_CRYf_y18 | O109: =VALUE(LEFT(dms_CRYc_y17,4)+1) -> 2034 | P109: dms_CRYc_y18
B110: dms_fy1 | C110: 2006-07 | D110: 2007 | E110: dms_cy1 | F110: dms_frcp_fy1 | G110: 2015-16 | H110: 2016 | I110: dms_crcp_cy1 | M110: =VALUE(LEFT(dms_CRYf_y18,4)+1)&"-"&TEXT(MID(dms_CRYf_y18,3,2)+2,"00") -> 2034-35 | N110: dms_CRYf_y19 | O110: =VALUE(LEFT(dms_CRYc_y18,4)+1) -> 2035 | P110: dms_CRYc_y19
B111: dms_fy2 | C111: 2007-08 | D111: 2008 | E111: dms_cy2 | F111: dms_frcp_fy2 | G111: 2016-17 | H111: 2017 | I111: dms_crcp_cy2 | M111: =VALUE(LEFT(dms_CRYf_y19,4)+1)&"-"&TEXT(MID(dms_CRYf_y19,3,2)+2,"00") -> 2035-36 | N111: dms_CRYf_y20 | O111: =VALUE(LEFT(dms_CRYc_y19,4)+1) -> 2036 | P111: dms_CRYc_y20
B112: dms_fy3 | C112: 2008-09 | D112: 2009 | E112: dms_cy3 | F112: dms_frcp_fy3 | G112: 2017-18 | H112: 2018 | I112: dms_crcp_cy3
B113: dms_fy4 | C113: 2009-10 | D113: 2010 | E113: dms_cy4 | F113: dms_frcp_fy4 | G113: 2018-19 | H113: 2019 | I113: dms_crcp_cy4
B114: dms_fy5 | C114: 2010-11 | D114: 2011 | E114: dms_cy5 | F114: dms_frcp_fy5 | G114: 2019-20 | H114: 2020 | I114: dms_crcp_cy5
B115: dms_fy6 | C115: 2011-12 | D115: 2012 | E115: dms_cy6 | F115: dms_frcp_fy6 | G115: 2020-21 | H115: 2021 | I115: dms_crcp_cy6
B116: dms_fy7 | C116: 2012-13 | D116: 2013 | E116: dms_cy7 | F116: dms_frcp_fy7 | G116: 2021-22 | H116: 2022 | I116: dms_crcp_cy7
B117: dms_fy8 | C117: 2013-14 | D117: 2014 | E117: dms_cy8 | F117: dms_frcp_fy8 | G117: 2022-23 | H117: 2023 | I117: dms_crcp_cy8 | L117: 2005-06 | M117: 2006
B118: dms_fy9 | C118: 2014-15 | D118: 2015 | E118: dms_cy9 | F118: dms_frcp_fy9 | G118: 2023-24 | H118: 2024 | I118: dms_crcp_cy9 | L118: 2006-07 | M118: 2007
B119: dms_fy10 | C119: 2015-16 | D119: 2016 | E119: dms_cy10 | F119: dms_frcp_fy10 | G119: 2024-25 | H119: 2025 | I119: dms_crcp_cy10 | L119: 2007-08 | M119: 2008
B120: dms_fy11 | C120: 2016-17 | D120: 2017 | E120: dms_cy11 | F120: dms_frcp_fy11 | G120: 2025-26 | H120: 2026 | I120: dms_crcp_cy11 | L120: 2008-09 | M120: 2009
B121: dms_fy12 | C121: 2017-18 | D121: 2018 | E121: dms_cy12 | F121: dms_frcp_fy12 | G121: 2026-27 | H121: 2027 | I121: dms_crcp_cy12 | L121: 2009-10 | M121: 2010
B122: dms_fy13 | C122: 2018-19 | D122: 2019 | E122: dms_cy13 | F122: dms_frcp_fy13 | G122: 2027-28 | H122: 2028 | I122: dms_crcp_cy13 | L122: 2010-11 | M122: 2011
B123: dms_fy14 | C123: 2019-20 | D123: 2020 | E123: dms_cy14 | F123: dms_frcp_fy14 | G123: 2028-29 | H123: 2029 | I123: dms_crcp_cy14 | L123: 2011-12 | M123: 2012
B124: dms_fy15 | C124: 2019-20 | D124: 2020 | E124: dms_cy15 | F124: dms_frcp_fy15 | G124: 2029-30 | H124: 2030 | I124: dms_crcp_cy15 | L124: 2012-13 | M124: 2013
B125: dms_fy16 | C125: 2020-21 | D125: 2021 | E125: dms_cy16 | L125: 2013-14 | M125: 2014
B126: dms_fy17 | C126: 2021-22 | D126: 2022 | E126: dms_cy17 | L126: 2014-15 | M126: 2015
B127: dms_fy18 | C127: 2022-23 | D127: 2023 | E127: dms_cy18 | L127: 2015-16 | M127: 2016
B128: dms_fy19 | C128: 2023-24 | D128: 2024 | E128: dms_cy19 | L128: 2016-17 | M128: 2017
B129: dms_fy20 | C129: 2024-25 | D129: 2025 | E129: dms_cy20 | L129: 2017-18 | M129: 2018
L130: 2018-19 | M130: 2019
L131: 2019-20 | M131: 2020
L132: 2020-21 | M132: 2021
L133: 2021-22 | M133: 2022
L134: 2022-23 | M134: 2023
L135: 2023-24 | M135: 2024
L136: 2024-25 | M136: 2025
L137: 2025-26 | M137: 2026
L138: 2026-27 | M138: 2027
L139: 2027-28 | M139: 2028
L140: 2028-29 | M140: 2029
L141: 2029-30 | M141: 2030
L142: 2030-31 | M142: 2031
L143: 2031-32 | M143: 2032
L144: 2032-33 | M144: 2033
L145: 2033-34 | M145: 2034
L146: 2034-35 | M146: 2035
L147: 2035-36 | M147: 2036

Sheet Instructions
B2: =CONCATENATE(dms_Segment," Network Service Provider") -> Distribution Network Service Provider
B3: Annual Reporting RIN Template
C4: =CONCATENATE("This template is to be used by ",dms_TradingName," to fulfil its reporting obligations to the AER.") -> This template is to be used by Ergon Energy to fulfil its reporting obligations to the AER.
C5: INSTRUCTIONS
C6: Complete the Business & other details worksheet before entering data or values in any other worksheets. The Business & other details worksheet is linked to other worksheets within the workbook and automatically generates certain column headings and conditional formatting.
C8: Identifying CONFIDENTIAL INFORMATION: Please use the macro at the top of each worksheet to identify confidential information.
C9: -Do this by selecting the cell or cells that contain confidential information and then run the Mark selection as CONFIDENTIAL macro. This will format the cells a specific colour that is identified by the AER's database which in turn marks that information as confidential. -To reverse this, select the cell or cells and run the Return selection to NON-CONFIDENTIAL macro
C11: UNITS OF MEASURE All amounts are to be unrounded and reported in nominal terms on a one for one basis: that is 1000 is to be entered as '1000'.
C13: COLOUR CODING OF INPUT / NON-INPUT CELLS:
D14: Yellow = Input cell (mandatory)
D15: Darker yellow = input cell (mandatory)
D16: Orange = input cell (if data available)
D17: Grey = Not applicable/No inputs required
D18: Leave coloured cells blank if no information exists. PLEASE DO NOT ENTER TEXT into cells that are to contain numeric data.
C21: WORKSHEET NAVIGATION Many tables in the worksheets have been "grouped" to allow for easy navigation. To ungroup or group data use the outline symbols in the left margin of excel (for Row groupings) or above the columns (for column groupings).
C23: RETURNING COMPLETED RESPONSES Please return four (4) files to the AER: 1. A confidential version which must contain a complete set of all responses with confidential information marked using the Mark selected cells CONFIDENTIAL macro and which has been completed using the locked template file provided by the AER. 2. An actual and an estimate version with confidential information marked using the Mark selected cells CONFIDENTIAL macro and which has been completed using the locked template file provided by the AER. 3. A public version with confidential information either removed completely or aggregated in some form together with writtten consent to disclose the public version of the response. Use the drop down box on the Business and other details worksheet to identify the file as either confidential ('consolidated') or public.
C25: SUBMITTING AMENDED DATA TO THE AER If an NSP wishes to correct data previously submitted to the AER it should resubmit that data using the original completed submission as the starting point. Please make any necessary changes to the data. Data that is not being amended should be left unchanged. NSPs must identify the reason for the amendments in the Amendment Reason box on the Business and other details worksheet. NSPs may provide further details regarding any amendments in the Amendments worksheet. .
C26: NSP may use Amended Data macro to highlight cells that contain amended data. NB: if data is also CONFIDENTIAL, re-apply the Confidentiality macro after applying the Amended macro
C27: Please resubmit two (2) files - a confidential version and a public version of the amended submission to the AER

Sheet Contents
B1: REGULATORY REPORTING STATEMENT
B2: =INDEX(dms_TradingNameFull_List,MATCH(dms_TradingName,dms_TradingName_List)) -> Ergon Energy
B3: =CONCATENATE((LOOKUP(dms_Model,dms_Model_List,dms_Worksheet_List))&" "&CRY) -> CATEGORY ANALYSIS 2016-17
B4: CONTENTS
E7: 1. Business details | L7: 2. Expenditure
E27: 4. Alternative control services | L27: 5. Network information | S27: 6. Service & quality

Sheet Business & other details
B1: =IF(dms_DataQuality="backcast",INDEX(dms_Worksheet_List,MATCH(dms_Model,dms_Model_List))&" BACKCAST",INDEX(dms_Worksheet_List,MATCH(dms_Model,dms_Model_List))) -> CATEGORY ANALYSIS
B2: =INDEX(dms_TradingNameFull_List,MATCH(dms_TradingName,dms_TradingName_List)) -> Ergon Energy
B3: =CONCATENATE((LOOKUP(dms_Model,dms_Model_List,dms_Worksheet_List))&" "&CRY) -> CATEGORY ANALYSIS 2016-17
B4: BUSINESS & OTHER DETAILS
B7: Instructions
B8: Complete the following business details regulatory template before entering data or values in any other regulatory template. This regulatory template is linked to other cells within the spreadsheet and automatically generates column headings and conditional formatting to distinguish business specific input and non-input cells.
B10: SUBMISSION PARTICULARS INPUT SHEETS
B12: ENTITY DETAILS
B14: Short name | C14: Ergon Energy | F14: Select business name from drop down list first
B15: ACN / ABN | C15: =INDEX(dms_ABN_List,MATCH(dms_TradingName,dms_TradingName_List)) -> 50087646062
B18: Business address | C18: Address 1 | E18: 420 Flinders Street
D19: Address 2 | E19: =IF(ISBLANK(INDEX(dms_Addr2_List,MATCH(dms_TradingName,dms_TradingName_List))),"",INDEX(dms_Addr2_List,MATCH(dms_TradingName,dms_TradingName_List))) -> 
C20: Suburb | E20: =INDEX(dms_Suburb_List,MATCH(dms_TradingName,dms_TradingName_List)) -> TOWNSVILLE
D21: State | E21: =INDEX(dms_State_List,MATCH(dms_TradingName,dms_TradingName_List)) -> Qld | F21: p/code | G21: =INDEX(dms_PostCode_List,MATCH(dms_TradingName,dms_TradingName_List)) -> 4810
B23: Postal address | C23: Address 1 | E23: GPO Box 1461
D24: Address 2 | E24: =IF(ISBLANK(INDEX(dms_PAddr2_List,MATCH(dms_TradingName,dms_TradingName_List))),"",INDEX(dms_PAddr2_List,MATCH(dms_TradingName,dms_TradingName_List))) -> 
C25: Suburb | E25: BRISBANE
D26: State | E26: =INDEX(dms_PState_List,MATCH(dms_TradingName,dms_TradingName_List)) -> QLD | F26: p/code | G26: 4001
B29: Contact name/s | C29: Jenny Doyle | F29: General Manager, Regulation and Pricing
B30: Contact phone/s | C30: =INDEX(dms_ContactPh1_List,MATCH(dms_TradingName,dms_TradingName_List)) -> (07) 3851 6416
B31: Contact email address/s | C31: jenny.doyle@energyq.com.au
B33: REGULATORY CONTROL PERIODS
B35: Forthcoming regulatory control period | C35: 2017-18 | D35: =dms_FRCP_y2 -> 2018-19 | E35: =dms_FRCP_y3 -> 2019-20 | F35: =dms_FRCP_y4 -> 2020-21 | G35: =dms_FRCP_y5 -> 2021-22 | H35: =dms_FRCP_y6 -> 2022-23 | I35: =dms_FRCP_y7 -> 2023-24 | J35: =dms_FRCP_y8 -> 2024-25 | K35: =dms_FRCP_y9 -> 2025-26 | L35: =dms_FRCP_y10 -> 2026-27
B38: Current regulatory control period | C38: =dms_CRCP_FirstYear_Result -> 2012-13 | D38: =IF(dms_RPT="financial",VALUE(LEFT(CRCP_y1,4)+1)&"-"&TEXT(MID(CRCP_y1,3,2)+2,"00"),VALUE(LEFT(CRCP_y1,4)+1)) -> 2013-14 | E38: =IF(dms_RPT="financial",VALUE(LEFT(CRCP_y2,4)+1)&"-"&TEXT(VALUE(MID(CRCP_y2,3,2)+2),"00"),VALUE(LEFT(CRCP_y2,4)+1)) -> 2014-15 | F38: =IF(dms_RPT="financial",VALUE(LEFT(CRCP_y3,4)+1)&"-"&TEXT(VALUE(MID(CRCP_y3,3,2)+2),"00"),VALUE(LEFT(CRCP_y3,4)+1)) -> 2015-16 | G38: =IF(dms_RPT="financial",VALUE(LEFT(CRCP_y4,4)+1)&"-"&TEXT(VALUE(MID(CRCP_y4,3,2)+2),"00"),VALUE(LEFT(CRCP_y4,4)+1)) -> 2016-17 | H38: =IF(dms_RPT="financial",VALUE(LEFT(CRCP_y5,4)+1)&"-"&TEXT(VALUE(MID(CRCP_y5,3,2)+2),"00"),VALUE(LEFT(CRCP_y5,4)+1)) -> 2017-18 | I38: =IF(dms_RPT="financial",VALUE(LEFT(CRCP_y6,4)+1)&"-"&TEXT(VALUE(MID(CRCP_y6,3,2)+2),"00"),VALUE(LEFT(CRCP_y6,4)+1)) -> 2018-19 | J38: =IF(dms_RPT="financial",VALUE(LEFT(CRCP_y7,4)+1)&"-"&TEXT(VALUE(MID(CRCP_y7,3,2)+2),"00"),VALUE(LEFT(CRCP_y7,4)+1)) -> 2019-20 | K38: =IF(dms_RPT="financial",VALUE(LEFT(CRCP_y8,4)+1)&"-"&TEXT(VALUE(MID(CRCP_y8,3,2)+2),"00"),VALUE(LEFT(CRCP_y8,4)+1)) -> 2020-21 | L38: =IF(dms_RPT="financial",VALUE(LEFT(CRCP_y9,4)+1)&"-"&TEXT(VALUE(MID(CRCP_y9,3,2)+2),"00"),VALUE(LEFT(CRCP_y9,4)+1)) -> 2021-22
B41: Previous regulatory control period | C41: =IF(dms_RPT="financial",VALUE(LEFT(PRCP_y2,4)-1)&"-"&TEXT(VALUE(MID(PRCP_y2,3,2)),"00"),VALUE(LEFT(PRCP_y2,4)-1)) -> 2007-08 | D41: =IF(dms_RPT="financial",VALUE(LEFT(PRCP_y3,4)-1)&"-"&TEXT(VALUE(MID(PRCP_y3,3,2)),"00"),VALUE(LEFT(PRCP_y3,4)-1)) -> 2008-09 | E41: =IF(dms_RPT="financial",VALUE(LEFT(PRCP_y4,4)-1)&"-"&TEXT(VALUE(MID(PRCP_y4,3,2)),"00"),VALUE(LEFT(PRCP_y4,4)-1)) -> 2009-10 | F41: =IF(dms_RPT="financial",VALUE(LEFT(PRCP_y5,4)-1)&"-"&TEXT(VALUE(RIGHT(PRCP_y5,2)-1),"00"),VALUE(LEFT(PRCP_y5,4)-1)) -> 2010-11 | G41: =IF(dms_RPT="financial",VALUE(LEFT(CRCP_y1,4)-1)&"-"&TEXT(VALUE(RIGHT(CRCP_y1,2)-1),"00"),VALUE(LEFT(CRCP_y1,4)-1)) -> 2011-12
B44: Commencing regulatory year | C44: 2016-17 | D44: CRY
B46: Last completed regulatory year | C46: 2021-22 | D46: dms_FinalYear
C49: DELETE NR 'CRY' IF NOT AN ANNUAL RIN (EB, CA , ARR)
C50: APPLY NR 'CRY' IF AN ANNUAL RIN (EB, CA , ARR) - including multi year annual RINs eg. Recast CA. EB
B52: Source | C52: Reporting | E52: Please select the correct submission type from the dropdown list.
B53: Data quality (actual, estimate, public, consolidated) | C53: Consolidated
B54: Amended RIN submission - amendment reason
B55: Submission Date | C55: 2017-10-31 | D55: dms_SubmissionDate | E55: Please enter date this file submitted to AER (dd/mm/yyyy)
B56: EBSS - First application of scheme in forthcoming period? | C56: No
B57: Sector | C57: =INDEX(dms_Sector_List,MATCH(dms_TradingName,dms_TradingName_List)) -> Electricity | D57: dms_Sector | E57: =INDEX(dms_Sector_List,MATCH(dms_TradingName,dms_TradingName_List))
B58: Segment | C58: =INDEX(dms_Segment_List,MATCH(dms_TradingName,dms_TradingName_List)) -> Distribution | D58: dms_Segment | E58: =INDEX(dms_Segment_List,MATCH(dms_TradingName,dms_TradingName_List))
B59: Regulatory Year Ending | C59: =IF(dms_MultiYear_Flag=1,LEFT(dms_Specified_FinalYear,2)&RIGHT(dms_Specified_FinalYear,2),INDEX(dms_RYE_Formula_Result,MATCH(dms_Model,dms_Model_List))) -> 2017 | D59: dms_RYE | E59: =IF(dms_MultiYear_Flag=1,LEFT(dms_Specified_FinalYear,2)&RIGHT(dms_Specified_FinalYear,2),INDEX(dms_RYE_Formula_Result,MATCH(dms_Model,dms_Model_List)))
B60: Reporting Period Type | C60: =INDEX(dms_RPT_List,MATCH(dms_TradingName,dms_TradingName_List)) -> Financial | D60: dms_RPT | E60: =INDEX(dms_RPT_List,MATCH(dms_TradingName,dms_TradingName_List))
B61: Model or RIN Type | C61: CA | D61: dms_Model | E61: Drop down selection
B62: Security Classification | C62: Public | D62: dms_Classification | E62: Always Public
B63: Template - version no. | C63: 5 | D63: dms_TemplateNumber
B64: Dollar $ real month | C64: =INDEX(dms_RPTMonth_List,MATCH(dms_TradingName,dms_TradingName_List)) -> June | D64: dms_RPTMonth | E64: =INDEX(dms_RPTMonth_List,MATCH(dms_TradingName,dms_TradingName_List))
B65: Dollar $ real (the last month before the FRCP_y1) | C65: =CONCATENATE(dms_RPTMonth)&" "&VALUE((LEFT(dms_CRCP_FinalYear_Result,2)&RIGHT(dms_CRCP_FinalYear_Result,2))) -> June 2017 | D65: dms_DollarReal | E65: =IF(SUM(dms_SingleYear_Model)>0,CONCATENATE(dms_RPTMonth)&" "&VALUE((LEFT(CRY,2))&RIGHT(CRY,2)),CONCATENATE(dms_RPTMonth)&" "&VALUE((LEFT(dms_CRCP_FinalYear_Result,2)&RIGHT(dms_CRCP_FinalYear_Result,2))))
B66: Form of control | C66: =INDEX(dms_FormControl_List,MATCH(dms_TradingName,dms_TradingName_List)) -> Revenue cap | D66: dms_FormControl | E66: =INDEX(dms_FormControl_List,MATCH(dms_TradingName,dms_TradingName_List))
B67: RIN response - version no. | C67: 1 | D67: dms_RINversion
B68: Jurisdiction | C68: =INDEX(dms_JurisdictionList,MATCH(dms_TradingName,dms_TradingName_List)) -> Qld | D68: dms_Jurisdiction | E68: =INDEX(dms_JurisdictionList,MATCH(dms_TradingName,dms_TradingName_List))
B69: Backcast Multiyear EB, CA or ARR? | C69: 0 | D69: dms_MultiYear_Flag | E69: 1=y, 0-n
C70: 2013 | D70: dms_Specified_FinalYear | E70: The result here is returned to dms_CRCP_FinalYear_Result if dms_MultiYear_Flag is set to 1
B71: Single Year Model T/F | C71: =IF(dms_Model="EB",1,0) -> 0 | D71: dms_EB
C72: =IF(dms_Model="CA",1,0) -> 1 | D72: dms_CA | E72: =dms_SingleYear_Model
C73: =IF(dms_Model="ARR",1,0) -> 0 | D73: dms_ARR
B74: Single Year Final Year Reference | C74: CRY | D74: dms_SingleYear_FinalYear_Ref | E74: This is the reference for EB, CA & ARR RINs
B75: Single Year Final Year Result | C75: =INDIRECT(dms_SingleYear_FinalYear_Ref) -> 2016-17 | D75: dms_SingleYear_FinalYear_Result | E75: =INDIRECT(dms_SingleYear_FinalYear_Ref) | I75: Formula errors OK
B76: FRCP length in years | C76: =INDEX(dms_FRCPlength_List,MATCH(dms_TradingName,dms_TradingName_List)) -> 5 | D76: dms_FRCPlength_Num | E76: =INDEX(dms_FRCPlength_List,MATCH(dms_TradingName,dms_TradingName_List))
B77: Multi Year Final Year Reference | C77: =INDEX(dms_FinalYear_List,MATCH(dms_FRCPlength_Num,dms_FRCPlength_Num_List)) -> dms_FRCP_y5 | D77: dms_MultiYear_FinalYear_Ref | E77: =INDEX(dms_FinalYear_List,MATCH(dms_FRCPlength_Num,dms_FRCPlength_Num_List))
B78: Multi Year Final Year Result | C78: =IF(dms_MultiYear_Flag=0,INDIRECT(dms_MultiYear_FinalYear_Ref),dms_Specified_FinalYear) -> 2021-22 | D78: dms_MultiYear_FinalYear_Result | E78: =IF(dms_MultiYear_Flag=0,INDIRECT(dms_MultiYear_FinalYear_Ref),dms_Specified_FinalYear) | I78: Formula errors OK
B79: CRCP length in years | C79: =INDEX(dms_CRCPlength_List,MATCH(dms_TradingName,dms_TradingName_List)) -> 5 | D79: dms_CRCPlength_Num | E79: =INDEX(dms_CRCPlength_List,MATCH(dms_TradingName,dms_TradingName_List))
B80: CRCP Final Year Reference | C80: =INDEX(dms_CFinalYear_List,MATCH(dms_CRCPlength_Num,dms_CRCPlength_Num_List)) -> CRCP_y5 | D80: dms_CRCP_FinalYear_Ref | E80: =INDEX(dms_CFinalYear_List,MATCH(dms_CRCPlength_Num,dms_CRCPlength_Num_List))
B81: CRCP First Year Result | C81: =INDEX(dms_CRCP_years,MATCH(dms_CRCPlength_Num,dms_CRCP_index)) -> 2012-13 | D81: dms_CRCP_FirstYear_Result | E81: =INDEX(dms_CRCP_years,MATCH(dms_CRCPlength_Num,dms_CRCP_index))
B82: CRCP Final Year Result | C82: =IF(dms_MultiYear_Flag=0,(IF(SUM(dms_SingleYear_Model)>0,CRY,dms_CRCP_yZ)),dms_Specified_FinalYear) -> 2016-17 | D82: dms_CRCP_FinalYear_Result | E82: =IF(dms_MultiYear_Flag=0,(IF(SUM(dms_SingleYear_Model)>0,CRY,dms_CRCP_yZ)),dms_Specified_FinalYear)
B83: Table 6.6.3 - Public lighting repair - no. business days | C83: =INDEX(dms_663_List,MATCH(dms_TradingName,dms_TradingName_List)) -> 5 | D83: dms_663
B84: Distribution Determination Reference | C84: =INDEX(dms_DeterminationRef_List,MATCH(dms_TradingName,dms_TradingName_List)) -> 2015-20 Distribution Determination
B85: Backcast templates only - unit of measure | C85: $0s | D85: dms_Backcast_UOM | E85: If the cover sheet is for Backcast data ensure to apply dms_Backcast_UOM named range to this field. Otherwise, do not apply this named range.
B86: EB/CA Unit of Measure for Monetary Values | C86: $0s | D86: dms_dollar_nom_UOM | E86: If the cover sheet is attached to an EB files make sure this field is set
B88: discard this record? | C88: NO | D88: dms_DISCARD | E88: If record is to be discarded from DB set this flag to YES
B90: USES NAMED RANGES FLAG | C90: yes | D90: dms_Defined_Names_Used

Sheet 2.1 Expenditure summary
B1: REGULATORY REPORTING STATEMENT
B2: =INDEX(dms_TradingNameFull_List,MATCH(dms_TradingName,dms_TradingName_List)) -> Ergon Energy
B3: =CONCATENATE((LOOKUP(dms_Model,dms_Model_List,dms_Worksheet_List))&" "&CRY) -> CATEGORY ANALYSIS 2016-17
B4: 2.1 EXPENDITURE SUMMARY & RECONCILIATION
B6: There are SIX tables on this worksheet. Each has been grouped for ease of navigation. See the Instructions sheet on how to group or ungroup tables.
B8: 2.1.1 - STANDARD CONTROL SERVICES CAPEX
C9: EXPENDITURE ($0's)
C10: =CRY -> 2016-17
B11: Replacement expenditure | C11: 166126792.5
B12: Connections | C12: 48405233
B13: Augmentation Expenditure | C13: 48574143
B14: Non-network | C14: 65052685
B15: capitalised network overheads | C15: 91203314.52
B16: capitalised corporate overheads | C16: 98403839.36
B17: Metering | C17: 944395
B18: Public Lighting | C18: 0
B26: balancing item | C26: -944395
B27: capcons (included in the above) | C27: 7288065.4
B28: TOTAL GROSS CAPEX (including capcons) | C28: =+SUM(C11:C26) -> 517766007.4
B30: 2.1.2 - STANDARD CONTROL SERVICES OPEX
C31: EXPENDITURE ($0's)
C32: =CRY -> 2016-17
B33: Vegetation management | C33: 40842285.57
B34: Maintenance | C34: 73581262.08
B35: Emergency response | C35: 54494712
B36: Non-network | C36: 107226221.3
B37: network overheads | C37: 113600116.3
B38: corporate overheads | C38: 72274964.19
B39: Metering | C39: 4699491
B40: Public Lighting | C40: 0
B48: balancing item | C48: -111925712.3
B49: TOTAL OPEX | C49: =+SUM(C33:C48) -> 354793340.1
B51: 2.1.3 - ALTERNATIVE CONTROL SERVICES CAPEX
C52: EXPENDITURE ($0's)
C53: =CRY -> 2016-17
B54: Connections | C54: 15112532
B55: capitalised network overheads | C55: 12634498.62
B56: capitalised corporate overheads | C56: 13602339.78
B57: Metering | C57: 12725817
B58: Public lighting | C58: 5513395.704
B59: Fee and quoted | C59: 22464488
B67: balancing item | C67: -15112532
B68: TOTAL CAPEX | C68: =+SUM(C54:C67) -> 66940539.1
B70: 2.1.4 - ALTERNATIVE CONTROL SERVICES OPEX
C71: EXPENDITURE ($0's)
C72: =CRY -> 2016-17
B73: Connections | C73: 4450033
B74: network overheads | C74: 57819431.83
B75: corporate overheads | C75: 14350912.91
B76: Metering | C76: 29491879
B77: Public lighting | C77: 7677244.66
B78: Fee and quoted | C78: 36924110
B86: balancing item | C86: -66415989
B87: TOTAL OPEX | C87: =+SUM(C73:C86) -> 84297622.4
B89: 2.1.5 - DUAL FUNCTION ASSETS CAPEX
C90: EXPENDITURE ($0's)
C91: =CRY -> 2016-17
B92: Replacement expenditure
B93: Connections
B94: Augmentation Expenditure
B95: Non-network
B96: Capitalised network overheads
B97: Capitalised corporate overheads
B105: balancing item
B106: capcons (included in the above)
B107: TOTAL GROSS CAPEX (including capcons) | C107: =SUM(C92:C105) -> 0
B109: 2.1.6 - DUAL FUNCTION ASSETS OPEX
C110: EXPENDITURE ($0's)
C111: =CRY -> 2016-17
B112: Vegetation management
B113: Maintenance
B114: Emergency response
B115: Non-network
B116: Network overheads
B117: Corporate overheads
B125: balancing item
B126: TOTAL OPEX | C126: =SUM(C112:C125) -> 0

Sheet 2.2 Repex
B1: REGULATORY REPORTING STATEMENT
B2: =INDEX(dms_TradingNameFull_List,MATCH(dms_TradingName,dms_TradingName_List)) -> Ergon Energy
B3: =CONCATENATE((LOOKUP(dms_Model,dms_Model_List,dms_Worksheet_List))&" "&CRY) -> CATEGORY ANALYSIS 2016-17
B4: 2.2 REPEX
B6: There are TWO tables on this worksheet. Each has been grouped for ease of navigation. See the Instructions sheet on how to group or ungroup tables.
B8: 2.2.1 - REPLACEMENT EXPENDITURE, VOLUMES AND ASSET FAILURES BY ASSET CATEGORY
E9: EXPENDITURE ($0's) | F9: ASSET REPLACEMENTS (0's) | G9: ASSET FAILURES (0's)
B10: ASSET GROUP | C10: ASSET CATEGORY | E10: =CRY -> 2016-17 | F10: =CRY -> 2016-17 | G10: =CRY -> 2016-17
B11: POLES BY: HIGHEST OPERATING VOLTAGE ; MATERIAL TYPE; STAKING (IF WOOD) | C11: Staking of a wooden pole | E11: 2307540.42 | F11: 1461 | G11: 90
C12: ˂ = 1 kV; Wood | E12: 8572771.915 | F12: 1573 | G12: 114
C13: > 1 kV & < = 11 kV; Wood | E13: 2483620.235 | F13: 319 | G13: 63
C14: ˃ 11 kV & < = 22 kV; Wood | E14: 18246433.8 | F14: 2232 | G14: 224
C15: > 22 kV & < = 66 kV; Wood | E15: 5082089.587 | F15: 232 | G15: 18
C16: > 66 kV & < = 132 kV; Wood | E16: 0 | F16: 0 | G16: 0
C17: > 132 kV; Wood | E17: 0 | F17: 0 | G17: 0
C18: ˂ = 1 kV; Concrete | E18: 0 | F18: 0 | G18: 0
C19: > 1 kV & < = 11 kV; Concrete | E19: 0 | F19: 0 | G19: 0
C20: ˃ 11 kV & < = 22 kV; Concrete | E20: 0 | F20: 0 | G20: 0
C21: > 22 kV & < = 66 kV; Concrete | E21: 0 | F21: 0 | G21: 0
C22: > 66 kV & < = 132 kV; Concrete | E22: 0 | F22: 0 | G22: 0
C23: > 132 kV; Concrete | E23: 0 | F23: 0 | G23: 0
C24: ˂ = 1 kV; Steel | E24: 0 | F24: 0 | G24: 0
C25: > 1 kV & < = 11 kV; Steel | E25: 0 | F25: 0 | G25: 0
C26: ˃ 11 kV & < = 22 kV; Steel | E26: 0 | F26: 0 | G26: 0
C27: > 22 kV & < = 66 kV; Steel | E27: 0 | F27: 0 | G27: 0
C28: > 66 kV & < = 132 kV; Steel | E28: 0 | F28: 0 | G28: 0
C29: > 132 kV; Steel | E29: 0 | F29: 0 | G29: 0
C30: Other | E30: 0 | F30: 0 | G30: 0
B31: POLE TOP STRUCTURES BY: HIGHEST OPERATING VOLTAGE | C31: ˂ = 1 kV | E31: 3590746.097 | F31: 2544 | G31: 71
C32: > 1 kV & < = 11 kV | E32: 11824871.4 | F32: 3770 | G32: 89
C33: ˃ 11 kV & < = 22 kV | E33: 1040714.146 | F33: 316 | G33: 70
C34: > 22 kV & < = 66 kV | E34: 2828559.425 | F34: 501 | G34: 28
C35: > 66 kV & < = 132 kV | E35: 23837.93705 | F35: 2 | G35: 3
C36: > 132 kV | E36: 0 | F36: 0 | G36: 0
C37: Other | E37: 0 | F37: 0 | G37: 0
B38: OVERHEAD CONDUCTORS BY: HIGHEST OPERATING VOLTAGE; NUMBER OF PHASES (AT HV) | C38: ˂ = 1 kV | E38: 10980477.51 | F38: 114.447 | G38: 90
C39: > 1 kV & < = 11 kV | E39: 7634425.429 | F39: 49.57357844 | G39: 300
C40: ˃ 11 kV & < = 22 kV ; SWER | E40: 1360097.382 | F40: 16.05762188 | G40: 103
C41: ˃ 11 kV & < = 22 kV ; Single-Phase | E41: 890387.0617 | F41: 7.227078392 | G41: 0
C42: ˃ 11 kV & < = 22 kV ; Multiple-Phase | E42: 2603457.726 | F42: 16.90536072 | G42: 99
C43: > 22 kV & < = 66 kV | E43: 2902230.14 | F43: 3.249209889 | G43: 36
C44: > 66 kV & < = 132 kV | E44: 684175.9423 | F44: 0.683484003 | G44: 0
C45: > 132 kV | E45: 0 | F45: 0 | G45: 0
C46: Other | E46: 0 | F46: 0 | G46: 0
B47: UNDERGROUND CABLES BY: HIGHEST OPERATING VOLTAGE | C47: ˂ = 1 kV | E47: 329124.0233 | F47: 2.3095 | G47: 8
C48: > 1 kV & < = 11 kV | E48: 1517844.671 | F48: 1.987333333 | G48: 6
C49: > 11 kV & < = 22 kV | E49: 468693.7336 | F49: 0.6136666667 | G49: 5
C50: > 22 kV & < = 33 kV | E50: 83043.22956 | F50: 0.06466666667 | G50: 0
C51: > 33 kV & < = 66 kV | E51: 0 | F51: 0 | G51: 1
C52: > 66 kV & < = 132 kV | E52: 0 | F52: 0 | G52: 0
C53: > 132 kV | E53: 0 | F53: 0 | G53: 0
C54: Other | E54: 0 | F54: 0 | G54: 0
B55: SERVICE LINES BY: CONNECTION VOLTAGE; CUSTOMER TYPE; CONNECTION COMPLEXITY | C55: ˂ = 11 kV ; Residential ; Simple Type | E55: 8262242.847 | F55: 4045.878788 | G55: 6719.484848
C56: ˂ = 11 kV ; Commercial & Industrial ; Simple Type | E56: 1197881.272 | F56: 339.5075758 | G56: 450.2121212
C57: ˂ = 11 kV ; Residential ; Complex Type | E57: 0 | F57: 0 | G57: 0
C58: ˂ = 11 kV ; Commercial & Industrial ; Complex Type | E58: 0 | F58: 0 | G58: 0
C59: ˂ = 11 kV ; Subdivision ; Complex Type | E59: 0 | F59: 0 | G59: 0
C60: > 11 kV & < = 22 kV ; Commercial & Industrial | E60: 0 | F60: 0 | G60: 0
C61: > 11 kV & < = 22 kV ; Subdivision | E61: 0 | F61: 0 | G61: 0
C62: > 22 kV & < = 33 kV ; Commercial & Industrial | E62: 0 | F62: 0 | G62: 0
C63: > 22 kV & < = 33 kV ; Subdivision | E63: 0 | F63: 0 | G63: 0
C64: > 33 kV & < = 66 kV ; Commercial & Industrial | E64: 0 | F64: 0 | G64: 0
C65: > 33 kV & < = 66 kV ; Subdivision | E65: 0 | F65: 0 | G65: 0
C66: > 66 kV & < = 132 kV ; Commercial & Industrial | E66: 0 | F66: 0 | G66: 0
C67: > 66 kV & < = 132 kV ; Subdivision | E67: 0 | F67: 0 | G67: 0
C68: > 132 kV ; Commercial & Industrial | E68: 0 | F68: 0 | G68: 0
C69: > 132 kV ; Subdivision | E69: 0 | F69: 0 | G69: 0
C70: Other | E70: 0 | F70: 0 | G70: 0
B71: TRANSFORMERS BY: MOUNTING TYPE; HIGHEST OPERATING VOLTAGE ; AMPERE RATING; NUMBER OF PHASES (AT LV) | C71: Pole Mounted ; < = 22kV ; < = 60 kVA ; Single Phase | E71: 6833681.964 | F71: 601 | G71: 601
C72: Pole Mounted ; < = 22kV ; > 60 kVA and < = 600 kVA ; Single Phase | E72: 517732.6733 | F72: 15 | G72: 15
C73: Pole Mounted ; < = 22kV ; > 600 kVA ; Single Phase | E73: 0 | F73: 0 | G73: 0
C74: Pole Mounted ; < = 22kV ; < = 60 kVA ; Multiple Phase | E74: 1921617.724 | F74: 169 | G74: 169
C75: Pole Mounted ; < = 22kV ; > 60 kVA and < = 600 kVA ; Multiple Phase | E75: 13426533.99 | F75: 389 | G75: 389
C76: Pole Mounted ; < = 22kV ; > 600 kVA ; Multiple Phase | E76: 4115540.154 | F76: 44 | G76: 44
C77: Kiosk Mounted ; < = 22kV ; < = 60 kVA ; Single Phase | E77: 0 | F77: 0 | G77: 0
C78: Kiosk Mounted ; < = 22kV ; > 60 kVA and < = 600 kVA ; Single Phase | E78: 0 | F78: 0 | G78: 0
C79: Kiosk Mounted ; < = 22kV ; > 600 kVA ; Single Phase | E79: 0 | F79: 0 | G79: 0
C80: Kiosk Mounted ; < = 22kV ; < = 60 kVA ; Multiple Phase | E80: 0 | F80: 0 | G80: 0
C81: Kiosk Mounted ; < = 22kV ; > 60 kVA and < = 600 kVA ; Multiple Phase | E81: 2359824.446 | F81: 10 | G81: 10
C82: Kiosk Mounted ; < = 22kV ; > 600 kVA ; Multiple Phase | E82: 1714137.24 | F82: 6 | G82: 6
C83: Ground Outdoor / Indoor Chamber Mounted; ˂ 22 kV ; < = 60 kVA ; Single Phase | E83: 0 | F83: 0 | G83: 0
C84: Ground Outdoor / Indoor Chamber Mounted; ˂ 22 kV ; > 60 kVA and < = 600 kVA ; Single Phase | E84: 0 | F84: 0 | G84: 0
C85: Ground Outdoor / Indoor Chamber Mounted; ˂ 22 kV ; > 600 kVA ; Single Phase | E85: 0 | F85: 0 | G85: 0
C86: Ground Outdoor / Indoor Chamber Mounted; ˂ 22 kV ; < = 60 kVA ; Multiple Phase | E86: 0 | F86: 0 | G86: 0
C87: Ground Outdoor / Indoor Chamber Mounted; ˂ 22 kV ; > 60 kVA and < = 600 kVA ; Multiple Phase | E87: 126687.4692 | F87: 1 | G87: 1
C88: Ground Outdoor / Indoor Chamber Mounted; ˂ 22 kV ; > 600 kVA ; Multiple Phase | E88: 127083.8228 | F88: 1 | G88: 1
C89: Ground Outdoor / Indoor Chamber Mounted; > = 22 kV & < = 33 kV ; < = 15 MVA | E89: 896925.2222 | F89: 1 | G89: 1
C90: Ground Outdoor / Indoor Chamber Mounted; > = 22 kV & < = 33 kV ; > 15 MVA and < = 40 MVA | E90: 1339203.942 | F90: 1 | G90: 0
C91: Ground Outdoor / Indoor Chamber Mounted; > = 22 kV & < = 33 kV ; > 40 MVA | E91: 0 | F91: 0 | G91: 0
C92: Ground Outdoor / Indoor Chamber Mounted; > 33 kV & < = 66 kV ; < = 15 MVA | E92: 0 | F92: 0 | G92: 45
C93: Ground Outdoor / Indoor Chamber Mounted; > 33 kV & < = 66 kV ; > 15 MVA and < = 40 MVA | E93: 1339203.942 | F93: 1 | G93: 12
C94: Ground Outdoor / Indoor Chamber Mounted; > 33 kV & < = 66 kV ; > 40 MVA | E94: 0 | F94: 0 | G94: 0
C95: Ground Outdoor / Indoor Chamber Mounted; > 66 kV & < = 132 kV ; < = 100 MVA | E95: 0 | F95: 0 | G95: 18
C96: Ground Outdoor / Indoor Chamber Mounted; > 66 kV & < = 132 kV ; > 100 MVA | E96: 0 | F96: 0 | G96: 0
C97: Ground Outdoor / Indoor Chamber Mounted; > 132 kV ; < = 100 MVA | E97: 0 | F97: 0 | G97: 0
C98: Ground Outdoor / Indoor Chamber Mounted; > 132 kV ; > 100 MVA | E98: 0 | F98: 0 | G98: 0
C99: Other | E99: 0 | F99: 0 | G99: 0
B100: SWITCHGEAR BY: HIGHEST OPERATING VOLTAGE ; SWITCH FUNCTION | C100: ˂ = 11 kV ; FUSE | E100: 5542918.442 | F100: 19792 | G100: 21611
C101: ˂ = 11 kV ; Switch | E101: 1370317.389 | F101: 47 | G101: 12
C102: ˂ = 11 kV ; Circuit Breaker | E102: 3049546.287 | F102: 26 | G102: 40
C103: > 11 kV & < = 22 kV ; Switch | E103: 3419676.243 | F103: 601 | G103: 186
C104: > 11 kV & < = 22 kV ; Circuit Breaker | E104: 844127.9389 | F104: 32 | G104: 46
C105: > 22 kV & < = 33 kV ; Switch | E105: 0 | F105: 0 | G105: 4
C106: > 22 kV & < = 33 kV ; Circuit Breaker | E106: 384974.8587 | F106: 2 | G106: 14
C107: > 33 kV & < = 66 kV ; Switch | E107: 1204400.872 | F107: 10 | G107: 6
C108: > 33 kV & < = 66 kV ; Circuit Breaker | E108: 2887311.441 | F108: 15 | G108: 84
C109: > 66 kV & < = 132 kV ; Switch | E109: 0 | F109: 0 | G109: 1
C110: > 66 kV & < = 132 kV ; Circuit Breaker | E110: 0 | F110: 0 | G110: 1
C111: > 132 kV ; Switch | E111: 0 | F111: 0 | G111: 2
C112: > 132 kV ; Circuit Breaker | E112: 0 | F112: 0 | G112: 7
C113: Other | E113: 0 | F113: 0 | G113: 0
B114: PUBLIC LIGHTING BY: ASSET TYPE ; LIGHTING OBLIGATION | C114: Luminaires ; Major Road | E114: 505822.0653 | F114: 0 | G114: 0
C115: Luminaires ; Minor Road | E115: 549190.5023 | F115: 0 | G115: 0
C116: Brackets ; Major Road | E116: 30328.70555 | F116: 0 | G116: 0
C117: Brackets ; Minor Road | E117: 36519.68669 | F117: 0 | G117: 0
C118: Lamps ; Major Road | E118: 36441.14502 | F118: 0 | G118: 0
C119: Lamps ; Minor Road | E119: 16016.32209 | F119: 0 | G119: 0
C120: Poles / Columns ; Major Road | E120: 48037.81421 | F120: 0 | G120: 0
C121: Poles / Columns ; Minor Road | E121: 229028.6209 | F121: 0 | G121: 0
C122: Other | E122: 0 | F122: 0 | G122: 0
B123: SCADA, NETWORK CONTROL AND PROTECTION SYSTEMS BY: FUNCTION | C123: Field Devices | E123: 7068178.78 | F123: 175 | G123: 143
C124: Local Network Wiring Assets | E124: 0 | F124: 0 | G124: 0
C125: Communications Network Assets | E125: 2531820.92 | F125: 123 | G125: 10
C126: Master Station Assets | E126: 164269.1252 | F126: 5 | G126: 22
C127: Communications Site Infrastructure | E127: 1315576.42 | F127: 183 | G127: 37
C128: Communications Linear Assets | E128: 21595.35 | F128: 11 | G128: 3
C129: AFLC | E129: 2725628.588 | F129: 10 | G129: 127
C130: Other | E130: 0 | F130: 0 | G130: 0
B131: OTHER BY: DNSP DEFINED | C131: CURRENT TRANSFORMERS | E131: 1495305.573 | F131: 19 | G131: 0
C132: VOLTAGE TRANSFORMERS | E132: 1016320.884 | F132: 15 | G132: 5
C133: CAPACITOR BANKS | E133: 0 | F133: 0 | G133: 10
C134: STATIC VAR COMPENSATOR | E134: 0 | F134: 0 | G134: 10
B149: 2.2.2 - SELECTED ASSET CHARACTERISTICS
E150: ASSET VOLUMES CURRENTLY IN COMMISSION | F150: ASSET REPLACEMENTS (0's)
B151: ASSET GROUP | C151: METRIC | D151: UNITS | E151: =CRY -> 2016-17 | F151: =CRY -> 2016-17
B152: TOTAL POLES BY: FEEDER TYPE | C152: Total CBD poles | D152: Number | E152: 0 | F152: 0
C153: Total urban poles | D153: Number | E153: 97656.86889 | F153: 440
C154: Total rural long poles | D154: Number | E154: 437774.4901 | F154: 1974
C155: Total rural short poles | D155: Number | E155: 430480.641 | F155: 1941
B156: OVERHEAD CONDUCTORS BY: CONDUCTOR LENGTH BY FEEDER TYPE | C156: Conductors CBD | D156: KM | E156: 0 | F156: 0
C157: Conductors urban | D157: KM | E157: 6130.192074 | F157: 8.154
C158: Conductors rural long | D158: KM | E158: 100909.6767 | F158: 134.226
C159: Conductors rural short | D159: KM | E159: 49440.55663 | F159: 65.764
B160: OVERHEAD CONDUCTORS BY: CONDUCTOR LENGTH MATERIAL TYPE | C160: OH conductor LV ABC | D160: KM | E160: 1071.569207 | F160: 17.776
C161: OH conductor steel | D161: KM | E161: 66483.95571 | F161: 24.60466667
C162: OH conductor ACSR | D162: KM | E162: 50194.40848 | F162: 21.28
C163: OH conductor AAAC | D163: KM | E163: 7471.606951 | F163: 40.98866667
C164: OH conductor AAC | D164: KM | E164: 18233.51817 | F164: 102.5403333
C165: OH conductor HDBC | D165: KM | E165: 11007.96557 | F165: 0.9536666667
C166: Other | D166: KM | E166: 0 | F166: 0
B167: UNDERGROUND CABLES BY: CABLE LENGTH BY FEEDER TYPE | C167: Cable CBD | D167: KM | E167: 0 | F167: 0
C168: Cable urban | D168: KM | E168: 3139.717095 | F168: 1.669
C169: Cable rural long | D169: KM | E169: 529.7431009 | F169: 0.282
C170: Cable rural short | D170: KM | E170: 5691.250265 | F170: 3.025
B171: TRANSFORMERS BY: TOTAL MVA | C171: Total MVA replaced | D171: MVA | E171: 25923.311 | F171: 186.0785
C172: Total MVA disposed of | D172: MVA | E172: 195.596 | F172: 195.596

Sheet 2.3(a) Augex
B1: REGULATORY REPORTING STATEMENT
B2: =INDEX(dms_TradingNameFull_List,MATCH(dms_TradingName,dms_TradingName_List)) -> Ergon Energy
B3: =CONCATENATE((LOOKUP(dms_Model,dms_Model_List,dms_Worksheet_List))&" "&CRY) -> CATEGORY ANALYSIS 2016-17
B4: 2.3 AUGEX PROJECT DATA
B7: There are TWO tables on this worksheet - each has been 'grouped' for easy navigation. Both ROWS and COLUMNS have been grouped. See the Instructions sheet on how to group or ungroup tables.
B9: 2.3.1 - AUGEX ASSET DATA - SUBTRANSMISSION SUBSTATIONS, SWITCHING STATIONS AND ZONE SUBSTATIONS
B10: NOTE: DNSP MUST PROVIDE EXPENDITURE INFORMATION ON A PROJECT CLOSE BASIS.
B11: PROJECT DESCRIPTION AND CHANGES | L11: PLANT AND EQUIPMENT EXPENDITURE AND VOLUME | X11: OTHER EXPENDITURE | Z11: TOTAL DIRECT EXPENDITURE ($0's) | AA11: YEARS INCURRED | AB11: ALL RELATED PARTY CONTRACTS | AD11: ALL NON RELATED PARTY CONTRACTS | AE11: LAND AND EASEMENTS
B12: SUBSTATION ID | C12: SUBSTATION TYPE (drop down) | D12: PROJECT ID | E12: PROJECT TYPE (drop down) | F12: PROJECT TRIGGER (drop down) | G12: VOLTAGE (KV) | H12: SUBSTATION RATING NORMAL CYCLIC (MVA) | J12: SUBSTATION RATING N-1 EMERGENCY (MVA) | L12: TRANSFORMERS | O12: SWITCHGEAR | Q12: CAPACITORS | U12: OTHER PLANT ITEM | V12: INSTALLATION (LABOUR) | X12: CIVIL WORKS | Y12: OTHER DIRECT | AB12: RELATED PARTY MARGINS | AC12: TOTAL | AE12: LAND PURCHASE | AF12: EASEMENTS
H13: PRE | I13: POST | J13: PRE | K13: POST | L13: UNITS ADDED | M13: MVA ADDED | N13: EXPENDITURE ($0's) | O13: UNITS ADDED | P13: EXPENDITURE ($0's) | Q13: MVAR ADDED | R13: EXPENDITURE ($0's) | U13: EXPENDITURE ($0's) | V13: VOLUME | W13: EXPENDITURE ($0's) | X13: EXPENDITURE ($0's) | AB13: EXPENDITURE ($0's) | AE13: EXPENDITURE ($0's)
B14: BLBS - 40000001 | C14: Zone substation | D14: 00121891 | E14: Substation upgrade - capacity | F14: Fault level issues | G14: 66/11kV | H14: 20 | I14: 52 | J14: 0 | K14: 20 | L14: 1 | M14: 32 | N14: 653334 | O14: 5 | P14: 146929 | Q14: 0 | R14: 0 | U14: 638909 | V14: 14911 | W14: 4526489 | X14: 0 | Y14: 982368 | Z14: =SUM(N14,P14,R14,U14,W14,X14,Y14) -> 6948029 | AA14: 2011,2012,2013,2013,2015,2016,2017 | AB14: 0 | AC14: 0 | AD14: 3220348 | AE14: 0 | AF14: 0
B15: MILE - 60007202 | C15: Subtransmission substation | D15: 00134390 | E15: Substation upgrade - capacity | F15: Fault level issues | G15: 33/11kV | H15: 0 | I15: 0 | J15: 0 | K15: 0 | M15: 0 | N15: 0 | O15: 23 | P15: 79009 | Q15: 0 | R15: 0 | U15: 644175 | V15: 9867 | W15: 2257385 | X15: 0 | Y15: 887737 | Z15: 3868306 | AA15: 2011,2012,2013,2013,2015,2016,2017 | AB15: 0 | AC15: 0 | AD15: 1468759 | AE15: 0 | AF15: 0
B16: DURO - 20005132 | C16: Zone substation | D16: 00210861 | E16: Other | F16: Other | G16: 132kV | H16: 0 | I16: 0 | J16: 0 | K16: 0 | M16: 0 | N16: 0 | O16: 10 | P16: 276650 | Q16: 0 | R16: 0 | U16: 1061396 | V16: 15540 | W16: 4942077 | X16: 0 | Y16: 246732 | Z16: 6526855 | AA16: 2015,2016,2017 | AB16: 0 | AC16: 0 | AD16: 3566875 | AE16: 0 | AF16: 3449
B17: GLSO - 40000021 | C17: Subtransmission substation | D17: NN01466 | E17: Substation upgrade - capacity | F17: Demand growth | G17: 66/11kV | H17: 40 | I17: 40 | J17: 20 | K17: 20 | L17: 2 | M17: 40 | N17: 1314440 | O17: 12 | P17: 764622 | Q17: 0 | R17: 0 | U17: 1966262 | V17: 30890 | W17: 4014941 | X17: 4239174 | Y17: 906711 | Z17: 13206150 | AA17: 2007,2010,2011,2012,2013,2013,2015,2016,2017 | AB17: 0 | AC17: 0 | AD17: 5675197 | AE17: 0 | AF17: 0
B18: DACE - 82845513 | C18: Zone substation | D18: NS00409 | E18: Substation upgrade - capacity | F18: Demand growth | G18: 33/11kV | H18: 18.3 | I18: 40 | J18: 8.3 | K18: 20 | L18: 2 | M18: 40 | N18: 1088098 | O18: 21 | P18: 1317311 | Q18: 0 | R18: 0 | U18: 2997797 | V18: 41445 | W18: 12734127 | X18: 991375 | Y18: 663457 | Z18: 19792165 | AA18: 2007,2008,2009,2010,2011,2012,2013,2013,2015,2016,2017 | AB18: 0 | AC18: 0 | AD18: 10057022 | AE18: 39249 | AF18: 0
Z19: 0
Z20: 0
Z21: 0
Z22: 0
Z23: 0
Z24: 0
Z25: 0
Z26: 0
Z27: 0
Z28: 0
Z29: 0
Z30: 0
Z31: 0
Z32: 0
Z33: 0
Z34: 0
Z35: 0
Z36: 0
Z37: 0
Z38: 0
Z39: 0
Z40: 0
Z41: 0
Z42: 0
Z43: 0
Z44: 0
Z45: 0
Z46: =SUM(N46,P46,R46,U46,W46,X46,Y46) -> 0
Z47: 0
Z48: 0
Z49: 0
Z50: 0
Z51: 0
Z52: 0
Z53: 0
Z54: 0
Z55: 0
Z56: 0
Z57: 0
Z58: 0
Z59: 0
Z60: 0
Z61: 0
Z62: 0
Z63: 0
Z64: 0
Z65: 0
D66: Non material projects - [actual] | Z66: 10982904 | AA66: 2011,2012,2013,2014,2015,2016,2017 | AE66: 293433 | AF66: 0
B69: AUG232_1 | C69: AUG232_2 | D69: AUG232_3 | E69: AUG232_4 | F69: AUG232_5 | G69: AUG232_6 | H69: ED_AUG232_00001 | I69: ED_AUG232_00002 | J69: ED_AUG232_00003 | K69: ED_AUG232_00004 | L69: ED_AUG232_00005 | M69: ED_AUG232_00006 | N69: ED_AUG232_00007 | O69: ED_AUG232_00008 | P69: ED_AUG232_00009 | Q69: ED_AUG232_00010 | R69: ED_AUG232_00011 | S69: ED_AUG232_00012 | T69: ED_AUG232_00013 | U69: ED_AUG232_00014 | V69: ED_AUG232_00015 | W69: ED_AUG232_00016 | X69: ED_AUG232_00017 | Y69: ED_AUG232_00018 | Z69: ED_AUG232_00019 | AA69: ED_AUG232_00020 | AB69: ED_AUG232_00021
B70: 2.3.2 - AUGEX ASSET DATA - SUBTRANSMISSION LINES
B71: NOTE: DNSP MUST PROVIDE EXPENDITURE INFORMATION ON A PROJECT CLOSE BASIS.
B72: PROJECT DESCRIPTION AND CHANGES | L72: PLANT AND EQUIPMENT EXPENDITURE AND VOLUME | X72: OTHER EXPENDITURE | Z72: TOTAL DIRECT EXPENDITURE ($0's) | AA72: YEARS INCURRED | AB72: ALL RELATED PARTY CONTRACTS | AD72: ALL NON RELATED PARTY CONTRACTS | AE72: LAND AND EASEMENTS
B73: LINE ID | C73: PROJECT ID | D73: PROJECT TYPE | E73: PROJECT TRIGGER | G73: VOLTAGE (KV) | H73: ROUTE LINE LENGTH ADDED | L73: POLES/TOWERS (INCLUDING STRUCTURES, AND CIVIL WORKS) | O73: OVERHEAD LINES | R73: UNDERGROUND CABLES | U73: OTHER PLANT ITEM | V73: INSTALLATION (LABOUR) | X73: CIVIL WORKS | Y73: OTHER DIRECT | AB73: RELATED PARTY MARGINS | AC73: TOTAL | AE73: LAND PURCHASE | AF73: EASEMENTS
H74: KM ADDED | L74: POLES/TOWERS ADDED | M74: POLES/TOWERS UPGRADED | N74: EXPENDITURE ($0's) | O74: CIRCUIT KM ADDED | P74: CIRCUIT KM UPGRADED | Q74: EXPENDITURE ($0's) | R74: CIRCUIT KM ADDED | S74: CIRCUIT KM UPGRADED | T74: EXPENDITURE ($0's) | U74: EXPENDITURE ($0's) | V74: VOLUME | W74: EXPENDITURE ($0's) | X74: EXPENDITURE ($0's) | AB74: EXPENDITURE ($0's) | AE74: EXPENDITURE ($0's)
B75: BORE - 40017973 | C75: 147032 | D75: New line on new route - dual circuit | E75: Demand growth | F75: Demand growth | G75: 66 | H75: 10.7 | L75: 36 | M75: 0 | N75: 1088944 | O75: 10.7 | P75: 0 | Q75: 136725 | R75: 0 | S75: 0 | T75: 0 | U75: 514092 | V75: 2129699.1 | W75: 2155265 | X75: 556322 | Y75: 695376 | Z75: =SUM(N75,Q75,T75,U75,W75,X75,Y75) -> 5146724 | AA75: 2012,2013,2014,2015,2016,2017 | AB75: 0 | AC75: 0 | AD75: 1504860 | AE75: 0 | AF75: 0 | AH75: New line on new route - single circuit
Z76: 0 | AH76: New line on new route - dual circuit
Z77: 0 | AH77: New line on new route - other
Z78: 0 | AH78: Line rebuild over existing route - single circuit
Z79: 0 | AH79: Line rebuild over existing route - dual circuit
Z80: 0 | AH80: Reconductor - Single circuit
Z81: 0 | AH81: Reconductor - Dual circuit
Z82: 0 | AH82: Reconductor - Other
Z83: 0 | AH83: Line upgrade - raising/retensoring
Z84: 0 | AH84: Line upgrade - voltage upgrade
Z85: 0 | AH85: Line upgrade - capacity
Z86: 0 | AH86: String spare circuit
Z87: 0 | AH87: Other
Z88: 0
Z89: 0
Z90: 0
Z91: 0
Z92: 0
Z93: 0
Z94: 0
Z95: 0
Z96: 0
Z97: 0
Z98: 0
Z99: 0
Z100: 0
Z101: 0
Z102: 0
Z103: 0
Z104: 0
Z105: 0
Z106: 0
Z107: =SUM(N107,Q107,T107,U107,W107,X107,Y107) -> 0
Z108: 0
Z109: 0
Z110: 0
Z111: 0
Z112: 0
Z113: 0
Z114: 0
Z115: 0
Z116: 0
Z117: 0
Z118: 0
Z119: 0
Z120: 0
Z121: 0
Z122: 0
Z123: 0
Z124: 0
Z125: 0
Z126: 0
Z127: 0
Z128: 0
C129: Non material projects - [actual] | Z129: 5467134 | AA129: 2007,2008,2009,2010,2011,2012,2013,2014,2015,2016,2017 | AE129: 0 | AF129: 251549

Sheet 2.3(b) Augex
B1: REGULATORY REPORTING STATEMENT
B2: =INDEX(dms_TradingNameFull_List,MATCH(dms_TradingName,dms_TradingName_List)) -> Ergon Energy
B3: =CONCATENATE((LOOKUP(dms_Model,dms_Model_List,dms_Worksheet_List))&" "&CRY) -> CATEGORY ANALYSIS 2016-17
B4: 2.3 AUGEX DATA
B6: There are TWO tables on this worksheet. Each has been grouped for ease of navigation. See the Instructions sheet on how to group or ungroup tables.
B8: 2.3.3 - AUGEX DATA - HV/LV FEEDERS AND DISTRIBUTION SUBSTATIONS
B9: NOTE: DNSP MUST PROVIDE EXPENDITURE INFORMATION ON AN AS INCURRED BASIS.
B10: DESCRIPTOR METRICS
B11: PROJECT TYPE | D11: UNITS ADDED (0's) | E11: UNITS UPGRADED (0's)
C12: UNITS | D12: =CRY -> 2016-17 | E12: =CRY -> 2016-17
B13: HV Feeder Augmentations - Overhead Lines | C13: Circuit line length in km | D13: 35 | E13: 42
B14: HV Feeder Augmentations - Underground Cables | C14: Circuit line length in km | D14: 3 | E14: 1
B15: LV Feeder Augmentations - Overhead Lines | C15: Circuit line length in km | D15: 2 | E15: 1
B16: LV Feeder Augmentations - Underground Cables | C16: Circuit line length in km | D16: - | E16: -
B17: Distribution Substation Augmentations - Pole Mounted | C17: Number | D17: 68 | E17: 39
B18: Distribution Substation Augmentations - Ground Mounted | C18: Number | D18: 2 | E18: 1
B19: Distribution Substation Augmentations - Indoor | C19: Number | D19: - | E19: 0
B21: COST METRICS
B22: TOTAL DIRECT EXPENDITURE - Project Type | D22: EXPENDITURE ($0's)
D23: =CRY -> 2016-17
B24: HV Feeder Augmentations - Overhead Lines | D24: 10229259
B25: HV Feeder Augmentations - Underground Cables | D25: 2197242
B26: HV Feeder Non-Material Projects | D26: 5663096
B27: LV Feeder Augmentations - Overhead Lines | D27: 1151852
B28: LV Feeder Augmentations - Underground Cables | D28: 37276
B29: LV Feeder Non-Material Projects | D29: 297909
B30: Distribution Substation Augmentations - Pole Mounted | D30: 3635853
B31: Distribution Substation Augmentations - Ground Mounted | D31: 175883
B32: Distribution Substation Augmentations - Indoor | D32: -
B35: 2.3.4 - AUGEX DATA - TOTAL EXPENDITURE
B36: AUGMENTATION CAPEX (As incurred) | D36: EXPENDITURE ($0's)
D37: =CRY -> 2016-17
B38: Subtransmission Substations, Switching Stations, Zone Substations | D38: 17762980
B39: Subtransmission Lines | D39: 4327930
B40: HV Feeders | D40: 18089597
B41: HV Feeders - Land Purchases and Easements | D41: -
B42: Distribution Substations | D42: 3811735
B43: Distribution Substations - Land Purchases And Easements | D43: -
B44: LV Feeders | D44: 1487037
B45: LV Feeders - Land Purchases And Easements | D45: 0
B46: Other Assets | D46: 3094864

Sheet 2.5 Connections
B1: REGULATORY REPORTING STATEMENT
B2: =INDEX(dms_TradingNameFull_List,MATCH(dms_TradingName,dms_TradingName_List)) -> Ergon Energy
B3: =CONCATENATE((LOOKUP(dms_Model,dms_Model_List,dms_Worksheet_List))&" "&CRY) -> CATEGORY ANALYSIS 2016-17
B4: 2.5 CONNECTIONS
B6: There are TWO tables on this worksheet. Each has been grouped for ease of navigation. See the Instructions sheet on how to group or ungroup tables.
B8: 2.5.1 - DESCRIPTOR METRICS
B9: <<<GROUP-ROW>>>
E11: VOLUMES AND EXPENDITURE
B12: CONNECTION SUBCATEGORY | C12: DESCRIPTOR METRIC | D12: UNITS | E12: =CRY -> 2016-17
B13: RESIDENTIAL | C13: Underground connections | D13: 0's | E13: 5353
C14: Overhead connections | D14: 0's | E14: 3958
C15: Distribution substation installed | D15: MVA added | E15: 15
C16: Distribution substations installed | D16: 0's | E16: 365
C17: Distribution substation installed | D17: total spend $0s | E17: 5356157
C18: Augmentation HV | D18: net circuit km added | E18: 72
C19: Augmentation HV | D19: total spend $0s | E19: 4647231
C20: Augmentation LV | D20: net circuit km added | E20: 11
C21: Augmentation LV | D21: total spend $0s | E21: 7149616
C22: Mean days to connect residential customer with LV single phase connection | D22: 0's | E22: 9
C23: Volume of GSL breaches for residential customers | D23: 0's | E23: 28
C24: Volume of customer complaints relating to connection services | D24: 0's | E24: 102
C25: GSL payments | D25: $0s | E25: 7052
B26: COMMERCIAL/INDUSTRIAL | C26: Underground connections | D26: 0's | E26: 438
C27: Overhead connections | D27: 0's | E27: 1261
C28: Distribution substation installed | D28: MVA added | E28: 93
C29: Distribution substations installed | D29: 0's | E29: 367
C30: Distribution substation installed | D30: total spend $0s | E30: 13666391
C31: Augmentation HV | D31: net circuit km added | E31: 115
C32: Augmentation HV | D32: total spend $0s | E32: 16229019
C33: Augmentation LV | D33: net circuit km added | E33: 4
C34: Augmentation LV | D34: total spend $0s | E34: 4860411
B35: SUBDIVISION | C35: Underground connections | D35: 0's | E35: 2754
C36: Overhead connections | D36: 0's | E36: 212
C37: Distribution substation installed | D37: MVA added | E37: 13
C38: Distribution substations installed | D38: 0's | E38: 63
C39: Distribution substation installed | D39: total spend $0s | E39: 771697
C40: Augmentation HV | D40: net circuit km added | E40: 24
C41: Augmentation HV | D41: total spend $0s | E41: 3231775
C42: Augmentation LV | D42: net circuit km added | E42: 64
C43: Augmentation LV | D43: total spend $0s | E43: 2624003
C44: Cost per lot ($) | D44: $0s | E44: 2234
B45: EMBEDDED GENERATION | C45: Underground connections | D45: 0's | E45: 3712
C46: Overhead connections | D46: 0's | E46: 7686
C47: Distribution substation installed | D47: MVA added | E47: 1
C48: Distribution substations installed | D48: 0's | E48: 13
C49: Distribution substation installed | D49: total spend $0s | E49: 4466079
C50: Augmentation HV | D50: net circuit km added | E50: 5
C51: Augmentation HV | D51: total spend $0s | E51: 1967352
C52: Augmentation LV | D52: net circuit km added | E52: 1
C53: Augmentation LV | D53: total spend $0s | E53: 2998066
B57: 2.5.2 - COST METRICS BY CONNECTION CLASSIFICATION
D58: EXPENDITURE ($0's) | E58: VOLUMES (0's)
B59: CONNECTION SUBCATEGORY | C59: CONNECTION CLASSIFICATION | D59: =CRY -> 2016-17 | E59: =CRY -> 2016-17
B60: RESIDENTIAL | C60: Simple connection LV | D60: 5673743 | E60: 10389
C61: Complex connection LV | D61: 497426 | E61: 102
C62: Complex connection HV | D62: 10981835 | E62: 859
B63: COMMERCIAL/INDUSTRIAL | C63: Simple connection LV | D63: 3982194 | E63: 2069
C64: Complex connection HV (customer connected at LV, minor HV works) | D64: 21884413 | E64: 668
C65: Complex connection HV (customer connected at LV, upstream asset works) | D65: 7561020 | E65: 74
C66: Complex connection HV (customer connected at HV) | D66: 1207481 | E66: 7
C67: Complex connection sub-transmission | D67: 120714 | E67: 2
B68: SUBDIVISION | C68: Complex connection LV | D68: 1350852 | E68: 219
C69: Complex connection HV (no upstream asset works) | D69: 1135377 | E69: 59
C70: Complex connection HV (with upstream asset works) | D70: 4141246 | E70: 171
B71: EMBEDDED GENERATION | C71: Simple connection LV | D71: 2849055 | E71: 12952
C72: Complex connection HV (small capacity) | D72: 1753619 | E72: 24
C73: Complex connection HV (large capacity) | D73: 4828823 | E73: 9

Sheet 2.6 Non-network
B1: REGULATORY REPORTING STATEMENT
B2: =INDEX(dms_TradingNameFull_List,MATCH(dms_TradingName,dms_TradingName_List)) -> Ergon Energy
B3: =CONCATENATE((LOOKUP(dms_Model,dms_Model_List,dms_Worksheet_List))&" "&CRY) -> CATEGORY ANALYSIS 2016-17
B4: 2.6 NON NETWORK EXPENDITURE
B6: There are THREE tables on this worksheet. Each has been grouped (and sub-grouped) for ease of navigation. See the Instructions sheet on how to group or ungroup tables.
B8: 2.6.1 - NON-NETWORK EXPENDITURE
F9: EXPENDITURE ($0's)
B10: SERVICE SUBCATEGORY | C10: ASSET CATEGORY | F10: =CRY -> 2016-17
B11: OPEX
B12: IT & COMMUNICATIONS | C12: Client device expenditure | F12: 0
C13: Recurrent expenditure | F13: 61314835
C14: Non-recurrent expenditure | F14: 0
B15: MOTOR VEHICLES | C15: Car | F15: 317078
C16: Light commercial vehicle | F16: 7353952
C17: Elevated work platform (LCV) | F17: 0
C18: Elevated work platform (HCV) | F18: 6170812
C19: Heavy commercial vehicle | F19: 2892428
B20: BUILDINGS AND PROPERTY | C20: Total buildings and property expenditure | F20: 25046795.32
B21: OTHER | C21: Other expenditure | F21: 0
B22: OTHER - DNSP nominated | C22: OFFICE FURNITURE AND EQUIPMENT ($000'S) | F22: 0
C23: PLANT AND EQUIPMENT ($000'S) | F23: 0
C24: CRANE BORER PLANT HCV ($000'S) | F24: 2408527
C25: OTHER FLEET ASSETS ($000'S) | F25: 1717740
C26: EWP Hired | F26: 3373
C27: Car Hired | F27: 257
C28: LCV Hired | F28: 0
C29: Other Hire | F29: 424
C30: Refrubishment/Rebuild EWP (HVC)
B33: CAPEX
B34: IT & COMMUNICATIONS | C34: Client device expenditure | F34: 2150044
C35: Recurrent expenditure | F35: 4665753
C36: Non-recurrent expenditure | F36: 2889825
B37: MOTOR VEHICLES | C37: Car | F37: 0
C38: Light commercial vehicle | F38: 10557935
C39: Elevated work platform (LCV) | F39: 0
C40: Elevated work platform (HCV) | F40: 6089385
C41: Heavy commercial vehicle | F41: 3165037
B42: BUILDINGS AND PROPERTY | C42: Total buildings and property expenditure | F42: 21271848
B43: OTHER | C43: Other expenditure | F43: 0
B44: OTHER - DNSP nominated | C44: =IF(ISBLANK(C22),"",C22) -> OFFICE FURNITURE AND EQUIPMENT ($000'S) | F44: 741577
C45: =IF(ISBLANK(C23),"",C23) -> PLANT AND EQUIPMENT ($000'S) | F45: 8744827
C46: CRANE BORER PLANT HCV ($000'S) | F46: 3528783
C47: OTHER FLEET ASSETS ($000'S) | F47: 524558
C48: EWP Hired | F48: 0
C49: Car Hired | F49: 0
C50: LCV Hired | F50: 0
C51: Other Hire | F51: 0
C52: Refrubishment/Rebuild EWP (HVC) | F52: 723113
B58: 2.6.2 - ANNUAL DESCRIPTOR METRICS - IT & COMMUNICATIONS EXPENDITURE
F59: VOLUMES (0's)
B61: NON-NETWORK CATEGORY | C61: DESCRIPTOR METRIC | F61: =CRY -> 2016-17
B62: IT & COMMUNICATIONS | C62: Employee numbers | F62: 2673
C63: User numbers | F63: 3564
C64: Number of devices | F64: 4094
B67: 2.6.3 - ANNUAL DESCRIPTOR METRICS - MOTOR VEHICLES
F68: VOLUMES / %
B69: NON-NETWORK CATEGORY | C69: ASSET CATEGORY | D69: DESCRIPTOR METRIC | E69: UNITS | F69: =CRY -> 2016-17
B70: MOTOR VEHICLES | C70: CAR | D70: Average kilometres travelled | E70: 0's | F70: 13764
D71: Number purchased | E71: 0's | F71: 0
D72: Number leased | E72: 0's | F72: 0
D73: Number in fleet | E73: 0's | F73: 58.26
D74: Proportion of total fleet expenditure allocated as regulatory expenditure | E74: (per cent) | F74: 0.8676
C75: LIGHT COMMERCIAL VEHICLE | D75: Average kilometres travelled | E75: 0's | F75: 24169
D76: Number purchased | E76: 0's | F76: 185.2
D77: Number leased | E77: 0's | F77: 0
D78: Number in fleet | E78: 0's | F78: 776.65
D79: Proportion of total fleet expenditure allocated as regulatory expenditure | E79: (per cent) | F79: 0.8676
C80: ELEVATED WORK PLATFORM (LCV) | D80: Average kilometres travelled | E80: 0's | F80: 0
D81: Number purchased | E81: 0's | F81: 0
D82: Number leased | E82: 0's | F82: 0
D83: Number in fleet | E83: 0's | F83: 0
D84: Proportion of total fleet expenditure allocated as regulatory expenditure | E84: (per cent) | F84: 0.8676
C85: ELEVATED WORK PLATFORM (HCV) | D85: Average kilometres travelled | E85: 0's | F85: 15881
D86: Number purchased | E86: 0's | F86: 24
D87: Number leased | E87: 0's | F87: 0
D88: Number in fleet | E88: 0's | F88: 179.36
D89: Proportion of total fleet expenditure allocated as regulatory expenditure | E89: (per cent) | F89: 0.8676
C90: HEAVY COMMERCIAL VEHICLE | D90: Average kilometres travelled | E90: 0's | F90: 14661
D91: Number purchased | E91: 0's | F91: 33.1
D92: Number leased | E92: 0's | F92: 0
D93: Number in fleet | E93: 0's | F93: 191.83
D94: Proportion of total fleet expenditure allocated as regulatory expenditure | E94: (per cent) | F94: 0.8676

Sheet 2.7 Vegetation management
B1: REGULATORY REPORTING STATEMENT
B2: =INDEX(dms_TradingNameFull_List,MATCH(dms_TradingName,dms_TradingName_List)) -> Ergon Energy
B3: =CONCATENATE((LOOKUP(dms_Model,dms_Model_List,dms_Worksheet_List))&" "&CRY) -> CATEGORY ANALYSIS 2016-17
B4: 2.7 VEGETATION MANAGEMENT
B6: There are THREE tables on this worksheet. Each has been grouped (and sub-grouped) for ease of navigation. See the Instructions sheet on how to group or ungroup tables.
B8: Please enter a description for each Zone in table 2.7.1 - Urban and CBD. The zone description will then autopopulate in tables 2.7.1 - Rural and 2.7.2.
A11: ` | B11: 2.7.1 - DESCRIPTOR METRICS BY ZONE
B12: URBAN AND CBD
E13: =CRY -> 2016-17
B14: ZONES | C14: ASSET | D14: UNITS
B15: NORTHERN REGION | C15: Route line length within zone | D15: km | E15: 1353.782252
C16: Number of maintenance spans | D16: 0's | E16: 45138.30472
C17: Total length of maintenance spans | D17: km | E17: 1954.799816
C18: Length of vegetation corridors | D18: km | E18: 1954.799816
C19: Average number of trees per maintenance span | D19: 0's | E19: 4.194673218
C20: Average frequency of cutting cycle | D20: years | E20: 1.390522876
B21: CENTRAL REGION | C21: Route line length within zone | D21: km | E21: 748.3031902
C22: Number of maintenance spans | D22: 0's | E22: 29040.37797
C23: Total length of maintenance spans | D23: km | E23: 1200.983634
C24: Length of vegetation corridors | D24: km | E24: 1200.983634
C25: Average number of trees per maintenance span | D25: 0's | E25: 3.434417936
C26: Average frequency of cutting cycle | D26: years | E26: 1
B27: SOUTHERN REGION | C27: Route line length within zone | D27: km | E27: 644.1654376
C28: Number of maintenance spans | D28: 0's | E28: 45929.94642
C29: Total length of maintenance spans | D29: km | E29: 1766.436434
C30: Length of vegetation corridors | D30: km | E30: 1766.436434
C31: Average number of trees per maintenance span | D31: 0's | E31: 3.178565105
C32: Average frequency of cutting cycle | D32: years | E32: 2
B33: ZONE 4 | C33: Route line length within zone | D33: km
C34: Number of maintenance spans | D34: 0's
C35: Total length of maintenance spans | D35: km
C36: Length of vegetation corridors | D36: km
C37: Average number of trees per maintenance span | D37: 0's
C38: Average frequency of cutting cycle | D38: years
B39: ZONE 5 | C39: Route line length within zone | D39: km
C40: Number of maintenance spans | D40: 0's
C41: Total length of maintenance spans | D41: km
C42: Length of vegetation corridors | D42: km
C43: Average number of trees per maintenance span | D43: 0's
C44: Average frequency of cutting cycle | D44: years
B45: ZONE 6 | C45: Route line length within zone | D45: km
C46: Number of maintenance spans | D46: 0's
C47: Total length of maintenance spans | D47: km
C48: Length of vegetation corridors | D48: km
C49: Average number of trees per maintenance span | D49: 0's
C50: Average frequency of cutting cycle | D50: years
B51: ZONE 7 | C51: Route line length within zone | D51: km
C52: Number of maintenance spans | D52: 0's
C53: Total length of maintenance spans | D53: km
C54: Length of vegetation corridors | D54: km
C55: Average number of trees per maintenance span | D55: 0's
C56: Average frequency of cutting cycle | D56: years
B57: ZONE 8 | C57: Route line length within zone | D57: km
C58: Number of maintenance spans | D58: 0's
C59: Total length of maintenance spans | D59: km
C60: Length of vegetation corridors | D60: km
C61: Average number of trees per maintenance span | D61: 0's
C62: Average frequency of cutting cycle | D62: years
B63: ZONE 9 | C63: Route line length within zone | D63: km
C64: Number of maintenance spans | D64: 0's
C65: Total length of maintenance spans | D65: km
C66: Length of vegetation corridors | D66: km
C67: Average number of trees per maintenance span | D67: 0's
C68: Average frequency of cutting cycle | D68: years
B69: ZONE 10 | C69: Route line length within zone | D69: km
C70: Number of maintenance spans | D70: 0's
C71: Total length of maintenance spans | D71: km
C72: Length of vegetation corridors | D72: km
C73: Average number of trees per maintenance span | D73: 0's
C74: Average frequency of cutting cycle | D74: years
B75: ZONE 11 | C75: Route line length within zone | D75: km
C76: Number of maintenance spans | D76: 0's
C77: Total length of maintenance spans | D77: km
C78: Length of vegetation corridors | D78: km
C79: Average number of trees per maintenance span | D79: 0's
C80: Average frequency of cutting cycle | D80: years
B81: ZONE 12 | C81: Route line length within zone | D81: km
C82: Number of maintenance spans | D82: 0's
C83: Total length of maintenance spans | D83: km
C84: Length of vegetation corridors | D84: km
C85: Average number of trees per maintenance span | D85: 0's
C86: Average frequency of cutting cycle | D86: years
B87: ZONE 13 | C87: Route line length within zone | D87: km
C88: Number of maintenance spans | D88: 0's
C89: Total length of maintenance spans | D89: km
C90: Length of vegetation corridors | D90: km
C91: Average number of trees per maintenance span | D91: 0's
C92: Average frequency of cutting cycle | D92: years
B93: ZONE 14 | C93: Route line length within zone | D93: km
C94: Number of maintenance spans | D94: 0's
C95: Total length of maintenance spans | D95: km
C96: Length of vegetation corridors | D96: km
C97: Average number of trees per maintenance span | D97: 0's
C98: Average frequency of cutting cycle | D98: years
B99: ZONE 15 | C99: Route line length within zone | D99: km
C100: Number of maintenance spans | D100: 0's
C101: Total length of maintenance spans | D101: km
C102: Length of vegetation corridors | D102: km
C103: Average number of trees per maintenance span | D103: 0's
C104: Average frequency of cutting cycle | D104: years
B105: ZONE 16 | C105: Route line length within zone | D105: km
C106: Number of maintenance spans | D106: 0's
C107: Total length of maintenance spans | D107: km
C108: Length of vegetation corridors | D108: km
C109: Average number of trees per maintenance span | D109: 0's
C110: Average frequency of cutting cycle | D110: years
B111: ZONE 17 | C111: Route line length within zone | D111: km
C112: Number of maintenance spans | D112: 0's
C113: Total length of maintenance spans | D113: km
C114: Length of vegetation corridors | D114: km
C115: Average number of trees per maintenance span | D115: 0's
C116: Average frequency of cutting cycle | D116: years
B117: ZONE 18 | C117: Route line length within zone | D117: km
C118: Number of maintenance spans | D118: 0's
C119: Total length of maintenance spans | D119: km
C120: Length of vegetation corridors | D120: km
C121: Average number of trees per maintenance span | D121: 0's
C122: Average frequency of cutting cycle | D122: years
B124: RURAL
E125: =CRY -> 2016-17
B126: ZONES | C126: ASSET | D126: UNITS
B127: =B15 -> NORTHERN REGION | C127: Route line length within zone | D127: km | E127: 41916.67293
C128: Number of maintenance spans | D128: 0's | E128: 54291.56499
C129: Total length of maintenance spans | D129: km | E129: 9467.430792
C130: Length of vegetation corridors | D130: km | E130: 9467.430792
C131: Average number of trees per maintenance span | D131: 0's | E131: 2.723932083
C132: Average frequency of cutting cycle | D132: years | E132: 3.239726027
B133: =B21 -> CENTRAL REGION | C133: Route line length within zone | D133: km | E133: 45689.26907
C134: Number of maintenance spans | D134: 0's | E134: 34038.95935
C135: Total length of maintenance spans | D135: km | E135: 6347.94166
C136: Length of vegetation corridors | D136: km | E136: 6347.94166
C137: Average number of trees per maintenance span | D137: 0's | E137: 2
C138: Average frequency of cutting cycle | D138: years | E138: 3.081395349
B139: =B27 -> SOUTHERN REGION | C139: Route line length within zone | D139: km | E139: 66316.46712
C140: Number of maintenance spans | D140: 0's | E140: 47135.77749
C141: Total length of maintenance spans | D141: km | E141: 7250.626712
C142: Length of vegetation corridors | D142: km | E142: 7250.626712
C143: Average number of trees per maintenance span | D143: 0's | E143: 2.313610898
C144: Average frequency of cutting cycle | D144: years | E144: 3.10130719
B145: =B33 -> ZONE 4 | C145: Route line length within zone | D145: km
C146: Number of maintenance spans | D146: 0's
C147: Total length of maintenance spans | D147: km
C148: Length of vegetation corridors | D148: km
C149: Average number of trees per maintenance span | D149: 0's
C150: Average frequency of cutting cycle | D150: years
B151: =B39 -> ZONE 5 | C151: Route line length within zone | D151: km
C152: Number of maintenance spans | D152: 0's
C153: Total length of maintenance spans | D153: km
C154: Length of vegetation corridors | D154: km
C155: Average number of trees per maintenance span | D155: 0's
C156: Average frequency of cutting cycle | D156: years
B157: =B45 -> ZONE 6 | C157: Route line length within zone | D157: km
C158: Number of maintenance spans | D158: 0's
C159: Total length of maintenance spans | D159: km
C160: Length of vegetation corridors | D160: km
C161: Average number of trees per maintenance span | D161: 0's
C162: Average frequency of cutting cycle | D162: years
B163: =B51 -> ZONE 7 | C163: Route line length within zone | D163: km
C164: Number of maintenance spans | D164: 0's
C165: Total length of maintenance spans | D165: km
C166: Length of vegetation corridors | D166: km
C167: Average number of trees per maintenance span | D167: 0's
C168: Average frequency of cutting cycle | D168: years
B169: =B57 -> ZONE 8 | C169: Route line length within zone | D169: km
C170: Number of maintenance spans | D170: 0's
C171: Total length of maintenance spans | D171: km
C172: Length of vegetation corridors | D172: km
C173: Average number of trees per maintenance span | D173: 0's
C174: Average frequency of cutting cycle | D174: years
B175: =B63 -> ZONE 9 | C175: Route line length within zone | D175: km
C176: Number of maintenance spans | D176: 0's
C177: Total length of maintenance spans | D177: km
C178: Length of vegetation corridors | D178: km
C179: Average number of trees per maintenance span | D179: 0's
C180: Average frequency of cutting cycle | D180: years
B181: =B69 -> ZONE 10 | C181: Route line length within zone | D181: km
C182: Number of maintenance spans | D182: 0's
C183: Total length of maintenance spans | D183: km
C184: Length of vegetation corridors | D184: km
C185: Average number of trees per maintenance span | D185: 0's
C186: Average frequency of cutting cycle | D186: years
B187: =B75 -> ZONE 11 | C187: Route line length within zone | D187: km
C188: Number of maintenance spans | D188: 0's
C189: Total length of maintenance spans | D189: km
C190: Length of vegetation corridors | D190: km
C191: Average number of trees per maintenance span | D191: 0's
C192: Average frequency of cutting cycle | D192: years
B193: =B81 -> ZONE 12 | C193: Route line length within zone | D193: km
C194: Number of maintenance spans | D194: 0's
C195: Total length of maintenance spans | D195: km
C196: Length of vegetation corridors | D196: km
C197: Average number of trees per maintenance span | D197: 0's
C198: Average frequency of cutting cycle | D198: years
B199: =B87 -> ZONE 13 | C199: Route line length within zone | D199: km
C200: Number of maintenance spans | D200: 0's
C201: Total length of maintenance spans | D201: km
C202: Length of vegetation corridors | D202: km
C203: Average number of trees per maintenance span | D203: 0's
C204: Average frequency of cutting cycle | D204: years
B205: =B93 -> ZONE 14 | C205: Route line length within zone | D205: km
... 201 more rows

Sheet 2.8 Maintenance
B1: REGULATORY REPORTING STATEMENT
B2: =INDEX(dms_TradingNameFull_List,MATCH(dms_TradingName,dms_TradingName_List)) -> Ergon Energy
B3: =CONCATENATE((LOOKUP(dms_Model,dms_Model_List,dms_Worksheet_List))&" "&CRY) -> CATEGORY ANALYSIS 2016-17
B4: 2.8 MAINTENANCE
B6: There are TWO tables on this worksheet. Each has been grouped for ease of navigation. See the Instructions sheet on how to group or ungroup tables.
B8: 2.8.1 - DESCRIPTOR METRICS FOR ROUTINE AND NON-ROUTINE MAINTENANCE
F9: ASSET QUANTITY (0's) | H9: AVERAGE AGE OF ASSET GROUP | I9: INSPECTION CYCLE (YEARS) | J9: MAINTENANCE CYCLE (YEARS)
F10: AT YEAR END | G10: INSPECTED / MAINTAINED
B11: MAINTENANCE ACTIVITY | C11: MAINTENANCE ASSET CATEGORY | D11: ASSET QUANTITY | E11: Units | F11: =CRY -> 2016-17 | G11: =CRY -> 2016-17 | H11: =CRY -> 2016-17
B12: Pole top, overhead line & service line maintenance | C12: Pole tops and overhead lines | D12: Number of poles | E12: Number | F12: 965911 | G12: 15498.6 | H12: 30 | I12: 4.5 | J12: 0
C13: Service lines | D13: Number of customers | E13: Number | F13: 397633 | G13: 184.68 | H13: 32 | I13: 4.5 | J13: 0
B14: Pole inspection and treatment | C14: All poles | D14: Number of poles | E14: Number | F14: 965911 | G14: 278657.34 | H14: 30 | I14: 4.5 | J14: 0
B15: Overhead asset inspection | C15: All overhead assets | D15: Line patrolled (route KM) | E15: KM | F15: 140566.5 | G15: 92.34 | H15: 32 | I15: 0 | J15: 0
B16: Network underground cable maintenance: by voltage | C16: LV - 11 to 22 KV | D16: Length (KM) | E16: KM | F16: 6750.8 | G16: 92.34 | H16: 10 | I16: 0 | J16: 0
C17: 33 KV and above | D17: Length (KM) | E17: KM | F17: 2564.4 | G17: 0 | H17: 15 | I17: 0 | J17: 0
B18: Network underground cable maintenance: by location | C18: Cbd | D18: Length (KM) | E18: KM | F18: 0 | G18: 0 | H18: 0 | I18: 0 | J18: 0
C19: Non-CBD | D19: Length (KM) | E19: KM | F19: 9315 | G19: 92.34 | H19: 10 | I19: 0 | J19: 0
B20: Distribution substation equipment & property maintenance | C20: Distribution substation transformers | D20: Number of installed transformers | E20: Number | F20: 101596 | G20: 3459.34 | H20: 22 | I20: 1 | J20: 0
C21: Distribution substation switchgear (within-substations and stand-alone switchgear) | D21: Number of switches | E21: Number | F21: 19413 | G21: 3634.34 | H21: 16 | I21: 12 | J21: 0
C22: Distribution substation - other equipment | D22: Earth mat | E22: Number | F22: 101596 | G22: 14906.85 | H22: 22 | I22: 4.5 | J22: 0
C23: Distribution substation - property | D23: Number of distribution substation properties maintained | E23: Number | F23: 101596 | G23: 51.17 | H23: 0 | I23: 0 | J23: 0
B24: Zone substation equipment maintenance | C24: Transformers - zone substation | D24: Number | E24: Number | F24: 568 | G24: 953.85 | H24: 39 | I24: 1.5 | J24: 12
C25: Transformers - distribution | D25: Number of distribution transformers within zone substation | E25: Number | F25: 452 | G25: 47.17 | H25: 28 | I25: 0.5 | J25: 0
C26: Transformers - HV | D26: Number of HV transformers | E26: Number | F26: 0 | G26: 0 | H26: 0 | I26: 0 | J26: 0
C27: Zone substation - other equipment | D27: NUMBER OF SWITCHES, CTS, VTs, CBs, SDs | E27: =D27 -> NUMBER OF SWITCHES, CTS, VTs, CBs, SDs | F27: 16103 | G27: 7896.3 | H27: 23 | I27: 1.5 | J27: 12
B28: Zone substation property maintenance | C28: All zone substation properties | D28: Number of zone substation properties maintained | E28: Number | F28: 409 | G28: 1718.68 | H28: 0 | I28: 1.5 | J28: 0
B29: Public lighting maintenance | C29: Minor roads | D29: Number of public lights maintained | E29: Number | F29: 0 | G29: 0 | H29: 0 | I29: 0 | J29: 0
C30: Major roads | D30: Number of public lights maintained | E30: Number | F30: 0 | G30: 0 | H30: 0 | I30: 0 | J30: 0
B31: SCADA & network control maintenance | C31: SCADA & network control | D31: Number of systems | E31: Number | F31: 845 | G31: 1535 | H31: 12 | I31: 4 | J31: 0
B32: Protection systems maintenance | C32: Protection systems | D32: Number of systems | E32: Number | F32: 7581 | G32: 1587 | H32: 23 | I32: 6 | J32: 0
B33: Subtransmission asset maintenance | C33: Subtransmission asset maintenance - for DNSPs with dual function assets | D33: <DNSP to nominate> | E33: =D33 -> <DNSP to nominate> | F33: 0 | G33: 0 | H33: 0 | I33: 0 | J33: 0
B34: Various assets | C34: includes rates, electricity, communications equip, metering | D34: Various | E34: Number | F34: 0 | G34: 0 | H34: 0 | I34: 0 | J34: 0
B35: Ground clearance - access tracks | C35: Access tracks | D35: Number | E35: Number | F35: 0 | G35: 338 | H35: 0 | I35: 4.5 | J35: 0
B36: Other | C36: Ground clearance - access tracks | D36: NUMBER of ACCESS TRACKS | F36: 0
B48: 2.8.2 - COST METRICS FOR ROUTINE AND NON-ROUTINE MAINTENANCE
F49: EXPENDITURE ($0'S)
F50: ROUTINE MAINTENANCE | G50: NON-ROUTINE MAINTENANCE
B51: MAINTENANCE ACTIVITY | C51: MAINTENANCE ASSET CATEGORY | D51: ASSET QUANTITY | E51: Units | F51: =CRY -> 2016-17 | G51: =CRY -> 2016-17
B52: Pole top, overhead line & service line maintenance | C52: Pole tops and overhead lines | D52: Number of poles | E52: Number | F52: 1059892.38 | G52: 9560805.829
C53: Service lines | D53: Number of customers | E53: Number | F53: 0 | G53: 490297.7348
B54: Pole inspection and treatment | C54: All poles | D54: Number of poles | E54: Number | F54: 21961376.69 | G54: 245148.8674
B55: Overhead asset inspection | C55: All overhead assets | D55: Line patrolled (route KM) | E55: KM | F55: 0 | G55: 245148.8674
B56: Network underground cable maintenance: by voltage | C56: LV - 11 to 22 KV | D56: Length (KM) | E56: KM | F56: 195519.01 | G56: 245148.8674
C57: 33 KV and above | D57: Length (KM) | E57: KM | F57: 0 | G57: 0
B58: Network underground cable maintenance: by location | C58: Cbd | D58: Length (KM) | E58: KM | F58: 0 | G58: 0
C59: Non-CBD | D59: Length (KM) | E59: KM | F59: 195519.01 | G59: 245148.8674
B60: Distribution substation equipment & property maintenance | C60: Distribution substation transformers | D60: Number of installed transformers | E60: Number | F60: 786671.42 | G60: 245148.8674
C61: Distribution substation switchgear (within-substations and stand-alone switchgear) | D61: Number of switches | E61: Number | F61: 2856953.13 | G61: 245148.8674
C62: Distribution substation - other equipment | D62: Earth mat | E62: Number | F62: 3500907.6 | G62: 612872.1685
C63: Distribution substation - property | D63: Number of distribution substation properties maintained | E63: Number | F63: 1034.56 | G63: 122574.4337
B64: Zone substation equipment maintenance | C64: Transformers - zone substation | D64: Number | E64: Number | F64: 1013869.05 | G64: 455808.0635
C65: Transformers - distribution | D65: Number of distribution transformers within zone substation | E65: Number | F65: 18076.92 | G65: 91161.6127
C66: Transformers - HV | D66: Number of HV transformers | E66: Number | F66: 0 | G66: 0
C67: Zone substation - other equipment | D67: =IF(ISBLANK(D27),"",D27) -> NUMBER OF SWITCHES, CTS, VTs, CBs, SDs | E67: =IF(ISBLANK(E27),"",E27) -> NUMBER OF SWITCHES, CTS, VTs, CBs, SDs | F67: 4773560.78 | G67: 8204545.143
B68: Zone substation property maintenance | C68: All zone substation properties | D68: Number of zone substation properties maintained | E68: Number | F68: 1762763.67 | G68: 364646.4508
B69: Public lighting maintenance | C69: Minor roads | D69: Number of public lights maintained | E69: Number | F69: 0 | G69: 0
C70: Major roads | D70: Number of public lights maintained | E70: Number | F70: 0 | G70: 0
B71: SCADA & network control maintenance | C71: SCADA & network control | D71: Number of systems | E71: Number | F71: 14135.66 | G71: 1078787.79
B72: Protection systems maintenance | C72: Protection systems | D72: Number of systems | E72: Number | F72: 1490771.99 | G72: 1127613.63
B73: Subtransmission asset maintenance | C73: Subtransmission asset maintenance - for DNSPs with dual function assets | D73: =IF(ISBLANK(D33),"",D33) -> <DNSP to nominate> | E73: =IF(ISBLANK(E33),"",E33) -> <DNSP to nominate> | F73: 0 | G73: 0
B74: Various assets | C74: includes rates, electricity, communications equip, metering | D74: Various | E74: Number | F74: 5776418.83 | G74: 226289.6
B75: Ground clearance - access tracks | C75: Access tracks | D75: Number | E75: Number | F75: 957926.5 | G75: 3850237.1
B76: Other | C76: =IF(ISBLANK(C36),"",C36) -> Ground clearance - access tracks | D76: NUMBER of ACCESS TRACKS | F76: 0 | G76: 0

Sheet 2.9 Emergency Response
B1: REGULATORY REPORTING STATEMENT
B2: =INDEX(dms_TradingNameFull_List,MATCH(dms_TradingName,dms_TradingName_List)) -> Ergon Energy
B3: =CONCATENATE((LOOKUP(dms_Model,dms_Model_List,dms_Worksheet_List))&" "&CRY) -> CATEGORY ANALYSIS 2016-17
B4: 2.9 EMERGENCY RESPONSE
B7: There is ONE table on this worksheet. It has been sub-grouped for ease of navigation. See the Instructions sheet on how to group or ungroup tables.
B9: 2.9.1 - EMERGENCY RESPONSE EXPENDITURE (OPEX)
D10: EXPENDITURE ($0's)
D11: =CRY -> 2016-17
B12: (A) TOTAL EMERGENCY RESPONSE EXPENDITURE | C12: Total Expenditure | D12: 54494712
B13: (B) MAJOR EVENTS O&M EXPENDITURE | C13: Severe Thunderstorms in Southeast Queensland
C14: Severe Storms and Lightning
C15: Ellie - 1st Feb to 1st Mar 2009
C16: Hamish - 4th Mar to 11th Mar 2009
C17: Tropical Cyclone Ului
C18: Olga - 23rd Jan to 30th Jan 2010
C19: Mackay CB Failure
C20: Cyclone Anthony
C21: Cyclone Yasi
C22: Southern Storms -Toowoomba
C23: Bushfires, Storms & Hailstorms across All Regions
C24: Tasha - 25th Dec 2010
C25: Heavy rain, damaging winds and flash flooding in Southern Region
C26: Heavy Rain & Tornado-like winds in Townsville
C27: Storms in Southern Region
C28: Cyclone Oswald
C29: Jasmine - 1st Feb to 6th Feb 2012
C30: Severe Storms and Winds - 17th November 2013
C31: Severe Storms - 22nd January 2014
C32: Cyclone Dylan 30th January 2014
C33: Cyclone Ita 11th April 2014
C34: Severe Storms and Lightning 6th December 2014
C35: Severe Storms and Lightning 31st December 2014
C36: Cyclone Marcia
C37: Cyclone Nathan
C38: Cyclone ITA (2014-15 Costs)
C39: Severe Storms and Lightning 23rd December 2015 (SW)
C40: Severe Storms and Lightning 29th January 2016 (WB)
C41: Severe Storms and Lightning 12th November 2016 (WB) | D41: 48773
C42: Severe Storms and Lightning 13th November 2016 (WB) | D42: 149317
C43: Cyclone Debbie | D43: 8003029
B56: (C) MAJOR EVENT DAYS O&M EXPENDITURE | C56: Declared STPIS MED due to Severe Storms and Lightning (12 Nov 2016) | D56: 194144
C57: Declared STPIS MED due to Severe Storms and Lightning (13 Nov 2016) | D57: 149317
C58: Declared STPIS MED due to Cyclone Debbie (27 Mar 2017) | D58: 264877
C59: Declared STPIS MED due to Cyclone Debbie (28 Mar 2017) | D59: 134477
C60: Declared STPIS MED due to Cyclone Debbie (29 Mar 2017) | D60: 523724
C61: Declared STPIS MED due to ex Cyclone Debbie (30 Mar 2017) | D61: 826722
C62: Total Tropical Cyclone Debbie MEDs | D62: 1749800
C63: 2016-07-01 | D63: 0
C64: 2016-07-02 | D64: 0
C65: 2016-07-03 | D65: 0
C66: 2016-07-04 | D66: 0
C67: 2016-07-05 | D67: 0
C68: 2016-07-06 | D68: 0
C69: 2016-07-07 | D69: 0
C70: 2016-07-08 | D70: 0
C71: 2016-07-09 | D71: 0
C72: 2016-07-10 | D72: 0
C73: 2016-07-11 | D73: 0
C74: 2016-07-12 | D74: 0
C75: 2016-07-13 | D75: 0
C76: 2016-07-14 | D76: 0
C77: 2016-07-15 | D77: 0
C78: 2016-07-16 | D78: 0
C79: 2016-07-17 | D79: 0
C80: 2016-07-18 | D80: 0
C81: 2016-07-19 | D81: 0
C82: 2016-07-20 | D82: 0
C83: 2016-07-21 | D83: 0
C84: 2016-07-22 | D84: 0
C85: 2016-07-23 | D85: 0
C86: 2016-07-24 | D86: 0
C87: 2016-07-25 | D87: 0
C88: 2016-07-26 | D88: 0
C89: 2016-07-27 | D89: 0
C90: 2016-07-28 | D90: 0
C91: 2016-07-29 | D91: 0
C92: 2016-07-30 | D92: 0
C93: 2016-07-31 | D93: 0
C94: 2016-08-01 | D94: 0
C95: 2016-08-02 | D95: 0
C96: 2016-08-03 | D96: 0
C97: 2016-08-04 | D97: 0
C98: 2016-08-05 | D98: 0
C99: 2016-08-06 | D99: 0
C100: 2016-08-07 | D100: 0
C101: 2016-08-08 | D101: 0
C102: 2016-08-09 | D102: 0
C103: 2016-08-10 | D103: 0
C104: 2016-08-11 | D104: 0
C105: 2016-08-12 | D105: 0
C106: 2016-08-13 | D106: 0
C107: 2016-08-14 | D107: 0
C108: 2016-08-15 | D108: 0
C109: 2016-08-16 | D109: 0
C110: 2016-08-17 | D110: 0
C111: 2016-08-18 | D111: 0
C112: 2016-08-19 | D112: 0
C113: 2016-08-20 | D113: 0
C114: 2016-08-21 | D114: 0
C115: 2016-08-22 | D115: 0
C116: 2016-08-23 | D116: 0
C117: 2016-08-24 | D117: 0
C118: 2016-08-25 | D118: 0
C119: 2016-08-26 | D119: 0
C120: 2016-08-27 | D120: 0
C121: 2016-08-28 | D121: 0
C122: 2016-08-29 | D122: 0
C123: 2016-08-30 | D123: 0
C124: 2016-08-31 | D124: 0
C125: 2016-09-01 | D125: 0
C126: 2016-09-02 | D126: 0
C127: 2016-09-03 | D127: 0
C128: 2016-09-04 | D128: 0
C129: 2016-09-05 | D129: 0
C130: 2016-09-06 | D130: 0
C131: 2016-09-07 | D131: 0
C132: 2016-09-08 | D132: 0
C133: 2016-09-09 | D133: 0
C134: 2016-09-10 | D134: 0
C135: 2016-09-11 | D135: 0
C136: 2016-09-12 | D136: 0
C137: 2016-09-13 | D137: 0
C138: 2016-09-14 | D138: 0
C139: 2016-09-15 | D139: 0
C140: 2016-09-16 | D140: 0
C141: 2016-09-17 | D141: 0
C142: 2016-09-18 | D142: 0
C143: 2016-09-19 | D143: 0
C144: 2016-09-20 | D144: 0
C145: 2016-09-21 | D145: 0
C146: 2016-09-22 | D146: 0
C147: 2016-09-23 | D147: 0
C148: 2016-09-24 | D148: 0
C149: 2016-09-25 | D149: 0
C150: 2016-09-26 | D150: 0
C151: 2016-09-27 | D151: 0
C152: 2016-09-28 | D152: 0
C153: 2016-09-29 | D153: 0
C154: 2016-09-30 | D154: 0
C155: 2016-10-01 | D155: 0
C156: 2016-10-02 | D156: 0
C157: 2016-10-03 | D157: 0
C158: 2016-10-04 | D158: 0
C159: 2016-10-05 | D159: 0
C160: 2016-10-06 | D160: 0
C161: 2016-10-07 | D161: 0
C162: 2016-10-08 | D162: 0
C163: 2016-10-09 | D163: 0
C164: 2016-10-10 | D164: 0
C165: 2016-10-11 | D165: 0
C166: 2016-10-12 | D166: 0
C167: 2016-10-13 | D167: 0
C168: 2016-10-14 | D168: 0
C169: 2016-10-15 | D169: 0
C170: 2016-10-16 | D170: 0
C171: 2016-10-17 | D171: 0
C172: 2016-10-18 | D172: 0
C173: 2016-10-19 | D173: 0
C174: 2016-10-20 | D174: 0
C175: 2016-10-21 | D175: 0
C176: 2016-10-22 | D176: 0
C177: 2016-10-23 | D177: 0
C178: 2016-10-24 | D178: 0
C179: 2016-10-25 | D179: 0
C180: 2016-10-26 | D180: 0
C181: 2016-10-27 | D181: 0
C182: 2016-10-28 | D182: 0
C183: 2016-10-29 | D183: 0
C184: 2016-10-30 | D184: 0
C185: 2016-10-31 | D185: 0
C186: 2016-11-01 | D186: 0
C187: 2016-11-02 | D187: 0
C188: 2016-11-03 | D188: 0
C189: 2016-11-04 | D189: 0
C190: 2016-11-05 | D190: 0
C191: 2016-11-06 | D191: 0
C192: 2016-11-07 | D192: 0
C193: 2016-11-08 | D193: 0
C194: 2016-11-09 | D194: 0
C195: 2016-11-10 | D195: 0
C196: 2016-11-11 | D196: 0
C197: 2016-11-12 | D197: 194144
C198: 2016-11-13 | D198: 149317
C199: 2016-11-14 | D199: 0
C200: 2016-11-15 | D200: 0
C201: 2016-11-16 | D201: 0
C202: 2016-11-17 | D202: 0
C203: 2016-11-18 | D203: 0
C204: 2016-11-19 | D204: 0
C205: 2016-11-20 | D205: 0
C206: 2016-11-21 | D206: 0
C207: 2016-11-22 | D207: 0
C208: 2016-11-23 | D208: 0
C209: 2016-11-24 | D209: 0
C210: 2016-11-25 | D210: 0
C211: 2016-11-26 | D211: 0
C212: 2016-11-27 | D212: 0
C213: 2016-11-28 | D213: 0
C214: 2016-11-29 | D214: 0
C215: 2016-11-30 | D215: 0
... 212 more rows

Sheet 2.10 Overheads
B1: REGULATORY REPORTING STATEMENT
B2: =INDEX(dms_TradingNameFull_List,MATCH(dms_TradingName,dms_TradingName_List)) -> Ergon Energy
B3: =CONCATENATE((LOOKUP(dms_Model,dms_Model_List,dms_Worksheet_List))&" "&CRY) -> CATEGORY ANALYSIS 2016-17
B4: 2.10 OVERHEADS
B6: =CONCATENATE("Please note. This worksheet 2.10 Overheads is the original worksheet. We have also included a different version of the Overheads template (worksheet 2.10A Overheads) which collects the information in a different way. ",dms_TradingName, " is not obliged to complete worksheet 2.10A. However, the AER would prefer to collect Overheads information as presented in the revised worksheet 2.10A Overheads. If ",dms_TradingName," is prepared to complete worksheet 2.10A in lieu of the original worksheet 2.10 Overheads, please indicate that choice by selecting from the drop down list at the right. ",dms_TradingName, " is only required to complete one version of the Overheads worksheet in order to comply with the Category Analysis RIN.") -> Please note. This worksheet 2.10 Overheads is the original worksheet. We have also included a different version of the Overheads template (worksheet 2.10A Overheads) which collects the information in a different way. Ergon Energy is not obliged to complete worksheet 2.10A. However, the AER would prefer to collect Overheads information as presented in the revised worksheet 2.10A Overheads. If Ergon Energy is prepared to complete worksheet 2.10A in lieu of the original worksheet 2.10 Overheads, please indicate that choice by selecting from the drop down list at the right. Ergon Energy is only required to complete one version of the Overheads worksheet in order to comply with the Category Analysis RIN. | D6: Choose Response drop down selection
D7: Worksheet 2.10
B11: There are TWO tables on this worksheet. Each has been grouped (and sub-grouped) for ease of navigation. See the Instructions sheet on how to group or ungroup tables.
B13: =CONCATENATE("Instructions Please enter a description for each expenditure category as currently reported under ",dms_TradingName,"'s annual RIN.") -> Instructions Please enter a description for each expenditure category as currently reported under Ergon Energy's annual RIN.
B15: 2.10.1 - NETWORK OVERHEADS EXPENDITURE
D16: EXPENDITURE ($0's)
D17: =CRY -> 2016-17
B18: NETWORK OVERHEADS
B19: Standard Control Services | C19: Network management | D19: 3470820.211
C20: Network planning | D20: 11114724.4
C21: Network control and operational switching | D21: 29300790.91
C22: Quality and standard functions | D22: 4960842.585
C23: Project governance and related functions | D23: 6063401.654
C24: Other -- [Enter expenditure category currently reported under annual RIN] - DNSP to nominate | D24: 0
C25: METER READING | D25: 0
C26: FEED-IN TARIFFS/ SOLAR BONUS | D26: 0
C27: NON-NETWORK ALTERNATIVES/ DEMAND MANAGEMENT | D27: 5603252.73
C28: Other | D28: 53086283.79
B47: Alternative Control Services | C47: Network management | D47: 476777.8524
C48: Network planning | D48: 1960352.678
C49: Network control and operational switching | D49: 407432.4315
C50: Quality and standard functions | D50: 305759.2493
C51: Project governance and related functions | D51: 977424.875
C52: Other -- [expenditure category currently reported under annual RIN] - DNSP to nominate | D52: 0
C53: METER READING | D53: 8640169.16
C54: FEED-IN TARIFFS/ SOLAR BONUS | D54: 0
C55: NON-NETWORK ALTERNATIVES/ DEMAND MANAGEMENT | D55: 0
C56: Other | D56: 45051515.58
B75: Negotiated Services | C75: Total
B76: Unregulated Services | C76: Total | D76: 10906735.01
B79: CAPITALISED NETWORK OVERHEADS
B80: Standard Control Services | C80: Network management | D80: 6506375.829
C81: Network planning | D81: 20407509.68
C82: Network control and operational switching | D82: 3250619.25
C83: Quality and standard functions | D83: 9530380.905
C84: Project governance and related functions | D84: 11359163.05
C85: Other -- [expenditure category currently reported under annual RIN] - DNSP to nominate | D85: 0
C86: METER READING | D86: 0
C87: FEED-IN TARIFFS/ SOLAR BONUS | D87: 0
C88: NON-NETWORK ALTERNATIVES/ DEMAND MANAGEMENT | D88: 0
C89: Other | D89: 40149265.81
B104: 2.10.2 - CORPORATE OVERHEADS EXPENDITURE
D105: EXPENDITURE ($0's)
D106: =CRY -> 2016-17
B107: CORPORATE OVERHEADS
B108: Standard Control Services | C108: ASSET MANAGEMENT/Network Optimisation | D108: 437073.0258
C109: CORPORATE GOVERNANCE | D109: 0
C110: CORPORATE | D110: -690525.8364
C111: CUSTOMER AND STAKEHOLDER ENGAGEMENT | D111: 0
C112: CUSTOMER SERVICE/RETAIL | D112: 0
C113: EMPLOYEE AND SHARED SERVICES/People & Culture | D113: 6974742.986
C114: ENERGY SOLUTIONS AND MARKET DEVELOPMENT | D114: 0
C115: FINANCE AND STRATEGIC SERVICES/Finance & Corporate Services | D115: 17900710.35
C116: OFFICE OF THE CHIEF EXECUTIVE | D116: 470088.8376
C117: OPERATIONS/Customer Serives | D117: 2536857.074
C118: SPARQ SERVICES | D118: 28118753.6
C119: MAJOR PROJECTS | D119: 0
C120: STRATEGY REVENUE & TRANSFORMATION/Strategy & Portfolio | D120: 122190.4286
C121: Corporate Restructure | D121: 14993094.52
C122: Self Insurance | D122: 1411979.21
B129: Alternative Control Services | C129: ASSET MANAGEMENT | D129: 38100.75297
C130: CORPORATE GOVERNANCE | D130: 0
C131: CORPORATE | D131: -184583.7428
C132: CUSTOMER AND STAKEHOLDER ENGAGEMENT | D132: 0
C133: CUSTOMER SERVICE/RETAIL | D133: 0
C134: EMPLOYEE AND SHARED SERVICES | D134: 1867645.587
C135: ENERGY SOLUTIONS AND MARKET DEVELOPMENT | D135: 0
C136: FINANCE AND STRATEGIC SERVICES | D136: 4589957.874
C137: OFFICE OF THE CHIEF EXECUTIVE | D137: 125658.958
C138: OPERATIONS | D138: 365076.1221
C139: SPARQ SERVICES | D139: 7516394.766
C140: MAJOR PROJECTS | D140: 0
C141: STRATEGY REVENUE & TRANSFORMATION | D141: 32662.59633
C142: Corporate Restructure | D142: 0
C143: Self Insurance | D143: 0
B150: Negotiated Services | C150: Total
B151: Unregulated Services | C151: Total | D151: 17941553.99
B153: CAPITALISED CORPORATE OVERHEADS
B154: Standard Control Services | C154: ASSET MANAGEMENT | D154: 830489.8879
C155: CORPORATE GOVERNANCE | D155: 0
C156: CORPORATE | D156: -1209772.828
C157: CUSTOMER AND STAKEHOLDER ENGAGEMENT | D157: 0
C158: CUSTOMER SERVICE/RETAIL | D158: 0
C159: EMPLOYEE AND SHARED SERVICES | D159: 12223595.33
C160: ENERGY SOLUTIONS AND MARKET DEVELOPMENT | D160: 0
C161: FINANCE AND STRATEGIC SERVICES | D161: 31521741.77
C162: OFFICE OF THE CHIEF EXECUTIVE | D162: 823576.2844
C163: OPERATIONS | D163: 4737237.995
C164: SPARQ SERVICES | D164: 49262898.33
C165: MAJOR PROJECTS | D165: 0
C166: STRATEGY REVENUE & TRANSFORMATION | D166: 214072.599
C167: Corporate Restructure | D167: 0
C168: Self Insurance | D168: 0

Sheet 2.10(A) Overheads
B1: REGULATORY REPORTING STATEMENT
B2: =INDEX(dms_TradingNameFull_List,MATCH(dms_TradingName,dms_TradingName_List)) -> Ergon Energy
B3: =CONCATENATE((LOOKUP(dms_Model,dms_Model_List,dms_Worksheet_List))&" "&CRY) -> CATEGORY ANALYSIS 2016-17
B4: 2.10(A) OVERHEADS
B6: This worksheet may be completed on a voluntary basis. Please see worksheet 2.10 for an explanation of Overheads reporting options.
B9: There are TWO tables on this worksheet. Each has been grouped (and sub-grouped) for ease of navigation. See the Instructions sheet on how to group or ungroup tables.
B11: 2.10.1 - NETWORK OVERHEADS EXPENDITURE
D12: EXPENDITURE ($0's)
D13: =CRY -> 2016-17
B14: OPEX
B15: Standard Control Services | C15: Total
B16: Alternative Control Services | C16: Total
B17: CAPEX
B18: Standard Control Services | C18: Total
B19: Alternative Control Services | C19: Total
B20: OTHER DISTRIBUTION SERVICES
B21: Negotiated Services | C21: Total
B22: Unregulated Services | C22: Total
B26: 2.10.2 - CORPORATE OVERHEADS EXPENDITURE
D27: EXPENDITURE ($0's)
D28: =CRY -> 2016-17
B29: OPEX
B30: Standard Control Services | C30: Total
B31: Alternative Control Services | C31: Total
B32: CAPEX
B33: Standard Control Services | C33: Total
B34: Alternative Control Services | C34: Total
B35: OTHER DISTRIBUTION SERVICES
B36: Negotiated Services | C36: Total
B37: Unregulated Services | C37: Total

Sheet 2.11 Labour
B1: REGULATORY REPORTING STATEMENT
B2: =INDEX(dms_TradingNameFull_List,MATCH(dms_TradingName,dms_TradingName_List)) -> Ergon Energy
B3: =CONCATENATE((LOOKUP(dms_Model,dms_Model_List,dms_Worksheet_List))&" "&CRY) -> CATEGORY ANALYSIS 2016-17
B4: 2.11 LABOUR
B6: There are TWO tables on this worksheet. Each has been grouped for ease of navigation. See the Instructions sheet on how to group or ungroup tables.
B8: 2.11.1 - COST METRICS PER ANNUM
D9: ASL (0's) | E9: TOTAL LABOUR EXPENDITURE ($0's) | F9: AVERAGE PRODUCTIVE WORK HOURS PER ASL (0's) | G9: STAND-DOWN OCCURENCES PER ASL (0's)
D11: =CRY -> 2016-17 | E11: =CRY -> 2016-17 | F11: =CRY -> 2016-17 | G11: =CRY -> 2016-17
B12: INTERNAL LABOUR EXPENDITURE
B13: CORPORATE OVERHEADS | C13: Executive manager | D13: 2.309471801 | E13: 1348694 | F13: 1885 | G13: 0
C14: Senior manager | D14: 25.01213204 | E14: 9582076 | F14: 1885 | G14: 0
C15: Manager | D15: 39.60978473 | E15: 8877667 | F15: 1885 | G15: 0.02272165845
C16: Professional | D16: 113.3873976 | E16: 21510820 | F16: 1885 | G16: 0.01446368851
C17: Semi professional | D17: 33.67476873 | E17: 5831279 | F17: 1885 | G17: 0.3447685147
C18: Support staff | D18: 135.5668738 | E18: 15858957 | F18: 1885 | G18: 0
C19: Intern, junior staff, apprentice | D19: 3.819953517 | E19: 611169 | F19: 1885 | G19: 0
B20: NETWORK OVERHEADS | C20: Executive manager | D20: 0.2072643366 | E20: 262982.1152 | F20: 1885 | G20: 0
C21: Senior manager | D21: 24.18398733 | E21: 6450169.681 | F21: 1885 | G21: 0
C22: Manager | D22: 85.38832632 | E22: 21334498.96 | F22: 1885 | G22: 0.07951906652
C23: Professional | D23: 205.9742954 | E23: 37843359.5 | F23: 1885 | G23: 0.06505666145
C24: Semi professional | D24: 235.4917565 | E24: 41596861.98 | F24: 1885 | G24: 0.3461267656
C25: Support staff | D25: 212.0625837 | E25: 26293987.55 | F25: 1885 | G25: 0.0997016995
C26: Intern, junior staff, apprentice | D26: 179.96003 | E26: 21720317.46 | F26: 1885 | G26: 0
B27: TOTAL DIRECT NETWORK LABOUR | C27: Skilled electrical worker | D27: 655.0538591 | E27: 102861531.8 | F27: 1885 | G27: 3.58842249
C28: Skilled non electical worker | D28: 287.2049759 | E28: 47788978.24 | F28: 1885 | G28: 0
C29: Apprentice | D29: 113.284341 | E29: 12138631.39 | F29: 1885 | G29: 0.1517420664
C30: Unskilled worker | D30: 64.8374443 | E30: 8032374.504 | F30: 1885 | G30: 2.457993243
B33: 2.11.2 - DESCRIPTOR METRICS
D34: ORDINARY TIME (0's) | F34: OVERTIME (0's)
D35: PER ASL | E35: HOURLY RATE PER ASL | F35: PER ASL | G35: HOURLY RATE PER ASL
D36: =CRY -> 2016-17 | E36: =CRY -> 2016-17 | F36: =CRY -> 2016-17 | G36: =CRY -> 2016-17
B37: AVERAGE PRODUCTIVE WORK HOURS PER ASL
B38: CORPORATE OVERHEADS | C38: Executive manager | D38: 1885 | E38: 309.8057467 | F38: 0 | G38: 0
C39: Senior manager | D39: 1884.245687 | E39: 180.9925083 | F39: 0.7543134473 | G39: 155.9475946
C40: Manager | D40: 1878.013541 | E40: 105.2685168 | F40: 6.986458989 | G40: 139.159996
C41: Professional | D41: 1875.422908 | E41: 96.05172861 | F41: 9.577092202 | G41: 114.7497124
C42: Semi professional | D42: 1830.513895 | E42: 86.90180097 | F42: 54.4861046 | G42: 203.0527206
C43: Support staff | D43: 1871.359903 | E43: 61.11479626 | F43: 13.64009693 | G43: 85.45732271
C44: Intern, junior staff, apprentice | D44: 1842.281913 | E44: 84.49502614 | F44: 42.7180869 | G44: 101.3688974
B45: NETWORK OVERHEADS | C45: Executive manager | D45: 1885 | E45: 291.4329545 | F45: 0 | G45: 0
C46: Senior manager | D46: 1883.006797 | E46: 138.6094784 | F46: 1.993202811 | G46: 153.8471369
C47: Manager | D47: 1873.400513 | E47: 117.9616425 | F47: 11.59948746 | G47: 142.4395832
C48: Professional | D48: 1869.4857 | E48: 92.42662105 | F48: 15.51429986 | G48: 100.5327506
C49: Semi professional | D49: 1820.653885 | E49: 89.36194721 | F49: 64.3461151 | G49: 131.2531154
C50: Support staff | D50: 1861.667574 | E50: 64.23692767 | F50: 23.33242648 | G50: 86.01957671
C51: Intern, junior staff, apprentice | D51: 1805.348222 | E51: 61.43243829 | F51: 79.65177848 | G51: 94.45552429
B52: TOTAL DIRECT NETWORK LABOUR | C52: Skilled electrical worker | D52: 1565.039608 | E52: 76.66083444 | F52: 319.9603922 | G52: 115.7966836
C53: Skilled non electical worker | D53: 1749.282601 | E53: 86.28055719 | F53: 135.7173986 | G53: 113.9441486
C54: Apprentice | D54: 1656.920816 | E54: 53.38519933 | F54: 228.0791844 | G54: 81.97522838
C55: Unskilled worker | D55: 1643.447458 | E55: 61.40016369 | F55: 241.5525422 | G55: 95.12161382

Sheet 2.12 Input tables
B1: REGULATORY REPORTING STATEMENT
B2: =INDEX(dms_TradingNameFull_List,MATCH(dms_TradingName,dms_TradingName_List)) -> Ergon Energy
B3: =CONCATENATE((LOOKUP(dms_Model,dms_Model_List,dms_Worksheet_List))&" "&CRY) -> CATEGORY ANALYSIS 2016-17
B4: 2.12 INPUT TABLES
B6: There is ONE table on this worksheet. It has been sub-grouped for ease of navigation. See the Instructions sheet on how to group or ungroup tables.
B8: 2.12.1 - INPUT TABLES
D9: DIRECT MATERIAL EXPENDITURE | E9: DIRECT LABOUR EXPENDITURE | F9: CONTRACT EXPENDITURE | G9: OTHER EXPENDITURE | H9: RELATED PARTY CONTRACT EXPENDITURE | I9: RELATED PARTY CONTRACT MARGIN EXPENDITURE
D10: EXPENDITURE ($0's)
D11: =CRY -> 2016-17 | E11: 2016-17 | F11: 2016-17 | G11: 2016-17 | H11: 2016-17 | I11: 2016-17
B12: VEGETATION MANAGEMENT | C12: ='2.7 Vegetation management'!B15 -> NORTHERN REGION | D12: 185774.1931 | E12: 642505.737 | F12: 13210400.06 | G12: 284525.0053 | H12: 0 | I12: 0
C13: ='2.7 Vegetation management'!B21 -> CENTRAL REGION | D13: 108730.8069 | E13: 473351.0863 | F13: 14687811.05 | G13: 220504.4797 | H13: -2459023.914 | I13: 0
C14: ='2.7 Vegetation management'!B27 -> SOUTHERN REGION | D14: 151819.833 | E14: 562384.6401 | F14: 12520283.32 | G14: 253219.2658 | H14: 0 | I14: 0
C15: ='2.7 Vegetation management'!B33 -> ZONE 4
C16: ='2.7 Vegetation management'!B39 -> ZONE 5
C17: ='2.7 Vegetation management'!B45 -> ZONE 6
C18: ='2.7 Vegetation management'!B51 -> ZONE 7
C19: ='2.7 Vegetation management'!B57 -> ZONE 8
C20: ='2.7 Vegetation management'!B63 -> ZONE 9
C21: ='2.7 Vegetation management'!B69 -> ZONE 10
C22: ='2.7 Vegetation management'!B75 -> ZONE 11
C23: ='2.7 Vegetation management'!B81 -> ZONE 12
C24: ='2.7 Vegetation management'!B87 -> ZONE 13
C25: ='2.7 Vegetation management'!B93 -> ZONE 14
C26: ='2.7 Vegetation management'!B99 -> ZONE 15
C27: ='2.7 Vegetation management'!B105 -> ZONE 16
C28: ='2.7 Vegetation management'!B111 -> ZONE 17
C29: ='2.7 Vegetation management'!B117 -> ZONE 18
B30: ROUTINE MAINTENANCE | C30: Pole top, overhead line & service line maintenance | D30: 19733.39435 | E30: 222813.6109 | F30: 589113.1005 | G30: 228232.2742 | H30: 0 | I30: 0
C31: Pole inspection and treatment | D31: 408883.5008 | E31: 4616783.49 | F31: 12206649.43 | G31: 4729060.272 | H31: 0 | I31: 0
C32: Overhead asset inspection | D32: 0 | E32: 0 | F32: 0 | G32: 0 | H32: 0 | I32: 0
C33: Network underground cable maintenance | D33: 3640.231594 | E33: 41102.56612 | F33: 108674.062 | G33: 42102.15032 | H33: 0 | I33: 0
C34: Distribution substation equipment & property maintenance | D34: 133038.305 | E34: 1502161.494 | F34: 3971673.954 | G34: 1538692.957 | H34: 0 | I34: 0
C35: Zone substation equipment maintenance | D35: 108088.6666 | E35: 1220450.252 | F35: 3226837.126 | G35: 1250130.705 | H35: 0 | I35: 0
C36: Zone substation property maintenance | D36: 32819.66293 | E36: 370573.2261 | F36: 979785.4864 | G36: 379585.2946 | H36: 0 | I36: 0
C37: Public lighting maintenance | D37: 0 | E37: 0 | F37: 0 | G37: 0 | H37: 0 | I37: 0
C38: Scada & network control maintenance | D38: 263.1819593 | E38: 2971.63892 | F38: 7856.932126 | G38: 3043.906995 | H38: 0 | I38: 0
C39: Protection systems maintenance | D39: 27755.64022 | E39: 313394.3563 | F39: 828606.1167 | G39: 321015.8767 | H39: 0 | I39: 0
C40: Subtransmission asset maintenance - for dnsps with dual function assets | D40: 0 | E40: 0 | F40: 0 | G40: 0 | H40: 0 | I40: 0
C41: Other | D41: 125382.062 | E41: 1415713.358 | F41: 3743107.444 | G41: 1450142.466 | H41: 0 | I41: 0
B42: NON-ROUTINE MAINTENANCE | C42: Pole top, overhead line & service line maintenance | D42: 1360401.91 | E42: 5210677.266 | F42: 920451.8953 | G42: 2559572.493 | H42: 0 | I42: 0
C43: Pole inspection and treatment | D43: 33180.53439 | E43: 127089.6894 | F43: 22450.04623 | G43: 62428.59738 | H43: 0 | I43: 0
C44: Overhead asset inspection | D44: 33180.53439 | E44: 127089.6894 | F44: 22450.04623 | G44: 62428.59738 | H44: 0 | I44: 0
C45: Network underground cable maintenance | D45: 33180.53439 | E45: 127089.6894 | F45: 22450.04623 | G45: 62428.59738 | H45: 0 | I45: 0
C46: Distribution substation equipment & property maintenance | D46: 165902.672 | E46: 635448.447 | F46: 112250.2311 | G46: 312142.9869 | H46: 0 | I46: 0
C47: Zone substation equipment maintenance | D47: 1184504.507 | E47: 4536946.517 | F47: 801439.2003 | G47: 2228624.594 | H47: 0 | I47: 0
C48: Zone substation property maintenance | D48: 49354.35448 | E48: 189039.4382 | F48: 33393.30001 | G48: 92859.35809 | H48: 0 | I48: 0
C49: Public lighting maintenance | D49: 0 | E49: 0 | F49: 0 | G49: 0 | H49: 0 | I49: 0
C50: SCADA & network control maintenance | D50: 146012.322 | E50: 559263.4656 | F50: 98792.36242 | G50: 274719.64 | H50: 0 | I50: 0
C51: Protection systems maintenance | D51: 152620.8268 | E51: 584575.6806 | F51: 103263.696 | G51: 287153.4266 | H51: 0 | I51: 0
C52: Subtransmission asset maintenance - for DNSP with dual function assets | D52: 0 | E52: 0 | F52: 0 | G52: 0 | H52: 0 | I52: 0
C53: Other | D53: 551751.8225 | E53: 2113346.546 | F53: 373316.8904 | G53: 1038111.441 | H53: 0 | I53: 0
B54: OVERHEADS | C54: Network overheads | D54: 11343000 | E54: 155502177.2 | F54: 24082000 | G54: 71695822.76 | H54: 0 | I54: 0
C55: Corporate overheads | D55: 238000 | E55: 63620662 | F55: 17408000 | G55: 103763338 | H55: 0 | I55: 0
B56: AUGMENTATION | C56: Subtransmission substations, switching stations, zone substations | D56: 3812478.648 | E56: 3584381.654 | F56: 7468182.86 | G56: 2897936.838 | H56: 0 | I56: 0
C57: Subtransmission lines | D57: 928906.1134 | E57: 873330.5388 | F57: 1819614.313 | G57: 706079.035 | H57: 0 | I57: 0
C58: HV feeders | D58: 3882580.643 | E58: 3650289.513 | F58: 7605504.159 | G58: 2951222.685 | H58: 0 | I58: 0
C59: Distribution substations | D59: 818114.8827 | E59: 769167.8426 | F59: 1602587.741 | G59: 621864.5335 | H59: 0 | I59: 0
C60: LV feeders | D60: 319163.6094 | E60: 300068.3524 | F60: 625202.7664 | G60: 242602.2717 | H60: 0 | I60: 0
C61: Other assets | D61: 664252.4463 | E61: 624510.8503 | F61: 1301189.906 | G61: 504910.7972 | H61: 0 | I61: 0
B62: CONNECTIONS | C62: Simple and complex customer connections | D62: 24036157.94 | E62: 21556635.68 | F62: 10488312.38 | G62: 11886692.01 | H62: 0 | I62: 0
B63: EMERGENCY RESPONSE | C63: Major storms | D63: 633611.1706 | E63: 4252333.973 | F63: 1030956.775 | G63: 2284217.082 | H63: 0 | I63: 0
C64: Major event days | D64: 161723.4859 | E64: 1085369.553 | F64: 263142.3357 | G64: 583025.6252 | H64: 0 | I64: 0
B65: PUBLIC LIGHTING | C65: All public lighting services | D65: 3107061.842 | E65: 3267275.631 | F65: 4653054.591 | G65: 2163248.31 | H65: 0 | I65: 0
B66: METERING | C66: All metering services | D66: 8643571.064 | E66: 13762460.19 | F66: 18621627.33 | G66: 5758234.545 | H66: 2983374.567 | I66: 3082.055106
B67: FEE-BASED SERVICES | C67: All fee-based services | D67: 499353.2677 | E67: 767261.9312 | F67: 598552.5454 | G67: 356322.2557 | H67: 0 | I67: 0
B68: QUOTED SERVICES | C68: All quoted services | D68: 10938118.59 | E68: 19139899.15 | F68: 12220473.29 | G68: 14868616.98 | H68: 0 | I68: 0
B69: REPLACEMENT | C69: Poles | D69: 8016076.12 | E69: 13305818.65 | F69: 5604507.955 | G69: 8356646.763 | H69: 1409406.473 | I69: 423.6911096
C70: Pole top structures | D70: 4218312.388 | E70: 7001941.947 | F70: 2949269.067 | G70: 4397531.415 | H70: 741674.1929 | I70: 222.9596413
C71: Overhead conductors | D71: 5910668.754 | E71: 9811070.324 | F71: 4132494.447 | G71: 6161789.156 | H71: 1039228.505 | I71: 312.4094339
C72: Underground cables | D72: 524037.0708 | E72: 869844.8124 | F72: 366384.9854 | G72: 546301.2858 | H72: 92137.50329 | I72: 27.69807131
C73: Service lines | D73: 2066721.157 | E73: 3430533.406 | F73: 1444965.716 | G73: 2154527.778 | H73: 363376.0626 | I73: 109.2369093
C74: Transformers | D74: 7584761.144 | E74: 12589882.48 | F74: 5302950.413 | G74: 7907006.959 | H74: 1333571.6 | I74: 400.8938808
C75: Switchgear | D75: 4086040.575 | E75: 6782385.055 | F75: 2856790.101 | G75: 4259639.907 | H75: 718417.8332 | I75: 215.9683914
C76: Public lighting | D76: 317079.1169 | E76: 526317.0114 | F76: 221688.5677 | G76: 330550.5258 | H76: 55749.64026 | I76: 16.75927235
C77: SCADA network control and protection systems | D77: 3020752.8 | E77: 5014122.663 | F77: 2111985.072 | G77: 3149092.365 | H77: 531116.2828 | I77: 159.6624192
C78: Other | D78: 548706.4941 | E78: 910793.3847 | F78: 383632.823 | G78: 572018.8131 | H78: 96474.94275 | I78: 29.001978
B79: NON-NETWORK EXPENDITURE | C79: IT and communications | D79: 4250256.219 | E79: 2405945.473 | F79: 1696301.826 | G79: 1350629.564 | H79: 61317323.43 | I79: 0
C80: Motor vehicles | D80: 24588811 | E80: 0 | F80: 20864591 | G80: 0 | H80: 0 | I80: 0
C81: Buildings and property | D81: 863858.1568 | E81: 923751.107 | F81: 18955041.34 | G81: 25575992.72 | H81: 0 | I81: 0
C82: Other | D82: 9486404 | E82: 0 | F82: 0 | G82: 0 | H82: 0 | I82: 0

Sheet 4.1 Public lighting
B1: REGULATORY REPORTING STATEMENT
B2: =INDEX(dms_TradingNameFull_List,MATCH(dms_TradingName,dms_TradingName_List)) -> Ergon Energy
B3: =CONCATENATE((LOOKUP(dms_Model,dms_Model_List,dms_Worksheet_List))&" "&CRY) -> CATEGORY ANALYSIS 2016-17
B4: 4.1 PUBLIC LIGHTING
B7: There are THREE tables on this worksheet. Each has been grouped for ease of navigation. See the Instructions sheet on how to group or ungroup tables.
B9: 4.1.1 - DESCRIPTOR METRICS OVER YEAR
C10: LIGHT TYPE | E10: VOLUME (0's)
E11: =CRY -> 2016-17
B12: POPULATION OF LIGHTS | C12: SLM80D Streetlight Luminaire, MinorRoad | E12: 0
C13: HSL/MV50 Ergon Energy Historic StreetLights | E13: 0
C14: HSL/SHP150 Ergon Energy Historic StreetLights | E14: 0
C15: HSL/F40 Ergon Energy Historic StreetLights | E15: 0
C16: HSL/SHP250 Ergon Energy Historic StreetLights | E16: 0
C17: SLM125D Streetlight Luminaire, MinorRoad | E17: 0
C18: HSL/SHP70 Ergon Energy Historic StreetLights | E18: 0
C19: HSL/MV250 Ergon Energy Historic StreetLights | E19: 0
C20: HSL/MV400 Ergon Energy Historic StreetLights | E20: 0
C21: HSL/F2X20 Ergon Energy Historic StreetLights | E21: 0
C22: HSL/SLP90 Ergon Energy Historic StreetLights | E22: 0
C23: HSL/SHP400 Ergon Energy Historic StreetLights | E23: 0
C24: HSL/SLP135 Ergon Energy Historic StreetLights | E24: 0
C25: SLS150C Streetlight Luminaire | E25: 0
C26: HSL/F3X20 Ergon Energy Historic StreetLights | E26: 0
C27: SLM80DA Streetlight Luminaire, MinorRoad | E27: 0
C28: SLS100C Streetlight Luminaire | E28: 0
C29: SLS70D Streetlight Luminaire, MinorRoad | E29: 0
C30: SLM50D Streetlight Luminaire, MinorRoad | E30: 0
C31: SLS250C Streetlight Luminaire | E31: 0
C32: SLS250CA Streetlight Luminaire | E32: 0
C33: SLS150CA Streetlight Luminaire | E33: 0
C34: HSL/F3X40 Ergon Energy Historic StreetLights | E34: 0
C35: HSL/SLP35 Ergon Energy Historic StreetLights | E35: 0
C36: HSL/SLP55 Ergon Energy Historic StreetLights | E36: 0
C37: SLS70DA Streetlight Luminaire, MinorRoad | E37: 0
C38: HSL/F2X40 Ergon Energy Historic StreetLights | E38: 0
C39: HSL/SHP310 Ergon Energy Historic StreetLights | E39: 0
C40: SLM50DA Streetlight Luminaire, MinorRoad | E40: 0
C41: HSL/MV700 Ergon Energy Historic StreetLights | E41: 0
C42: HSL/MV150 Ergon Energy Historic StreetLights | E42: 0
C43: HSL/MV80 New Legacy Construction | E43: 0
C44: HSL/F4X40 Ergon Energy Historic StreetLights | E44: 0
C45: SLS400C Streetlight Luminaire | E45: 0
C46: SLS400CA Streetlight Luminaire | E46: 0
C47: SLN1M80D Streetlight Luminaire, MinorRoad | E47: 0
C48: HSL/SHP50 Ergon Energy Historic StreetLights | E48: 0
C49: HSL/F4X20 Ergon Energy Historic StreetLights | E49: 0
C50: HSL/F20 Ergon Energy Historic StreetLights | E50: 0
C51: HSL/MV1000 Ergon Energy Historic StreetLights | E51: 0
C52: A806-6 Luminaire, 150W HPS Aeroscreen (Major Rd) | E52: 0
C53: HSL/MV70 Ergon Energy Historic StreetLights | E53: 0
C54: HSL/SHP80 Ergon Energy Historic StreetLights | E54: 0
C55: HSL/INC60 Ergon Energy Historic StreetLights | E55: 0
C56: HSL/SHP60 Ergon Energy Historic StreetLights | E56: 0
C57: A806-2 Luminaire, 150W HPS Normal (Major Rd) | E57: 0
C58: SLS100CA Streetlight Luminaire | E58: 0
C59: WB:WHG4 WB:WATCHMAN 400MV | E59: 0
C60: HSL/SLP125 Ergon Energy Historic StreetLights | E60: 0
C61: HSL/MVS250 Ergon Energy Historic StreetLights | E61: 0
C62: A816-7 Luminaire, 80W MV Nostalgia Type 2 (Blue/Grey) (Minor Rd) | E62: 0
C63: WB:0L02 WB:STR LIGHTS - MINOR RDS O/HEADSUPPLY 80W | E63: 0
C64: A817-3 Luminaire, 70W HPS Normal (Minor Rd) | E64: 0
C65: HSL/MH70 Ergon Energy Historic StreetLights | E65: 0
C66: HSL/SHP120 Ergon Energy Historic StreetLights | E66: 0
C67: HSL/SLP140 Ergon Energy Historic StreetLights | E67: 0
C68: A817-2 Luminaire, 80W MV Normal (Minor Rd) | E68: 0
C69: HSL/MVS400 Ergon Energy Historic StreetLights | E69: 0
C70: HSL/MV120 Ergon Energy Historic StreetLights | E70: 0
C71: SLN1M50D Streetlight Luminaire, MinorRoad | E71: 0
C72: HSL/MH400 Ergon Energy Historic StreetLights | E72: 0
C73: A806-7 Luminaire, 250W HPS Aeroscreen (Major Rd) | E73: 0
C74: SLWPB/MA41OW New Legacy Construction -mapped from MK:250W HPS AERO C/W 3UP | E74: 0
C75: SLWPB/MI1OW New Legacy Construction -mapped from MK:70W HPS AERO C/W 0.15UP | E75: 0
C76: A817-6 Luminaire, 80W MV | E76: 0
C77: SLN2M80D Streetlight Luminaire, MinorRoad | E77: 0
C78: HSL/S360 Ergon Energy Historic StreetLights | E78: 0
C79: SLH250 Streetlight Luminaire, M/Halide250W Clear, Normal | E79: 0
C80: SLH150 Streetlight Luminaire, M/Halide150W Clear, Normal | E80: 0
C81: A817-1 Luminaire, 50W MV Normal (Minor Rd) | E81: 0
C82: SLH250A Streetlight Luminaire, M/Halide250W Clear, Aeroscreen | E82: 0
C83: SLPX/S400F/W Pedestrian Crossing, HPS400W Floodlight | E83: 0
C84: SL/H150 Streetlight Luminaire | E84: 0
C85: HSL/INC150 Ergon Energy Historic StreetLights | E85: 0
C86: LSLBWP3 HISTORICAL STREETLIGHT | E86: 0
C87: L400HPSPEDNB S400 PED XING LIGHT | E87: 0
C88: A816-2 Luminaire, 80W MV Nostalgia (Minor Rd) | E88: 0
C89: HSL/MV750 Ergon Energy Historic StreetLights | E89: 0
C90: SLN2S70D Streetlight Luminaire, MinorRoad | E90: 0
C91: HSL/SLP150 Ergon Energy Historic StreetLights | E91: 0
C92: LSLWPBMI1125 Streetlight- MinorRd, 125WMV | E92: 0
C93: HSL/INC400 Ergon Energy Historic StreetLights | E93: 0
C94: SLN1S70D Streetlight Luminaire, MinorRoad | E94: 0
C95: HSL/S70 Ergon Energy Historic StreetLights | E95: 0
C96: SL/H250 Streetlight Luminaire | E96: 0
C97: LSL250MVROAD LANTERN ASSEMBLY | E97: 0
C98: HSL/MH75 Ergon Energy Historic StreetLights | E98: 0
C99: SLH400A Streetlight Luminaire | E99: 0
C100: HSL/INC200 Ergon Energy Historic StreetLights | E100: 0
C101: SLPX/S250F/W Pedestrian Crossing, HPS250W Floodlight | E101: 0
C102: SLH150A Streetlight Luminaire, M/Halide | E102: 0
C103: HSL/SLP60 Ergon Energy Historic StreetLights | E103: 0
C104: HSL/INC200 Ergon Energy Historic StreetLights | E104: 0
C105: SLPX/S250F/W Pedestrian Crossing, HPS250W Floodlight | E105: 0
C106: SLH150A Streetlight Luminaire, M/Halide | E106: 0
C107: HSL/SLP60 Ergon Energy Historic StreetLights | E107: 0
C108: C1X26 | E108: 3
C109: C1x32 | E109: 39
C110: C2X24 | E110: 0
C111: F13 | E111: 1
C112: F18 | E112: 5
C113: F1X20 | E113: 4
C114: F1X40 | E114: 14
C115: F2X20 | E115: 12
C116: F2X40 | E116: 1
C117: F3X20 | E117: 3
C118: F3X40 | E118: 2
C119: F40 | E119: 1
C120: H100 | E120: 3
C121: H1000 | E121: 6
C122: H150 | E122: 21
C123: H1500 | E123: 2
C124: H250 | E124: 5
C125: H35 | E125: 6
C126: H400 | E126: 32
C127: H70 | E127: 34
C128: H75 | E128: 11
C129: I200 | E129: 3
C130: I400 | E130: 0
C131: L25 | E131: 187
C132: L60 | E132: 0
C133: L90 | E133: 18
C134: M100 | E134: 2
C135: M1000 | E135: 0
C136: M125 | E136: 2334
C137: M150 | E137: 24
C138: M250 | E138: 1755
C139: M400 | E139: 1698
C140: M50 | E140: 20942
C141: M500 | E141: 1
C142: M70 | E142: 26
C143: M700 | E143: 1
C144: M80 | E144: 35276
C145: S100 | E145: 438
C146: S1000 | E146: 16
C147: S125 | E147: 2
C148: S150 | E148: 9460
C149: S220 | E149: 1
C150: S250 | E150: 9409
C151: S310 | E151: 6
C152: S360 | E152: 8
C153: S400 | E153: 771
C154: S50 | E154: 71
C155: S70 | E155: 5394
C156: S80 | E156: 52
B214: 4.1.2 - DESCRIPTOR METRICS ANNUALLY
E217: VOLUMES & EXPENDITURE
B218: SERVICE/SERVICE QUALITY | C218: DESCRIPTOR METRIC | D218: UNITS | E218: =CRY -> 2016-17
B219: LIGHT INSTALLATION | C219: Major road light installation | D219: 0's | E219: 470
C220: Minor road light installation | D220: 0's | E220: 411
C221: Number of poles installed | D221: 0's | E221: 144
C222: Total cost | D222: $0s | E222: 2179402.98
B223: LIGHT REPLACEMENT | C223: Major road light replacement | D223: 0's | E223: 3131
C224: Minor road light replacement | D224: 0's | E224: 4013
C225: Number of poles replaced | D225: 0's | E225: 215
C226: Total cost | D226: $0s | E226: 3333992.724
B227: LIGHT MAINTENANCE | C227: Major road light maintenance | D227: 0's | E227: 42501
C228: Minor road light maintenance | D228: 0's | E228: 47955
C229: Number of poles installed | D229: 0's | E229: 24
C230: Total cost | D230: $0s | E230: 7677244.66
B231: QUALITY OF SUPPLY | C231: Mean days to rectify/replace public lighting assets | D231: days | E231: 8.47
C232: GSO breaches | D232: 0's | E232: 0
C233: GSL payments | D233: $0s | E233: 0
C234: Customer complaints | D234: 0's | E234: 93
B237: 4.1.3 - COST METRICS
E238: AVERAGE UNIT COST ($)
B239: ACTIVITY TYPE | C239: LIGHT TYPE | E239: =CRY -> 2016-17
B240: LIGHT INSTALLATION | C240: S100 | E240: 1729.98
C241: S150 | E241: 2130.75
C242: S250 | E242: 2427.1
C243: S400 | E243: 3610.26
C244: M250 | E244: 0
C245: M400 | E245: 0
C246: MH150 | E246: 0
C247: MH250 | E247: 0
C248: MH400 | E248: 0
C249: LPS70 | E249: 1157.09
C250: LPS90 | E250: 0
C251: M125 | E251: 0
C252: M50 | E252: 802.99
C253: M80 | E253: 886.34
C254: F32 | E254: 1916.2
C255: L22 | E255: 1362.49
C256: H35 | E256: 0
C257: H70 | E257: 1674.35
B340: LIGHT REPLACEMENT | C340: S100 | E340: 427.5
C341: S150 | E341: 674.1
C342: S250 | E342: 815.61
C343: S400 | E343: 1378.79
C344: M250 | E344: 0
C345: M400 | E345: 0
C346: MH150 | E346: 0
... 33 more rows

Sheet 4.2 Metering
B1: REGULATORY REPORTING STATEMENT
B2: =INDEX(dms_TradingNameFull_List,MATCH(dms_TradingName,dms_TradingName_List)) -> Ergon Energy
B3: =CONCATENATE((LOOKUP(dms_Model,dms_Model_List,dms_Worksheet_List))&" "&CRY) -> CATEGORY ANALYSIS 2016-17
B4: 4.2 METERING
B6: There are TWO tables on this worksheet. Each has been grouped for ease of navigation. See the Instructions sheet on how to group or ungroup tables.
B8: 4.2.1 - METERING DESCRIPTOR METRIC
D9: VOLUMES (0's)
B10: ASSET CATEGORY | C10: ASSET SUBCATEGORY | D10: =CRY -> 2016-17
B11: Meter Type 4 | C11: Single phase meter population
C12: Multi phase meter population
C13: Current transformer connected meter population
C14: Direct connect meter population
B15: Meter Type 5 | C15: Single phase meter population
C16: Multi phase meter population
C17: Current transformer connected meter population
C18: Direct connect meter population
B19: Meter Type 6 | C19: Single phase meter population | D19: 1107005
C20: Multi phase meter population | D20: 75335
C21: Current transformer connected meter population | D21: 9102
C22: Direct connect meter population | D22: 1173238
B25: 4.2.2 - COST METRICS
D26: VOLUMES (0's) | E26: EXPENDITURE ($0's)
B27: SERVICE SUBCATEGORY | C27: METER TYPE | D27: =CRY -> 2016-17 | E27: =CRY -> 2016-17
B28: Meter purchase | C28: Meter Type 4 | D28: 0 | E28: 0
C29: Meter Type 5 | D29: 0 | E29: 0
C30: Meter Type 6 | D30: 60098 | E30: 7105653.81
B31: Meter testing | C31: Meter Type 4 | D31: 0 | E31: 0
C32: Meter Type 5 | D32: 0 | E32: 0
C33: Meter Type 6 | D33: 2887 | E33: 1889796.8
B34: Meter investigation | C34: Meter Type 4 | D34: 0 | E34: 0
C35: Meter Type 5 | D35: 0 | E35: 0
C36: Meter Type 6 | D36: 17725 | E36: 1378036.37
B37: Scheduled meter reading | C37: Meter Type 4 | D37: 0 | E37: 0
C38: Meter Type 5 | D38: 0 | E38: 0
C39: Meter Type 6 | D39: 3131585 | E39: 8640169.16
B40: Special meter reading | C40: Meter Type 4 | D40: 0 | E40: 0
C41: Meter Type 5 | D41: 0 | E41: 0
C42: Meter Type 6 | D42: 4489 | E42: 175385.35
B43: New meter installation | C43: Meter Type 4 | D43: 0 | E43: 0
C44: Meter Type 5 | D44: 0 | E44: 0
C45: Meter Type 6 | D45: 7517 | E45: 1983950.45
B46: Meter replacement | C46: Meter Type 4 | D46: 0 | E46: 0
C47: Meter Type 5 | D47: 0 | E47: 0
C48: Meter Type 6 | D48: 21326 | E48: 5931413.98
B49: Meter maintenance | C49: Meter Type 4 | D49: 0 | E49: 0
C50: Meter Type 5 | D50: 0 | E50: 0
C51: Meter Type 6 | D51: 4125 | E51: 1775715.44
B52: Remote meter reading | C52: Meter Type 4 | D52: 0 | E52: 0
B53: Remote meter re-configuration | C53: Meter Type 4 | D53: 0 | E53: 0
B54: Other metering | C54: Meter Type 4 | E54: 0
C55: Meter Type 5 | E55: 0
C56: Meter Type 6 | E56: 26087114.28
C57: Meter Type 7 | E57: 0
B58: IT infrastructure capex | C58: Meter Type 4 | E58: 0
B59: IT infrastructure opex | C59: Meter Type 4 | E59: 0
B60: Communications infrastructure capex | C60: Meter Type 4 | E60: 0
B61: Communications infrastructure opex | C61: Meter Type 4 | E61: 0

Sheet 4.3 Fee-based services
B1: REGULATORY REPORTING STATEMENT
B2: =INDEX(dms_TradingNameFull_List,MATCH(dms_TradingName,dms_TradingName_List)) -> Ergon Energy
B3: =CONCATENATE((LOOKUP(dms_Model,dms_Model_List,dms_Worksheet_List))&" "&CRY) -> CATEGORY ANALYSIS 2016-17
B4: 4.3 ANCILLARY SERVICES - FEE BASED SERVICES
B6: 4.3.1 - COST METRICS FOR FEE-BASED SERVICES
D7: EXPENDITURE ($0's) | F7: VOLUMES (0's)
B8: SERVICE | C8: SERVICE SUBCATEGORY | D8: =CRY -> 2016-17 | F8: =CRY -> 2016-17
B9: Common Fee-Based Services | C9: Energisation | D9: 0 | E9: ED_FEE431_00001 | F9: 0
C10: De-energisation | D10: 939258 | E10: ED_FEE431_00002 | F10: 20994
C11: Re-energisation | D11: 866473 | E11: ED_FEE431_00003 | F11: 15351
B12: Miscellaneous Fee-Based Services | C12: SUBDIVISION FEES | D12: 0 | E12: ED_FEE431_00004 | F12: 0
C13: PROJECT FEES | D13: 0 | E13: ED_FEE431_00005 | F13: 0
C14: RE-TEST AT CUSTOMER'S INSTALLATION DURING BUSINESS HOURS | D14: 0 | E14: ED_FEE431_00006 | F14: 0
C15: SUPPLY ABOLISHMENT DURING BUSINESS HOURS | D15: 295028 | E15: ED_FEE431_00007 | F15: 1095
C16: TEMPORARY BUILDERS SUPPLY, NOT IN PERMANENT POSITION - SINGLE PHASE METERED - BUSINESS HOURS | D16: 116658 | E16: ED_FEE431_00008 | F16: 0
C17: TEMPORARY BUILDERS SUPPLY, NOT IN PERMANENT POSITION - MULTI PHASE METERED - BUSINESS HOURS | D17: 2468 | E17: ED_FEE431_00009 | F17: 0
C18: RESTORATION OF SUPPLY REQUIRED DUE TO CUSTOMER ACTION, DURING BUSINESS HOURS | D18: 0 | E18: ED_FEE431_00010 | F18: 0
C19: WASTED TRUCK VISIT - ONE PERSON CREW | D19: 0 | E19: ED_FEE431_00011 | F19: 0
C20: WASTED TRUCK VISIT - TWO PERSON CREW | D20: 0 | E20: ED_FEE431_00012 | F20: 0
C21: Application fee - Basic or standard connection | D21: 0 | E21: ED_FEE431_00013 | F21: 0
C22: Call out fee for supply abolishment during business | D22: 0 | E22: ED_FEE431_00014 | F22: 0
C23: Call out fee for temporary connection, not in permanent position | D23: 112 | E23: ED_FEE431_00015 | F23: 0
C24: Prevented access - one person crew | D24: 52 | E24: ED_FEE431_00016 | F24: 0
C25: Prevented access - two person crew | D25: 0 | E25: ED_FEE431_00017 | F25: 0
C26: Supply abolishment during business | D26: 0 | E26: ED_FEE431_00018 | F26: 0
C27: Temporary connection, not in permanent position | D27: 0 | E27: ED_FEE431_00019 | F27: 294
C28: Large Cust Connection - Fee for Service | D28: 1441 | E28: ED_FEE431_00020 | F28: 3
C29: Accredit alter.serv providers - Real Est | D29: 0 | E29: ED_FEE431_00021 | F29: 0
C30: No Charge Product Code | D30: 0 | E30: ED_FEE431_00022 | F30: 0
E31: ED_FEE431_00023
E32: ED_FEE431_00024
E33: ED_FEE431_00025
E34: ED_FEE431_00026
E35: ED_FEE431_00027
E36: ED_FEE431_00028
E37: ED_FEE431_00029
E38: ED_FEE431_00030
E39: ED_FEE431_00031
E40: ED_FEE431_00032
E41: ED_FEE431_00033
E42: ED_FEE431_00034
E43: ED_FEE431_00035
E44: ED_FEE431_00036
E45: ED_FEE431_00037
E46: ED_FEE431_00038
E47: ED_FEE431_00039
E48: ED_FEE431_00040
E49: ED_FEE431_00041
E50: ED_FEE431_00042
E51: ED_FEE431_00043
E52: ED_FEE431_00044
E53: ED_FEE431_00045
E54: ED_FEE431_00046
E55: ED_FEE431_00047
E56: ED_FEE431_00048
E57: ED_FEE431_00049
E58: ED_FEE431_00050
E59: ED_FEE431_00051
E60: ED_FEE431_00052
E61: ED_FEE431_00053
E62: ED_FEE431_00054
E63: ED_FEE431_00055
E64: ED_FEE431_00056
E65: ED_FEE431_00057
E66: ED_FEE431_00058
E67: ED_FEE431_00059
E68: ED_FEE431_00060
E69: ED_FEE431_00061
E70: ED_FEE431_00062
E71: ED_FEE431_00063
E72: ED_FEE431_00064
E73: ED_FEE431_00065
E74: ED_FEE431_00066
E75: ED_FEE431_00067
E76: ED_FEE431_00068
E77: ED_FEE431_00069
E78: ED_FEE431_00070
E79: ED_FEE431_00071
E80: ED_FEE431_00072
E81: ED_FEE431_00073
E82: ED_FEE431_00074
E83: ED_FEE431_00075
E84: ED_FEE431_00076
E85: ED_FEE431_00077
E86: ED_FEE431_00078
E87: ED_FEE431_00079
E88: ED_FEE431_00080
E89: ED_FEE431_00081
E90: ED_FEE431_00082
E91: ED_FEE431_00083
E92: ED_FEE431_00084
E93: ED_FEE431_00085
E94: ED_FEE431_00086
E95: ED_FEE431_00087
E96: ED_FEE431_00088
E97: ED_FEE431_00089
E98: ED_FEE431_00090
E99: ED_FEE431_00091
E100: ED_FEE431_00092
E101: ED_FEE431_00093
E102: ED_FEE431_00094
E103: ED_FEE431_00095
E104: ED_FEE431_00096
E105: ED_FEE431_00097
E106: ED_FEE431_00098
E107: ED_FEE431_00099
E108: ED_FEE431_00100
E109: ED_FEE431_00101
E110: ED_FEE431_00102
E111: ED_FEE431_00103
E112: ED_FEE431_00104
E113: ED_FEE431_00105
E114: ED_FEE431_00106
E115: ED_FEE431_00107
E116: ED_FEE431_00108
E117: ED_FEE431_00109
E118: ED_FEE431_00110
E119: ED_FEE431_00111
E120: ED_FEE431_00112
E121: ED_FEE431_00113
E122: ED_FEE431_00114
E123: ED_FEE431_00115
E124: ED_FEE431_00116
E125: ED_FEE431_00117
E126: ED_FEE431_00118
E127: ED_FEE431_00119
E128: ED_FEE431_00120
E129: ED_FEE431_00121
E130: ED_FEE431_00122
E131: ED_FEE431_00123
E132: ED_FEE431_00124
E133: ED_FEE431_00125
E134: ED_FEE431_00126
E135: ED_FEE431_00127
E136: ED_FEE431_00128
E137: ED_FEE431_00129
E138: ED_FEE431_00130
E139: ED_FEE431_00131
E140: ED_FEE431_00132
E141: ED_FEE431_00133
E142: ED_FEE431_00134
E143: ED_FEE431_00135
E144: ED_FEE431_00136
E145: ED_FEE431_00137
E146: ED_FEE431_00138
E147: ED_FEE431_00139
E148: ED_FEE431_00140
E149: ED_FEE431_00141
E150: ED_FEE431_00142
E151: ED_FEE431_00143
E152: ED_FEE431_00144
E153: ED_FEE431_00145
E154: ED_FEE431_00146
E155: ED_FEE431_00147
E156: ED_FEE431_00148
E157: ED_FEE431_00149
E158: ED_FEE431_00150
E159: ED_FEE431_00151
E160: ED_FEE431_00152
E161: ED_FEE431_00153
E162: ED_FEE431_00154
E163: ED_FEE431_00155
E164: ED_FEE431_00156
E165: ED_FEE431_00157
E166: ED_FEE431_00158
E167: ED_FEE431_00159
E168: ED_FEE431_00160
E169: ED_FEE431_00161
E170: ED_FEE431_00162
E171: ED_FEE431_00163
E172: ED_FEE431_00164
E173: ED_FEE431_00165
E174: ED_FEE431_00166
E175: ED_FEE431_00167
E176: ED_FEE431_00168
E177: ED_FEE431_00169
E178: ED_FEE431_00170
E179: ED_FEE431_00171
E180: ED_FEE431_00172
E181: ED_FEE431_00173
E182: ED_FEE431_00174
E183: ED_FEE431_00175
E184: ED_FEE431_00176
E185: ED_FEE431_00177
E186: ED_FEE431_00178
E187: ED_FEE431_00179
E188: ED_FEE431_00180
E189: ED_FEE431_00181
E190: ED_FEE431_00182
E191: ED_FEE431_00183
E192: ED_FEE431_00184
E193: ED_FEE431_00185
E194: ED_FEE431_00186
E195: ED_FEE431_00187
E196: ED_FEE431_00188
E197: ED_FEE431_00189
E198: ED_FEE431_00190
E199: ED_FEE431_00191
E200: ED_FEE431_00192
E201: ED_FEE431_00193
... 278 more rows

Sheet 4.4 Quoted services
B1: REGULATORY REPORTING STATEMENT
B2: =INDEX(dms_TradingNameFull_List,MATCH(dms_TradingName,dms_TradingName_List)) -> Ergon Energy
B3: =CONCATENATE((LOOKUP(dms_Model,dms_Model_List,dms_Worksheet_List))&" "&CRY) -> CATEGORY ANALYSIS 2016-17
B4: 4.4 ANCILLARY SERVICES - QUOTED SERVICES
B6: 4.4.1 - COST METRICS FOR QUOTED SERVICES
D7: EXPENDITURE ($0's) | F7: VOLUMES (0's)
B8: SERVICE | C8: SERVICE SUBCATEGORY | D8: =CRY -> 2016-17 | F8: =CRY -> 2016-17
B9: Quoted Services | C9: REMOVAL / RELOCATION OF ERGON ENERGY ASSETS AT CUSTOMER REQUEST | D9: 0 | E9: ED_QUO441_00001 | F9: 0
C10: MOVE POINT OF ATTACHEMENT DURING BUSINESS HOURS - SINGLE / MULTI PASE | D10: 0 | E10: ED_QUO441_00002 | F10: 0
C11: TIGER TAILS | D11: 105734 | E11: ED_QUO441_00003 | F11: 223
C12: PROVISION OF HISTORICAL METERING DATA | D12: 0 | E12: ED_QUO441_00004 | F12: 0
C13: PROVISION OF METERING DATA ABOVE MINIMUM REQUIREMENTS | D13: 0 | E13: ED_QUO441_00005 | F13: 0
C14: METER TEST | D14: 105088 | E14: ED_QUO441_00006 | F14: 242
C15: CHANGE TARIFF | D15: 150639 | E15: ED_QUO441_00007 | F15: 920
C16: CHANGE TIME SWITCH | D16: 0 | E16: ED_QUO441_00008 | F16: 0
C17: REMOVAL OF A METER | D17: 0 | E17: ED_QUO441_00009 | F17: 165
C18: REMOVAL OF LOAD CONTROL DEVICE | D18: 40233 | E18: ED_QUO441_00010 | F18: 1668
C19: SPECIAL METER READ | D19: 3682316 | E19: ED_QUO441_00011 | F19: 93586
C20: REPROGRAM CARD METERS | D20: 0 | E20: ED_QUO441_00012 | F20: 0
C21: EXCHANGE METER (TYPE 5-7) | D21: 0 | E21: ED_QUO441_00013 | F21: 0
C22: MOVE THE METER (TYPE 5-7) | D22: 0 | E22: ED_QUO441_00014 | F22: 0
C23: PROVISION OF CONNECTION SERVICES ABOVE MINIMUM REQUIREMENTS | D23: 0 | E23: ED_QUO441_00015 | F23: 0
C24: OVERHEAD SERVICE UPGRADE - NO CHANGE TO LOAD | D24: 0 | E24: ED_QUO441_00016 | F24: 0
C25: UNDERGROUND SERVICE UPGRADE | D25: 0 | E25: ED_QUO441_00017 | F25: 0
C26: PROVISION, INSTALLATION AND MAINTENANCE OF METERS ABOVE MINIMUM REQUIREMENTS | D26: 0 | E26: ED_QUO441_00018 | F26: 0
C27: PREPAYMENT METERS AT CUSTOMER REQUEST | D27: 0 | E27: ED_QUO441_00019 | F27: 0
C28: TEMPORARY DE-ENERGISATION SINGLE VISIT DURING BUSINESS HOURS - NO DISMANTLING | D28: 0 | E28: ED_QUO441_00020 | F28: 0
C29: DE-ENERGISATION AFTER HOURS | D29: 0 | E29: ED_QUO441_00021 | F29: 0
C30: RE-ENERGISATION AFTER HOURS | D30: 0 | E30: ED_QUO441_00022 | F30: 0
C31: RESTORATION OF SUPPLY REQUIRED DUE TO CUSTOMER ACTION - AFTER HOURS | D31: 0 | E31: ED_QUO441_00023 | F31: 0
C32: EMERGENCEY RECOVERABLE WORKS | D32: 0 | E32: ED_QUO441_00024 | F32: 0
C33: SUBDIVISION FEES | D33: 0 | E33: ED_QUO441_00025 | F33: 0
C34: PROJECT FEES | D34: 500 | E34: ED_QUO441_00026 | F34: 0
C35: HIGH LOAD ESCORTS | D35: 0 | E35: ED_QUO441_00027 | F35: 0
C36: RECTIFICATION OF ILLEGAL CONNECTIONS | D36: 1414459 | E36: ED_QUO441_00028 | F36: 23
C37: CONVERSION OF AERIAL BUNDLED CABLES | D37: 0 | E37: ED_QUO441_00029 | F37: 0
C38: PROVISION OF SERVICE DURING BUSINESS / AFTER HOURS REQUIRING ONE / TWO PERSON CREW | D38: 0 | E38: ED_QUO441_00030 | F38: 0
C39: LARGE CUSTOMER CONECTIONS | D39: 8173438 | E39: ED_QUO441_00031 | F39: 60
C40: OTHER RECOVERABLE WORKS | D40: 0 | E40: ED_QUO441_00032 | F40: 0
C41: ERECTION OF EXTRA POLES (ONLY ON A CUSTOMERS INSTALLATION | D41: 0 | E41: ED_QUO441_00033 | F41: 0
C42: Application fee - Negotiated - Major customer connection | D42: 387755 | E42: ED_QUO441_00034 | F42: 40
C43: Application fee - Negotiated connection | D43: 374 | E43: ED_QUO441_00035 | F43: 0
C44: Assessment of parallel generator applications | D44: 125088 | E44: ED_QUO441_00036 | F44: 263
C45: Carrying out planning studies and analysis relating to connection applications | D45: 0 | E45: ED_QUO441_00037 | F45: 0
C46: Change load control relay channel | D46: 74632 | E46: ED_QUO441_00038 | F46: 361
C47: Change tariff | D47: 0 | E47: ED_QUO441_00039 | F47: 0
C48: Change time switch | D48: 11859 | E48: ED_QUO441_00040 | F48: 1
C49: Commissioning and energisation of major customer connections | D49: 49 | E49: ED_QUO441_00041 | F49: 1
C50: Customer build, own and operate consultation services | D50: 25484 | E50: ED_QUO441_00042 | F50: 2
C51: Customer requested appointments | D51: 72108 | E51: ED_QUO441_00043 | F51: 51
C52: Design and construction of connection assets for major customers | D52: 0 | E52: ED_QUO441_00044 | F52: 0
C53: Detailed enquiry response fee - EGs 5MW & above | D53: 1046642 | E53: ED_QUO441_00045 | F53: 38
C54: Exchange meter | D54: 128625 | E54: ED_QUO441_00046 | F54: 3
C55: Feasibility and concept scoping, including planning and design, for major customer connections | D55: 1009750 | E55: ED_QUO441_00047 | F55: 39
C56: Install additional metering | D56: 3099466 | E56: ED_QUO441_00048 | F56: 14529
C57: Install metering related load control | D57: 255914 | E57: ED_QUO441_00049 | F57: 1332
C58: Meter inspection and investigation on request | D58: 56254 | E58: ED_QUO441_00050 | F58: 242
C59: Meter re-seal | D59: 643652 | E59: ED_QUO441_00051 | F59: 11093
C60: Metering alteration | D60: 1444211 | E60: ED_QUO441_00052 | F60: 1987
C61: Move point of attachment | D61: 848177 | E61: ED_QUO441_00053 | F61: 1758
C62: Non-standard network data requests | D62: 38037 | E62: ED_QUO441_00054 | F62: 262
C63: Preparation of preliminary designs and planning reports for major customer connections, including project scopes and estimates | D63: 133140 | E63: ED_QUO441_00055 | F63: 21
C64: Protection and Power Quality assessment after connection | D64: 0 | E64: ED_QUO441_00056 | F64: 0
C65: Provision of services for approved unmetered supplies | D65: 280822 | E65: ED_QUO441_00057 | F65: 861
C66: Provision of site-specific connection information and advice for small or major customer connections | D66: 245841 | E66: ED_QUO441_00058 | F66: 175
C67: Re-arrange connection assets at customer's request | D67: 783 | E67: ED_QUO441_00059 | F67: 0
C68: Removal of a meter (Type 5 & 6) | D68: 33978 | E68: ED_QUO441_00060 | F68: 0
C69: Removal/rearrangement of network assets | D69: 16551116 | E69: ED_QUO441_00061 | F69: 1239
C70: Removal/rearrangement of public lighting assets | D70: 1088395 | E70: ED_QUO441_00062 | F70: 314
C71: Service line drop and replace | D71: 139933 | E71: ED_QUO441_00063 | F71: 413
C72: Supply enhancement | D72: 385779 | E72: ED_QUO441_00064 | F72: 913
C73: Temporary de-energisation - no dismantling | D73: 0 | E73: ED_QUO441_00065 | F73: 0
C74: Type 5 to 7 non-standard metering services | D74: 3404 | E74: ED_QUO441_00066 | F74: 22
C75: Upgrade from overhead to underground service | D75: 0 | E75: ED_QUO441_00067 | F75: 0
C76: Witness testing | D76: 0 | E76: ED_QUO441_00068 | F76: 0
C77: Generic call out fee | D77: 11395 | E77: ED_QUO441_00069 | F77: 48
C78: Design and construction of connection assets Real Estate developments | D78: 14291050 | E78: ED_QUO441_00070 | F78: 473
C79: Aerial Markers | D79: 5680 | E79: ED_QUO441_00071 | F79: 3
C80: De-energisation | D80: 85358 | E80: ED_QUO441_00072 | F80: 331
C81: Meter Query | D81: 914354 | E81: ED_QUO441_00073 | F81: 14299
C82: Re-energisation | D82: 55596 | E82: ED_QUO441_00074 | F82: 386
E83: ED_QUO441_00075
E84: ED_QUO441_00076
E85: ED_QUO441_00077
E86: ED_QUO441_00078
E87: ED_QUO441_00079
E88: ED_QUO441_00080
E89: ED_QUO441_00081
E90: ED_QUO441_00082
E91: ED_QUO441_00083
E92: ED_QUO441_00084
E93: ED_QUO441_00085
E94: ED_QUO441_00086
E95: ED_QUO441_00087
E96: ED_QUO441_00088
E97: ED_QUO441_00089
E98: ED_QUO441_00090
E99: ED_QUO441_00091
E100: ED_QUO441_00092
E101: ED_QUO441_00093
E102: ED_QUO441_00094
E103: ED_QUO441_00095
E104: ED_QUO441_00096
E105: ED_QUO441_00097
E106: ED_QUO441_00098
E107: ED_QUO441_00099
E108: ED_QUO441_00100
E109: ED_QUO441_00101
E110: ED_QUO441_00102
E111: ED_QUO441_00103
E112: ED_QUO441_00104
E113: ED_QUO441_00105
E114: ED_QUO441_00106
E115: ED_QUO441_00107
E116: ED_QUO441_00108
E117: ED_QUO441_00109
E118: ED_QUO441_00110
E119: ED_QUO441_00111
E120: ED_QUO441_00112
E121: ED_QUO441_00113
E122: ED_QUO441_00114
E123: ED_QUO441_00115
E124: ED_QUO441_00116
E125: ED_QUO441_00117
E126: ED_QUO441_00118
E127: ED_QUO441_00119
E128: ED_QUO441_00120
E129: ED_QUO441_00121
E130: ED_QUO441_00122
E131: ED_QUO441_00123
E132: ED_QUO441_00124
E133: ED_QUO441_00125
E134: ED_QUO441_00126
E135: ED_QUO441_00127
E136: ED_QUO441_00128
E137: ED_QUO441_00129
E138: ED_QUO441_00130
E139: ED_QUO441_00131
E140: ED_QUO441_00132
E141: ED_QUO441_00133
E142: ED_QUO441_00134
E143: ED_QUO441_00135
E144: ED_QUO441_00136
E145: ED_QUO441_00137
E146: ED_QUO441_00138
E147: ED_QUO441_00139
E148: ED_QUO441_00140
E149: ED_QUO441_00141
E150: ED_QUO441_00142
E151: ED_QUO441_00143
E152: ED_QUO441_00144
E153: ED_QUO441_00145
E154: ED_QUO441_00146
E155: ED_QUO441_00147
E156: ED_QUO441_00148
E157: ED_QUO441_00149
E158: ED_QUO441_00150
E159: ED_QUO441_00151
E160: ED_QUO441_00152
E161: ED_QUO441_00153
E162: ED_QUO441_00154
E163: ED_QUO441_00155
E164: ED_QUO441_00156
E165: ED_QUO441_00157
E166: ED_QUO441_00158
E167: ED_QUO441_00159
E168: ED_QUO441_00160
E169: ED_QUO441_00161
E170: ED_QUO441_00162
E171: ED_QUO441_00163
E172: ED_QUO441_00164
E173: ED_QUO441_00165
E174: ED_QUO441_00166
E175: ED_QUO441_00167
E176: ED_QUO441_00168
E177: ED_QUO441_00169
E178: ED_QUO441_00170
E179: ED_QUO441_00171
E180: ED_QUO441_00172
E181: ED_QUO441_00173
E182: ED_QUO441_00174
E183: ED_QUO441_00175
E184: ED_QUO441_00176
E185: ED_QUO441_00177
E186: ED_QUO441_00178
E187: ED_QUO441_00179
E188: ED_QUO441_00180
E189: ED_QUO441_00181
E190: ED_QUO441_00182
E191: ED_QUO441_00183
E192: ED_QUO441_00184
E193: ED_QUO441_00185
E194: ED_QUO441_00186
E195: ED_QUO441_00187
E196: ED_QUO441_00188
E197: ED_QUO441_00189
E198: ED_QUO441_00190
E199: ED_QUO441_00191
E200: ED_QUO441_00192
E201: ED_QUO441_00193
... 280 more rows

Sheet 5.2 Asset Age Profile
B1: REGULATORY REPORTING STATEMENT
B2: Ergon Energy
B3: CATEGORY ANALYSIS 2016-17
B4: 5.2 ASSET AGE PROFILE
B6: There is ONE table on this worksheet. Both the ROWS and COLUMNS have been 'grouped' for easy navigation. See the Instructions sheet on how to group or ungroup data.
B8: 5.2.1 - ASSET AGE PROFILE
D9: ECONOMIC LIFE (YEARS) | F9: INSTALLED ASSETS -˃ QUANTITY CURRENTLY IN COMMISSION BY YEAR | G9: INSTALLED ASSETS -˃ QUANTITY CURRENTLY IN COMMISSION BY YEAR
B10: ASSET GROUP | C10: ASSET CATEGORY | D10: MEAN | E10: STANDARD DEVIATION | F10: 2016-17 | G10: 2015-16 | H10: 2014-15 | I10: 2013-14 | J10: 2012-13 | K10: 2011-12 | L10: 2010-11 | M10: 2009-10 | N10: 2008-09 | O10: 2007-08 | P10: 2006-07 | Q10: 2005-06 | R10: 2004-05 | S10: 2003-04 | T10: 2002-03 | U10: 2001-02 | V10: 2000-01 | W10: 1999-00 | X10: 1998-99 | Y10: 1997-98 | Z10: 1996-97 | AA10: 1995-96 | AB10: 1994-95 | AC10: 1993-94 | AD10: 1992-93 | AE10: 1991-92 | AF10: 1990-91 | AG10: 1989-90 | AH10: 1988-89 | AI10: 1987-88 | AJ10: 1986-87 | AK10: 1985-86 | AL10: 1984-85 | AM10: 1983-84 | AN10: 1982-83 | AO10: 1981-82 | AP10: 1980-81 | AQ10: 1979-80 | AR10: 1978-79 | AS10: 1977-78 | AT10: 1976-77 | AU10: 1975-76 | AV10: 1974-75 | AW10: 1973-74 | AX10: 1972-73 | AY10: 1971-72 | AZ10: 1970-71 | BA10: 1969-70 | BB10: 1968-69 | BC10: 1967-68 | BD10: 1966-67 | BE10: 1965-66 | BF10: 1964-65 | BG10: 1963-64 | BH10: 1962-63 | BI10: 1961-62 | BJ10: 1960-61 | BK10: 1959-60 | BL10: 1958-59 | BM10: 1957-58 | BN10: 1956-57 | BO10: 1955-56 | BP10: 1954-55 | BQ10: 1953-54 | BR10: 1952-53 | BS10: 1951-52 | BT10: 1950-51 | BU10: 1949-50 | BV10: 1948-49 | BW10: 1947-48 | BX10: 1946-47 | BY10: 1945-46 | BZ10: 1944-45 | CA10: 1943-44 | CB10: 1942-43 | CC10: 1941-42 | CD10: 1940-41 | CE10: 1939-40 | CF10: 1938-39 | CG10: 1937-38 | CH10: 1936-37 | CI10: 1935-36 | CJ10: 1934-35 | CK10: 1933-34 | CL10: 1932-33 | CM10: 1931-32 | CN10: 1930-31 | CO10: 1929-30 | CP10: 1928-29 | CQ10: 1927-28 | CR10: 1926-27 | CS10: 1925-26 | CT10: 1924-25 | CU10: 1923-24 | CV10: 1922-23 | CW10: 1921-22 | CX10: 1920-21 | CY10: 1919-20 | CZ10: 1918-19 | DA10: 1917-18 | DB10: 1916-17 | DC10: 1915-16 | DD10: 1914-15 | DE10: 1913-14 | DF10: 1912-13 | DG10: 1911-12 | DH10: 1910-11 | DI10: 1909-10
B11: POLES BY: HIGHEST OPERATING VOLTAGE ; MATERIAL TYPE; STAKING (IF WOOD) | C11: Staking of a wooden pole | D11: 15.98534568 | E11: 3.99816779 | F11: 1461 | G11: 1873 | H11: 1332 | I11: 2428 | J11: 4000 | K11: 2595 | L11: 2595 | M11: 2840 | N11: 2768 | O11: 2616 | P11: 2547 | Q11: 4195 | R11: 2500 | S11: 2000 | T11: 1700 | U11: 1500 | V11: 1500 | W11: 1500 | X11: 1500 | Y11: 800 | Z11: 800 | AA11: 800 | AB11: 800 | AC11: 800 | AD11: 800 | AE11: 400 | AF11: 400 | AG11: 400 | AH11: 200 | AI11: 100 | AJ11: 100 | AK11: 100 | AL11: 0 | AM11: 0 | AN11: 0 | AO11: 0 | AP11: 0 | AQ11: 0 | AR11: 0 | AS11: 0 | AT11: 0 | AU11: 0 | AV11: 0 | AW11: 0 | AX11: 0 | AY11: 0 | AZ11: 0 | BA11: 0 | BB11: 0 | BC11: 0 | BD11: 0 | BE11: 0 | BF11: 0 | BG11: 0 | BH11: 0 | BI11: 0 | BJ11: 0 | BK11: 0 | BL11: 0 | BM11: 0 | BN11: 0 | BO11: 0 | BP11: 0 | BQ11: 0 | BR11: 0 | BS11: 0 | BT11: 0 | BU11: 0 | BV11: 0 | BW11: 0 | BX11: 0 | BY11: 0 | BZ11: 0 | CA11: 0 | CB11: 0 | CC11: 0 | CD11: 0 | CE11: 0 | CF11: 0 | CG11: 0 | CH11: 0 | CI11: 0 | CJ11: 0 | CK11: 0 | CL11: 0 | CM11: 0 | CN11: 0 | CO11: 0 | CP11: 0 | CQ11: 0 | CR11: 0 | CS11: 0 | CT11: 0 | CU11: 0 | CV11: 0 | CW11: 0 | CX11: 0 | CY11: 0 | CZ11: 0 | DA11: 0 | DB11: 0 | DC11: 0 | DD11: 0 | DE11: 0 | DF11: 0 | DG11: 0 | DH11: 0 | DI11: 0
C12: ˂ = 1 kV; Wood | D12: 66.87868921 | E12: 8.177939179 | F12: 173 | G12: 742 | H12: 1631 | I12: 2320 | J12: 2027 | K12: 2521 | L12: 1804 | M12: 2176 | N12: 2068 | O12: 2241 | P12: 4504 | Q12: 4634 | R12: 5476 | S12: 5381 | T12: 4645 | U12: 4693 | V12: 4302 | W12: 4194 | X12: 3741 | Y12: 4193 | Z12: 4249 | AA12: 4653 | AB12: 5547 | AC12: 5151 | AD12: 5029 | AE12: 5524 | AF12: 4975 | AG12: 4822 | AH12: 4699 | AI12: 3600 | AJ12: 3212 | AK12: 4559 | AL12: 5220 | AM12: 4959 | AN12: 4350 | AO12: 5817 | AP12: 4869 | AQ12: 4430 | AR12: 3329 | AS12: 4094 | AT12: 4123 | AU12: 4174 | AV12: 3926 | AW12: 4065 | AX12: 3224 | AY12: 3371 | AZ12: 3405 | BA12: 3937 | BB12: 3201 | BC12: 2767 | BD12: 2136 | BE12: 2196 | BF12: 2046 | BG12: 1768 | BH12: 2808 | BI12: 1633 | BJ12: 1646 | BK12: 1630 | BL12: 1596 | BM12: 1586 | BN12: 1597 | BO12: 1608 | BP12: 1591 | BQ12: 1549 | BR12: 1557 | BS12: 1537 | BT12: 1549 | BU12: 1589 | BV12: 1 | BW12: 0 | BX12: 1 | BY12: 0 | BZ12: 0 | CA12: 0 | CB12: 0 | CC12: 0 | CD12: 0 | CE12: 0 | CF12: 0 | CG12: 0 | CH12: 0 | CI12: 0 | CJ12: 0 | CK12: 0 | CL12: 0 | CM12: 0 | CN12: 0 | CO12: 0 | CP12: 0 | CQ12: 0 | CR12: 0 | CS12: 0 | CT12: 0 | CU12: 0 | CV12: 0 | CW12: 0 | CX12: 0 | CY12: 0 | CZ12: 0 | DA12: 0 | DB12: 0 | DC12: 0 | DD12: 0 | DE12: 0 | DF12: 0 | DG12: 0 | DH12: 0 | DI12: 0
C13: > 1 kV & < = 11 kV; Wood | D13: 70.76560792 | E13: 8.412229664 | F13: 207 | G13: 1276 | H13: 3249 | I13: 4490 | J13: 4458 | K13: 4979 | L13: 3973 | M13: 3427 | N13: 3949 | O13: 5306 | P13: 7513 | Q13: 6360 | R13: 5748 | S13: 5342 | T13: 4279 | U13: 4447 | V13: 4086 | W13: 4348 | X13: 3912 | Y13: 4503 | Z13: 4845 | AA13: 5265 | AB13: 6865 | AC13: 5611 | AD13: 5121 | AE13: 5405 | AF13: 5060 | AG13: 4806 | AH13: 4234 | AI13: 3012 | AJ13: 3909 | AK13: 4885 | AL13: 5911 | AM13: 5938 | AN13: 4924 | AO13: 7171 | AP13: 5769 | AQ13: 5709 | AR13: 3671 | AS13: 4239 | AT13: 4130 | AU13: 3874 | AV13: 3397 | AW13: 3872 | AX13: 2398 | AY13: 3025 | AZ13: 3459 | BA13: 4079 | BB13: 3681 | BC13: 3411 | BD13: 2875 | BE13: 2626 | BF13: 3183 | BG13: 3595 | BH13: 3896 | BI13: 2163 | BJ13: 2109 | BK13: 2183 | BL13: 2087 | BM13: 2107 | BN13: 2087 | BO13: 2084 | BP13: 2089 | BQ13: 2124 | BR13: 2134 | BS13: 2129 | BT13: 2140 | BU13: 2102 | BV13: 1 | BW13: 0 | BX13: 3 | BY13: 0 | BZ13: 0 | CA13: 0 | CB13: 0 | CC13: 0 | CD13: 0 | CE13: 0 | CF13: 0 | CG13: 0 | CH13: 0 | CI13: 0 | CJ13: 0 | CK13: 0 | CL13: 0 | CM13: 0 | CN13: 0 | CO13: 0 | CP13: 0 | CQ13: 0 | CR13: 0 | CS13: 0 | CT13: 0 | CU13: 0 | CV13: 0 | CW13: 0 | CX13: 0 | CY13: 0 | CZ13: 0 | DA13: 0 | DB13: 0 | DC13: 0 | DD13: 0 | DE13: 0 | DF13: 0 | DG13: 0 | DH13: 0 | DI13: 0
C14: ˃ 11 kV & < = 22 kV; Wood | D14: 59.35783018 | E14: 7.704403298 | F14: 249 | G14: 1037 | H14: 2294 | I14: 2813 | J14: 3233 | K14: 4342 | L14: 3582 | M14: 2562 | N14: 3655 | O14: 4049 | P14: 5259 | Q14: 5155 | R14: 6248 | S14: 5630 | T14: 5224 | U14: 6114 | V14: 5929 | W14: 5791 | X14: 5868 | Y14: 3756 | Z14: 3141 | AA14: 3328 | AB14: 3991 | AC14: 3826 | AD14: 3921 | AE14: 4095 | AF14: 5295 | AG14: 5874 | AH14: 8039 | AI14: 7025 | AJ14: 10016 | AK14: 13167 | AL14: 8576 | AM14: 9259 | AN14: 8715 | AO14: 12972 | AP14: 14013 | AQ14: 8502 | AR14: 3909 | AS14: 2625 | AT14: 4673 | AU14: 5038 | AV14: 9637 | AW14: 8729 | AX14: 3433 | AY14: 3775 | AZ14: 5279 | BA14: 6912 | BB14: 4817 | BC14: 4556 | BD14: 3662 | BE14: 4049 | BF14: 4236 | BG14: 3439 | BH14: 3220 | BI14: 1414 | BJ14: 1239 | BK14: 1040 | BL14: 1046 | BM14: 966 | BN14: 968 | BO14: 946 | BP14: 943 | BQ14: 938 | BR14: 944 | BS14: 972 | BT14: 967 | BU14: 961 | BV14: 0 | BW14: 0 | BX14: 0 | BY14: 0 | BZ14: 0 | CA14: 0 | CB14: 0 | CC14: 0 | CD14: 0 | CE14: 0 | CF14: 0 | CG14: 0 | CH14: 0 | CI14: 0 | CJ14: 0 | CK14: 0 | CL14: 0 | CM14: 0 | CN14: 0 | CO14: 0 | CP14: 0 | CQ14: 0 | CR14: 0 | CS14: 0 | CT14: 0 | CU14: 0 | CV14: 0 | CW14: 0 | CX14: 0 | CY14: 0 | CZ14: 0 | DA14: 0 | DB14: 0 | DC14: 0 | DD14: 0 | DE14: 0 | DF14: 0 | DG14: 0 | DH14: 0 | DI14: 0
C15: > 22 kV & < = 66 kV; Wood | D15: 66.31855447 | E15: 8.143620477 | F15: 55 | G15: 128 | H15: 416 | I15: 617 | J15: 754 | K15: 582 | L15: 641 | M15: 408 | N15: 399 | O15: 419 | P15: 850 | Q15: 801 | R15: 767 | S15: 756 | T15: 893 | U15: 1039 | V15: 1117 | W15: 1335 | X15: 829 | Y15: 876 | Z15: 681 | AA15: 494 | AB15: 696 | AC15: 894 | AD15: 566 | AE15: 751 | AF15: 884 | AG15: 893 | AH15: 629 | AI15: 639 | AJ15: 917 | AK15: 962 | AL15: 930 | AM15: 1528 | AN15: 1091 | AO15: 1593 | AP15: 960 | AQ15: 828 | AR15: 612 | AS15: 527 | AT15: 712 | AU15: 1059 | AV15: 918 | AW15: 563 | AX15: 1375 | AY15: 1183 | AZ15: 526 | BA15: 1393 | BB15: 1191 | BC15: 1939 | BD15: 2167 | BE15: 582 | BF15: 1846 | BG15: 1003 | BH15: 1642 | BI15: 259 | BJ15: 505 | BK15: 271 | BL15: 338 | BM15: 791 | BN15: 215 | BO15: 263 | BP15: 424 | BQ15: 356 | BR15: 625 | BS15: 358 | BT15: 274 | BU15: 475 | BV15: 45 | BW15: 61 | BX15: 38 | BY15: 0 | BZ15: 0 | CA15: 0 | CB15: 0 | CC15: 0 | CD15: 0 | CE15: 0 | CF15: 0 | CG15: 0 | CH15: 0 | CI15: 0 | CJ15: 0 | CK15: 0 | CL15: 0 | CM15: 0 | CN15: 0 | CO15: 0 | CP15: 0 | CQ15: 0 | CR15: 0 | CS15: 0 | CT15: 0 | CU15: 0 | CV15: 0 | CW15: 0 | CX15: 0 | CY15: 0 | CZ15: 0 | DA15: 0 | DB15: 0 | DC15: 0 | DD15: 0 | DE15: 0 | DF15: 0 | DG15: 0 | DH15: 0 | DI15: 0
C16: > 66 kV & < = 132 kV; Wood | D16: 66.31855447 | E16: 8.143620477 | F16: 1 | G16: 0 | H16: 2 | I16: 20 | J16: 1 | K16: 1 | L16: 2 | M16: 36 | N16: 15 | O16: 15 | P16: 34 | Q16: 21 | R16: 7 | S16: 4 | T16: 16 | U16: 101 | V16: 36 | W16: 7 | X16: 8 | Y16: 3 | Z16: 6 | AA16: 3 | AB16: 4 | AC16: 3 | AD16: 136 | AE16: 9 | AF16: 8 | AG16: 3 | AH16: 3 | AI16: 3 | AJ16: 9 | AK16: 2 | AL16: 15 | AM16: 8 | AN16: 4 | AO16: 203 | AP16: 17 | AQ16: 4 | AR16: 143 | AS16: 38 | AT16: 283 | AU16: 91 | AV16: 268 | AW16: 78 | AX16: 7 | AY16: 2 | AZ16: 250 | BA16: 39 | BB16: 460 | BC16: 632 | BD16: 13 | BE16: 852 | BF16: 142 | BG16: 0 | BH16: 2 | BI16: 3 | BJ16: 3 | BK16: 1 | BL16: 0 | BM16: 215 | BN16: 3 | BO16: 1 | BP16: 2 | BQ16: 3 | BR16: 3 | BS16: 2 | BT16: 2 | BU16: 2 | BV16: 0 | BW16: 0 | BX16: 0 | BY16: 0 | BZ16: 0 | CA16: 0 | CB16: 0 | CC16: 0 | CD16: 0 | CE16: 0 | CF16: 0 | CG16: 0 | CH16: 0 | CI16: 0 | CJ16: 0 | CK16: 0 | CL16: 0 | CM16: 0 | CN16: 0 | CO16: 0 | CP16: 0 | CQ16: 0 | CR16: 0 | CS16: 0 | CT16: 0 | CU16: 0 | CV16: 0 | CW16: 0 | CX16: 0 | CY16: 0 | CZ16: 0 | DA16: 0 | DB16: 0 | DC16: 0 | DD16: 0 | DE16: 0 | DF16: 0 | DG16: 0 | DH16: 0 | DI16: 0
C17: > 132 kV; Wood | D17: 0 | E17: 0 | F17: 0 | G17: 0 | H17: 0 | I17: 0 | J17: 0 | K17: 0 | L17: 0 | M17: 0 | N17: 0 | O17: 0 | P17: 0 | Q17: 0 | R17: 0 | S17: 0 | T17: 0 | U17: 0 | V17: 0 | W17: 0 | X17: 0 | Y17: 0 | Z17: 0 | AA17: 0 | AB17: 0 | AC17: 0 | AD17: 0 | AE17: 0 | AF17: 0 | AG17: 0 | AH17: 0 | AI17: 0 | AJ17: 0 | AK17: 0 | AL17: 0 | AM17: 0 | AN17: 0 | AO17: 0 | AP17: 0 | AQ17: 0 | AR17: 0 | AS17: 0 | AT17: 0 | AU17: 0 | AV17: 0 | AW17: 0 | AX17: 0 | AY17: 0 | AZ17: 0 | BA17: 0 | BB17: 0 | BC17: 0 | BD17: 0 | BE17: 0 | BF17: 0 | BG17: 0 | BH17: 0 | BI17: 0 | BJ17: 0 | BK17: 0 | BL17: 0 | BM17: 0 | BN17: 0 | BO17: 0 | BP17: 0 | BQ17: 0 | BR17: 0 | BS17: 0 | BT17: 0 | BU17: 0 | BV17: 0 | BW17: 0 | BX17: 0 | BY17: 0 | BZ17: 0 | CA17: 0 | CB17: 0 | CC17: 0 | CD17: 0 | CE17: 0 | CF17: 0 | CG17: 0 | CH17: 0 | CI17: 0 | CJ17: 0 | CK17: 0 | CL17: 0 | CM17: 0 | CN17: 0 | CO17: 0 | CP17: 0 | CQ17: 0 | CR17: 0 | CS17: 0 | CT17: 0 | CU17: 0 | CV17: 0 | CW17: 0 | CX17: 0 | CY17: 0 | CZ17: 0 | DA17: 0 | DB17: 0 | DC17: 0 | DD17: 0 | DE17: 0 | DF17: 0 | DG17: 0 | DH17: 0 | DI17: 0
C18: ˂ = 1 kV; Concrete | D18: 52.78161902 | E18: 7.26509594 | F18: 2 | G18: 5 | H18: 7 | I18: 3 | J18: 48 | K18: 42 | L18: 60 | M18: 74 | N18: 63 | O18: 78 | P18: 51 | Q18: 104 | R18: 65 | S18: 53 | T18: 57 | U18: 135 | V18: 90 | W18: 172 | X18: 117 | Y18: 87 | Z18: 106 | AA18: 86 | AB18: 186 | AC18: 165 | AD18: 107 | AE18: 185 | AF18: 61 | AG18: 97 | AH18: 201 | AI18: 218 | AJ18: 57 | AK18: 66 | AL18: 42 | AM18: 34 | AN18: 30 | AO18: 33 | AP18: 34 | AQ18: 28 | AR18: 2 | AS18: 5 | AT18: 4 | AU18: 3 | AV18: 1 | AW18: 3 | AX18: 5 | AY18: 8 | AZ18: 15 | BA18: 18 | BB18: 11 | BC18: 6 | BD18: 10 | BE18: 2 | BF18: 4 | BG18: 0 | BH18: 0 | BI18: 0 | BJ18: 0 | BK18: 0 | BL18: 0 | BM18: 0 | BN18: 0 | BO18: 0 | BP18: 0 | BQ18: 0 | BR18: 0 | BS18: 0 | BT18: 0 | BU18: 0 | BV18: 0 | BW18: 0 | BX18: 0 | BY18: 0 | BZ18: 0 | CA18: 0 | CB18: 0 | CC18: 0 | CD18: 0 | CE18: 0 | CF18: 0 | CG18: 0 | CH18: 0 | CI18: 0 | CJ18: 0 | CK18: 0 | CL18: 0 | CM18: 0 | CN18: 0 | CO18: 0 | CP18: 0 | CQ18: 0 | CR18: 0 | CS18: 0 | CT18: 0 | CU18: 0 | CV18: 0 | CW18: 0 | CX18: 0 | CY18: 0 | CZ18: 0 | DA18: 0 | DB18: 0 | DC18: 0 | DD18: 0 | DE18: 0 | DF18: 0 | DG18: 0 | DH18: 0 | DI18: 0
C19: > 1 kV & < = 11 kV; Concrete | D19: 52.78161902 | E19: 7.26509594 | F19: 0 | G19: 0 | H19: 1 | I19: 1 | J19: 1 | K19: 2 | L19: 5 | M19: 8 | N19: 2 | O19: 8 | P19: 50 | Q19: 156 | R19: 3 | S19: 1 | T19: 2 | U19: 6 | V19: 2 | W19: 123 | X19: 21 | Y19: 242 | Z19: 5 | AA19: 17 | AB19: 15 | AC19: 48 | AD19: 34 | AE19: 80 | AF19: 37 | AG19: 22 | AH19: 28 | AI19: 45 | AJ19: 44 | AK19: 94 | AL19: 133 | AM19: 20 | AN19: 14 | AO19: 2 | AP19: 0 | AQ19: 5 | AR19: 2 | AS19: 2 | AT19: 1 | AU19: 0 | AV19: 1 | AW19: 2 | AX19: 0 | AY19: 1 | AZ19: 2 | BA19: 0 | BB19: 3 | BC19: 1 | BD19: 1 | BE19: 1 | BF19: 1 | BG19: 1 | BH19: 0 | BI19: 0 | BJ19: 0 | BK19: 0 | BL19: 0 | BM19: 0 | BN19: 0 | BO19: 0 | BP19: 0 | BQ19: 0 | BR19: 0 | BS19: 0 | BT19: 0 | BU19: 0 | BV19: 0 | BW19: 0 | BX19: 0 | BY19: 0 | BZ19: 0 | CA19: 0 | CB19: 0 | CC19: 0 | CD19: 0 | CE19: 0 | CF19: 0 | CG19: 0 | CH19: 0 | CI19: 0 | CJ19: 0 | CK19: 0 | CL19: 0 | CM19: 0 | CN19: 0 | CO19: 0 | CP19: 0 | CQ19: 0 | CR19: 0 | CS19: 0 | CT19: 0 | CU19: 0 | CV19: 0 | CW19: 0 | CX19: 0 | CY19: 0 | CZ19: 0 | DA19: 0 | DB19: 0 | DC19: 0 | DD19: 0 | DE19: 0 | DF19: 0 | DG19: 0 | DH19: 0 | DI19: 0
C20: ˃ 11 kV & < = 22 kV; Concrete | D20: 52.78161902 | E20: 7.26509594 | F20: 1 | G20: 0 | H20: 0 | I20: 2 | J20: 1 | K20: 1 | L20: 62 | M20: 2 | N20: 40 | O20: 4 | P20: 1 | Q20: 13 | R20: 16 | S20: 6 | T20: 3 | U20: 14 | V20: 7 | W20: 3370 | X20: 2410 | Y20: 21 | Z20: 11 | AA20: 54 | AB20: 203 | AC20: 155 | AD20: 124 | AE20: 184 | AF20: 215 | AG20: 277 | AH20: 748 | AI20: 118 | AJ20: 28 | AK20: 66 | AL20: 72 | AM20: 1 | AN20: 0 | AO20: 2 | AP20: 2 | AQ20: 2 | AR20: 1 | AS20: 1 | AT20: 1 | AU20: 0 | AV20: 3 | AW20: 1 | AX20: 0 | AY20: 2 | AZ20: 0 | BA20: 0 | BB20: 0 | BC20: 1 | BD20: 0 | BE20: 0 | BF20: 0 | BG20: 0 | BH20: 0 | BI20: 0 | BJ20: 0 | BK20: 0 | BL20: 0 | BM20: 0 | BN20: 0 | BO20: 0 | BP20: 0 | BQ20: 0 | BR20: 0 | BS20: 0 | BT20: 0 | BU20: 0 | BV20: 0 | BW20: 0 | BX20: 0 | BY20: 0 | BZ20: 0 | CA20: 0 | CB20: 0 | CC20: 0 | CD20: 0 | CE20: 0 | CF20: 0 | CG20: 0 | CH20: 0 | CI20: 0 | CJ20: 0 | CK20: 0 | CL20: 0 | CM20: 0 | CN20: 0 | CO20: 0 | CP20: 0 | CQ20: 0 | CR20: 0 | CS20: 0 | CT20: 0 | CU20: 0 | CV20: 0 | CW20: 0 | CX20: 0 | CY20: 0 | CZ20: 0 | DA20: 0 | DB20: 0 | DC20: 0 | DD20: 0 | DE20: 0 | DF20: 0 | DG20: 0 | DH20: 0 | DI20: 0
C21: > 22 kV & < = 66 kV; Concrete | D21: 47.54471998 | E21: 6.895267941 | F21: 0 | G21: 37 | H21: 10 | I21: 22 | J21: 53 | K21: 97 | L21: 80 | M21: 78 | N21: 141 | O21: 184 | P21: 300 | Q21: 256 | R21: 240 | S21: 357 | T21: 79 | U21: 328 | V21: 199 | W21: 448 | X21: 864 | Y21: 339 | Z21: 945 | AA21: 255 | AB21: 439 | AC21: 98 | AD21: 96 | AE21: 49 | AF21: 144 | AG21: 1356 | AH21: 236 | AI21: 481 | AJ21: 1389 | AK21: 2241 | AL21: 658 | AM21: 734 | AN21: 148 | AO21: 224 | AP21: 3 | AQ21: 1 | AR21: 0 | AS21: 2 | AT21: 2 | AU21: 2 | AV21: 0 | AW21: 3 | AX21: 1 | AY21: 4 | AZ21: 1 | BA21: 1 | BB21: 0 | BC21: 0 | BD21: 0 | BE21: 2 | BF21: 2 | BG21: 0 | BH21: 0 | BI21: 0 | BJ21: 0 | BK21: 0 | BL21: 0 | BM21: 0 | BN21: 0 | BO21: 0 | BP21: 0 | BQ21: 0 | BR21: 0 | BS21: 0 | BT21: 0 | BU21: 0 | BV21: 0 | BW21: 0 | BX21: 0 | BY21: 0 | BZ21: 0 | CA21: 0 | CB21: 0 | CC21: 0 | CD21: 0 | CE21: 0 | CF21: 0 | CG21: 0 | CH21: 0 | CI21: 0 | CJ21: 0 | CK21: 0 | CL21: 0 | CM21: 0 | CN21: 0 | CO21: 0 | CP21: 0 | CQ21: 0 | CR21: 0 | CS21: 0 | CT21: 0 | CU21: 0 | CV21: 0 | CW21: 0 | CX21: 0 | CY21: 0 | CZ21: 0 | DA21: 0 | DB21: 0 | DC21: 0 | DD21: 0 | DE21: 0 | DF21: 0 | DG21: 0 | DH21: 0 | DI21: 0
C22: > 66 kV & < = 132 kV; Concrete | D22: 47.54471998 | E22: 6.895267941 | F22: 0 | G22: 0 | H22: 3 | I22: 44 | J22: 10 | K22: 33 | L22: 14 | M22: 36 | N22: 56 | O22: 266 | P22: 237 | Q22: 146 | R22: 259 | S22: 481 | T22: 143 | U22: 439 | V22: 14 | W22: 14 | X22: 13 | Y22: 10 | Z22: 11 | AA22: 36 | AB22: 80 | AC22: 39 | AD22: 11 | AE22: 20 | AF22: 10 | AG22: 293 | AH22: 11 | AI22: 25 | AJ22: 889 | AK22: 9 | AL22: 759 | AM22: 640 | AN22: 15 | AO22: 13 | AP22: 12 | AQ22: 12 | AR22: 0 | AS22: 0 | AT22: 0 | AU22: 0 | AV22: 0 | AW22: 0 | AX22: 0 | AY22: 0 | AZ22: 0 | BA22: 0 | BB22: 0 | BC22: 0 | BD22: 0 | BE22: 0 | BF22: 0 | BG22: 0 | BH22: 0 | BI22: 0 | BJ22: 0 | BK22: 0 | BL22: 0 | BM22: 0 | BN22: 0 | BO22: 0 | BP22: 0 | BQ22: 0 | BR22: 0 | BS22: 0 | BT22: 0 | BU22: 0 | BV22: 0 | BW22: 0 | BX22: 0 | BY22: 0 | BZ22: 0 | CA22: 0 | CB22: 0 | CC22: 0 | CD22: 0 | CE22: 0 | CF22: 0 | CG22: 0 | CH22: 0 | CI22: 0 | CJ22: 0 | CK22: 0 | CL22: 0 | CM22: 0 | CN22: 0 | CO22: 0 | CP22: 0 | CQ22: 0 | CR22: 0 | CS22: 0 | CT22: 0 | CU22: 0 | CV22: 0 | CW22: 0 | CX22: 0 | CY22: 0 | CZ22: 0 | DA22: 0 | DB22: 0 | DC22: 0 | DD22: 0 | DE22: 0 | DF22: 0 | DG22: 0 | DH22: 0 | DI22: 0
C23: > 132 kV; Concrete | D23: 0 | E23: 0 | F23: 0 | G23: 0 | H23: 0 | I23: 0 | J23: 0 | K23: 0 | L23: 0 | M23: 0 | N23: 0 | O23: 0 | P23: 0 | Q23: 0 | R23: 0 | S23: 0 | T23: 0 | U23: 0 | V23: 0 | W23: 0 | X23: 0 | Y23: 0 | Z23: 0 | AA23: 0 | AB23: 0 | AC23: 0 | AD23: 0 | AE23: 0 | AF23: 0 | AG23: 0 | AH23: 0 | AI23: 0 | AJ23: 0 | AK23: 0 | AL23: 0 | AM23: 0 | AN23: 0 | AO23: 0 | AP23: 0 | AQ23: 0 | AR23: 0 | AS23: 0 | AT23: 0 | AU23: 0 | AV23: 0 | AW23: 0 | AX23: 0 | AY23: 0 | AZ23: 0 | BA23: 0 | BB23: 0 | BC23: 0 | BD23: 0 | BE23: 0 | BF23: 0 | BG23: 0 | BH23: 0 | BI23: 0 | BJ23: 0 | BK23: 0 | BL23: 0 | BM23: 0 | BN23: 0 | BO23: 0 | BP23: 0 | BQ23: 0 | BR23: 0 | BS23: 0 | BT23: 0 | BU23: 0 | BV23: 0 | BW23: 0 | BX23: 0 | BY23: 0 | BZ23: 0 | CA23: 0 | CB23: 0 | CC23: 0 | CD23: 0 | CE23: 0 | CF23: 0 | CG23: 0 | CH23: 0 | CI23: 0 | CJ23: 0 | CK23: 0 | CL23: 0 | CM23: 0 | CN23: 0 | CO23: 0 | CP23: 0 | CQ23: 0 | CR23: 0 | CS23: 0 | CT23: 0 | CU23: 0 | CV23: 0 | CW23: 0 | CX23: 0 | CY23: 0 | CZ23: 0 | DA23: 0 | DB23: 0 | DC23: 0 | DD23: 0 | DE23: 0 | DF23: 0 | DG23: 0 | DH23: 0 | DI23: 0
C24: ˂ = 1 kV; Steel | D24: 44.38417204 | E24: 6.662144703 | F24: 106 | G24: 641 | H24: 1121 | I24: 2011 | J24: 3342 | K24: 3589 | L24: 3371 | M24: 2793 | N24: 3326 | O24: 5391 | P24: 4733 | Q24: 5065 | R24: 3572 | S24: 3433 | T24: 2455 | U24: 1941 | V24: 2117 | W24: 1802 | X24: 1917 | Y24: 1993 | Z24: 1971 | AA24: 1946 | AB24: 1658 | AC24: 1452 | AD24: 1422 | AE24: 1371 | AF24: 1310 | AG24: 1313 | AH24: 44 | AI24: 45 | AJ24: 24 | AK24: 56 | AL24: 47 | AM24: 48 | AN24: 35 | AO24: 40 | AP24: 43 | AQ24: 44 | AR24: 39 | AS24: 48 | AT24: 43 | AU24: 41 | AV24: 33 | AW24: 40 | AX24: 31 | AY24: 30 | AZ24: 38 | BA24: 52 | BB24: 54 | BC24: 44 | BD24: 20 | BE24: 20 | BF24: 14 | BG24: 19 | BH24: 13 | BI24: 1 | BJ24: 0 | BK24: 1 | BL24: 0 | BM24: 1 | BN24: 0 | BO24: 0 | BP24: 0 | BQ24: 0 | BR24: 0 | BS24: 0 | BT24: 0 | BU24: 0 | BV24: 0 | BW24: 0 | BX24: 0 | BY24: 0 | BZ24: 0 | CA24: 0 | CB24: 0 | CC24: 0 | CD24: 0 | CE24: 0 | CF24: 0 | CG24: 0 | CH24: 0 | CI24: 0 | CJ24: 0 | CK24: 0 | CL24: 0 | CM24: 0 | CN24: 0 | CO24: 0 | CP24: 0 | CQ24: 0 | CR24: 0 | CS24: 0 | CT24: 0 | CU24: 0 | CV24: 0 | CW24: 0 | CX24: 0 | CY24: 0 | CZ24: 0 | DA24: 0 | DB24: 0 | DC24: 0 | DD24: 0 | DE24: 0 | DF24: 0 | DG24: 0 | DH24: 0 | DI24: 0
C25: > 1 kV & < = 11 kV; Steel | D25: 44.38417204 | E25: 6.662144703 | F25: 0 | G25: 3 | H25: 1 | I25: 7 | J25: 28 | K25: 36 | L25: 28 | M25: 23 | N25: 46 | O25: 48 | P25: 69 | Q25: 84 | R25: 31 | S25: 52 | T25: 34 | U25: 23 | V25: 43 | W25: 60 | X25: 42 | Y25: 58 | Z25: 26 | AA25: 37 | AB25: 38 | AC25: 26 | AD25: 31 | AE25: 38 | AF25: 30 | AG25: 27 | AH25: 21 | AI25: 15 | AJ25: 11 | AK25: 16 | AL25: 15 | AM25: 7 | AN25: 6 | AO25: 20 | AP25: 17 | AQ25: 10 | AR25: 7 | AS25: 5 | AT25: 4 | AU25: 5 | AV25: 8 | AW25: 13 | AX25: 8 | AY25: 9 | AZ25: 19 | BA25: 18 | BB25: 11 | BC25: 12 | BD25: 3 | BE25: 4 | BF25: 8 | BG25: 3 | BH25: 2 | BI25: 0 | BJ25: 0 | BK25: 0 | BL25: 0 | BM25: 0 | BN25: 0 | BO25: 0 | BP25: 0 | BQ25: 0 | BR25: 0 | BS25: 0 | BT25: 0 | BU25: 0 | BV25: 0 | BW25: 0 | BX25: 0 | BY25: 0 | BZ25: 0 | CA25: 0 | CB25: 0 | CC25: 0 | CD25: 0 | CE25: 0 | CF25: 0 | CG25: 0 | CH25: 0 | CI25: 0 | CJ25: 0 | CK25: 0 | CL25: 0 | CM25: 0 | CN25: 0 | CO25: 0 | CP25: 0 | CQ25: 0 | CR25: 0 | CS25: 0 | CT25: 0 | CU25: 0 | CV25: 0 | CW25: 0 | CX25: 0 | CY25: 0 | CZ25: 0 | DA25: 0 | DB25: 0 | DC25: 0 | DD25: 0 | DE25: 0 | DF25: 0 | DG25: 0 | DH25: 0 | DI25: 0
C26: ˃ 11 kV & < = 22 kV; Steel | D26: 44.38417204 | E26: 6.662144703 | F26: 0 | G26: 0 | H26: 1 | I26: 5 | J26: 0 | K26: 15 | L26: 40 | M26: 29 | N26: 4 | O26: 141 | P26: 4 | Q26: 1 | R26: 2 | S26: 7 | T26: 1 | U26: 3 | V26: 4 | W26: 1 | X26: 1 | Y26: 0 | Z26: 2 | AA26: 1 | AB26: 2 | AC26: 1 | AD26: 0 | AE26: 0 | AF26: 0 | AG26: 1 | AH26: 2 | AI26: 5 | AJ26: 0 | AK26: 0 | AL26: 0 | AM26: 1 | AN26: 0 | AO26: 1 | AP26: 1 | AQ26: 1 | AR26: 0 | AS26: 0 | AT26: 0 | AU26: 4 | AV26: 1 | AW26: 0 | AX26: 3 | AY26: 1 | AZ26: 0 | BA26: 0 | BB26: 0 | BC26: 0 | BD26: 0 | BE26: 0 | BF26: 1 | BG26: 0 | BH26: 0 | BI26: 0 | BJ26: 0 | BK26: 0 | BL26: 0 | BM26: 0 | BN26: 0 | BO26: 0 | BP26: 0 | BQ26: 0 | BR26: 0 | BS26: 0 | BT26: 0 | BU26: 0 | BV26: 0 | BW26: 0 | BX26: 0 | BY26: 0 | BZ26: 0 | CA26: 0 | CB26: 0 | CC26: 0 | CD26: 0 | CE26: 0 | CF26: 0 | CG26: 0 | CH26: 0 | CI26: 0 | CJ26: 0 | CK26: 0 | CL26: 0 | CM26: 0 | CN26: 0 | CO26: 0 | CP26: 0 | CQ26: 0 | CR26: 0 | CS26: 0 | CT26: 0 | CU26: 0 | CV26: 0 | CW26: 0 | CX26: 0 | CY26: 0 | CZ26: 0 | DA26: 0 | DB26: 0 | DC26: 0 | DD26: 0 | DE26: 0 | DF26: 0 | DG26: 0 | DH26: 0 | DI26: 0
C27: > 22 kV & < = 66 kV; Steel | D27: 44.38417204 | E27: 6.662144703 | F27: 0 | G27: 1 | H27: 3 | I27: 2 | J27: 32 | K27: 38 | L27: 43 | M27: 33 | N27: 48 | O27: 35 | P27: 28 | Q27: 26 | R27: 26 | S27: 52 | T27: 28 | U27: 23 | V27: 30 | W27: 33 | X27: 35 | Y27: 33 | Z27: 29 | AA27: 30 | AB27: 27 | AC27: 28 | AD27: 25 | AE27: 31 | AF27: 26 | AG27: 29 | AH27: 0 | AI27: 0 | AJ27: 0 | AK27: 4 | AL27: 5 | AM27: 2 | AN27: 1 | AO27: 2 | AP27: 1 | AQ27: 5 | AR27: 0 | AS27: 2 | AT27: 0 | AU27: 1 | AV27: 0 | AW27: 0 | AX27: 2 | AY27: 52 | AZ27: 0 | BA27: 1 | BB27: 72 | BC27: 3 | BD27: 0 | BE27: 0 | BF27: 0 | BG27: 1 | BH27: 0 | BI27: 0 | BJ27: 0 | BK27: 0 | BL27: 0 | BM27: 555 | BN27: 453 | BO27: 0 | BP27: 0 | BQ27: 0 | BR27: 0 | BS27: 0 | BT27: 0 | BU27: 37 | BV27: 0 | BW27: 0 | BX27: 0 | BY27: 0 | BZ27: 0 | CA27: 0 | CB27: 0 | CC27: 0 | CD27: 0 | CE27: 0 | CF27: 0 | CG27: 0 | CH27: 0 | CI27: 0 | CJ27: 0 | CK27: 0 | CL27: 0 | CM27: 0 | CN27: 0 | CO27: 0 | CP27: 0 | CQ27: 0 | CR27: 0 | CS27: 0 | CT27: 0 | CU27: 0 | CV27: 0 | CW27: 0 | CX27: 0 | CY27: 0 | CZ27: 0 | DA27: 0 | DB27: 0 | DC27: 0 | DD27: 0 | DE27: 0 | DF27: 0 | DG27: 0 | DH27: 0 | DI27: 0
C28: > 66 kV & < = 132 kV; Steel | D28: 44.38417204 | E28: 6.662144703 | F28: 0 | G28: 0 | H28: 0 | I28: 0 | J28: 6 | K28: 9 | L28: 7 | M28: 7 | N28: 5 | O28: 3 | P28: 8 | Q28: 3 | R28: 2 | S28: 3 | T28: 6 | U28: 6 | V28: 3 | W28: 2 | X28: 3 | Y28: 4 | Z28: 6 | AA28: 159 | AB28: 14 | AC28: 2 | AD28: 4 | AE28: 3 | AF28: 3 | AG28: 3 | AH28: 10 | AI28: 0 | AJ28: 0 | AK28: 288 | AL28: 0 | AM28: 0 | AN28: 24 | AO28: 197 | AP28: 0 | AQ28: 2 | AR28: 1 | AS28: 0 | AT28: 0 | AU28: 0 | AV28: 0 | AW28: 0 | AX28: 0 | AY28: 16 | AZ28: 0 | BA28: 0 | BB28: 0 | BC28: 0 | BD28: 0 | BE28: 0 | BF28: 48 | BG28: 0 | BH28: 0 | BI28: 0 | BJ28: 0 | BK28: 0 | BL28: 0 | BM28: 0 | BN28: 0 | BO28: 0 | BP28: 0 | BQ28: 0 | BR28: 0 | BS28: 0 | BT28: 0 | BU28: 0 | BV28: 0 | BW28: 0 | BX28: 0 | BY28: 0 | BZ28: 0 | CA28: 0 | CB28: 0 | CC28: 0 | CD28: 0 | CE28: 0 | CF28: 0 | CG28: 0 | CH28: 0 | CI28: 0 | CJ28: 0 | CK28: 0 | CL28: 0 | CM28: 0 | CN28: 0 | CO28: 0 | CP28: 0 | CQ28: 0 | CR28: 0 | CS28: 0 | CT28: 0 | CU28: 0 | CV28: 0 | CW28: 0 | CX28: 0 | CY28: 0 | CZ28: 0 | DA28: 0 | DB28: 0 | DC28: 0 | DD28: 0 | DE28: 0 | DF28: 0 | DG28: 0 | DH28: 0 | DI28: 0
C29: > 132 kV; Steel | D29: 0 | E29: 0 | F29: 0 | G29: 0 | H29: 0 | I29: 0 | J29: 0 | K29: 0 | L29: 0 | M29: 0 | N29: 0 | O29: 0 | P29: 0 | Q29: 0 | R29: 0 | S29: 0 | T29: 0 | U29: 0 | V29: 0 | W29: 0 | X29: 0 | Y29: 0 | Z29: 0 | AA29: 0 | AB29: 0 | AC29: 0 | AD29: 0 | AE29: 0 | AF29: 0 | AG29: 0 | AH29: 0 | AI29: 0 | AJ29: 0 | AK29: 0 | AL29: 0 | AM29: 0 | AN29: 0 | AO29: 0 | AP29: 0 | AQ29: 0 | AR29: 0 | AS29: 0 | AT29: 0 | AU29: 0 | AV29: 0 | AW29: 0 | AX29: 0 | AY29: 0 | AZ29: 0 | BA29: 0 | BB29: 0 | BC29: 0 | BD29: 0 | BE29: 0 | BF29: 0 | BG29: 0 | BH29: 0 | BI29: 0 | BJ29: 0 | BK29: 0 | BL29: 0 | BM29: 0 | BN29: 0 | BO29: 0 | BP29: 0 | BQ29: 0 | BR29: 0 | BS29: 0 | BT29: 0 | BU29: 0 | BV29: 0 | BW29: 0 | BX29: 0 | BY29: 0 | BZ29: 0 | CA29: 0 | CB29: 0 | CC29: 0 | CD29: 0 | CE29: 0 | CF29: 0 | CG29: 0 | CH29: 0 | CI29: 0 | CJ29: 0 | CK29: 0 | CL29: 0 | CM29: 0 | CN29: 0 | CO29: 0 | CP29: 0 | CQ29: 0 | CR29: 0 | CS29: 0 | CT29: 0 | CU29: 0 | CV29: 0 | CW29: 0 | CX29: 0 | CY29: 0 | CZ29: 0 | DA29: 0 | DB29: 0 | DC29: 0 | DD29: 0 | DE29: 0 | DF29: 0 | DG29: 0 | DH29: 0 | DI29: 0
C30: Other | E30: 0 | F30: 0 | G30: 0 | H30: 0 | I30: 0 | J30: 0 | K30: 0 | L30: 0 | M30: 0 | N30: 0 | O30: 0 | P30: 0 | Q30: 0 | R30: 0 | S30: 0 | T30: 0 | U30: 0 | V30: 0 | W30: 0 | X30: 0 | Y30: 0 | Z30: 0 | AA30: 0 | AB30: 0 | AC30: 0 | AD30: 0 | AE30: 0 | AF30: 0 | AG30: 0 | AH30: 0 | AI30: 0 | AJ30: 0 | AK30: 0 | AL30: 0 | AM30: 0 | AN30: 0 | AO30: 0 | AP30: 0 | AQ30: 0 | AR30: 0 | AS30: 0 | AT30: 0 | AU30: 0 | AV30: 0 | AW30: 0 | AX30: 0 | AY30: 0 | AZ30: 0 | BA30: 0 | BB30: 0 | BC30: 0 | BD30: 0 | BE30: 0 | BF30: 0 | BG30: 0 | BH30: 0 | BI30: 0 | BJ30: 0 | BK30: 0 | BL30: 0 | BM30: 0 | BN30: 0 | BO30: 0 | BP30: 0 | BQ30: 0 | BR30: 0 | BS30: 0 | BT30: 0 | BU30: 0 | BV30: 0 | BW30: 0 | BX30: 0 | BY30: 0 | BZ30: 0 | CA30: 0 | CB30: 0 | CC30: 0 | CD30: 0 | CE30: 0 | CF30: 0 | CG30: 0 | CH30: 0 | CI30: 0 | CJ30: 0 | CK30: 0 | CL30: 0 | CM30: 0 | CN30: 0 | CO30: 0 | CP30: 0 | CQ30: 0 | CR30: 0 | CS30: 0 | CT30: 0 | CU30: 0 | CV30: 0 | CW30: 0 | CX30: 0 | CY30: 0 | CZ30: 0 | DA30: 0 | DB30: 0 | DC30: 0 | DD30: 0 | DE30: 0 | DF30: 0 | DG30: 0 | DH30: 0 | DI30: 0
B31: OVERHEAD CONDUCTORS BY: HIGHEST OPERATING VOLTAGE; NUMBER OF PHASES (AT HV) | C31: ˂ = 1 kV | D31: 61.99953974 | E31: 7.873978647 | F31: 54.35462689 | G31: 82.14911757 | H31: 229.5274698 | I31: 230.4433897 | J31: 272.2294438 | K31: 306.5366958 | L31: 298.2332688 | M31: 300.6007161 | N31: 360.4338158 | O31: 347.8953695 | P31: 411.3692402 | Q31: 355.7650823 | R31: 319.6751467 | S31: 194.2005938 | T31: 176.8975997 | U31: 208.5838795 | V31: 201.5427697 | W31: 234.1281749 | X31: 214.8546753 | Y31: 234.0246041 | Z31: 237.8719885 | AA31: 250.1854116 | AB31: 326.2551785 | AC31: 318.441722 | AD31: 304.1636602 | AE31: 375.1130576 | AF31: 370.0178419 | AG31: 402.6096865 | AH31: 408.8006268 | AI31: 286.7377876 | AJ31: 288.8343139 | AK31: 405.4790446 | AL31: 533.5794888 | AM31: 521.490703 | AN31: 426.7924426 | AO31: 593.2632712 | AP31: 578.9848734 | AQ31: 492.7399819 | AR31: 363.1204905 | AS31: 460.3344909 | AT31: 524.8616868 | AU31: 494.3532104 | AV31: 480.966733 | AW31: 512.4921448 | AX31: 456.9049052 | AY31: 498.2853173 | AZ31: 496.8236032 | BA31: 566.2527877 | BB31: 495.5158525 | BC31: 453.442747 | BD31: 373.5642166 | BE31: 362.2580521 | BF31: 383.6764213 | BG31: 330.8815375 | BH31: 407.3973924 | BI31: 501.5789641 | BJ31: 411.4396996 | BK31: 392.5175883 | BL31: 388.1176873 | BM31: 344.0078509 | BN31: 317.4295904 | BO31: 324.5719807 | BP31: 284.1309614 | BQ31: 264.1483058 | BR31: 258.2334062 | BS31: 259.6270246 | BT31: 231.465926 | BU31: 222.9892664 | BV31: 1.289742286 | BW31: 0.05470166665 | BX31: 8.283936377 | BY31: 0 | BZ31: 0 | CA31: 0 | CB31: 0 | CC31: 0 | CD31: 0 | CE31: 0 | CF31: 0 | CG31: 0 | CH31: 0 | CI31: 0 | CJ31: 0 | CK31: 0 | CL31: 0 | CM31: 0 | CN31: 0 | CO31: 0 | CP31: 0 | CQ31: 0 | CR31: 0 | CS31: 0 | CT31: 0 | CU31: 0 | CV31: 0 | CW31: 0 | CX31: 0 | CY31: 0 | CZ31: 0 | DA31: 0 | DB31: 0 | DC31: 0 | DD31: 0 | DE31: 0 | DF31: 0 | DG31: 0 | DH31: 0 | DI31: 0
C32: > 1 kV & < = 11 kV | D32: 55.87769694 | E32: 7.47513859 | F32: 106.8169396 | G32: 136.0603549 | H32: 416.8423569 | I32: 372.125876 | J32: 433.2979139 | K32: 508.8773428 | L32: 447.1103509 | M32: 417.4306108 | N32: 614.1551528 | O32: 515.7542714 | P32: 650.7607423 | Q32: 416.0583243 | R32: 285.3355566 | S32: 132.2065757 | T32: 106.0777588 | U32: 151.9756454 | V32: 201.668374 | W32: 238.6630252 | X32: 226.0915019 | Y32: 294.2740926 | Z32: 326.1010383 | AA32: 389.3792515 | AB32: 619.9846532 | AC32: 451.7362321 | AD32: 461.5920098 | AE32: 563.6401274 | AF32: 515.6408069 | AG32: 511.961854 | AH32: 456.1905333 | AI32: 261.6906107 | AJ32: 354.4214799 | AK32: 496.8975223 | AL32: 619.6959397 | AM32: 636.0464106 | AN32: 561.4130392 | AO32: 913.4369305 | AP32: 826.6864352 | AQ32: 910.394307 | AR32: 485.7799769 | AS32: 549.2723407 | AT32: 600.180273 | AU32: 607.571006 | AV32: 494.5034127 | AW32: 640.7906988 | AX32: 351.4738421 | AY32: 503.5002684 | AZ32: 626.1981312 | BA32: 775.1005182 | BB32: 680.6907205 | BC32: 730.9073227 | BD32: 764.2436685 | BE32: 685.1575045 | BF32: 990.1752057 | BG32: 1076.566567 | BH32: 718.4675542 | BI32: 1839.404898 | BJ32: 1120.761091 | BK32: 924.9326197 | BL32: 844.3137119 | BM32: 684.7828698 | BN32: 583.810943 | BO32: 552.3052409 | BP32: 424.4729248 | BQ32: 432.5753236 | BR32: 404.1769014 | BS32: 323.9365297 | BT32: 309.8296764 | BU32: 298.2317873 | BV32: 0.2289647934 | BW32: 17.07159782 | BX32: 3.844850693 | BY32: 0 | BZ32: 0 | CA32: 0 | CB32: 0 | CC32: 0 | CD32: 0 | CE32: 0 | CF32: 0 | CG32: 0 | CH32: 0 | CI32: 0 | CJ32: 0 | CK32: 0 | CL32: 0 | CM32: 0 | CN32: 0 | CO32: 0 | CP32: 0 | CQ32: 0 | CR32: 0 | CS32: 0 | CT32: 0 | CU32: 0 | CV32: 0 | CW32: 0 | CX32: 0 | CY32: 0 | CZ32: 0 | DA32: 0 | DB32: 0 | DC32: 0 | DD32: 0 | DE32: 0 | DF32: 0 | DG32: 0 | DH32: 0 | DI32: 0
C33: ˃ 11 kV & < = 22 kV ; SWER | D33: 76.11051212 | E33: 8.724133889 | F33: 35.62964696 | G33: 41.81426506 | H33: 87.13883053 | I33: 156.1069476 | J33: 227.9398404 | K33: 237.3509878 | L33: 179.6192758 | M33: 169.1449595 | N33: 191.1419077 | O33: 194.9559521 | P33: 278.4577104 | Q33: 252.2376252 | R33: 211.6476642 | S33: 57.84289265 | T33: 145.0597354 | U33: 237.4300034 | V33: 201.1502747 | W33: 1062.220234 | X33: 1859.471011 | Y33: 208.6165993 | Z33: 213.3737224 | AA33: 214.531689 | AB33: 269.2466855 | AC33: 359.9354585 | AD33: 342.7539576 | AE33: 675.5409852 | AF33: 661.7572221 | AG33: 677.8429709 | AH33: 1399.385141 | AI33: 1233.436288 | AJ33: 1592.852133 | AK33: 3360.198421 | AL33: 2306.277797 | AM33: 1930.411498 | AN33: 2482.965573 | AO33: 3961.962035 | AP33: 5043.604734 | AQ33: 3056.473808 | AR33: 1025.41474 | AS33: 714.7406325 | AT33: 885.4212281 | AU33: 1295.709603 | AV33: 2128.093834 | AW33: 2913.661283 | AX33: 1216.165995 | AY33: 1030.590327 | AZ33: 1671.31473 | BA33: 2199.313959 | BB33: 1556.109199 | BC33: 1274.171957 | BD33: 1553.153118 | BE33: 1376.375921 | BF33: 1580.990492 | BG33: 1467.095592 | BH33: 1566.31857 | BI33: 983.5451035 | BJ33: 572.6537991 | BK33: 511.5751394 | BL33: 388.9574339 | BM33: 312.1497848 | BN33: 301.6505376 | BO33: 220.5060404 | BP33: 289.137747 | BQ33: 189.6764527 | BR33: 198.0512118 | BS33: 142.2763565 | BT33: 141.7901627 | BU33: 263.6946002 | BV33: 0 | BW33: 0 | BX33: 0 | BY33: 0 | BZ33: 0 | CA33: 0 | CB33: 0 | CC33: 0 | CD33: 0 | CE33: 0 | CF33: 0 | CG33: 0 | CH33: 0 | CI33: 0 | CJ33: 0 | CK33: 0 | CL33: 0 | CM33: 0 | CN33: 0 | CO33: 0 | CP33: 0 | CQ33: 0 | CR33: 0 | CS33: 0 | CT33: 0 | CU33: 0 | CV33: 0 | CW33: 0 | CX33: 0 | CY33: 0 | CZ33: 0 | DA33: 0 | DB33: 0 | DC33: 0 | DD33: 0 | DE33: 0 | DF33: 0 | DG33: 0 | DH33: 0 | DI33: 0
C34: ˃ 11 kV & < = 22 kV ; Single-Phase | D34: 61.73687604 | E34: 7.857281721 | F34: 3.888408927 | G34: 9.236718204 | H34: 26.49553861 | I34: 28.23587964 | J34: 48.76186479 | K34: 94.04123832 | L34: 52.66244559 | M34: 42.77445853 | N34: 31.93062217 | O34: 44.10273409 | P34: 62.56189869 | Q34: 63.09900415 | R34: 28.1911203 | S34: 18.2324234 | T34: 11.38163097 | U34: 20.0220058 | V34: 17.64996542 | W34: 26.12619899 | X34: 39.19699928 | Y34: 47.3470743 | Z34: 21.67258737 | AA34: 22.63284939 | AB34: 57.01009968 | AC34: 57.8446394 | AD34: 34.24156654 | AE34: 39.97534013 | AF34: 39.05908531 | AG34: 49.25106258 | AH34: 101.2245446 | AI34: 52.65762148 | AJ34: 41.55191572 | AK34: 91.34730236 | AL34: 72.45287875 | AM34: 72.83041973 | AN34: 64.19416172 | AO34: 112.0740583 | AP34: 130.9247379 | AQ34: 87.48291243 | AR34: 56.65211581 | AS34: 55.59934833 | AT34: 46.71788953 | AU34: 39.18333309 | AV34: 52.99975394 | AW34: 64.2538752 | AX34: 95.17347681 | AY34: 60.56229439 | AZ34: 124.7445661 | BA34: 97.64654969 | BB34: 61.5027956 | BC34: 51.1276249 | BD34: 78.19996219 | BE34: 64.24398176 | BF34: 63.99059205 | BG34: 35.90141945 | BH34: 29.44935376 | BI34: 39.54680939 | BJ34: 38.27436257 | BK34: 33.59175371 | BL34: 29.89926938 | BM34: 18.53300042 | BN34: 18.79649278 | BO34: 13.89048832 | BP34: 13.68104786 | BQ34: 12.65419018 | BR34: 19.07999108 | BS34: 10.11746823 | BT34: 11.81590694 | BU34: 15.76972067 | BV34: 0 | BW34: 0 | BX34: 0 | BY34: 0 | BZ34: 0 | CA34: 0 | CB34: 0 | CC34: 0 | CD34: 0 | CE34: 0 | CF34: 0 | CG34: 0 | CH34: 0 | CI34: 0 | CJ34: 0 | CK34: 0 | CL34: 0 | CM34: 0 | CN34: 0 | CO34: 0 | CP34: 0 | CQ34: 0 | CR34: 0 | CS34: 0 | CT34: 0 | CU34: 0 | CV34: 0 | CW34: 0 | CX34: 0 | CY34: 0 | CZ34: 0 | DA34: 0 | DB34: 0 | DC34: 0 | DD34: 0 | DE34: 0 | DF34: 0 | DG34: 0 | DH34: 0 | DI34: 0
C35: ˃ 11 kV & < = 22 kV ; Multiple-Phase | D35: 70.80437413 | E35: 8.414533507 | F35: 12.60079827 | G35: 21.09302345 | H35: 150.0887385 | I35: 141.4412491 | J35: 124.6795567 | K35: 205.1439746 | L35: 143.3557984 | M35: 145.7437642 | N35: 156.6764836 | O35: 132.2136997 | P35: 132.2514011 | Q35: 98.07889557 | R35: 85.33551021 | S35: 24.63708816 | T35: 66.8113808 | U35: 43.85596594 | V35: 70.82523015 | W35: 121.9160663 | X35: 107.1329428 | Y35: 71.69997824 | Z35: 82.967498 | AA35: 50.92136979 | AB35: 158.3359855 | AC35: 127.0993639 | AD35: 135.4994496 | AE35: 122.7252874 | AF35: 227.2660114 | AG35: 194.5736077 | AH35: 377.0075282 | AI35: 259.4204784 | AJ35: 246.5085792 | AK35: 320.6877616 | AL35: 256.057706 | AM35: 224.3000717 | AN35: 182.3068908 | AO35: 272.2772812 | AP35: 368.9662989 | AQ35: 301.2017679 | AR35: 173.8843308 | AS35: 149.9649543 | AT35: 151.2771269 | AU35: 150.5299711 | AV35: 208.0407401 | AW35: 276.2799157 | AX35: 165.5877443 | AY35: 213.2453413 | AZ35: 260.385313 | BA35: 278.4912526 | BB35: 363.1362477 | BC35: 358.4542829 | BD35: 278.1042251 | BE35: 322.3622007 | BF35: 391.0225164 | BG35: 261.865293 | BH35: 227.0641419 | BI35: 402.4960124 | BJ35: 225.3387817 | BK35: 194.0890378 | BL35: 139.1896075 | BM35: 121.8890929 | BN35: 111.1842074 | BO35: 121.4138594 | BP35: 91.61139992 | BQ35: 97.60348641 | BR35: 79.59404977 | BS35: 98.00513358 | BT35: 79.95016588 | BU35: 93.44448074 | BV35: 0 | BW35: 0 | BX35: 0 | BY35: 0 | BZ35: 0 | CA35: 0 | CB35: 0 | CC35: 0 | CD35: 0 | CE35: 0 | CF35: 0 | CG35: 0 | CH35: 0 | CI35: 0 | CJ35: 0 | CK35: 0 | CL35: 0 | CM35: 0 | CN35: 0 | CO35: 0 | CP35: 0 | CQ35: 0 | CR35: 0 | CS35: 0 | CT35: 0 | CU35: 0 | CV35: 0 | CW35: 0 | CX35: 0 | CY35: 0 | CZ35: 0 | DA35: 0 | DB35: 0 | DC35: 0 | DD35: 0 | DE35: 0 | DF35: 0 | DG35: 0 | DH35: 0 | DI35: 0
C36: > 22 kV & < = 66 kV | D36: 58.95456486 | E36: 7.678187602 | F36: 15.96521774 | G36: 106.7935419 | H36: 70.43061192 | I36: 65.76216101 | J36: 43.1151255 | K36: 88.53308194 | L36: 142.3046976 | M36: 149.355056 | N36: 113.2607757 | O36: 65.72262844 | P36: 180.3307804 | Q36: 132.9673183 | R36: 40.1803192 | S36: 31.89400335 | T36: 37.35507752 | U36: 79.10764182 | V36: 89.81740073 | W36: 121.4557929 | X36: 391.6290046 | Y36: 64.10328634 | Z36: 373.792739 | AA36: 51.02072499 | AB36: 160.9884614 | AC36: 98.17415368 | AD36: 33.81687965 | AE36: 224.3103303 | AF36: 77.35864443 | AG36: 534.5972407 | AH36: 218.3120499 | AI36: 39.26052451 | AJ36: 219.530926 | AK36: 642.807354 | AL36: 220.3806327 | AM36: 404.5950701 | AN36: 106.7179373 | AO36: 310.0119399 | AP36: 181.8735573 | AQ36: 96.67755392 | AR36: 143.4218218 | AS36: 100.1528061 | AT36: 166.1547514 | AU36: 96.92925287 | AV36: 116.1158741 | AW36: 71.72763111 | AX36: 160.0729419 | AY36: 261.980391 | AZ36: 101.9766452 | BA36: 255.8492878 | BB36: 228.5231564 | BC36: 288.2022779 | BD36: 441.4100109 | BE36: 213.6481242 | BF36: 536.5760955 | BG36: 343.8289521 | BH36: 437.4447474 | BI36: 821.3547828 | BJ36: 222.978035 | BK36: 169.8293591 | BL36: 182.6267944 | BM36: 88.00540204 | BN36: 158.013663 | BO36: 124.0877672 | BP36: 123.6406907 | BQ36: 321.1953457 | BR36: 76.04420455 | BS36: 64.63277675 | BT36: 92.6556775 | BU36: 43.96760907 | BV36: 19.04843141 | BW36: 26.60094368 | BX36: 4.918013617 | BY36: 0 | BZ36: 0 | CA36: 0 | CB36: 0 | CC36: 0 | CD36: 0 | CE36: 0 | CF36: 0 | CG36: 0 | CH36: 0 | CI36: 0 | CJ36: 0 | CK36: 0 | CL36: 0 | CM36: 0 | CN36: 0 | CO36: 0 | CP36: 0 | CQ36: 0 | CR36: 0 | CS36: 0 | CT36: 0 | CU36: 0 | CV36: 0 | CW36: 0 | CX36: 0 | CY36: 0 | CZ36: 0 | DA36: 0 | DB36: 0 | DC36: 0 | DD36: 0 | DE36: 0 | DF36: 0 | DG36: 0 | DH36: 0 | DI36: 0
C37: > 66 kV & < = 132 kV | D37: 58.7887703 | E37: 7.667383537 | F37: 0 | G37: 0 | H37: 1.965448839 | I37: 15.79562973 | J37: 3.934054691 | K37: 0.76115604 | L37: 87.87358077 | M37: 63.27572312 | N37: 5.690532256 | O37: 179.2931113 | P37: 13.04117605 | Q37: 2.04765797 | R37: 0.05289319065 | S37: 58.29076483 | T37: 52.08792438 | U37: 183.549106 | V37: 3.448061177 | W37: 0 | X37: 0 | Y37: 0 | Z37: 5.509137142 | AA37: 107.2547804 | AB37: 0.008393180951 | AC37: 28.55211986 | AD37: 64.24041101 | AE37: 6.112849395 | AF37: 0 | AG37: 97.08291205 | AH37: 6.058823904 | AI37: 0.1406157663 | AJ37: 169.6090432 | AK37: 305.5608132 | AL37: 247.521668 | AM37: 64.81525822 | AN37: 10.52335187 | AO37: 96.72562619 | AP37: 9.21359875 | AQ37: 337.7215713 | AR37: 28.78011734 | AS37: 4.96600669 | AT37: 4.961104799 | AU37: 65.23952671 | AV37: 0.09897027881 | AW37: 6.693893643 | AX37: 78.49072298 | AY37: 5.156145096 | AZ37: 4.488306584 | BA37: 43.85801446 | BB37: 44.43610946 | BC37: 52.57647821 | BD37: 43.35711272 | BE37: 50.48571072 | BF37: 174.5692593 | BG37: 19.20295044 | BH37: 0 | BI37: 15.17334396 | BJ37: 0 | BK37: 0 | BL37: 0.002103933862 | BM37: 0.002104399029 | BN37: 0 | BO37: 70.84665096 | BP37: 20.54460814 | BQ37: 71.97414144 | BR37: 0 | BS37: 0 | BT37: 42.0700596 | BU37: 0 | BV37: 0 | BW37: 0 | BX37: 0 | BY37: 0 | BZ37: 0 | CA37: 0 | CB37: 0 | CC37: 0 | CD37: 0 | CE37: 0 | CF37: 0 | CG37: 0 | CH37: 0 | CI37: 0 | CJ37: 0 | CK37: 0 | CL37: 0 | CM37: 0 | CN37: 0 | CO37: 0 | CP37: 0 | CQ37: 0 | CR37: 0 | CS37: 0 | CT37: 0 | CU37: 0 | CV37: 0 | CW37: 0 | CX37: 0 | CY37: 0 | CZ37: 0 | DA37: 0 | DB37: 0 | DC37: 0 | DD37: 0 | DE37: 0 | DF37: 0 | DG37: 0 | DH37: 0 | DI37: 0
C38: > 132 kV | D38: 0 | E38: 0 | F38: 0 | G38: 0 | H38: 0 | I38: 0 | J38: 0 | K38: 0 | L38: 0 | M38: 0 | N38: 0 | O38: 0 | P38: 0 | Q38: 0 | R38: 0 | S38: 0 | T38: 0 | U38: 0 | V38: 0 | W38: 0 | X38: 0 | Y38: 0 | Z38: 0 | AA38: 0 | AB38: 0 | AC38: 0 | AD38: 0 | AE38: 0 | AF38: 0 | AG38: 0 | AH38: 0 | AI38: 0 | AJ38: 0 | AK38: 0 | AL38: 0 | AM38: 0 | AN38: 0 | AO38: 0 | AP38: 0 | AQ38: 0 | AR38: 0 | AS38: 0 | AT38: 0 | AU38: 0 | AV38: 0 | AW38: 0 | AX38: 0 | AY38: 0 | AZ38: 0 | BA38: 0 | BB38: 0 | BC38: 0 | BD38: 0 | BE38: 0 | BF38: 0 | BG38: 0 | BH38: 0 | BI38: 0 | BJ38: 0 | BK38: 0 | BL38: 0 | BM38: 0 | BN38: 0 | BO38: 0 | BP38: 0 | BQ38: 0 | BR38: 0 | BS38: 0 | BT38: 0 | BU38: 0 | BV38: 0 | BW38: 0 | BX38: 0 | BY38: 0 | BZ38: 0 | CA38: 0 | CB38: 0 | CC38: 0 | CD38: 0 | CE38: 0 | CF38: 0 | CG38: 0 | CH38: 0 | CI38: 0 | CJ38: 0 | CK38: 0 | CL38: 0 | CM38: 0 | CN38: 0 | CO38: 0 | CP38: 0 | CQ38: 0 | CR38: 0 | CS38: 0 | CT38: 0 | CU38: 0 | CV38: 0 | CW38: 0 | CX38: 0 | CY38: 0 | CZ38: 0 | DA38: 0 | DB38: 0 | DC38: 0 | DD38: 0 | DE38: 0 | DF38: 0 | DG38: 0 | DH38: 0 | DI38: 0
C39: Other | D39: 0 | E39: 0 | F39: 0 | G39: 0 | H39: 0 | I39: 0 | J39: 0 | K39: 0 | L39: 0 | M39: 0 | N39: 0 | O39: 0 | P39: 0 | Q39: 0 | R39: 0 | S39: 0 | T39: 0 | U39: 0 | V39: 0 | W39: 0 | X39: 0 | Y39: 0 | Z39: 0 | AA39: 0 | AB39: 0 | AC39: 0 | AD39: 0 | AE39: 0 | AF39: 0 | AG39: 0 | AH39: 0 | AI39: 0 | AJ39: 0 | AK39: 0 | AL39: 0 | AM39: 0 | AN39: 0 | AO39: 0 | AP39: 0 | AQ39: 0 | AR39: 0 | AS39: 0 | AT39: 0 | AU39: 0 | AV39: 0 | AW39: 0 | AX39: 0 | AY39: 0 | AZ39: 0 | BA39: 0 | BB39: 0 | BC39: 0 | BD39: 0 | BE39: 0 | BF39: 0 | BG39: 0 | BH39: 0 | BI39: 0 | BJ39: 0 | BK39: 0 | BL39: 0 | BM39: 0 | BN39: 0 | BO39: 0 | BP39: 0 | BQ39: 0 | BR39: 0 | BS39: 0 | BT39: 0 | BU39: 0 | BV39: 0 | BW39: 0 | BX39: 0 | BY39: 0 | BZ39: 0 | CA39: 0 | CB39: 0 | CC39: 0 | CD39: 0 | CE39: 0 | CF39: 0 | CG39: 0 | CH39: 0 | CI39: 0 | CJ39: 0 | CK39: 0 | CL39: 0 | CM39: 0 | CN39: 0 | CO39: 0 | CP39: 0 | CQ39: 0 | CR39: 0 | CS39: 0 | CT39: 0 | CU39: 0 | CV39: 0 | CW39: 0 | CX39: 0 | CY39: 0 | CZ39: 0 | DA39: 0 | DB39: 0 | DC39: 0 | DD39: 0 | DE39: 0 | DF39: 0 | DG39: 0 | DH39: 0 | DI39: 0
B40: UNDERGROUND CABLES BY: HIGHEST OPERATING VOLTAGE | C40: ˂ = 1 kV | D40: 27.92449368 | E40: 5.284363129 | F40: 0 | G40: 5.7785 | H40: 2.51275 | I40: 321.3378677 | J40: 446.1467863 | K40: 466.1883753 | L40: 421.7656368 | M40: 619.5576845 | N40: 1324.001315 | O40: 1460.813213 | P40: 744.7875706 | Q40: 265.4041389 | R40: 367.9102264 | S40: 93.5599375 | T40: 18.14705581 | U40: 13.77695842 | V40: 4.652156216 | W40: 6.418489096 | X40: 4.090602439 | Y40: 2.223565809 | Z40: 3.716440803 | AA40: 0.06483850543 | AB40: 3.373005966 | AC40: 11.47982647 | AD40: 8.466442605 | AE40: 1.744450322 | AF40: 5.574190642 | AG40: 0 | AH40: 1.276154534 | AI40: 0.574121964 | AJ40: 0 | AK40: 0.7611983195 | AL40: 0 | AM40: 0.5342091712 | AN40: 0 | AO40: 0 | AP40: 0.2705381521 | AQ40: 0 | AR40: 0 | AS40: 0 | AT40: 0.0456714658 | AU40: 0 | AV40: 0 | AW40: 0.2007103264 | AX40: 0 | AY40: 0 | AZ40: 0 | BA40: 0.4669338264 | BB40: 0 | BC40: 0 | BD40: 0 | BE40: 0 | BF40: 0 | BG40: 0 | BH40: 0 | BI40: 0 | BJ40: 0 | BK40: 0 | BL40: 0 | BM40: 0 | BN40: 0 | BO40: 0 | BP40: 0 | BQ40: 0 | BR40: 0 | BS40: 0 | BT40: 0 | BU40: 0 | BV40: 0 | BW40: 0 | BX40: 0 | BY40: 0 | BZ40: 0 | CA40: 0 | CB40: 0 | CC40: 0 | CD40: 0 | CE40: 0 | CF40: 0 | CG40: 0 | CH40: 0 | CI40: 0 | CJ40: 0 | CK40: 0 | CL40: 0 | CM40: 0 | CN40: 0 | CO40: 0 | CP40: 0 | CQ40: 0 | CR40: 0 | CS40: 0 | CT40: 0 | CU40: 0 | CV40: 0 | CW40: 0 | CX40: 0 | CY40: 0 | CZ40: 0 | DA40: 0 | DB40: 0 | DC40: 0 | DD40: 0 | DE40: 0 | DF40: 0 | DG40: 0 | DH40: 0 | DI40: 0
C41: > 1 kV & < = 11 kV | D41: 48.53045145 | E41: 6.966380082 | F41: 0.6205710296 | G41: 2.546333333 | H41: 13.60193494 | I41: 71.44806939 | J41: 107.5735248 | K41: 95.82146001 | L41: 114.3818863 | M41: 153.7800712 | N41: 189.1853097 | O41: 172.0768524 | P41: 92.51306053 | Q41: 50.03001145 | R41: 61.22721285 | S41: 47.05548999 | T41: 64.89148281 | U41: 43.05466004 | V41: 16.42103049 | W41: 34.11542134 | X41: 105.8629613 | Y41: 18.74361895 | Z41: 16.26756797 | AA41: 12.73815759 | AB41: 12.63327447 | AC41: 24.21374603 | AD41: 21.37570775 | AE41: 25.38219266 | AF41: 14.76494824 | AG41: 10.96268537 | AH41: 8.669388301 | AI41: 3.764609 | AJ41: 4.261469559 | AK41: 20.48503471 | AL41: 23.10653133 | AM41: 10.82215639 | AN41: 6.629604326 | AO41: 15.55854287 | AP41: 10.05773115 | AQ41: 6.744356423 | AR41: 3.47125697 | AS41: 5.329433421 | AT41: 4.987864954 | AU41: 2.468828023 | AV41: 27.37209787 | AW41: 1.547800103 | AX41: 1.014909858 | AY41: 2.957006297 | AZ41: 2.906605678 | BA41: 1.892421029 | BB41: 1.576372348 | BC41: 0.5509457906 | BD41: 0.597491412 | BE41: 0.5901944436 | BF41: 3.896719085 | BG41: 0.1397671557 | BH41: 0.4297477388 | BI41: 0 | BJ41: 0 | BK41: 0.3473562491 | BL41: 0 | BM41: 0 | BN41: 0.3430531871 | BO41: 0 | BP41: 0.8155979025 | BQ41: 0.04741272027 | BR41: 0 | BS41: 0 | BT41: 0 | BU41: 0.257862962 | BV41: 0 | BW41: 0 | BX41: 0 | BY41: 0 | BZ41: 0 | CA41: 0 | CB41: 0 | CC41: 0 | CD41: 0 | CE41: 0 | CF41: 0 | CG41: 0 | CH41: 0 | CI41: 0.3550450616 | CJ41: 0 | CK41: 0 | CL41: 0 | CM41: 0 | CN41: 0 | CO41: 0 | CP41: 0 | CQ41: 0 | CR41: 0 | CS41: 0 | CT41: 0 | CU41: 0 | CV41: 0 | CW41: 0 | CX41: 0 | CY41: 0 | CZ41: 0 | DA41: 0 | DB41: 0 | DC41: 0 | DD41: 0 | DE41: 0 | DF41: 0 | DG41: 0 | DH41: 0 | DI41: 0
C42: > 11 kV & < = 22 kV | D42: 51.99603116 | E42: 7.210827356 | F42: 0.558595567 | G42: 0.62 | H42: 11.01465197 | I42: 23.36188066 | J42: 18.22483953 | K42: 25.35455609 | L42: 23.03348605 | M42: 37.2323711 | N42: 78.25225334 | O42: 103.5615215 | P42: 34.09759159 | Q42: 17.16542496 | R42: 23.741188 | S42: 14.66975816 | T42: 4.927088567 | U42: 4.242801077 | V42: 5.399205768 | W42: 16.8387493 | X42: 10.90163541 | Y42: 16.44652623 | Z42: 11.86534235 | AA42: 11.42718061 | AB42: 19.35520774 | AC42: 21.30412069 | AD42: 10.34047155 | AE42: 14.8837296 | AF42: 7.000749919 | AG42: 7.992989751 | AH42: 12.4192938 | AI42: 1.368617137 | AJ42: 13.18225591 | AK42: 5.083481718 | AL42: 52.19412667 | AM42: 4.512596835 | AN42: 3.997909508 | AO42: 5.233878391 | AP42: 2.328008388 | AQ42: 6.773409931 | AR42: 1.030641944 | AS42: 0.06491090806 | AT42: 0.2213181062 | AU42: 0.07290088885 | AV42: 4.810839732 | AW42: 0 | AX42: 0.2707054393 | AY42: 0.3244347884 | AZ42: 0.6889452869 | BA42: 1.916111724 | BB42: 0.9570812552 | BC42: 0.338736532 | BD42: 0.1405515204 | BE42: 0 | BF42: 2.946099187 | BG42: 0 | BH42: 0.3420197252 | BI42: 0.1302485981 | BJ42: 0 | BK42: 0.07359513004 | BL42: 0.2368955292 | BM42: 0 | BN42: 0 | BO42: 0.6707953791 | BP42: 0.03741214616 | BQ42: 0.9774679638 | BR42: 0.1700467226 | BS42: 0 | BT42: 0 | BU42: 0.1503634183 | BV42: 0 | BW42: 0 | BX42: 0 | BY42: 0 | BZ42: 0 | CA42: 0 | CB42: 0 | CC42: 0 | CD42: 0 | CE42: 0 | CF42: 0 | CG42: 0 | CH42: 0 | CI42: 0 | CJ42: 0 | CK42: 0 | CL42: 0 | CM42: 0 | CN42: 0 | CO42: 0 | CP42: 0 | CQ42: 0 | CR42: 0 | CS42: 0 | CT42: 0 | CU42: 0 | CV42: 0 | CW42: 0 | CX42: 0 | CY42: 0 | CZ42: 0 | DA42: 0 | DB42: 0 | DC42: 0 | DD42: 0 | DE42: 0 | DF42: 0 | DG42: 0 | DH42: 0 | DI42: 0
C43: > 22 kV & < = 33 kV | D43: 58.80992403 | E43: 7.668762875 | F43: 0 | G43: 0.118 | H43: 0 | I43: 0.5466391154 | J43: 3.784421747 | K43: 2.510516629 | L43: 10.99030578 | M43: 6.160918999 | N43: 5.38836573 | O43: 0.6509594172 | P43: 1.495071028 | Q43: 0.4221814525 | R43: 6.183649131 | S43: 1.487651764 | T43: 0.2630182667 | U43: 2.434603152 | V43: 0 | W43: 0 | X43: 0.316745866 | Y43: 0.2129907891 | Z43: 0.3245637583 | AA43: 0.05150868415 | AB43: 0.008147651366 | AC43: 0 | AD43: 0 | AE43: 0.0623242784 | AF43: 0.2592033189 | AG43: 0.1287271719 | AH43: 0.6710496127 | AI43: 0 | AJ43: 0.1296190086 | AK43: 0 | AL43: 0.3808286468 | AM43: 0 | AN43: 0.2971130278 | AO43: 1.234278041 | AP43: 0.2520948656 | AQ43: 0 | AR43: 0 | AS43: 0 | AT43: 0.8403539816 | AU43: 0 | AV43: 4.443854583 | AW43: 1.327398614 | AX43: 0.840303367 | AY43: 0 | AZ43: 0.5071312607 | BA43: 0 | BB43: 0 | BC43: 0 | BD43: 0.3605427939 | BE43: 0 | BF43: 0.9501367191 | BG43: 0 | BH43: 0 | BI43: 0 | BJ43: 0 | BK43: 0 | BL43: 0 | BM43: 0 | BN43: 0 | BO43: 0 | BP43: 0 | BQ43: 0 | BR43: 0 | BS43: 0 | BT43: 0 | BU43: 0.05046505681 | BV43: 0 | BW43: 0 | BX43: 0 | BY43: 0 | BZ43: 0 | CA43: 0 | CB43: 0 | CC43: 0 | CD43: 0 | CE43: 0 | CF43: 0 | CG43: 0 | CH43: 0 | CI43: 0 | CJ43: 0 | CK43: 0 | CL43: 0 | CM43: 0 | CN43: 0 | CO43: 0 | CP43: 0 | CQ43: 0 | CR43: 0 | CS43: 0 | CT43: 0 | CU43: 0 | CV43: 0 | CW43: 0 | CX43: 0 | CY43: 0 | CZ43: 0 | DA43: 0 | DB43: 0 | DC43: 0 | DD43: 0 | DE43: 0 | DF43: 0 | DG43: 0 | DH43: 0 | DI43: 0
C44: > 33 kV & < = 66 kV | D44: 58.80992403 | E44: 7.668762875 | F44: 0 | G44: 0 | H44: 0 | I44: 0 | J44: 0 | K44: 0 | L44: 0 | M44: 1.26966025 | N44: 7.231699458 | O44: 5.379444726 | P44: 0.9206264163 | Q44: 0 | R44: 0 | S44: 0 | T44: 0 | U44: 0 | V44: 0 | W44: 0 | X44: 2.727620913 | Y44: 0.008070993495 | Z44: 0 | AA44: 0 | AB44: 0.1683359132 | AC44: 0 | AD44: 0 | AE44: 0 | AF44: 0 | AG44: 0.3708664179 | AH44: 0 | AI44: 0.2020540462 | AJ44: 0.7234981109 | AK44: 0 | AL44: 0 | AM44: 0 | AN44: 0 | AO44: 0 | AP44: 0 | AQ44: 0 | AR44: 0 | AS44: 0 | AT44: 0 | AU44: 0 | AV44: 0 | AW44: 0 | AX44: 0 | AY44: 0.7532155586 | AZ44: 0 | BA44: 0 | BB44: 0 | BC44: 0 | BD44: 0 | BE44: 0 | BF44: 0 | BG44: 0 | BH44: 0 | BI44: 0 | BJ44: 0 | BK44: 0 | BL44: 0 | BM44: 0 | BN44: 0 | BO44: 0 | BP44: 0 | BQ44: 0 | BR44: 0 | BS44: 0 | BT44: 0 | BU44: 0 | BV44: 0 | BW44: 0 | BX44: 0 | BY44: 0 | BZ44: 0 | CA44: 0 | CB44: 0 | CC44: 0 | CD44: 0 | CE44: 0 | CF44: 0 | CG44: 0 | CH44: 0 | CI44: 0 | CJ44: 0 | CK44: 0 | CL44: 0 | CM44: 0 | CN44: 0 | CO44: 0 | CP44: 0 | CQ44: 0 | CR44: 0 | CS44: 0 | CT44: 0 | CU44: 0 | CV44: 0 | CW44: 0 | CX44: 0 | CY44: 0 | CZ44: 0 | DA44: 0 | DB44: 0 | DC44: 0 | DD44: 0 | DE44: 0 | DF44: 0 | DG44: 0 | DH44: 0 | DI44: 0
C45: > 66 kV & < = 132 kV | D45: 58.80992403 | E45: 7.668762875 | F45: 0 | G45: 0 | H45: 0 | I45: 0 | J45: 0 | K45: 0 | L45: 0 | M45: 0 | N45: 9.73590181 | O45: 0.9389911228 | P45: 0 | Q45: 0 | R45: 0 | S45: 0 | T45: 0 | U45: 0 | V45: 0 | W45: 0 | X45: 0 | Y45: 0 | Z45: 0 | AA45: 0 | AB45: 0 | AC45: 0 | AD45: 0 | AE45: 0 | AF45: 0 | AG45: 0 | AH45: 0 | AI45: 0 | AJ45: 0 | AK45: 0 | AL45: 0 | AM45: 0 | AN45: 0 | AO45: 0 | AP45: 0 | AQ45: 0 | AR45: 0 | AS45: 0 | AT45: 0 | AU45: 0 | AV45: 0 | AW45: 0 | AX45: 0 | AY45: 0 | AZ45: 0 | BA45: 0 | BB45: 0 | BC45: 0 | BD45: 0 | BE45: 0 | BF45: 0 | BG45: 0 | BH45: 0 | BI45: 0 | BJ45: 0 | BK45: 0 | BL45: 0 | BM45: 0 | BN45: 0 | BO45: 0 | BP45: 0 | BQ45: 0 | BR45: 0 | BS45: 0 | BT45: 0 | BU45: 0 | BV45: 0 | BW45: 0 | BX45: 0 | BY45: 0 | BZ45: 0 | CA45: 0 | CB45: 0 | CC45: 0 | CD45: 0 | CE45: 0 | CF45: 0 | CG45: 0 | CH45: 0 | CI45: 0 | CJ45: 0 | CK45: 0 | CL45: 0 | CM45: 0 | CN45: 0 | CO45: 0 | CP45: 0 | CQ45: 0 | CR45: 0 | CS45: 0 | CT45: 0 | CU45: 0 | CV45: 0 | CW45: 0 | CX45: 0 | CY45: 0 | CZ45: 0 | DA45: 0 | DB45: 0 | DC45: 0 | DD45: 0 | DE45: 0 | DF45: 0 | DG45: 0 | DH45: 0 | DI45: 0
C46: > 132 kV | D46: 0 | E46: 0 | F46: 0 | G46: 0 | H46: 0 | I46: 0 | J46: 0 | K46: 0 | L46: 0 | M46: 0 | N46: 0 | O46: 0 | P46: 0 | Q46: 0 | R46: 0 | S46: 0 | T46: 0 | U46: 0 | V46: 0 | W46: 0 | X46: 0 | Y46: 0 | Z46: 0 | AA46: 0 | AB46: 0 | AC46: 0 | AD46: 0 | AE46: 0 | AF46: 0 | AG46: 0 | AH46: 0 | AI46: 0 | AJ46: 0 | AK46: 0 | AL46: 0 | AM46: 0 | AN46: 0 | AO46: 0 | AP46: 0 | AQ46: 0 | AR46: 0 | AS46: 0 | AT46: 0 | AU46: 0 | AV46: 0 | AW46: 0 | AX46: 0 | AY46: 0 | AZ46: 0 | BA46: 0 | BB46: 0 | BC46: 0 | BD46: 0 | BE46: 0 | BF46: 0 | BG46: 0 | BH46: 0 | BI46: 0 | BJ46: 0 | BK46: 0 | BL46: 0 | BM46: 0 | BN46: 0 | BO46: 0 | BP46: 0 | BQ46: 0 | BR46: 0 | BS46: 0 | BT46: 0 | BU46: 0 | BV46: 0 | BW46: 0 | BX46: 0 | BY46: 0 | BZ46: 0 | CA46: 0 | CB46: 0 | CC46: 0 | CD46: 0 | CE46: 0 | CF46: 0 | CG46: 0 | CH46: 0 | CI46: 0 | CJ46: 0 | CK46: 0 | CL46: 0 | CM46: 0 | CN46: 0 | CO46: 0 | CP46: 0 | CQ46: 0 | CR46: 0 | CS46: 0 | CT46: 0 | CU46: 0 | CV46: 0 | CW46: 0 | CX46: 0 | CY46: 0 | CZ46: 0 | DA46: 0 | DB46: 0 | DC46: 0 | DD46: 0 | DE46: 0 | DF46: 0 | DG46: 0 | DH46: 0 | DI46: 0
C47: Other | D47: 0 | E47: 0 | F47: 0 | G47: 0 | H47: 0 | I47: 0 | J47: 0 | K47: 0 | L47: 0 | M47: 0 | N47: 0 | O47: 0 | P47: 0 | Q47: 0 | R47: 0 | S47: 0 | T47: 0 | U47: 0 | V47: 0 | W47: 0 | X47: 0 | Y47: 0 | Z47: 0 | AA47: 0 | AB47: 0 | AC47: 0 | AD47: 0 | AE47: 0 | AF47: 0 | AG47: 0 | AH47: 0 | AI47: 0 | AJ47: 0 | AK47: 0 | AL47: 0 | AM47: 0 | AN47: 0 | AO47: 0 | AP47: 0 | AQ47: 0 | AR47: 0 | AS47: 0 | AT47: 0 | AU47: 0 | AV47: 0 | AW47: 0 | AX47: 0 | AY47: 0 | AZ47: 0 | BA47: 0 | BB47: 0 | BC47: 0 | BD47: 0 | BE47: 0 | BF47: 0 | BG47: 0 | BH47: 0 | BI47: 0 | BJ47: 0 | BK47: 0 | BL47: 0 | BM47: 0 | BN47: 0 | BO47: 0 | BP47: 0 | BQ47: 0 | BR47: 0 | BS47: 0 | BT47: 0 | BU47: 0 | BV47: 0 | BW47: 0 | BX47: 0 | BY47: 0 | BZ47: 0 | CA47: 0 | CB47: 0 | CC47: 0 | CD47: 0 | CE47: 0 | CF47: 0 | CG47: 0 | CH47: 0 | CI47: 0 | CJ47: 0 | CK47: 0 | CL47: 0 | CM47: 0 | CN47: 0 | CO47: 0 | CP47: 0 | CQ47: 0 | CR47: 0 | CS47: 0 | CT47: 0 | CU47: 0 | CV47: 0 | CW47: 0 | CX47: 0 | CY47: 0 | CZ47: 0 | DA47: 0 | DB47: 0 | DC47: 0 | DD47: 0 | DE47: 0 | DF47: 0 | DG47: 0 | DH47: 0 | DI47: 0
B48: SERVICE LINES BY: CONNECTION VOLTAGE; CUSTOMER TYPE; CONNECTION COMPLEXITY | C48: ˂ = 11 kV ; Residential ; Simple Type | D48: 56.49431599 | E48: 7.516270085 | F48: 264.361343 | G48: 822.2341391 | H48: 2154.092616 | I48: 3387.443825 | J48: 3334.169486 | K48: 3524.147789 | L48: 3114.035896 | M48: 3353.267834 | N48: 3249.734684 | O48: 3887.016401 | P48: 6129.564524 | Q48: 6902.545029 | R48: 7389.050314 | S48: 7816.250203 | T48: 6132.580052 | U48: 6163.740515 | V48: 5503.339745 | W48: 5569.681375 | X48: 5044.979394 | Y48: 5427.95153 | Z48: 5298.283799 | AA48: 5934.560339 | AB48: 6716.58743 | AC48: 6287.377189 | AD48: 6247.17014 | AE48: 7770.012097 | AF48: 6788.960117 | AG48: 6455.241616 | AH48: 6294.413422 | AI48: 5121.372786 | AJ48: 4565.510342 | AK48: 6908.576086 | AL48: 9244.605596 | AM48: 8526.909783 | AN48: 7149.818376 | AO48: 10438.75493 | AP48: 8439.459453 | AQ48: 7177.96331 | AR48: 5127.403843 | AS48: 6882.441504 | AT48: 7906.716062 | AU48: 7915.762648 | AV48: 7843.38996 | AW48: 8483.687206 | AX48: 6877.415623 | AY48: 6885.457033 | AZ48: 6973.91254 | BA48: 7495.598992 | BB48: 6447.200206 | BC48: 5300.294151 | BD48: 3993.565079 | BE48: 3956.373559 | BF48: 3507.059794 | BG48: 2523.997461 | BH48: 3926.218273 | BI48: 2300.848343 | BJ48: 2257.625766 | BK48: 2323.967396 | BL48: 2264.661999 | BM48: 2237.522242 | BN48: 2243.553299 | BO48: 2259.636118 | BP48: 2118.911449 | BQ48: 2149.066735 | BR48: 2187.263431 | BS48: 2216.413541 | BT48: 2198.32037 | BU48: 2248.57918 | BV48: 9.046585883 | BW48: 0 | BX48: 63.32610118 | BY48: 0 | BZ48: 0 | CA48: 0 | CB48: 0 | CC48: 0 | CD48: 0 | CE48: 0 | CF48: 0 | CG48: 0 | CH48: 0 | CI48: 0 | CJ48: 0 | CK48: 0 | CL48: 0 | CM48: 0 | CN48: 0 | CO48: 0 | CP48: 0 | CQ48: 0 | CR48: 0 | CS48: 0 | CT48: 0 | CU48: 0 | CV48: 0 | CW48: 0 | CX48: 0 | CY48: 0 | CZ48: 0 | DA48: 0 | DB48: 0 | DC48: 0 | DD48: 0 | DE48: 0 | DF48: 0 | DG48: 0 | DH48: 0 | DI48: 0
C49: ˂ = 11 kV ; Commercial & Industrial ; Simple Type | D49: 59.06000906 | E49: 7.685051012 | F49: 34.13530116 | G49: 133.5292663 | H49: 359.4246417 | I49: 550.1807364 | J49: 519.0573736 | K49: 582.3080787 | L49: 517.0494147 | M49: 526.0852297 | N49: 655.5985782 | O49: 912.6173164 | P49: 1441.714484 | Q49: 1197.747479 | R49: 1225.858904 | S49: 1086.305761 | T49: 1053.174439 | U49: 1117.429123 | V49: 1049.158521 | W49: 1060.202295 | X49: 978.8799598 | Y49: 1085.301781 | Z49: 1123.453 | AA49: 1303.165321 | AB49: 1545.124367 | AC49: 1147.548507 | AD49: 1055.182398 | AE49: 1097.349534 | AF49: 1137.508712 | AG49: 1200.759417 | AH49: 1145.540548 | AI49: 819.2472279 | AJ49: 997.9555693 | AK49: 1099.357493 | AL49: 1214.81513 | AM49: 1081.285863 | AN49: 942.7366998 | AO49: 1283.085732 | AP49: 1222.846965 | AQ49: 1186.703705 | AR49: 774.0681528 | AS49: 907.5974192 | AT49: 860.4103852 | AU49: 759.0084612 | AV49: 758.0044817 | AW49: 826.275084 | AX49: 692.7458177 | AY49: 714.8333655 | AZ49: 755.9965228 | BA49: 823.2631457 | BB49: 754.9925434 | BC49: 683.7100027 | BD49: 534.1170653 | BE49: 495.9658463 | BF49: 468.8584013 | BG49: 467.8544218 | BH49: 531.1051269 | BI49: 268.0625121 | BJ49: 273.0824093 | BK49: 275.0903682 | BL49: 259.0266971 | BM49: 231.919252 | BN49: 270.070471 | BO49: 328.3012788 | BP49: 255.0107793 | BQ49: 277.0983271 | BR49: 254.0067998 | BS49: 231.919252 | BT49: 260.0306765 | BU49: 285.1301627 | BV49: 2.007958892 | BW49: 0 | BX49: 3.011938338 | BY49: 0 | BZ49: 0 | CA49: 0 | CB49: 0 | CC49: 0 | CD49: 0 | CE49: 0 | CF49: 0 | CG49: 0 | CH49: 0 | CI49: 0 | CJ49: 0 | CK49: 0 | CL49: 0 | CM49: 0 | CN49: 0 | CO49: 0 | CP49: 0 | CQ49: 0 | CR49: 0 | CS49: 0 | CT49: 0 | CU49: 0 | CV49: 0 | CW49: 0 | CX49: 0 | CY49: 0 | CZ49: 0 | DA49: 0 | DB49: 0 | DC49: 0 | DD49: 0 | DE49: 0 | DF49: 0 | DG49: 0 | DH49: 0 | DI49: 0
C50: ˂ = 11 kV ; Residential ; Complex Type | D50: 59.06000906 | E50: 7.685051012 | F50: 0 | G50: 0 | H50: 0 | I50: 0 | J50: 0 | K50: 0 | L50: 0 | M50: 0 | N50: 0 | O50: 0 | P50: 0 | Q50: 0 | R50: 0 | S50: 0 | T50: 0 | U50: 0 | V50: 0 | W50: 0 | X50: 0 | Y50: 0 | Z50: 0 | AA50: 0 | AB50: 0 | AC50: 0 | AD50: 0 | AE50: 0 | AF50: 0 | AG50: 0 | AH50: 0 | AI50: 0 | AJ50: 0 | AK50: 0 | AL50: 0 | AM50: 0 | AN50: 0 | AO50: 0 | AP50: 0 | AQ50: 0 | AR50: 0 | AS50: 0 | AT50: 0 | AU50: 0 | AV50: 0 | AW50: 0 | AX50: 0 | AY50: 0 | AZ50: 0 | BA50: 0 | BB50: 0 | BC50: 0 | BD50: 0 | BE50: 0 | BF50: 0 | BG50: 0 | BH50: 0 | BI50: 0 | BJ50: 0 | BK50: 0 | BL50: 0 | BM50: 0 | BN50: 0 | BO50: 0 | BP50: 0 | BQ50: 0 | BR50: 0 | BS50: 0 | BT50: 0 | BU50: 0 | BV50: 0 | BW50: 0 | BX50: 0 | BY50: 0 | BZ50: 0 | CA50: 0 | CB50: 0 | CC50: 0 | CD50: 0 | CE50: 0 | CF50: 0 | CG50: 0 | CH50: 0 | CI50: 0 | CJ50: 0 | CK50: 0 | CL50: 0 | CM50: 0 | CN50: 0 | CO50: 0 | CP50: 0 | CQ50: 0 | CR50: 0 | CS50: 0 | CT50: 0 | CU50: 0 | CV50: 0 | CW50: 0 | CX50: 0 | CY50: 0 | CZ50: 0 | DA50: 0 | DB50: 0 | DC50: 0 | DD50: 0 | DE50: 0 | DF50: 0 | DG50: 0 | DH50: 0 | DI50: 0
C51: ˂ = 11 kV ; Commercial & Industrial ; Complex Type | D51: 59.06000906 | E51: 7.685051012 | F51: 0 | G51: 0 | H51: 0 | I51: 0 | J51: 0 | K51: 0 | L51: 0 | M51: 0 | N51: 0 | O51: 0 | P51: 0 | Q51: 0 | R51: 0 | S51: 0 | T51: 0 | U51: 0 | V51: 0 | W51: 0 | X51: 0 | Y51: 0 | Z51: 0 | AA51: 0 | AB51: 0 | AC51: 0 | AD51: 0 | AE51: 0 | AF51: 0 | AG51: 0 | AH51: 0 | AI51: 0 | AJ51: 0 | AK51: 0 | AL51: 0 | AM51: 0 | AN51: 0 | AO51: 0 | AP51: 0 | AQ51: 0 | AR51: 0 | AS51: 0 | AT51: 0 | AU51: 0 | AV51: 0 | AW51: 0 | AX51: 0 | AY51: 0 | AZ51: 0 | BA51: 0 | BB51: 0 | BC51: 0 | BD51: 0 | BE51: 0 | BF51: 0 | BG51: 0 | BH51: 0 | BI51: 0 | BJ51: 0 | BK51: 0 | BL51: 0 | BM51: 0 | BN51: 0 | BO51: 0 | BP51: 0 | BQ51: 0 | BR51: 0 | BS51: 0 | BT51: 0 | BU51: 0 | BV51: 0 | BW51: 0 | BX51: 0 | BY51: 0 | BZ51: 0 | CA51: 0 | CB51: 0 | CC51: 0 | CD51: 0 | CE51: 0 | CF51: 0 | CG51: 0 | CH51: 0 | CI51: 0 | CJ51: 0 | CK51: 0 | CL51: 0 | CM51: 0 | CN51: 0 | CO51: 0 | CP51: 0 | CQ51: 0 | CR51: 0 | CS51: 0 | CT51: 0 | CU51: 0 | CV51: 0 | CW51: 0 | CX51: 0 | CY51: 0 | CZ51: 0 | DA51: 0 | DB51: 0 | DC51: 0 | DD51: 0 | DE51: 0 | DF51: 0 | DG51: 0 | DH51: 0 | DI51: 0
C52: ˂ = 11 kV ; Subdivision ; Complex Type | D52: 59.06000906 | E52: 7.685051012 | F52: 0 | G52: 0 | H52: 0 | I52: 0 | J52: 0 | K52: 0 | L52: 0 | M52: 0 | N52: 0 | O52: 0 | P52: 0 | Q52: 0 | R52: 0 | S52: 0 | T52: 0 | U52: 0 | V52: 0 | W52: 0 | X52: 0 | Y52: 0 | Z52: 0 | AA52: 0 | AB52: 0 | AC52: 0 | AD52: 0 | AE52: 0 | AF52: 0 | AG52: 0 | AH52: 0 | AI52: 0 | AJ52: 0 | AK52: 0 | AL52: 0 | AM52: 0 | AN52: 0 | AO52: 0 | AP52: 0 | AQ52: 0 | AR52: 0 | AS52: 0 | AT52: 0 | AU52: 0 | AV52: 0 | AW52: 0 | AX52: 0 | AY52: 0 | AZ52: 0 | BA52: 0 | BB52: 0 | BC52: 0 | BD52: 0 | BE52: 0 | BF52: 0 | BG52: 0 | BH52: 0 | BI52: 0 | BJ52: 0 | BK52: 0 | BL52: 0 | BM52: 0 | BN52: 0 | BO52: 0 | BP52: 0 | BQ52: 0 | BR52: 0 | BS52: 0 | BT52: 0 | BU52: 0 | BV52: 0 | BW52: 0 | BX52: 0 | BY52: 0 | BZ52: 0 | CA52: 0 | CB52: 0 | CC52: 0 | CD52: 0 | CE52: 0 | CF52: 0 | CG52: 0 | CH52: 0 | CI52: 0 | CJ52: 0 | CK52: 0 | CL52: 0 | CM52: 0 | CN52: 0 | CO52: 0 | CP52: 0 | CQ52: 0 | CR52: 0 | CS52: 0 | CT52: 0 | CU52: 0 | CV52: 0 | CW52: 0 | CX52: 0 | CY52: 0 | CZ52: 0 | DA52: 0 | DB52: 0 | DC52: 0 | DD52: 0 | DE52: 0 | DF52: 0 | DG52: 0 | DH52: 0 | DI52: 0
C53: > 11 kV & < = 22 kV ; Commercial & Industrial | D53: 59.06000906 | E53: 7.685051012 | F53: 0 | G53: 0 | H53: 0 | I53: 0 | J53: 0 | K53: 0 | L53: 0 | M53: 0 | N53: 0 | O53: 0 | P53: 0 | Q53: 0 | R53: 0 | S53: 0 | T53: 0 | U53: 0 | V53: 0 | W53: 0 | X53: 0 | Y53: 0 | Z53: 0 | AA53: 0 | AB53: 0 | AC53: 0 | AD53: 0 | AE53: 0 | AF53: 0 | AG53: 0 | AH53: 0 | AI53: 0 | AJ53: 0 | AK53: 0 | AL53: 0 | AM53: 0 | AN53: 0 | AO53: 0 | AP53: 0 | AQ53: 0 | AR53: 0 | AS53: 0 | AT53: 0 | AU53: 0 | AV53: 0 | AW53: 0 | AX53: 0 | AY53: 0 | AZ53: 0 | BA53: 0 | BB53: 0 | BC53: 0 | BD53: 0 | BE53: 0 | BF53: 0 | BG53: 0 | BH53: 0 | BI53: 0 | BJ53: 0 | BK53: 0 | BL53: 0 | BM53: 0 | BN53: 0 | BO53: 0 | BP53: 0 | BQ53: 0 | BR53: 0 | BS53: 0 | BT53: 0 | BU53: 0 | BV53: 0 | BW53: 0 | BX53: 0 | BY53: 0 | BZ53: 0 | CA53: 0 | CB53: 0 | CC53: 0 | CD53: 0 | CE53: 0 | CF53: 0 | CG53: 0 | CH53: 0 | CI53: 0 | CJ53: 0 | CK53: 0 | CL53: 0 | CM53: 0 | CN53: 0 | CO53: 0 | CP53: 0 | CQ53: 0 | CR53: 0 | CS53: 0 | CT53: 0 | CU53: 0 | CV53: 0 | CW53: 0 | CX53: 0 | CY53: 0 | CZ53: 0 | DA53: 0 | DB53: 0 | DC53: 0 | DD53: 0 | DE53: 0 | DF53: 0 | DG53: 0 | DH53: 0 | DI53: 0
C54: > 11 kV & < = 22 kV ; Subdivision | D54: 59.06000906 | E54: 7.685051012 | F54: 0 | G54: 0 | H54: 0 | I54: 0 | J54: 0 | K54: 0 | L54: 0 | M54: 0 | N54: 0 | O54: 0 | P54: 0 | Q54: 0 | R54: 0 | S54: 0 | T54: 0 | U54: 0 | V54: 0 | W54: 0 | X54: 0 | Y54: 0 | Z54: 0 | AA54: 0 | AB54: 0 | AC54: 0 | AD54: 0 | AE54: 0 | AF54: 0 | AG54: 0 | AH54: 0 | AI54: 0 | AJ54: 0 | AK54: 0 | AL54: 0 | AM54: 0 | AN54: 0 | AO54: 0 | AP54: 0 | AQ54: 0 | AR54: 0 | AS54: 0 | AT54: 0 | AU54: 0 | AV54: 0 | AW54: 0 | AX54: 0 | AY54: 0 | AZ54: 0 | BA54: 0 | BB54: 0 | BC54: 0 | BD54: 0 | BE54: 0 | BF54: 0 | BG54: 0 | BH54: 0 | BI54: 0 | BJ54: 0 | BK54: 0 | BL54: 0 | BM54: 0 | BN54: 0 | BO54: 0 | BP54: 0 | BQ54: 0 | BR54: 0 | BS54: 0 | BT54: 0 | BU54: 0 | BV54: 0 | BW54: 0 | BX54: 0 | BY54: 0 | BZ54: 0 | CA54: 0 | CB54: 0 | CC54: 0 | CD54: 0 | CE54: 0 | CF54: 0 | CG54: 0 | CH54: 0 | CI54: 0 | CJ54: 0 | CK54: 0 | CL54: 0 | CM54: 0 | CN54: 0 | CO54: 0 | CP54: 0 | CQ54: 0 | CR54: 0 | CS54: 0 | CT54: 0 | CU54: 0 | CV54: 0 | CW54: 0 | CX54: 0 | CY54: 0 | CZ54: 0 | DA54: 0 | DB54: 0 | DC54: 0 | DD54: 0 | DE54: 0 | DF54: 0 | DG54: 0 | DH54: 0 | DI54: 0
C55: > 22 kV & < = 33 kV ; Commercial & Industrial | D55: 59.06000906 | E55: 7.685051012 | F55: 0 | G55: 0 | H55: 0 | I55: 0 | J55: 0 | K55: 0 | L55: 0 | M55: 0 | N55: 0 | O55: 0 | P55: 0 | Q55: 0 | R55: 0 | S55: 0 | T55: 0 | U55: 0 | V55: 0 | W55: 0 | X55: 0 | Y55: 0 | Z55: 0 | AA55: 0 | AB55: 0 | AC55: 0 | AD55: 0 | AE55: 0 | AF55: 0 | AG55: 0 | AH55: 0 | AI55: 0 | AJ55: 0 | AK55: 0 | AL55: 0 | AM55: 0 | AN55: 0 | AO55: 0 | AP55: 0 | AQ55: 0 | AR55: 0 | AS55: 0 | AT55: 0 | AU55: 0 | AV55: 0 | AW55: 0 | AX55: 0 | AY55: 0 | AZ55: 0 | BA55: 0 | BB55: 0 | BC55: 0 | BD55: 0 | BE55: 0 | BF55: 0 | BG55: 0 | BH55: 0 | BI55: 0 | BJ55: 0 | BK55: 0 | BL55: 0 | BM55: 0 | BN55: 0 | BO55: 0 | BP55: 0 | BQ55: 0 | BR55: 0 | BS55: 0 | BT55: 0 | BU55: 0 | BV55: 0 | BW55: 0 | BX55: 0 | BY55: 0 | BZ55: 0 | CA55: 0 | CB55: 0 | CC55: 0 | CD55: 0 | CE55: 0 | CF55: 0 | CG55: 0 | CH55: 0 | CI55: 0 | CJ55: 0 | CK55: 0 | CL55: 0 | CM55: 0 | CN55: 0 | CO55: 0 | CP55: 0 | CQ55: 0 | CR55: 0 | CS55: 0 | CT55: 0 | CU55: 0 | CV55: 0 | CW55: 0 | CX55: 0 | CY55: 0 | CZ55: 0 | DA55: 0 | DB55: 0 | DC55: 0 | DD55: 0 | DE55: 0 | DF55: 0 | DG55: 0 | DH55: 0 | DI55: 0
C56: > 22 kV & < = 33 kV ; Subdivision | D56: 59.06000906 | E56: 7.685051012 | F56: 0 | G56: 0 | H56: 0 | I56: 0 | J56: 0 | K56: 0 | L56: 0 | M56: 0 | N56: 0 | O56: 0 | P56: 0 | Q56: 0 | R56: 0 | S56: 0 | T56: 0 | U56: 0 | V56: 0 | W56: 0 | X56: 0 | Y56: 0 | Z56: 0 | AA56: 0 | AB56: 0 | AC56: 0 | AD56: 0 | AE56: 0 | AF56: 0 | AG56: 0 | AH56: 0 | AI56: 0 | AJ56: 0 | AK56: 0 | AL56: 0 | AM56: 0 | AN56: 0 | AO56: 0 | AP56: 0 | AQ56: 0 | AR56: 0 | AS56: 0 | AT56: 0 | AU56: 0 | AV56: 0 | AW56: 0 | AX56: 0 | AY56: 0 | AZ56: 0 | BA56: 0 | BB56: 0 | BC56: 0 | BD56: 0 | BE56: 0 | BF56: 0 | BG56: 0 | BH56: 0 | BI56: 0 | BJ56: 0 | BK56: 0 | BL56: 0 | BM56: 0 | BN56: 0 | BO56: 0 | BP56: 0 | BQ56: 0 | BR56: 0 | BS56: 0 | BT56: 0 | BU56: 0 | BV56: 0 | BW56: 0 | BX56: 0 | BY56: 0 | BZ56: 0 | CA56: 0 | CB56: 0 | CC56: 0 | CD56: 0 | CE56: 0 | CF56: 0 | CG56: 0 | CH56: 0 | CI56: 0 | CJ56: 0 | CK56: 0 | CL56: 0 | CM56: 0 | CN56: 0 | CO56: 0 | CP56: 0 | CQ56: 0 | CR56: 0 | CS56: 0 | CT56: 0 | CU56: 0 | CV56: 0 | CW56: 0 | CX56: 0 | CY56: 0 | CZ56: 0 | DA56: 0 | DB56: 0 | DC56: 0 | DD56: 0 | DE56: 0 | DF56: 0 | DG56: 0 | DH56: 0 | DI56: 0
C57: > 33 kV & < = 66 kV ; Commercial & Industrial | D57: 59.06000906 | E57: 7.685051012 | F57: 0 | G57: 0 | H57: 0 | I57: 0 | J57: 0 | K57: 0 | L57: 0 | M57: 0 | N57: 0 | O57: 0 | P57: 0 | Q57: 0 | R57: 0 | S57: 0 | T57: 0 | U57: 0 | V57: 0 | W57: 0 | X57: 0 | Y57: 0 | Z57: 0 | AA57: 0 | AB57: 0 | AC57: 0 | AD57: 0 | AE57: 0 | AF57: 0 | AG57: 0 | AH57: 0 | AI57: 0 | AJ57: 0 | AK57: 0 | AL57: 0 | AM57: 0 | AN57: 0 | AO57: 0 | AP57: 0 | AQ57: 0 | AR57: 0 | AS57: 0 | AT57: 0 | AU57: 0 | AV57: 0 | AW57: 0 | AX57: 0 | AY57: 0 | AZ57: 0 | BA57: 0 | BB57: 0 | BC57: 0 | BD57: 0 | BE57: 0 | BF57: 0 | BG57: 0 | BH57: 0 | BI57: 0 | BJ57: 0 | BK57: 0 | BL57: 0 | BM57: 0 | BN57: 0 | BO57: 0 | BP57: 0 | BQ57: 0 | BR57: 0 | BS57: 0 | BT57: 0 | BU57: 0 | BV57: 0 | BW57: 0 | BX57: 0 | BY57: 0 | BZ57: 0 | CA57: 0 | CB57: 0 | CC57: 0 | CD57: 0 | CE57: 0 | CF57: 0 | CG57: 0 | CH57: 0 | CI57: 0 | CJ57: 0 | CK57: 0 | CL57: 0 | CM57: 0 | CN57: 0 | CO57: 0 | CP57: 0 | CQ57: 0 | CR57: 0 | CS57: 0 | CT57: 0 | CU57: 0 | CV57: 0 | CW57: 0 | CX57: 0 | CY57: 0 | CZ57: 0 | DA57: 0 | DB57: 0 | DC57: 0 | DD57: 0 | DE57: 0 | DF57: 0 | DG57: 0 | DH57: 0 | DI57: 0
C58: > 33 kV & < = 66 kV ; Subdivision | D58: 59.06000906 | E58: 7.685051012 | F58: 0 | G58: 0 | H58: 0 | I58: 0 | J58: 0 | K58: 0 | L58: 0 | M58: 0 | N58: 0 | O58: 0 | P58: 0 | Q58: 0 | R58: 0 | S58: 0 | T58: 0 | U58: 0 | V58: 0 | W58: 0 | X58: 0 | Y58: 0 | Z58: 0 | AA58: 0 | AB58: 0 | AC58: 0 | AD58: 0 | AE58: 0 | AF58: 0 | AG58: 0 | AH58: 0 | AI58: 0 | AJ58: 0 | AK58: 0 | AL58: 0 | AM58: 0 | AN58: 0 | AO58: 0 | AP58: 0 | AQ58: 0 | AR58: 0 | AS58: 0 | AT58: 0 | AU58: 0 | AV58: 0 | AW58: 0 | AX58: 0 | AY58: 0 | AZ58: 0 | BA58: 0 | BB58: 0 | BC58: 0 | BD58: 0 | BE58: 0 | BF58: 0 | BG58: 0 | BH58: 0 | BI58: 0 | BJ58: 0 | BK58: 0 | BL58: 0 | BM58: 0 | BN58: 0 | BO58: 0 | BP58: 0 | BQ58: 0 | BR58: 0 | BS58: 0 | BT58: 0 | BU58: 0 | BV58: 0 | BW58: 0 | BX58: 0 | BY58: 0 | BZ58: 0 | CA58: 0 | CB58: 0 | CC58: 0 | CD58: 0 | CE58: 0 | CF58: 0 | CG58: 0 | CH58: 0 | CI58: 0 | CJ58: 0 | CK58: 0 | CL58: 0 | CM58: 0 | CN58: 0 | CO58: 0 | CP58: 0 | CQ58: 0 | CR58: 0 | CS58: 0 | CT58: 0 | CU58: 0 | CV58: 0 | CW58: 0 | CX58: 0 | CY58: 0 | CZ58: 0 | DA58: 0 | DB58: 0 | DC58: 0 | DD58: 0 | DE58: 0 | DF58: 0 | DG58: 0 | DH58: 0 | DI58: 0
C59: > 66 kV & < = 132 kV ; Commercial & Industrial | D59: 59.06000906 | E59: 7.685051012 | F59: 0 | G59: 0 | H59: 0 | I59: 0 | J59: 0 | K59: 0 | L59: 0 | M59: 0 | N59: 0 | O59: 0 | P59: 0 | Q59: 0 | R59: 0 | S59: 0 | T59: 0 | U59: 0 | V59: 0 | W59: 0 | X59: 0 | Y59: 0 | Z59: 0 | AA59: 0 | AB59: 0 | AC59: 0 | AD59: 0 | AE59: 0 | AF59: 0 | AG59: 0 | AH59: 0 | AI59: 0 | AJ59: 0 | AK59: 0 | AL59: 0 | AM59: 0 | AN59: 0 | AO59: 0 | AP59: 0 | AQ59: 0 | AR59: 0 | AS59: 0 | AT59: 0 | AU59: 0 | AV59: 0 | AW59: 0 | AX59: 0 | AY59: 0 | AZ59: 0 | BA59: 0 | BB59: 0 | BC59: 0 | BD59: 0 | BE59: 0 | BF59: 0 | BG59: 0 | BH59: 0 | BI59: 0 | BJ59: 0 | BK59: 0 | BL59: 0 | BM59: 0 | BN59: 0 | BO59: 0 | BP59: 0 | BQ59: 0 | BR59: 0 | BS59: 0 | BT59: 0 | BU59: 0 | BV59: 0 | BW59: 0 | BX59: 0 | BY59: 0 | BZ59: 0 | CA59: 0 | CB59: 0 | CC59: 0 | CD59: 0 | CE59: 0 | CF59: 0 | CG59: 0 | CH59: 0 | CI59: 0 | CJ59: 0 | CK59: 0 | CL59: 0 | CM59: 0 | CN59: 0 | CO59: 0 | CP59: 0 | CQ59: 0 | CR59: 0 | CS59: 0 | CT59: 0 | CU59: 0 | CV59: 0 | CW59: 0 | CX59: 0 | CY59: 0 | CZ59: 0 | DA59: 0 | DB59: 0 | DC59: 0 | DD59: 0 | DE59: 0 | DF59: 0 | DG59: 0 | DH59: 0 | DI59: 0
C60: > 66 kV & < = 132 kV ; Subdivision | D60: 59.06000906 | E60: 7.685051012 | F60: 0 | G60: 0 | H60: 0 | I60: 0 | J60: 0 | K60: 0 | L60: 0 | M60: 0 | N60: 0 | O60: 0 | P60: 0 | Q60: 0 | R60: 0 | S60: 0 | T60: 0 | U60: 0 | V60: 0 | W60: 0 | X60: 0 | Y60: 0 | Z60: 0 | AA60: 0 | AB60: 0 | AC60: 0 | AD60: 0 | AE60: 0 | AF60: 0 | AG60: 0 | AH60: 0 | AI60: 0 | AJ60: 0 | AK60: 0 | AL60: 0 | AM60: 0 | AN60: 0 | AO60: 0 | AP60: 0 | AQ60: 0 | AR60: 0 | AS60: 0 | AT60: 0 | AU60: 0 | AV60: 0 | AW60: 0 | AX60: 0 | AY60: 0 | AZ60: 0 | BA60: 0 | BB60: 0 | BC60: 0 | BD60: 0 | BE60: 0 | BF60: 0 | BG60: 0 | BH60: 0 | BI60: 0 | BJ60: 0 | BK60: 0 | BL60: 0 | BM60: 0 | BN60: 0 | BO60: 0 | BP60: 0 | BQ60: 0 | BR60: 0 | BS60: 0 | BT60: 0 | BU60: 0 | BV60: 0 | BW60: 0 | BX60: 0 | BY60: 0 | BZ60: 0 | CA60: 0 | CB60: 0 | CC60: 0 | CD60: 0 | CE60: 0 | CF60: 0 | CG60: 0 | CH60: 0 | CI60: 0 | CJ60: 0 | CK60: 0 | CL60: 0 | CM60: 0 | CN60: 0 | CO60: 0 | CP60: 0 | CQ60: 0 | CR60: 0 | CS60: 0 | CT60: 0 | CU60: 0 | CV60: 0 | CW60: 0 | CX60: 0 | CY60: 0 | CZ60: 0 | DA60: 0 | DB60: 0 | DC60: 0 | DD60: 0 | DE60: 0 | DF60: 0 | DG60: 0 | DH60: 0 | DI60: 0
C61: > 132 kV ; Commercial & Industrial | D61: 59.06000906 | E61: 7.685051012 | F61: 0 | G61: 0 | H61: 0 | I61: 0 | J61: 0 | K61: 0 | L61: 0 | M61: 0 | N61: 0 | O61: 0 | P61: 0 | Q61: 0 | R61: 0 | S61: 0 | T61: 0 | U61: 0 | V61: 0 | W61: 0 | X61: 0 | Y61: 0 | Z61: 0 | AA61: 0 | AB61: 0 | AC61: 0 | AD61: 0 | AE61: 0 | AF61: 0 | AG61: 0 | AH61: 0 | AI61: 0 | AJ61: 0 | AK61: 0 | AL61: 0 | AM61: 0 | AN61: 0 | AO61: 0 | AP61: 0 | AQ61: 0 | AR61: 0 | AS61: 0 | AT61: 0 | AU61: 0 | AV61: 0 | AW61: 0 | AX61: 0 | AY61: 0 | AZ61: 0 | BA61: 0 | BB61: 0 | BC61: 0 | BD61: 0 | BE61: 0 | BF61: 0 | BG61: 0 | BH61: 0 | BI61: 0 | BJ61: 0 | BK61: 0 | BL61: 0 | BM61: 0 | BN61: 0 | BO61: 0 | BP61: 0 | BQ61: 0 | BR61: 0 | BS61: 0 | BT61: 0 | BU61: 0 | BV61: 0 | BW61: 0 | BX61: 0 | BY61: 0 | BZ61: 0 | CA61: 0 | CB61: 0 | CC61: 0 | CD61: 0 | CE61: 0 | CF61: 0 | CG61: 0 | CH61: 0 | CI61: 0 | CJ61: 0 | CK61: 0 | CL61: 0 | CM61: 0 | CN61: 0 | CO61: 0 | CP61: 0 | CQ61: 0 | CR61: 0 | CS61: 0 | CT61: 0 | CU61: 0 | CV61: 0 | CW61: 0 | CX61: 0 | CY61: 0 | CZ61: 0 | DA61: 0 | DB61: 0 | DC61: 0 | DD61: 0 | DE61: 0 | DF61: 0 | DG61: 0 | DH61: 0 | DI61: 0
C62: > 132 kV ; Subdivision | D62: 59.06000906 | E62: 7.685051012 | F62: 0 | G62: 0 | H62: 0 | I62: 0 | J62: 0 | K62: 0 | L62: 0 | M62: 0 | N62: 0 | O62: 0 | P62: 0 | Q62: 0 | R62: 0 | S62: 0 | T62: 0 | U62: 0 | V62: 0 | W62: 0 | X62: 0 | Y62: 0 | Z62: 0 | AA62: 0 | AB62: 0 | AC62: 0 | AD62: 0 | AE62: 0 | AF62: 0 | AG62: 0 | AH62: 0 | AI62: 0 | AJ62: 0 | AK62: 0 | AL62: 0 | AM62: 0 | AN62: 0 | AO62: 0 | AP62: 0 | AQ62: 0 | AR62: 0 | AS62: 0 | AT62: 0 | AU62: 0 | AV62: 0 | AW62: 0 | AX62: 0 | AY62: 0 | AZ62: 0 | BA62: 0 | BB62: 0 | BC62: 0 | BD62: 0 | BE62: 0 | BF62: 0 | BG62: 0 | BH62: 0 | BI62: 0 | BJ62: 0 | BK62: 0 | BL62: 0 | BM62: 0 | BN62: 0 | BO62: 0 | BP62: 0 | BQ62: 0 | BR62: 0 | BS62: 0 | BT62: 0 | BU62: 0 | BV62: 0 | BW62: 0 | BX62: 0 | BY62: 0 | BZ62: 0 | CA62: 0 | CB62: 0 | CC62: 0 | CD62: 0 | CE62: 0 | CF62: 0 | CG62: 0 | CH62: 0 | CI62: 0 | CJ62: 0 | CK62: 0 | CL62: 0 | CM62: 0 | CN62: 0 | CO62: 0 | CP62: 0 | CQ62: 0 | CR62: 0 | CS62: 0 | CT62: 0 | CU62: 0 | CV62: 0 | CW62: 0 | CX62: 0 | CY62: 0 | CZ62: 0 | DA62: 0 | DB62: 0 | DC62: 0 | DD62: 0 | DE62: 0 | DF62: 0 | DG62: 0 | DH62: 0 | DI62: 0
C63: Other | D63: 0 | E63: 0 | F63: 0 | G63: 0 | H63: 0 | I63: 0 | J63: 0 | K63: 0 | L63: 0 | M63: 0 | N63: 0 | O63: 0 | P63: 0 | Q63: 0 | R63: 0 | S63: 0 | T63: 0 | U63: 0 | V63: 0 | W63: 0 | X63: 0 | Y63: 0 | Z63: 0 | AA63: 0 | AB63: 0 | AC63: 0 | AD63: 0 | AE63: 0 | AF63: 0 | AG63: 0 | AH63: 0 | AI63: 0 | AJ63: 0 | AK63: 0 | AL63: 0 | AM63: 0 | AN63: 0 | AO63: 0 | AP63: 0 | AQ63: 0 | AR63: 0 | AS63: 0 | AT63: 0 | AU63: 0 | AV63: 0 | AW63: 0 | AX63: 0 | AY63: 0 | AZ63: 0 | BA63: 0 | BB63: 0 | BC63: 0 | BD63: 0 | BE63: 0 | BF63: 0 | BG63: 0 | BH63: 0 | BI63: 0 | BJ63: 0 | BK63: 0 | BL63: 0 | BM63: 0 | BN63: 0 | BO63: 0 | BP63: 0 | BQ63: 0 | BR63: 0 | BS63: 0 | BT63: 0 | BU63: 0 | BV63: 0 | BW63: 0 | BX63: 0 | BY63: 0 | BZ63: 0 | CA63: 0 | CB63: 0 | CC63: 0 | CD63: 0 | CE63: 0 | CF63: 0 | CG63: 0 | CH63: 0 | CI63: 0 | CJ63: 0 | CK63: 0 | CL63: 0 | CM63: 0 | CN63: 0 | CO63: 0 | CP63: 0 | CQ63: 0 | CR63: 0 | CS63: 0 | CT63: 0 | CU63: 0 | CV63: 0 | CW63: 0 | CX63: 0 | CY63: 0 | CZ63: 0 | DA63: 0 | DB63: 0 | DC63: 0 | DD63: 0 | DE63: 0 | DF63: 0 | DG63: 0 | DH63: 0 | DI63: 0
B64: TRANSFORMERS BY: MOUNTING TYPE; HIGHEST OPERATING VOLTAGE ; AMPERE RATING; NUMBER OF PHASES (AT LV) | C64: Pole Mounted ; < = 22kV ; < = 60 kVA ; Single Phase | D64: 46.96714987 | E64: 6.85325834 | F64: 282.0381909 | G64: 347.5717946 | H64: 1114.876808 | I64: 1110.874462 | J64: 909.6703566 | K64: 863.8423363 | L64: 1062.085233 | M64: 1467.124695 | N64: 1899.531781 | O64: 1580.463 | P64: 1124.09731 | Q64: 1103.611464 | R64: 1041.686725 | S64: 970.5913905 | T64: 686.1102393 | U64: 709.6072015 | V64: 717.9986733 | W64: 631.5607894 | X64: 686.2474842 | Y64: 572.2728623 | Z64: 624.1605463 | AA64: 729.9932326 | AB64: 871.2301026 | AC64: 747.2184253 | AD64: 686.4970204 | AE64: 719.6816873 | AF64: 740.9965631 | AG64: 819.4796635 | AH64: 871.2924866 | AI64: 722.8550025 | AJ64: 866.2490053 | AK64: 791.8555879 | AL64: 857.8824871 | AM64: 849.0362894 | AN64: 726.0532713 | AO64: 979.9366606 | AP64: 941.5587906 | AQ64: 720.6354856 | AR64: 475.6357245 | AS64: 385.1830184 | AT64: 428.8539059 | AU64: 333.3202881 | AV64: 437.9995471 | AW64: 534.5867777 | AX64: 323.1459877 | AY64: 351.6864312 | AZ64: 358.7248468 | BA64: 378.0572651 | BB64: 305.9332718 | BC64: 276.4515068 | BD64: 229.682165 | BE64: 214.4394298 | BF64: 712.6807022 | BG64: 268.2721408 | BH64: 132.1660897 | BI64: 32.51783524 | BJ64: 11.19048267 | BK64: 15.24273527 | BL64: 16.25891762 | BM64: 6.097094108 | BN64: 2.032364703 | BO64: 1.016182351 | BP64: 22.35601173 | BQ64: 1.016182351 | BR64: 0 | BS64: 1.016182351 | BT64: 0 | BU64: 0 | BV64: 0 | BW64: 0 | BX64: 0 | BY64: 0 | BZ64: 0 | CA64: 0 | CB64: 0 | CC64: 0 | CD64: 0 | CE64: 0 | CF64: 0 | CG64: 0 | CH64: 0 | CI64: 0 | CJ64: 0 | CK64: 0 | CL64: 0 | CM64: 0 | CN64: 0 | CO64: 0 | CP64: 0 | CQ64: 0 | CR64: 0 | CS64: 0 | CT64: 0 | CU64: 0 | CV64: 0 | CW64: 0 | CX64: 0 | CY64: 0 | CZ64: 0 | DA64: 0 | DB64: 0 | DC64: 0 | DD64: 0 | DE64: 0 | DF64: 0 | DG64: 0 | DH64: 0 | DI64: 0 | DJ64: 0 | DK64: 0
C65: Pole Mounted ; < = 22kV ; > 60 kVA and < = 600 kVA ; Single Phase | D65: 42.80092876 | E65: 6.542241876 | F65: 10.515553 | G65: 8.34067835 | H65: 31.44962942 | I65: 27.25904488 | J65: 26.26201216 | K65: 20.87194124 | L65: 17.75937088 | M65: 19.79392706 | N65: 79.41865262 | O65: 57.46869719 | P65: 45.26136016 | Q65: 20.99341344 | R65: 16.6813567 | S65: 14.72778199 | T65: 7.384136362 | U65: 12.69322582 | V65: 9.418692534 | W65: 12.49077216 | X65: 10.37523452 | Y65: 7.303154897 | Z65: 8.34067835 | AA65: 4.271566005 | AB65: 13.60927707 | AC65: 7.34364563 | AD65: 6.306122177 | AE65: 13.56878634 | AF65: 10.45621599 | AG65: 10.41572525 | AH65: 7.303154897 | AI65: 12.49077216 | AJ65: 21.82848323 | AK65: 19.75343632 | AL65: 7.262664165 | AM65: 11.5747209 | AN65: 18.8778758 | AO65: 14.60630979 | AP65: 9.337711069 | AQ65: 2.075046904 | AR65: 2.075046904 | AS65: 9.337711069 | AT65: 1.037523452 | AU65: 0 | AV65: 3.112570356 | AW65: 7.262664165 | AX65: 3.112570356 | AY65: 8.34067835 | AZ65: 3.112570356 | BA65: 4.231075273 | BB65: 1.037523452 | BC65: 1.078014184 | BD65: 4.150093809 | BE65: 0 | BF65: 2.156028369 | BG65: 4.231075273 | BH65: 3.193551821 | BI65: 1.078014184 | BJ65: 0 | BK65: 1.078014184 | BL65: 0 | BM65: 0 | BN65: 0 | BO65: 0 | BP65: 0 | BQ65: 0 | BR65: 0 | BS65: 0 | BT65: 0 | BU65: 0 | BV65: 0 | BW65: 0 | BX65: 0 | BY65: 0 | BZ65: 0 | CA65: 0 | CB65: 0 | CC65: 0 | CD65: 0 | CE65: 0 | CF65: 0 | CG65: 0 | CH65: 0 | CI65: 0 | CJ65: 0 | CK65: 0 | CL65: 0 | CM65: 0 | CN65: 0 | CO65: 0 | CP65: 0 | CQ65: 0 | CR65: 0 | CS65: 0 | CT65: 0 | CU65: 0 | CV65: 0 | CW65: 0 | CX65: 0 | CY65: 0 | CZ65: 0 | DA65: 0 | DB65: 0 | DC65: 0 | DD65: 0 | DE65: 0 | DF65: 0 | DG65: 0 | DH65: 0 | DI65: 0 | DJ65: 0 | DK65: 0
C66: Pole Mounted ; < = 22kV ; > 600 kVA ; Single Phase | D66: 21.89904891 | E66: 4.679641964 | F66: 0 | G66: 0 | H66: 0 | I66: 0 | J66: 0 | K66: 0 | L66: 0 | M66: 0 | N66: 0 | O66: 0 | P66: 3 | Q66: 0 | R66: 0 | S66: 0 | T66: 0 | U66: 0 | V66: 0 | W66: 0 | X66: 0 | Y66: 0 | Z66: 0 | AA66: 0 | AB66: 0 | AC66: 0 | AD66: 0 | AE66: 0 | AF66: 0 | AG66: 0 | AH66: 0 | AI66: 0 | AJ66: 0 | AK66: 0 | AL66: 0 | AM66: 0 | AN66: 0 | AO66: 0 | AP66: 0 | AQ66: 0 | AR66: 0 | AS66: 0 | AT66: 0 | AU66: 0 | AV66: 0 | AW66: 0 | AX66: 0 | AY66: 0 | AZ66: 0 | BA66: 0 | BB66: 0 | BC66: 0 | BD66: 0 | BE66: 0 | BF66: 0 | BG66: 0 | BH66: 0 | BI66: 0 | BJ66: 0 | BK66: 0 | BL66: 0 | BM66: 0 | BN66: 0 | BO66: 0 | BP66: 0 | BQ66: 0 | BR66: 0 | BS66: 0 | BT66: 0 | BU66: 0 | BV66: 0 | BW66: 0 | BX66: 0 | BY66: 0 | BZ66: 0 | CA66: 0 | CB66: 0 | CC66: 0 | CD66: 0 | CE66: 0 | CF66: 0 | CG66: 0 | CH66: 0 | CI66: 0 | CJ66: 0 | CK66: 0 | CL66: 0 | CM66: 0 | CN66: 0 | CO66: 0 | CP66: 0 | CQ66: 0 | CR66: 0 | CS66: 0 | CT66: 0 | CU66: 0 | CV66: 0 | CW66: 0 | CX66: 0 | CY66: 0 | CZ66: 0 | DA66: 0 | DB66: 0 | DC66: 0 | DD66: 0 | DE66: 0 | DF66: 0 | DG66: 0 | DH66: 0 | DI66: 0 | DJ66: 0 | DK66: 0
C67: Pole Mounted ; < = 22kV ; < = 60 kVA ; Multiple Phase | D67: 50.51604165 | E67: 7.107463798 | F67: 121.790741 | G67: 160.8157958 | H67: 521.8489304 | I67: 440.8472705 | J67: 351.2167561 | K67: 370.2208226 | L67: 482.4179751 | M67: 1366.281678 | N67: 604.9903397 | O67: 554.3495961 | P67: 370.3972964 | Q67: 328.7971794 | R67: 366.3825081 | S67: 351.0402824 | T67: 390.2947638 | U67: 514.6833425 | V67: 520.720231 | W67: 555.1253479 | X67: 479.2965879 | Y67: 661.3738488 | Z67: 617.898693 | AA67: 800.8399426 | AB67: 854.4255997 | AC67: 891.8638669 | AD67: 781.5417532 | AE67: 744.2505474 | AF67: 758.3464247 | AG67: 820.1087197 | AH67: 639.1013335 | AI67: 485.4217133 | AJ67: 525.8343063 | AK67: 624.8878071 | AL67: 632.9467959 | AM67: 671.3667009 | AN67: 610.6742806 | AO67: 760.3097004 | AP67: 650.1640604 | AQ67: 646.0610353 | AR67: 418.5747553 | AS67: 465.1124737 | AT67: 403.4090033 | AU67: 346.7901958 | AV67: 289.1897505 | AW67: 318.480792 | AX67: 269.9503856 | AY67: 348.8122961 | AZ67: 255.8250961 | BA67: 349.8821708 | BB67: 299.3296641 | BC67: 287.2264748 | BD67: 294.2155888 | BE67: 289.1603382 | BF67: 375.1290118 | BG67: 252.7625334 | BH67: 114.2486651 | BI67: 24.2652032 | BJ67: 25.27625334 | BK67: 15.165752 | BL67: 18.1989024 | BM67: 14.15470187 | BN67: 6.066300801 | BO67: 3.0331504 | BP67: 37.40885494 | BQ67: 1.011050133 | BR67: 0 | BS67: 2.022100267 | BT67: 2.022100267 | BU67: 3.0331504 | BV67: 1.011050133 | BW67: 2.022100267 | BX67: 0 | BY67: 3.0331504 | BZ67: 0 | CA67: 0 | CB67: 0 | CC67: 2.022100267 | CD67: 0 | CE67: 0 | CF67: 0 | CG67: 0 | CH67: 0 | CI67: 1.011050133 | CJ67: 0 | CK67: 0 | CL67: 0 | CM67: 0 | CN67: 0 | CO67: 0 | CP67: 0 | CQ67: 0 | CR67: 0 | CS67: 0 | CT67: 0 | CU67: 0 | CV67: 0 | CW67: 0 | CX67: 0 | CY67: 0 | CZ67: 0 | DA67: 0 | DB67: 0 | DC67: 0 | DD67: 0 | DE67: 0 | DF67: 0 | DG67: 0 | DH67: 0 | DI67: 0 | DJ67: 0 | DK67: 0
C68: Pole Mounted ; < = 22kV ; > 60 kVA and < = 600 kVA ; Multiple Phase | D68: 42.80092876 | E68: 6.542241876 | F68: 276.549868 | G68: 304.5034233 | H68: 1061.811351 | I68: 998.3282321 | J68: 979.2033385 | K68: 843.0446472 | L68: 902.4952005 | M68: 1543.576357 | N68: 1784.671148 | O68: 1588.202736 | P68: 906.617151 | Q68: 819.7754571 | R68: 702.8086977 | S68: 573.6474072 | T68: 495.0868578 | U68: 501.0761171 | V68: 432.5448417 | W68: 461.7585989 | X68: 426.5630311 | Y68: 518.2070738 | Z68: 516.1907908 | AA68: 497.0435511 | AB68: 560.5266704 | AC68: 481.91398 | AD68: 332.7164877 | AE68: 355.903742 | AF68: 353.8800104 | AG68: 395.2063629 | AH68: 297.4017406 | AI68: 250.0339878 | AJ68: 232.880685 | AK68: 299.4180236 | AL68: 365.9553622 | AM68: 307.4906042 | AN68: 279.2551937 | AO68: 404.3019824 | AP68: 407.3338556 | AQ68: 361.9376936 | AR68: 200.6201572 | AS68: 225.8236946 | AT68: 249.0109489 | AU68: 222.7992701 | AV68: 204.6527232 | AW68: 195.5868985 | AX68: 154.2456485 | AY68: 160.2944975 | AZ68: 141.1398091 | BA68: 156.2768289 | BB68: 145.1723751 | BC68: 126.0325841 | BD68: 103.8385738 | BE68: 120.9769792 | BF68: 285.3189401 | BG68: 81.66690968 | BH68: 42.34194273 | BI68: 9.073273442 | BJ68: 8.065131948 | BK68: 20.16282987 | BL68: 12.09769792 | BM68: 19.15468838 | BN68: 8.065131948 | BO68: 3.024424481 | BP68: 116.9444133 | BQ68: 2.016282987 | BR68: 4.032565974 | BS68: 4.032565974 | BT68: 4.032565974 | BU68: 1.008141494 | BV68: 4.032565974 | BW68: 2.016282987 | BX68: 2.016282987 | BY68: 9.073273442 | BZ68: 0 | CA68: 0 | CB68: 1.008141494 | CC68: 0 | CD68: 1.008141494 | CE68: 2.016282987 | CF68: 0 | CG68: 0 | CH68: 0 | CI68: 0 | CJ68: 1.008141494 | CK68: 0 | CL68: 0 | CM68: 0 | CN68: 0 | CO68: 0 | CP68: 0 | CQ68: 0 | CR68: 0 | CS68: 0 | CT68: 0 | CU68: 0 | CV68: 0 | CW68: 0 | CX68: 0 | CY68: 0 | CZ68: 0 | DA68: 0 | DB68: 0 | DC68: 0 | DD68: 0 | DE68: 0 | DF68: 0 | DG68: 0 | DH68: 0 | DI68: 0 | DJ68: 0 | DK68: 0
C69: Pole Mounted ; < = 22kV ; > 600 kVA ; Multiple Phase | D69: 21.89904891 | E69: 4.679641964 | F69: 18.52173913 | G69: 84.34782609 | H69: 122.4492754 | I69: 122.4492754 | J69: 127.5942029 | K69: 104.9275362 | L69: 124.5072464 | M69: 82.28985507 | N69: 102.7826087 | O69: 70.97101449 | P69: 97.72463768 | Q69: 115.2463768 | R69: 62.76811594 | S69: 80.26086957 | T69: 32.86956522 | U69: 51.44927536 | V69: 28.8115942 | W69: 13.37681159 | X69: 17.46376812 | Y69: 43.2173913 | Z69: 12.31884058 | AA69: 8.173913043 | AB69: 13.23188406 | AC69: 3.086956522 | AD69: 3.086956522 | AE69: 5.144927536 | AF69: 3.057971014 | AG69: 1.028985507 | AH69: 2.057971014 | AI69: 1.028985507 | AJ69: 8.202898551 | AK69: 2.057971014 | AL69: 5.144927536 | AM69: 2 | AN69: 4.086956522 | AO69: 3.057971014 | AP69: 4.057971014 | AQ69: 0 | AR69: 0 | AS69: 0 | AT69: 1.028985507 | AU69: 0 | AV69: 1.028985507 | AW69: 0 | AX69: 0 | AY69: 1 | AZ69: 3.057971014 | BA69: 0 | BB69: 0 | BC69: 1 | BD69: 1.028985507 | BE69: 0 | BF69: 0 | BG69: 0 | BH69: 0 | BI69: 0 | BJ69: 0 | BK69: 0 | BL69: 0 | BM69: 0 | BN69: 0 | BO69: 0 | BP69: 0 | BQ69: 0 | BR69: 0 | BS69: 0 | BT69: 0 | BU69: 0 | BV69: 0 | BW69: 0 | BX69: 0 | BY69: 0 | BZ69: 0 | CA69: 0 | CB69: 0 | CC69: 0 | CD69: 0 | CE69: 0 | CF69: 0 | CG69: 0 | CH69: 0 | CI69: 0 | CJ69: 0 | CK69: 0 | CL69: 0 | CM69: 0 | CN69: 0 | CO69: 0 | CP69: 0 | CQ69: 0 | CR69: 0 | CS69: 0 | CT69: 0 | CU69: 0 | CV69: 0 | CW69: 0 | CX69: 0 | CY69: 0 | CZ69: 0 | DA69: 0 | DB69: 0 | DC69: 0 | DD69: 0 | DE69: 0 | DF69: 0 | DG69: 0 | DH69: 0 | DI69: 0 | DJ69: 0 | DK69: 0
C70: Kiosk Mounted ; < = 22kV ; < = 60 kVA ; Single Phase | D70: 47.05673146 | E70: 6.85979092 | F70: 0.06 | G70: 0 | H70: 3.580645161 | I70: 0 | J70: 0 | K70: 0 | L70: 0 | M70: 53.70967742 | N70: 14.32258065 | O70: 0 | P70: 14.76129032 | Q70: 0 | R70: 0 | S70: 0 | T70: 0 | U70: 0 | V70: 3.580645161 | W70: 0 | X70: 0 | Y70: 7.6 | Z70: 3.8 | AA70: 0 | AB70: 3.580645161 | AC70: 0 | AD70: 0 | AE70: 0 | AF70: 3.580645161 | AG70: 0 | AH70: 10.74193548 | AI70: 0 | AJ70: 0 | AK70: 0 | AL70: 0 | AM70: 0 | AN70: 0 | AO70: 0 | AP70: 0 | AQ70: 3.580645161 | AR70: 0 | AS70: 0 | AT70: 0 | AU70: 0 | AV70: 0 | AW70: 0 | AX70: 0 | AY70: 0 | AZ70: 3.580645161 | BA70: 0 | BB70: 0 | BC70: 0 | BD70: 0 | BE70: 0 | BF70: 3.580645161 | BG70: 0 | BH70: 0 | BI70: 0 | BJ70: 0 | BK70: 0 | BL70: 0 | BM70: 0 | BN70: 0 | BO70: 0 | BP70: 0 | BQ70: 0 | BR70: 0 | BS70: 0 | BT70: 0 | BU70: 0 | BV70: 0 | BW70: 0 | BX70: 0 | BY70: 0 | BZ70: 0 | CA70: 0 | CB70: 0 | CC70: 0 | CD70: 0 | CE70: 0 | CF70: 0 | CG70: 0 | CH70: 0 | CI70: 0 | CJ70: 0 | CK70: 0 | CL70: 0 | CM70: 0 | CN70: 0 | CO70: 0 | CP70: 0 | CQ70: 0 | CR70: 0 | CS70: 0 | CT70: 0 | CU70: 0 | CV70: 0 | CW70: 0 | CX70: 0 | CY70: 0 | CZ70: 0 | DA70: 0 | DB70: 0 | DC70: 0 | DD70: 0 | DE70: 0 | DF70: 0 | DG70: 0 | DH70: 0 | DI70: 0 | DJ70: 0 | DK70: 0
C71: Kiosk Mounted ; < = 22kV ; > 60 kVA and < = 600 kVA ; Single Phase | D71: 0 | E71: 0 | F71: 0 | G71: 0 | H71: 0 | I71: 0 | J71: 0 | K71: 0 | L71: 0 | M71: 0 | N71: 0 | O71: 0 | P71: 0 | Q71: 0 | R71: 0 | S71: 0 | T71: 0 | U71: 0 | V71: 0 | W71: 0 | X71: 0 | Y71: 0 | Z71: 0 | AA71: 0 | AB71: 0 | AC71: 0 | AD71: 0 | AE71: 0 | AF71: 0 | AG71: 0 | AH71: 0 | AI71: 0 | AJ71: 0 | AK71: 0 | AL71: 0 | AM71: 0 | AN71: 0 | AO71: 0 | AP71: 0 | AQ71: 0 | AR71: 0 | AS71: 0 | AT71: 0 | AU71: 0 | AV71: 0 | AW71: 0 | AX71: 0 | AY71: 0 | AZ71: 0 | BA71: 0 | BB71: 0 | BC71: 0 | BD71: 0 | BE71: 0 | BF71: 0 | BG71: 0 | BH71: 0 | BI71: 0 | BJ71: 0 | BK71: 0 | BL71: 0 | BM71: 0 | BN71: 0 | BO71: 0 | BP71: 0 | BQ71: 0 | BR71: 0 | BS71: 0 | BT71: 0 | BU71: 0 | BV71: 0 | BW71: 0 | BX71: 0 | BY71: 0 | BZ71: 0 | CA71: 0 | CB71: 0 | CC71: 0 | CD71: 0 | CE71: 0 | CF71: 0 | CG71: 0 | CH71: 0 | CI71: 0 | CJ71: 0 | CK71: 0 | CL71: 0 | CM71: 0 | CN71: 0 | CO71: 0 | CP71: 0 | CQ71: 0 | CR71: 0 | CS71: 0 | CT71: 0 | CU71: 0 | CV71: 0 | CW71: 0 | CX71: 0 | CY71: 0 | CZ71: 0 | DA71: 0 | DB71: 0 | DC71: 0 | DD71: 0 | DE71: 0 | DF71: 0 | DG71: 0 | DH71: 0 | DI71: 0 | DJ71: 0 | DK71: 0
C72: Kiosk Mounted ; < = 22kV ; > 600 kVA ; Single Phase | D72: 0 | E72: 0 | F72: 0 | G72: 0 | H72: 0 | I72: 0 | J72: 0 | K72: 0 | L72: 0 | M72: 0 | N72: 0 | O72: 0 | P72: 0 | Q72: 0 | R72: 0 | S72: 0 | T72: 0 | U72: 0 | V72: 0 | W72: 0 | X72: 0 | Y72: 0 | Z72: 0 | AA72: 0 | AB72: 0 | AC72: 0 | AD72: 0 | AE72: 0 | AF72: 0 | AG72: 0 | AH72: 0 | AI72: 0 | AJ72: 0 | AK72: 0 | AL72: 0 | AM72: 0 | AN72: 0 | AO72: 0 | AP72: 0 | AQ72: 0 | AR72: 0 | AS72: 0 | AT72: 0 | AU72: 0 | AV72: 0 | AW72: 0 | AX72: 0 | AY72: 0 | AZ72: 0 | BA72: 0 | BB72: 0 | BC72: 0 | BD72: 0 | BE72: 0 | BF72: 0 | BG72: 0 | BH72: 0 | BI72: 0 | BJ72: 0 | BK72: 0 | BL72: 0 | BM72: 0 | BN72: 0 | BO72: 0 | BP72: 0 | BQ72: 0 | BR72: 0 | BS72: 0 | BT72: 0 | BU72: 0 | BV72: 0 | BW72: 0 | BX72: 0 | BY72: 0 | BZ72: 0 | CA72: 0 | CB72: 0 | CC72: 0 | CD72: 0 | CE72: 0 | CF72: 0 | CG72: 0 | CH72: 0 | CI72: 0 | CJ72: 0 | CK72: 0 | CL72: 0 | CM72: 0 | CN72: 0 | CO72: 0 | CP72: 0 | CQ72: 0 | CR72: 0 | CS72: 0 | CT72: 0 | CU72: 0 | CV72: 0 | CW72: 0 | CX72: 0 | CY72: 0 | CZ72: 0 | DA72: 0 | DB72: 0 | DC72: 0 | DD72: 0 | DE72: 0 | DF72: 0 | DG72: 0 | DH72: 0 | DI72: 0 | DJ72: 0 | DK72: 0
C73: Kiosk Mounted ; < = 22kV ; < = 60 kVA ; Multiple Phase | D73: 47.05673146 | E73: 6.85979092 | F73: 0 | G73: 14.19904373 | H73: 32.32940692 | I73: 34.94028055 | J73: 43.53601849 | K73: 20.55546056 | L73: 25.96298407 | M73: 45.76533359 | N73: 40.72936259 | O73: 39.24315253 | P73: 48.02466673 | Q73: 48.95354802 | R73: 11.77394636 | S73: 23.73366898 | T73: 0 | U73: 14.38481999 | V73: 8.781514202 | W73: 10.09195402 | X73: 1.681992337 | Y73: 12.14549888 | Z73: 0 | AA73: 3.363984674 | AB73: 6.727969349 | AC73: 5.045977011 | AD73: 0 | AE73: 6.727969349 | AF73: 10.09195402 | AG73: 11.95972262 | AH73: 6.913745607 | AI73: 3.363984674 | AJ73: 7.285298122 | AK73: 6.727969349 | AL73: 6.913745607 | AM73: 3.549760932 | AN73: 10.27773028 | AO73: 5.231753269 | AP73: 6.913745607 | AQ73: 0 | AR73: 1.681992337 | AS73: 1.681992337 | AT73: 0 | AU73: 8.967290459 | AV73: 0 | AW73: 3.363984674 | AX73: 0 | AY73: 6.913745607 | AZ73: 5.603305785 | BA73: 3.363984674 | BB73: 1.681992337 | BC73: 3.549760932 | BD73: 5.045977011 | BE73: 3.549760932 | BF73: 0 | BG73: 12.33127513 | BH73: 1.681992337 | BI73: 5.045977011 | BJ73: 3.363984674 | BK73: 1.681992337 | BL73: 5.045977011 | BM73: 0 | BN73: 0 | BO73: 0 | BP73: 0 | BQ73: 7.285298122 | BR73: 0 | BS73: 0 | BT73: 0 | BU73: 1.681992337 | BV73: 0 | BW73: 1.681992337 | BX73: 0 | BY73: 0 | BZ73: 0 | CA73: 0 | CB73: 0 | CC73: 1.867768595 | CD73: 0 | CE73: 0 | CF73: 0 | CG73: 0 | CH73: 0 | CI73: 0 | CJ73: 0 | CK73: 0 | CL73: 0 | CM73: 0 | CN73: 0 | CO73: 0 | CP73: 0 | CQ73: 0 | CR73: 0 | CS73: 0 | CT73: 0 | CU73: 0 | CV73: 0 | CW73: 0 | CX73: 0 | CY73: 0 | CZ73: 0 | DA73: 0 | DB73: 0 | DC73: 0 | DD73: 0 | DE73: 0 | DF73: 0 | DG73: 0 | DH73: 0 | DI73: 0 | DJ73: 0 | DK73: 0
C74: Kiosk Mounted ; < = 22kV ; > 60 kVA and < = 600 kVA ; Multiple Phase | D74: 47.05673146 | E74: 6.85979092 | F74: 18.04978269 | G74: 24.50819017 | H74: 137.0662205 | I74: 191.980823 | J74: 258.3571714 | K74: 193.4596484 | L74: 240.9972034 | M74: 247.5819017 | N74: 325.7546944 | O74: 408.6986616 | P74: 323.3776468 | Q74: 344.135837 | R74: 346.635837 | S74: 306.3523771 | T74: 199.1290451 | U74: 117.4350779 | V74: 92.92688773 | W74: 102.3462845 | X74: 78.85926888 | Y74: 74.54574511 | Z74: 57.41460248 | AA74: 66.37634838 | AB74: 103.1386336 | AC74: 107.223332 | AD74: 87.82101478 | AE74: 72.50339592 | AF74: 65.5839992 | AG74: 57.41460248 | AH74: 55.14342789 | AI74: 28.59288853 | AJ74: 28.82171394 | AK74: 29.61406312 | AL74: 17.35996804 | AM74: 36.76228526 | AN74: 29.84288853 | AO74: 43.91050739 | AP74: 43.91050739 | AQ74: 17.35996804 | AR74: 9.190571314 | AS74: 18.38114263 | AT74: 4.313523771 | AU74: 13.27526968 | AV74: 12.4829205 | AW74: 14.29644427 | AX74: 16.33879345 | AY74: 2.042349181 | AZ74: 9.190571314 | BA74: 10.2117459 | BB74: 10.2117459 | BC74: 3.063523771 | BD74: 12.7117459 | BE74: 2.042349181 | BF74: 7.377047543 | BG74: 3.063523771 | BH74: 10.2117459 | BI74: 0 | BJ74: 4.313523771 | BK74: 1.02117459 | BL74: 0 | BM74: 0 | BN74: 0 | BO74: 0 | BP74: 0 | BQ74: 0 | BR74: 0 | BS74: 0 | BT74: 0 | BU74: 0 | BV74: 0 | BW74: 0 | BX74: 0 | BY74: 3.063523771 | BZ74: 0 | CA74: 0 | CB74: 0 | CC74: 0 | CD74: 0 | CE74: 1.02117459 | CF74: 0 | CG74: 0 | CH74: 0 | CI74: 10.2117459 | CJ74: 0 | CK74: 0 | CL74: 0 | CM74: 0 | CN74: 0 | CO74: 0 | CP74: 0 | CQ74: 0 | CR74: 0 | CS74: 0 | CT74: 1.02117459 | CU74: 0 | CV74: 0 | CW74: 0 | CX74: 0 | CY74: 0 | CZ74: 0 | DA74: 0 | DB74: 0 | DC74: 0 | DD74: 0 | DE74: 0 | DF74: 0 | DG74: 0 | DH74: 0 | DI74: 0 | DJ74: 0 | DK74: 0
C75: Kiosk Mounted ; < = 22kV ; > 600 kVA ; Multiple Phase | D75: 44.8395789 | E75: 6.696236174 | F75: 13.02040816 | G75: 22.52683903 | H75: 59.39129864 | I75: 61.44323775 | J75: 73.73262681 | K75: 76.80126649 | L75: 91.14630225 | M75: 146.4300151 | N75: 160.7787584 | O75: 189.4577072 | P75: 134.1554564 | Q75: 83.97378437 | R75: 122.8864755 | S75: 87.04983923 | T75: 75.78085832 | U75: 53.24289652 | V75: 41.98503839 | W75: 52.22990354 | X75: 29.68081895 | Y75: 39.9256841 | Z75: 46.08150141 | AA75: 54.27442746 | AB75: 16.3821445 | AC75: 32.77170418 | AD75: 7.168810289 | AE75: 7.165102697 | AF75: 16.37102172 | AG75: 11.25415053 | AH75: 29.69935691 | AI75: 3.072347267 | AJ75: 14.33762058 | AK75: 12.28938907 | AL75: 13.31350482 | AM75: 14.33762058 | AN75: 6.144694534 | AO75: 5.120578778 | AP75: 9.217041801 | AQ75: 3.072347267 | AR75: 5.120578778 | AS75: 11.26527331 | AT75: 9.217041801 | AU75: 3.072347267 | AV75: 4.09275543 | AW75: 0 | AX75: 1.024115756 | AY75: 1.024115756 | AZ75: 3.072347267 | BA75: 1.024115756 | BB75: 1.024115756 | BC75: 6.144694534 | BD75: 2.048231511 | BE75: 0 | BF75: 0 | BG75: 1.024115756 | BH75: 2.040816327 | BI75: 0 | BJ75: 0 | BK75: 1.024115756 | BL75: 0 | BM75: 0 | BN75: 1.020408163 | BO75: 0 | BP75: 1.024115756 | BQ75: 0 | BR75: 0 | BS75: 0 | BT75: 0 | BU75: 0 | BV75: 0 | BW75: 0 | BX75: 0 | BY75: 1.024115756 | BZ75: 0 | CA75: 0 | CB75: 0 | CC75: 0 | CD75: 1.020408163 | CE75: 0 | CF75: 0 | CG75: 0 | CH75: 0 | CI75: 0 | CJ75: 0 | CK75: 0 | CL75: 0 | CM75: 0 | CN75: 0 | CO75: 0 | CP75: 0 | CQ75: 0 | CR75: 0 | CS75: 0 | CT75: 0 | CU75: 0 | CV75: 0 | CW75: 0 | CX75: 0 | CY75: 0 | CZ75: 0 | DA75: 0 | DB75: 0 | DC75: 0 | DD75: 0 | DE75: 0 | DF75: 0 | DG75: 0 | DH75: 0 | DI75: 0 | DJ75: 0 | DK75: 0
C76: Ground Outdoor / Indoor Chamber Mounted; ˂ 22 kV ; < = 60 kVA ; Single Phase | D76: 0 | E76: 0 | F76: 0 | G76: 0 | H76: 0 | I76: 0 | J76: 0 | K76: 0 | L76: 0 | M76: 1 | N76: 0 | O76: 0 | P76: 0 | Q76: 0 | R76: 0 | S76: 0 | T76: 0 | U76: 0 | V76: 0 | W76: 0 | X76: 0 | Y76: 0 | Z76: 0 | AA76: 0 | AB76: 0 | AC76: 0 | AD76: 0 | AE76: 0 | AF76: 0 | AG76: 0 | AH76: 0 | AI76: 2 | AJ76: 0 | AK76: 0 | AL76: 0 | AM76: 0 | AN76: 0 | AO76: 0 | AP76: 0 | AQ76: 0 | AR76: 0 | AS76: 0 | AT76: 0 | AU76: 0 | AV76: 0 | AW76: 0 | AX76: 0 | AY76: 0 | AZ76: 0 | BA76: 0 | BB76: 0 | BC76: 0 | BD76: 0 | BE76: 0 | BF76: 0 | BG76: 0 | BH76: 0 | BI76: 0 | BJ76: 0 | BK76: 0 | BL76: 0 | BM76: 0 | BN76: 0 | BO76: 0 | BP76: 0 | BQ76: 0 | BR76: 0 | BS76: 0 | BT76: 0 | BU76: 0 | BV76: 0 | BW76: 0 | BX76: 0 | BY76: 0 | BZ76: 0 | CA76: 0 | CB76: 0 | CC76: 0 | CD76: 0 | CE76: 0 | CF76: 0 | CG76: 0 | CH76: 0 | CI76: 0 | CJ76: 0 | CK76: 0 | CL76: 0 | CM76: 0 | CN76: 0 | CO76: 0 | CP76: 0 | CQ76: 0 | CR76: 0 | CS76: 0 | CT76: 0 | CU76: 0 | CV76: 0 | CW76: 0 | CX76: 0 | CY76: 0 | CZ76: 0 | DA76: 0 | DB76: 0 | DC76: 0 | DD76: 0 | DE76: 0 | DF76: 0 | DG76: 0 | DH76: 0 | DI76: 0 | DJ76: 0 | DK76: 0
C77: Ground Outdoor / Indoor Chamber Mounted; ˂ 22 kV ; > 60 kVA and < = 600 kVA ; Single Phase | D77: 0 | E77: 0 | F77: 0 | G77: 0 | H77: 0 | I77: 0 | J77: 0 | K77: 0 | L77: 0 | M77: 0 | N77: 0 | O77: 0 | P77: 0 | Q77: 0 | R77: 0 | S77: 0 | T77: 0 | U77: 0 | V77: 0 | W77: 0 | X77: 0 | Y77: 0 | Z77: 0 | AA77: 0 | AB77: 0 | AC77: 0 | AD77: 0 | AE77: 0 | AF77: 0 | AG77: 0 | AH77: 0 | AI77: 0 | AJ77: 0 | AK77: 0 | AL77: 0 | AM77: 0 | AN77: 0 | AO77: 0 | AP77: 0 | AQ77: 0 | AR77: 0 | AS77: 0 | AT77: 0 | AU77: 0 | AV77: 0 | AW77: 0 | AX77: 0 | AY77: 0 | AZ77: 0 | BA77: 0 | BB77: 0 | BC77: 0 | BD77: 0 | BE77: 0 | BF77: 0 | BG77: 0 | BH77: 0 | BI77: 0 | BJ77: 0 | BK77: 0 | BL77: 0 | BM77: 0 | BN77: 0 | BO77: 0 | BP77: 0 | BQ77: 0 | BR77: 0 | BS77: 0 | BT77: 0 | BU77: 0 | BV77: 0 | BW77: 0 | BX77: 0 | BY77: 0 | BZ77: 0 | CA77: 0 | CB77: 0 | CC77: 0 | CD77: 0 | CE77: 0 | CF77: 0 | CG77: 0 | CH77: 0 | CI77: 0 | CJ77: 0 | CK77: 0 | CL77: 0 | CM77: 0 | CN77: 0 | CO77: 0 | CP77: 0 | CQ77: 0 | CR77: 0 | CS77: 0 | CT77: 0 | CU77: 0 | CV77: 0 | CW77: 0 | CX77: 0 | CY77: 0 | CZ77: 0 | DA77: 0 | DB77: 0 | DC77: 0 | DD77: 0 | DE77: 0 | DF77: 0 | DG77: 0 | DH77: 0 | DI77: 0 | DJ77: 0 | DK77: 0
C78: Ground Outdoor / Indoor Chamber Mounted; ˂ 22 kV ; > 600 kVA ; Single Phase | D78: 0 | E78: 0 | F78: 0 | G78: 0 | H78: 0 | I78: 0 | J78: 0 | K78: 0 | L78: 0 | M78: 0 | N78: 0 | O78: 0 | P78: 0 | Q78: 0 | R78: 0 | S78: 0 | T78: 0 | U78: 0 | V78: 0 | W78: 0 | X78: 0 | Y78: 0 | Z78: 0 | AA78: 0 | AB78: 0 | AC78: 0 | AD78: 0 | AE78: 0 | AF78: 0 | AG78: 0 | AH78: 0 | AI78: 0 | AJ78: 0 | AK78: 0 | AL78: 0 | AM78: 0 | AN78: 0 | AO78: 0 | AP78: 0 | AQ78: 0 | AR78: 0 | AS78: 0 | AT78: 0 | AU78: 0 | AV78: 0 | AW78: 0 | AX78: 0 | AY78: 0 | AZ78: 0 | BA78: 0 | BB78: 0 | BC78: 0 | BD78: 0 | BE78: 0 | BF78: 0 | BG78: 0 | BH78: 0 | BI78: 0 | BJ78: 0 | BK78: 0 | BL78: 0 | BM78: 0 | BN78: 0 | BO78: 0 | BP78: 0 | BQ78: 0 | BR78: 0 | BS78: 0 | BT78: 0 | BU78: 0 | BV78: 0 | BW78: 0 | BX78: 0 | BY78: 0 | BZ78: 0 | CA78: 0 | CB78: 0 | CC78: 0 | CD78: 0 | CE78: 0 | CF78: 0 | CG78: 0 | CH78: 0 | CI78: 0 | CJ78: 0 | CK78: 0 | CL78: 0 | CM78: 0 | CN78: 0 | CO78: 0 | CP78: 0 | CQ78: 0 | CR78: 0 | CS78: 0 | CT78: 0 | CU78: 0 | CV78: 0 | CW78: 0 | CX78: 0 | CY78: 0 | CZ78: 0 | DA78: 0 | DB78: 0 | DC78: 0 | DD78: 0 | DE78: 0 | DF78: 0 | DG78: 0 | DH78: 0 | DI78: 0 | DJ78: 0 | DK78: 0
C79: Ground Outdoor / Indoor Chamber Mounted; ˂ 22 kV ; < = 60 kVA ; Multiple Phase | D79: 0 | E79: 0 | F79: 0 | G79: 0 | H79: 0 | I79: 0 | J79: 0 | K79: 0 | L79: 0 | M79: 0 | N79: 0 | O79: 0 | P79: 0 | Q79: 0 | R79: 0 | S79: 0 | T79: 0 | U79: 0 | V79: 0 | W79: 0 | X79: 0 | Y79: 0 | Z79: 0 | AA79: 0 | AB79: 0 | AC79: 0 | AD79: 0 | AE79: 0 | AF79: 0 | AG79: 0 | AH79: 0 | AI79: 0 | AJ79: 0 | AK79: 0 | AL79: 0 | AM79: 0 | AN79: 0 | AO79: 0 | AP79: 0 | AQ79: 0 | AR79: 0 | AS79: 0 | AT79: 0 | AU79: 0 | AV79: 0 | AW79: 0 | AX79: 0 | AY79: 0 | AZ79: 0 | BA79: 0 | BB79: 0 | BC79: 0 | BD79: 0 | BE79: 0 | BF79: 0 | BG79: 0 | BH79: 0 | BI79: 0 | BJ79: 0 | BK79: 0 | BL79: 0 | BM79: 0 | BN79: 0 | BO79: 0 | BP79: 0 | BQ79: 0 | BR79: 0 | BS79: 0 | BT79: 0 | BU79: 0 | BV79: 0 | BW79: 0 | BX79: 0 | BY79: 0 | BZ79: 0 | CA79: 0 | CB79: 0 | CC79: 0 | CD79: 0 | CE79: 0 | CF79: 0 | CG79: 0 | CH79: 0 | CI79: 0 | CJ79: 0 | CK79: 0 | CL79: 0 | CM79: 0 | CN79: 0 | CO79: 0 | CP79: 0 | CQ79: 0 | CR79: 0 | CS79: 0 | CT79: 0 | CU79: 0 | CV79: 0 | CW79: 0 | CX79: 0 | CY79: 0 | CZ79: 0 | DA79: 0 | DB79: 0 | DC79: 0 | DD79: 0 | DE79: 0 | DF79: 0 | DG79: 0 | DH79: 0 | DI79: 0 | DJ79: 0 | DK79: 0
C80: Ground Outdoor / Indoor Chamber Mounted; ˂ 22 kV ; > 60 kVA and < = 600 kVA ; Multiple Phase | D80: 18.50761496 | E80: 4.302047763 | F80: 0 | G80: 0 | H80: 0 | I80: 0 | J80: 0 | K80: 0 | L80: 0 | M80: 2 | N80: 0 | O80: 0 | P80: 0 | Q80: 0 | R80: 0 | S80: 0 | T80: 0 | U80: 0 | V80: 0 | W80: 0 | X80: 0 | Y80: 0 | Z80: 0 | AA80: 0 | AB80: 0 | AC80: 0 | AD80: 0 | AE80: 0 | AF80: 0 | AG80: 0 | AH80: 0 | AI80: 1 | AJ80: 1 | AK80: 0 | AL80: 0 | AM80: 0 | AN80: 0 | AO80: 0 | AP80: 0 | AQ80: 0 | AR80: 0 | AS80: 0 | AT80: 0 | AU80: 0 | AV80: 0 | AW80: 0 | AX80: 0 | AY80: 0 | AZ80: 0 | BA80: 0 | BB80: 0 | BC80: 0 | BD80: 0 | BE80: 0 | BF80: 0 | BG80: 0 | BH80: 0 | BI80: 0 | BJ80: 0 | BK80: 0 | BL80: 0 | BM80: 0 | BN80: 0 | BO80: 0 | BP80: 0 | BQ80: 0 | BR80: 0 | BS80: 0 | BT80: 0 | BU80: 0 | BV80: 0 | BW80: 0 | BX80: 0 | BY80: 0 | BZ80: 0 | CA80: 0 | CB80: 0 | CC80: 0 | CD80: 0 | CE80: 0 | CF80: 0 | CG80: 0 | CH80: 0 | CI80: 0 | CJ80: 0 | CK80: 0 | CL80: 0 | CM80: 0 | CN80: 0 | CO80: 0 | CP80: 0 | CQ80: 0 | CR80: 0 | CS80: 0 | CT80: 0 | CU80: 0 | CV80: 0 | CW80: 0 | CX80: 0 | CY80: 0 | CZ80: 0 | DA80: 0 | DB80: 0 | DC80: 0 | DD80: 0 | DE80: 0 | DF80: 0 | DG80: 0 | DH80: 0 | DI80: 0 | DJ80: 0 | DK80: 0
C81: Ground Outdoor / Indoor Chamber Mounted; ˂ 22 kV ; > 600 kVA ; Multiple Phase | D81: 48.10284432 | E81: 6.935621408 | F81: 0 | G81: 0 | H81: 0 | I81: 0 | J81: 0 | K81: 2.516129032 | L81: 3.774193548 | M81: 0 | N81: 1.258064516 | O81: 0 | P81: 1.258064516 | Q81: 0 | R81: 0 | S81: 1.258064516 | T81: 0 | U81: 0 | V81: 0 | W81: 1.258064516 | X81: 0 | Y81: 1.258064516 | Z81: 1.258064516 | AA81: 1.258064516 | AB81: 2.516129032 | AC81: 0 | AD81: 0 | AE81: 0 | AF81: 1.258064516 | AG81: 0 | AH81: 0 | AI81: 0 | AJ81: 1.258064516 | AK81: 0 | AL81: 2.516129032 | AM81: 0 | AN81: 0 | AO81: 1.258064516 | AP81: 0 | AQ81: 0 | AR81: 2.516129032 | AS81: 1.258064516 | AT81: 0 | AU81: 1.258064516 | AV81: 0 | AW81: 0 | AX81: 0 | AY81: 0 | AZ81: 2.516129032 | BA81: 0 | BB81: 0 | BC81: 0 | BD81: 2.516129032 | BE81: 0 | BF81: 0 | BG81: 2.516129032 | BH81: 0 | BI81: 0 | BJ81: 0 | BK81: 0 | BL81: 0 | BM81: 0 | BN81: 0 | BO81: 0 | BP81: 0 | BQ81: 0 | BR81: 0 | BS81: 0 | BT81: 0 | BU81: 0 | BV81: 0 | BW81: 0 | BX81: 0 | BY81: 2.516129032 | BZ81: 0 | CA81: 0 | CB81: 0 | CC81: 0 | CD81: 0 | CE81: 0 | CF81: 0 | CG81: 0 | CH81: 0 | CI81: 0 | CJ81: 0 | CK81: 0 | CL81: 0 | CM81: 0 | CN81: 0 | CO81: 0 | CP81: 0 | CQ81: 0 | CR81: 0 | CS81: 0 | CT81: 0 | CU81: 0 | CV81: 0 | CW81: 0 | CX81: 0 | CY81: 0 | CZ81: 0 | DA81: 0 | DB81: 0 | DC81: 0 | DD81: 0 | DE81: 0 | DF81: 0 | DG81: 0 | DH81: 0 | DI81: 0 | DJ81: 0 | DK81: 0
C82: Ground Outdoor / Indoor Chamber Mounted; > = 22 kV & < = 33 kV ; < = 15 MVA | D82: 60.16659904 | E82: 7.75671316 | F82: 1.008547009 | G82: 0 | H82: 0 | I82: 1.127272727 | J82: 1.127272727 | K82: 1.127272727 | L82: 0 | M82: 0 | N82: 0 | O82: 2.254545455 | P82: 0 | Q82: 3.381818182 | R82: 0 | S82: 3.381818182 | T82: 0 | U82: 1.127272727 | V82: 0 | W82: 3.381818182 | X82: 2.254545455 | Y82: 4.509090909 | Z82: 0 | AA82: 0 | AB82: 2.254545455 | AC82: 1.127272727 | AD82: 1.127272727 | AE82: 2.254545455 | AF82: 0 | AG82: 0 | AH82: 0 | AI82: 3.381818182 | AJ82: 3.381818182 | AK82: 1.127272727 | AL82: 3.381818182 | AM82: 2.254545455 | AN82: 0 | AO82: 2.254545455 | AP82: 0 | AQ82: 0 | AR82: 2.254545455 | AS82: 0 | AT82: 1.127272727 | AU82: 1.127272727 | AV82: 6.763636364 | AW82: 0 | AX82: 4.509090909 | AY82: 0 | AZ82: 6.763636364 | BA82: 0 | BB82: 1.127272727 | BC82: 3.381818182 | BD82: 9.018181818 | BE82: 2.254545455 | BF82: 3.381818182 | BG82: 4.509090909 | BH82: 2.254545455 | BI82: 1.127272727 | BJ82: 0 | BK82: 0 | BL82: 2.254545455 | BM82: 0 | BN82: 0 | BO82: 0 | BP82: 0 | BQ82: 0 | BR82: 1.127272727 | BS82: 2.254545455 | BT82: 0 | BU82: 1.127272727 | BV82: 4.509090909 | BW82: 2.254545455 | BX82: 0 | BY82: 0 | BZ82: 3.381818182 | CA82: 5.636363636 | CB82: 1.127272727 | CC82: 2.254545455 | CD82: 0 | CE82: 0 | CF82: 0 | CG82: 0 | CH82: 0 | CI82: 0 | CJ82: 0 | CK82: 0 | CL82: 0 | CM82: 0 | CN82: 2.254545455 | CO82: 0 | CP82: 0 | CQ82: 0 | CR82: 0 | CS82: 0 | CT82: 0 | CU82: 0 | CV82: 0 | CW82: 0 | CX82: 0 | CY82: 0 | CZ82: 0 | DA82: 0 | DB82: 0 | DC82: 0 | DD82: 0 | DE82: 0 | DF82: 0 | DG82: 0 | DH82: 0 | DI82: 0 | DJ82: 0 | DK82: 0
C83: Ground Outdoor / Indoor Chamber Mounted; > = 22 kV & < = 33 kV ; > 15 MVA and < = 40 MVA | D83: 60.16659904 | E83: 7.75671316 | F83: 0 | G83: 0 | H83: 0 | I83: 0 | J83: 2.3 | K83: 1.15 | L83: 0 | M83: 0 | N83: 0 | O83: 0 | P83: 3.45 | Q83: 1.15 | R83: 0 | S83: 2.3 | T83: 0 | U83: 0 | V83: 0 | W83: 0 | X83: 0 | Y83: 1.15 | Z83: 0 | AA83: 0 | AB83: 2.3 | AC83: 0 | AD83: 0 | AE83: 0 | AF83: 0 | AG83: 0 | AH83: 0 | AI83: 0 | AJ83: 0 | AK83: 0 | AL83: 2.3 | AM83: 0 | AN83: 0 | AO83: 0 | AP83: 0 | AQ83: 0 | AR83: 0 | AS83: 0 | AT83: 3.45 | AU83: 0 | AV83: 0 | AW83: 0 | AX83: 0 | AY83: 0 | AZ83: 0 | BA83: 0 | BB83: 0 | BC83: 0 | BD83: 0 | BE83: 0 | BF83: 0 | BG83: 0 | BH83: 0 | BI83: 2.3 | BJ83: 0 | BK83: 0 | BL83: 0 | BM83: 0 | BN83: 0 | BO83: 0 | BP83: 0 | BQ83: 0 | BR83: 1.15 | BS83: 0 | BT83: 0 | BU83: 0 | BV83: 0 | BW83: 0 | BX83: 0 | BY83: 0 | BZ83: 0 | CA83: 0 | CB83: 0 | CC83: 0 | CD83: 0 | CE83: 0 | CF83: 0 | CG83: 0 | CH83: 0 | CI83: 0 | CJ83: 0 | CK83: 0 | CL83: 0 | CM83: 0 | CN83: 0 | CO83: 0 | CP83: 0 | CQ83: 0 | CR83: 0 | CS83: 0 | CT83: 0 | CU83: 0 | CV83: 0 | CW83: 0 | CX83: 0 | CY83: 0 | CZ83: 0 | DA83: 0 | DB83: 0 | DC83: 0 | DD83: 0 | DE83: 0 | DF83: 0 | DG83: 0 | DH83: 0 | DI83: 0 | DJ83: 0 | DK83: 0
C84: Ground Outdoor / Indoor Chamber Mounted; > = 22 kV & < = 33 kV ; > 40 MVA | D84: 0 | E84: 0 | F84: 0 | G84: 0.04 | H84: 0.04 | I84: 0.04 | J84: 0.04 | K84: 0.04 | L84: 0.04 | M84: 0.04 | N84: 0.04 | O84: 0.04 | P84: 0.04 | Q84: 0.04 | R84: 0.04 | S84: 0.04 | T84: 0.04 | U84: 0.04 | V84: 0.04 | W84: 0.04 | X84: 0.04 | Y84: 0.04 | Z84: 0.04 | AA84: 0.04 | AB84: 0.04 | AC84: 0.04 | AD84: 0.04 | AE84: 0.04 | AF84: 0.04 | AG84: 0.04 | AH84: 0.04 | AI84: 0.04 | AJ84: 0.04 | AK84: 0.04 | AL84: 0.04 | AM84: 0.04 | AN84: 0.04 | AO84: 0.04 | AP84: 0.04 | AQ84: 0.04 | AR84: 0.04 | AS84: 0.04 | AT84: 0.04 | AU84: 0.04 | AV84: 0.04 | AW84: 0.04 | AX84: 0.04 | AY84: 0.04 | AZ84: 0.04 | BA84: 0.04 | BB84: 0.04 | BC84: 0.04 | BD84: 0.04 | BE84: 0.04 | BF84: 0.04 | BG84: 0.04 | BH84: 0 | BI84: 0 | BJ84: 0 | BK84: 0 | BL84: 0 | BM84: 0 | BN84: 0 | BO84: 0 | BP84: 0 | BQ84: 0 | BR84: 0 | BS84: 0 | BT84: 0 | BU84: 0 | BV84: 0 | BW84: 0 | BX84: 0 | BY84: 0 | BZ84: 0 | CA84: 0 | CB84: 0 | CC84: 0 | CD84: 0 | CE84: 0 | CF84: 0 | CG84: 0 | CH84: 0 | CI84: 0 | CJ84: 0 | CK84: 0 | CL84: 0 | CM84: 0 | CN84: 0 | CO84: 0 | CP84: 0 | CQ84: 0 | CR84: 0 | CS84: 0 | CT84: 0 | CU84: 0 | CV84: 0 | CW84: 0 | CX84: 0 | CY84: 0 | CZ84: 0 | DA84: 0 | DB84: 0 | DC84: 0 | DD84: 0 | DE84: 0 | DF84: 0 | DG84: 0 | DH84: 0 | DI84: 0 | DJ84: 0 | DK84: 0
C85: Ground Outdoor / Indoor Chamber Mounted; > 33 kV & < = 66 kV ; < = 15 MVA | D85: 69.14776913 | E85: 8.315513762 | F85: 0 | G85: 1.351190476 | H85: 1.351190476 | I85: 0 | J85: 4.053571429 | K85: 4.053571429 | L85: 2.702380952 | M85: 1.351190476 | N85: 4.053571429 | O85: 2.702380952 | P85: 8.107142857 | Q85: 2.702380952 | R85: 1.351190476 | S85: 2.702380952 | T85: 1.351190476 | U85: 2.702380952 | V85: 2.702380952 | W85: 9.458333333 | X85: 2.702380952 | Y85: 2.702380952 | Z85: 2.702380952 | AA85: 2.702380952 | AB85: 0 | AC85: 1.351190476 | AD85: 0 | AE85: 5.404761905 | AF85: 8.107142857 | AG85: 5.404761905 | AH85: 0 | AI85: 4.053571429 | AJ85: 5.404761905 | AK85: 14.86309524 | AL85: 9.458333333 | AM85: 6.755952381 | AN85: 10.80952381 | AO85: 1.351190476 | AP85: 6.755952381 | AQ85: 13.51190476 | AR85: 4.053571429 | AS85: 0 | AT85: 2.702380952 | AU85: 8.107142857 | AV85: 4.053571429 | AW85: 1.351190476 | AX85: 0 | AY85: 5.404761905 | AZ85: 4.053571429 | BA85: 1.351190476 | BB85: 2.702380952 | BC85: 1.351190476 | BD85: 2.702380952 | BE85: 2.702380952 | BF85: 4.053571429 | BG85: 5.404761905 | BH85: 0 | BI85: 1.351190476 | BJ85: 0 | BK85: 0 | BL85: 0 | BM85: 2.702380952 | BN85: 2.702380952 | BO85: 1.351190476 | BP85: 0 | BQ85: 1.351190476 | BR85: 0 | BS85: 4.053571429 | BT85: 0 | BU85: 1.351190476 | BV85: 0 | BW85: 0 | BX85: 0 | BY85: 4.053571429 | BZ85: 0 | CA85: 0 | CB85: 0 | CC85: 0 | CD85: 0 | CE85: 0 | CF85: 0 | CG85: 0 | CH85: 0 | CI85: 0 | CJ85: 0 | CK85: 0 | CL85: 0 | CM85: 0 | CN85: 0 | CO85: 0 | CP85: 1.351190476 | CQ85: 0 | CR85: 0 | CS85: 0 | CT85: 0 | CU85: 0 | CV85: 0 | CW85: 0 | CX85: 0 | CY85: 0 | CZ85: 0 | DA85: 0 | DB85: 0 | DC85: 0 | DD85: 0 | DE85: 0 | DF85: 0 | DG85: 0 | DH85: 0 | DI85: 0 | DJ85: 0 | DK85: 0
C86: Ground Outdoor / Indoor Chamber Mounted; > 33 kV & < = 66 kV ; > 15 MVA and < = 40 MVA | D86: 50.21869255 | E86: 7.086514838 | F86: 0 | G86: 0 | H86: 0 | I86: 1.424657534 | J86: 1.424657534 | K86: 0 | L86: 1.424657534 | M86: 2.849315068 | N86: 2.849315068 | O86: 14.24657534 | P86: 8.547945205 | Q86: 4.273972603 | R86: 8.547945205 | S86: 2.849315068 | T86: 0 | U86: 4.273972603 | V86: 1.424657534 | W86: 2.849315068 | X86: 0 | Y86: 0 | Z86: 1.424657534 | AA86: 4.273972603 | AB86: 0 | AC86: 0 | AD86: 1.424657534 | AE86: 0 | AF86: 1.424657534 | AG86: 0 | AH86: 0 | AI86: 0 | AJ86: 2.849315068 | AK86: 5.698630137 | AL86: 0 | AM86: 4.273972603 | AN86: 4.273972603 | AO86: 2.849315068 | AP86: 5.698630137 | AQ86: 0 | AR86: 7.123287671 | AS86: 2.849315068 | AT86: 0 | AU86: 0 | AV86: 2.849315068 | AW86: 0 | AX86: 0 | AY86: 0 | AZ86: 0 | BA86: 0 | BB86: 0 | BC86: 0 | BD86: 0 | BE86: 0 | BF86: 0 | BG86: 0 | BH86: 0 | BI86: 0 | BJ86: 0 | BK86: 0 | BL86: 0 | BM86: 0 | BN86: 0 | BO86: 0 | BP86: 0 | BQ86: 0 | BR86: 0 | BS86: 0 | BT86: 0 | BU86: 0 | BV86: 0 | BW86: 0 | BX86: 0 | BY86: 0 | BZ86: 0 | CA86: 0 | CB86: 0 | CC86: 0 | CD86: 0 | CE86: 0 | CF86: 0 | CG86: 0 | CH86: 0 | CI86: 0 | CJ86: 0 | CK86: 0 | CL86: 0 | CM86: 0 | CN86: 0 | CO86: 0 | CP86: 0 | CQ86: 0 | CR86: 0 | CS86: 0 | CT86: 0 | CU86: 0 | CV86: 0 | CW86: 0 | CX86: 0 | CY86: 0 | CZ86: 0 | DA86: 0 | DB86: 0 | DC86: 0 | DD86: 0 | DE86: 0 | DF86: 0 | DG86: 0 | DH86: 0 | DI86: 0 | DJ86: 0 | DK86: 0
C87: Ground Outdoor / Indoor Chamber Mounted; > 33 kV & < = 66 kV ; > 40 MVA | D87: 60.16659904 | E87: 7.75671316 | F87: 0 | G87: 0 | H87: 0 | I87: 4 | J87: 0 | K87: 0 | L87: 0 | M87: 0 | N87: 0 | O87: 0 | P87: 0 | Q87: 0 | R87: 0 | S87: 0 | T87: 0 | U87: 0 | V87: 0 | W87: 0 | X87: 0 | Y87: 0 | Z87: 0 | AA87: 0 | AB87: 0 | AC87: 0 | AD87: 0 | AE87: 0 | AF87: 0 | AG87: 0 | AH87: 0 | AI87: 0 | AJ87: 0 | AK87: 0 | AL87: 0 | AM87: 0 | AN87: 0 | AO87: 0 | AP87: 0 | AQ87: 0 | AR87: 0 | AS87: 0 | AT87: 0 | AU87: 0 | AV87: 0 | AW87: 0 | AX87: 0 | AY87: 0 | AZ87: 0 | BA87: 0 | BB87: 0 | BC87: 0 | BD87: 0 | BE87: 0 | BF87: 0 | BG87: 0 | BH87: 0 | BI87: 0 | BJ87: 0 | BK87: 0 | BL87: 0 | BM87: 0 | BN87: 0 | BO87: 0 | BP87: 0 | BQ87: 0 | BR87: 0 | BS87: 0 | BT87: 0 | BU87: 0 | BV87: 0 | BW87: 0 | BX87: 0 | BY87: 0 | BZ87: 0 | CA87: 0 | CB87: 0 | CC87: 0 | CD87: 0 | CE87: 0 | CF87: 0 | CG87: 0 | CH87: 0 | CI87: 0 | CJ87: 0 | CK87: 0 | CL87: 0 | CM87: 0 | CN87: 0 | CO87: 0 | CP87: 0 | CQ87: 0 | CR87: 0 | CS87: 0 | CT87: 0 | CU87: 0 | CV87: 0 | CW87: 0 | CX87: 0 | CY87: 0 | CZ87: 0 | DA87: 0 | DB87: 0 | DC87: 0 | DD87: 0 | DE87: 0 | DF87: 0 | DG87: 0 | DH87: 0 | DI87: 0 | DJ87: 0 | DK87: 0
C88: Ground Outdoor / Indoor Chamber Mounted; > 66 kV & < = 132 kV ; < = 100 MVA | D88: 58.35983107 | E88: 7.639360645 | F88: 0 | G88: 0 | H88: 0 | I88: 2.387096774 | J88: 2.387096774 | K88: 3.580645161 | L88: 0 | M88: 1.193548387 | N88: 5.967741935 | O88: 5.967741935 | P88: 7.161290323 | Q88: 1.193548387 | R88: 4.774193548 | S88: 3.580645161 | T88: 3.580645161 | U88: 0 | V88: 0 | W88: 0 | X88: 1.193548387 | Y88: 1.193548387 | Z88: 1.193548387 | AA88: 0 | AB88: 1.193548387 | AC88: 0 | AD88: 1.193548387 | AE88: 0 | AF88: 0 | AG88: 0 | AH88: 1.193548387 | AI88: 0 | AJ88: 0 | AK88: 0 | AL88: 1.193548387 | AM88: 4.774193548 | AN88: 0 | AO88: 0 | AP88: 0 | AQ88: 0 | AR88: 0 | AS88: 0 | AT88: 2.387096774 | AU88: 0 | AV88: 0 | AW88: 0 | AX88: 0 | AY88: 0 | AZ88: 2.387096774 | BA88: 0 | BB88: 0 | BC88: 0 | BD88: 5.967741935 | BE88: 0 | BF88: 1.193548387 | BG88: 2.387096774 | BH88: 0 | BI88: 1.193548387 | BJ88: 0 | BK88: 0 | BL88: 0 | BM88: 0 | BN88: 1.193548387 | BO88: 0 | BP88: 0 | BQ88: 0 | BR88: 2.387096774 | BS88: 0 | BT88: 0 | BU88: 0 | BV88: 0 | BW88: 0 | BX88: 0 | BY88: 0 | BZ88: 0 | CA88: 0 | CB88: 0 | CC88: 0 | CD88: 0 | CE88: 0 | CF88: 0 | CG88: 0 | CH88: 0 | CI88: 0 | CJ88: 0 | CK88: 0 | CL88: 0 | CM88: 0 | CN88: 0 | CO88: 0 | CP88: 0 | CQ88: 0 | CR88: 0 | CS88: 0 | CT88: 0 | CU88: 0 | CV88: 0 | CW88: 0 | CX88: 0 | CY88: 0 | CZ88: 0 | DA88: 0 | DB88: 0 | DC88: 0 | DD88: 0 | DE88: 0 | DF88: 0 | DG88: 0 | DH88: 0 | DI88: 0 | DJ88: 0 | DK88: 0
C89: Ground Outdoor / Indoor Chamber Mounted; > 66 kV & < = 132 kV ; > 100 MVA | D89: 58.35983107 | E89: 7.639360645 | F89: 0 | G89: 0 | H89: 0 | I89: 0 | J89: 0 | K89: 0 | L89: 0 | M89: 0 | N89: 0 | O89: 0 | P89: 0 | Q89: 0 | R89: 0 | S89: 1 | T89: 0 | U89: 0 | V89: 0 | W89: 0 | X89: 0 | Y89: 0 | Z89: 0 | AA89: 0 | AB89: 1 | AC89: 0 | AD89: 0 | AE89: 0 | AF89: 0 | AG89: 0 | AH89: 0 | AI89: 0 | AJ89: 0 | AK89: 0 | AL89: 0 | AM89: 0 | AN89: 0 | AO89: 0 | AP89: 0 | AQ89: 0 | AR89: 0 | AS89: 0 | AT89: 0 | AU89: 0 | AV89: 0 | AW89: 0 | AX89: 0 | AY89: 0 | AZ89: 0 | BA89: 0 | BB89: 0 | BC89: 0 | BD89: 0 | BE89: 0 | BF89: 0 | BG89: 0 | BH89: 0 | BI89: 0 | BJ89: 0 | BK89: 0 | BL89: 0 | BM89: 0 | BN89: 0 | BO89: 0 | BP89: 0 | BQ89: 0 | BR89: 0 | BS89: 0 | BT89: 0 | BU89: 0 | BV89: 0 | BW89: 0 | BX89: 0 | BY89: 0 | BZ89: 0 | CA89: 0 | CB89: 0 | CC89: 0 | CD89: 0 | CE89: 0 | CF89: 0 | CG89: 0 | CH89: 0 | CI89: 0 | CJ89: 0 | CK89: 0 | CL89: 0 | CM89: 0 | CN89: 0 | CO89: 0 | CP89: 0 | CQ89: 0 | CR89: 0 | CS89: 0 | CT89: 0 | CU89: 0 | CV89: 0 | CW89: 0 | CX89: 0 | CY89: 0 | CZ89: 0 | DA89: 0 | DB89: 0 | DC89: 0 | DD89: 0 | DE89: 0 | DF89: 0 | DG89: 0 | DH89: 0 | DI89: 0 | DJ89: 0 | DK89: 0
C90: Ground Outdoor / Indoor Chamber Mounted; > 132 kV ; < = 100 MVA | D90: 0 | E90: 0 | F90: 0 | G90: 0 | H90: 0 | I90: 0 | J90: 0 | K90: 0 | L90: 0 | M90: 0 | N90: 0 | O90: 0 | P90: 0 | Q90: 0 | R90: 0 | S90: 0 | T90: 0 | U90: 0 | V90: 0 | W90: 0 | X90: 0 | Y90: 1.75 | Z90: 5.25 | AA90: 0 | AB90: 0 | AC90: 0 | AD90: 0 | AE90: 0 | AF90: 0 | AG90: 0 | AH90: 0 | AI90: 0 | AJ90: 0 | AK90: 0 | AL90: 0 | AM90: 0 | AN90: 0 | AO90: 0 | AP90: 0 | AQ90: 0 | AR90: 0 | AS90: 0 | AT90: 0 | AU90: 0 | AV90: 0 | AW90: 0 | AX90: 0 | AY90: 0 | AZ90: 0 | BA90: 0 | BB90: 0 | BC90: 0 | BD90: 0 | BE90: 0 | BF90: 0 | BG90: 0 | BH90: 0 | BI90: 0 | BJ90: 0 | BK90: 0 | BL90: 0 | BM90: 0 | BN90: 0 | BO90: 0 | BP90: 0 | BQ90: 0 | BR90: 0 | BS90: 0 | BT90: 0 | BU90: 0 | BV90: 0 | BW90: 0 | BX90: 0 | BY90: 0 | BZ90: 0 | CA90: 0 | CB90: 0 | CC90: 0 | CD90: 0 | CE90: 0 | CF90: 0 | CG90: 0 | CH90: 0 | CI90: 0 | CJ90: 0 | CK90: 0 | CL90: 0 | CM90: 0 | CN90: 0 | CO90: 0 | CP90: 0 | CQ90: 0 | CR90: 0 | CS90: 0 | CT90: 0 | CU90: 0 | CV90: 0 | CW90: 0 | CX90: 0 | CY90: 0 | CZ90: 0 | DA90: 0 | DB90: 0 | DC90: 0 | DD90: 0 | DE90: 0 | DF90: 0 | DG90: 0 | DH90: 0 | DI90: 0 | DJ90: 0 | DK90: 0
C91: Ground Outdoor / Indoor Chamber Mounted; > 132 kV ; > 100 MVA | D91: 0 | E91: 0 | F91: 0 | G91: 0 | H91: 0 | I91: 0 | J91: 0 | K91: 0 | L91: 0 | M91: 0 | N91: 0 | O91: 0 | P91: 0 | Q91: 0 | R91: 0 | S91: 0 | T91: 0 | U91: 0 | V91: 0 | W91: 0 | X91: 0 | Y91: 0 | Z91: 0 | AA91: 0 | AB91: 0 | AC91: 0 | AD91: 0 | AE91: 0 | AF91: 0 | AG91: 0 | AH91: 0 | AI91: 0 | AJ91: 0 | AK91: 0 | AL91: 0 | AM91: 0 | AN91: 0 | AO91: 0 | AP91: 0 | AQ91: 0 | AR91: 0 | AS91: 0 | AT91: 0 | AU91: 0 | AV91: 0 | AW91: 0 | AX91: 0 | AY91: 0 | AZ91: 0 | BA91: 0 | BB91: 0 | BC91: 0 | BD91: 0 | BE91: 0 | BF91: 0 | BG91: 0 | BH91: 0 | BI91: 0 | BJ91: 0 | BK91: 0 | BL91: 0 | BM91: 0 | BN91: 0 | BO91: 0 | BP91: 0 | BQ91: 0 | BR91: 0 | BS91: 0 | BT91: 0 | BU91: 0 | BV91: 0 | BW91: 0 | BX91: 0 | BY91: 0 | BZ91: 0 | CA91: 0 | CB91: 0 | CC91: 0 | CD91: 0 | CE91: 0 | CF91: 0 | CG91: 0 | CH91: 0 | CI91: 0 | CJ91: 0 | CK91: 0 | CL91: 0 | CM91: 0 | CN91: 0 | CO91: 0 | CP91: 0 | CQ91: 0 | CR91: 0 | CS91: 0 | CT91: 0 | CU91: 0 | CV91: 0 | CW91: 0 | CX91: 0 | CY91: 0 | CZ91: 0 | DA91: 0 | DB91: 0 | DC91: 0 | DD91: 0 | DE91: 0 | DF91: 0 | DG91: 0 | DH91: 0 | DI91: 0 | DJ91: 0 | DK91: 0
C92: Other | D92: 0 | E92: 0 | F92: 0 | G92: 0 | H92: 0 | I92: 0 | J92: 0 | K92: 0 | L92: 0 | M92: 0 | N92: 0 | O92: 0 | P92: 0 | Q92: 0 | R92: 0 | S92: 0 | T92: 0 | U92: 0 | V92: 0 | W92: 0 | X92: 0 | Y92: 0 | Z92: 0 | AA92: 0 | AB92: 0 | AC92: 0 | AD92: 0 | AE92: 0 | AF92: 0 | AG92: 0 | AH92: 0 | AI92: 0 | AJ92: 0 | AK92: 0 | AL92: 0 | AM92: 0 | AN92: 0 | AO92: 0 | AP92: 0 | AQ92: 0 | AR92: 0 | AS92: 0 | AT92: 0 | AU92: 0 | AV92: 0 | AW92: 0 | AX92: 0 | AY92: 0 | AZ92: 0 | BA92: 0 | BB92: 0 | BC92: 0 | BD92: 0 | BE92: 0 | BF92: 0 | BG92: 0 | BH92: 0 | BI92: 0 | BJ92: 0 | BK92: 0 | BL92: 0 | BM92: 0 | BN92: 0 | BO92: 0 | BP92: 0 | BQ92: 0 | BR92: 0 | BS92: 0 | BT92: 0 | BU92: 0 | BV92: 0 | BW92: 0 | BX92: 0 | BY92: 0 | BZ92: 0 | CA92: 0 | CB92: 0 | CC92: 0 | CD92: 0 | CE92: 0 | CF92: 0 | CG92: 0 | CH92: 0 | CI92: 0 | CJ92: 0 | CK92: 0 | CL92: 0 | CM92: 0 | CN92: 0 | CO92: 0 | CP92: 0 | CQ92: 0 | CR92: 0 | CS92: 0 | CT92: 0 | CU92: 0 | CV92: 0 | CW92: 0 | CX92: 0 | CY92: 0 | CZ92: 0 | DA92: 0 | DB92: 0 | DC92: 0 | DD92: 0 | DE92: 0 | DF92: 0 | DG92: 0 | DH92: 0 | DI92: 0
B93: SWITCHGEAR BY: HIGHEST OPERATING VOLTAGE ; SWITCH FUNCTION | C93: ˂ = 11 kV ; Fuse | D93: 18.93983449 | E93: 4.351992014 | F93: 446.9838945 | G93: 327.8614526 | H93: 2014.305346 | I93: 2383.018545 | J93: 2347.404202 | K93: 2803.058297 | L93: 3108.922656 | M93: 4447.602964 | N93: 6697.591462 | O93: 6241.937367 | P93: 2737.067015 | Q93: 1553.413847 | R93: 1784.907077 | S93: 1548.176444 | T93: 1203.5553 | U93: 954.2548987 | V93: 893.5010193 | W93: 935.4002465 | X93: 769.8982992 | Y93: 814.9399684 | Z93: 699.7170937 | AA93: 764.6608958 | AB93: 898.7384227 | AC93: 881.9787318 | AD93: 745.8062435 | AE93: 873.5988864 | AF93: 813.8924877 | AG93: 835.8895819 | AH93: 814.9399684 | AI93: 642.1056563 | AJ93: 704.954497 | AK93: 796.0853161 | AL93: 886.1686545 | AM93: 958.4448214 | AN93: 708.0969391 | AO93: 1100.902194 | AP93: 880.9312511 | AQ93: 756.2810503 | AR93: 524.7878202 | AS93: 623.2510041 | AT93: 642.1056563 | AU93: 554.1172793 | AV93: 569.8294894 | AW93: 610.6812359 | AX93: 464.0339409 | AY93: 560.4021633 | AZ93: 532.120185 | BA93: 567.7345281 | BB93: 469.2713442 | BC93: 432.6095205 | BD93: 415.8498296 | BE93: 323.6715298 | BF93: 362.428315 | BG93: 414.8023489 | BH93: 359.2858729 | BI93: 159.2170632 | BJ93: 184.3565995 | BK93: 165.5019473 | BL93: 150.8372178 | BM93: 145.5998144 | BN93: 171.7868314 | BO93: 142.4573724 | BP93: 158.1695825 | BQ93: 165.5019473 | BR93: 210.5436165 | BS93: 153.9796598 | BT93: 143.504853 | BU93: 142.4573724 | BV93: 0 | BW93: 0 | BX93: 0 | BY93: 0 | BZ93: 0 | CA93: 0 | CB93: 0 | CC93: 0 | CD93: 0 | CE93: 0 | CF93: 0 | CG93: 0 | CH93: 0 | CI93: 1.047480679 | CJ93: 0 | CK93: 0 | CL93: 0 | CM93: 0 | CN93: 0 | CO93: 0 | CP93: 0 | CQ93: 0 | CR93: 0 | CS93: 1.047480679 | CT93: 0 | CU93: 0 | CV93: 0 | CW93: 0 | CX93: 0 | CY93: 0 | CZ93: 0 | DA93: 0 | DB93: 0 | DC93: 0 | DD93: 0 | DE93: 0 | DF93: 0 | DG93: 0 | DH93: 0 | DI93: 0
C94: ˂ = 11 kV ; Switch | D94: 47.96740701 | E94: 6.925850634 | F94: 308.1209914 | G94: 485.8694538 | H94: 3238.780648 | I94: 3724.650102 | J94: 4503.716639 | K94: 5141.420298 | L94: 4812.62071 | M94: 6103.735013 | N94: 6961.336484 | O94: 4819.950637 | P94: 2551.861765 | Q94: 2082.74643 | R94: 1656.563526 | S94: 1665.987718 | T94: 1129.855907 | U94: 735.0869753 | V94: 443.984156 | W94: 584.2999035 | X94: 476.4452618 | Y94: 496.3407782 | Z94: 511.0006324 | AA94: 459.6911427 | AB94: 460.7382751 | AC94: 485.8694538 | AD94: 379.0619445 | AE94: 461.7854076 | AF94: 344.5065739 | AG94: 246.0761242 | AH94: 273.3015678 | AI94: 248.1703891 | AJ94: 249.2175216 | AK94: 361.260693 | AL94: 426.1829045 | AM94: 334.0352495 | AN94: 261.7831109 | AO94: 385.3447392 | AP94: 278.53723 | AQ94: 269.113038 | AR94: 172.7768532 | AS94: 223.0392105 | AT94: 260.7359784 | AU94: 239.7933296 | AV94: 245.0289918 | AW94: 255.5003162 | AX94: 219.8978131 | AY94: 202.0965616 | AZ94: 300.5270113 | BA94: 264.9245082 | BB94: 272.2544353 | BC94: 195.8137669 | BD94: 164.3997936 | BE94: 135.0800852 | BF94: 181.1539127 | BG94: 149.7399394 | BH94: 168.5883234 | BI94: 95.28905236 | BJ94: 92.14765503 | BK94: 94.24191991 | BL94: 87.95912525 | BM94: 87.95912525 | BN94: 102.6189795 | BO94: 101.571847 | BP94: 93.19478747 | BQ94: 60.73368172 | BR94: 98.43044969 | BS94: 96.3361848 | BT94: 91.10052258 | BU94: 93.19478747 | BV94: 0 | BW94: 2.094264887 | BX94: 8.377059548 | BY94: 1.047132443 | BZ94: 0 | CA94: 0 | CB94: 0 | CC94: 0 | CD94: 0 | CE94: 0 | CF94: 0 | CG94: 0 | CH94: 0 | CI94: 0 | CJ94: 0 | CK94: 0 | CL94: 0 | CM94: 0 | CN94: 0 | CO94: 0 | CP94: 0 | CQ94: 0 | CR94: 2.094264887 | CS94: 3.14139733 | CT94: 0 | CU94: 0 | CV94: 0 | CW94: 0 | CX94: 0 | CY94: 0 | CZ94: 0 | DA94: 0 | DB94: 0 | DC94: 0 | DD94: 0 | DE94: 0 | DF94: 0 | DG94: 0 | DH94: 0 | DI94: 0
C95: ˂ = 11 kV ; Circuit Breaker | D95: 53.02606253 | E95: 7.281899651 | F95: 22.46532594 | G95: 21.79620853 | H95: 175.4075829 | I95: 111.056872 | J95: 138.042654 | K95: 107.943128 | L95: 99.63981043 | M95: 114.1706161 | N95: 111.056872 | O95: 120.3981043 | P95: 108.9810427 | Q95: 107.943128 | R95: 65.38862559 | S95: 80.95734597 | T95: 26.98578199 | U95: 197.2037915 | V95: 52.93364929 | W95: 96.52606635 | X95: 26.98578199 | Y95: 45.66824645 | Z95: 11.41706161 | AA95: 31.13744076 | AB95: 39.44075829 | AC95: 8.303317536 | AD95: 15.56872038 | AE95: 26.98578199 | AF95: 24.90995261 | AG95: 23.87203791 | AH95: 10.37914692 | AI95: 6.227488152 | AJ95: 32.17535545 | AK95: 24.90995261 | AL95: 33.21327014 | AM95: 48.78199052 | AN95: 40.47867299 | AO95: 83.03317536 | AP95: 53.97156398 | AQ95: 33.21327014 | AR95: 18.68246445 | AS95: 11.41706161 | AT95: 1.037914692 | AU95: 15.56872038 | AV95: 16.60663507 | AW95: 1.037914692 | AX95: 14.53080569 | AY95: 2.075829384 | AZ95: 18.68246445 | BA95: 15.56872038 | BB95: 24.90995261 | BC95: 19.72037915 | BD95: 25.9478673 | BE95: 14.53080569 | BF95: 22.83412322 | BG95: 18.68246445 | BH95: 1.037914692 | BI95: 6.227488152 | BJ95: 1.037914692 | BK95: 4.151658768 | BL95: 9.341232227 | BM95: 0 | BN95: 1.037914692 | BO95: 0 | BP95: 0 | BQ95: 0 | BR95: 0 | BS95: 3.113744076 | BT95: 3.113744076 | BU95: 0 | BV95: 0 | BW95: 0 | BX95: 0 | BY95: 0 | BZ95: 0 | CA95: 0 | CB95: 0 | CC95: 0 | CD95: 0 | CE95: 0 | CF95: 0 | CG95: 0 | CH95: 0 | CI95: 0 | CJ95: 0 | CK95: 0 | CL95: 0 | CM95: 0 | CN95: 0 | CO95: 0 | CP95: 0 | CQ95: 0 | CR95: 0 | CS95: 0 | CT95: 0 | CU95: 0 | CV95: 0 | CW95: 0 | CX95: 0 | CY95: 0 | CZ95: 0 | DA95: 0 | DB95: 0 | DC95: 0 | DD95: 0 | DE95: 0 | DF95: 0 | DG95: 0 | DH95: 0 | DI95: 0
C96: > 11 kV & < = 22 kV ; Switch | D96: 39.2021748 | E96: 6.261164013 | F96: 302.8694616 | G96: 310.5161966 | H96: 1883.028962 | I96: 1752.947853 | J96: 1965.903218 | K96: 2401.255318 | L96: 1888.274169 | M96: 1854.70485 | N96: 2783.106316 | O96: 1847.361562 | P96: 670.3373298 | Q96: 683.9748655 | R96: 600.0515691 | S96: 668.2392474 | T96: 303.1729082 | U96: 404.929905 | V96: 314.7123614 | W96: 765.8000794 | X96: 423.8126467 | Y96: 236.0342711 | Z96: 228.6909826 | AA96: 169.9446752 | AB96: 254.9170127 | AC96: 211.9063234 | AD96: 191.9745405 | AE96: 172.0427576 | AF96: 236.0342711 | AG96: 212.9553646 | AH96: 266.456466 | AI96: 174.14084 | AJ96: 301.0748258 | AK96: 314.7123614 | AL96: 208.7591997 | AM96: 263.3093424 | AN96: 250.7208479 | AO96: 331.4970207 | AP96: 336.7422267 | AQ96: 231.8381062 | AR96: 132.1791918 | AS96: 105.9531617 | AT96: 141.6205626 | AU96: 93.36466722 | AV96: 199.3178289 | AW96: 206.6611173 | AX96: 109.1002853 | AY96: 139.5224802 | AZ96: 181.4841284 | BA96: 210.8572821 | BB96: 173.0917988 | BC96: 98.60987324 | BD96: 130.0811094 | BE96: 125.8849446 | BF96: 155.2580983 | BG96: 136.3753566 | BH96: 83.92329638 | BI96: 36.71644217 | BJ96: 36.71644217 | BK96: 44.0597306 | BL96: 48.25589542 | BM96: 34.61835976 | BN96: 40.91260698 | BO96: 45.1087718 | BP96: 37.76548337 | BQ96: 27.27507132 | BR96: 29.37315373 | BS96: 45.1087718 | BT96: 33.56931855 | BU96: 37.76548337 | BV96: 0 | BW96: 0 | BX96: 0 | BY96: 0 | BZ96: 0 | CA96: 0 | CB96: 0 | CC96: 0 | CD96: 0 | CE96: 0 | CF96: 0 | CG96: 0 | CH96: 0 | CI96: 0 | CJ96: 0 | CK96: 0 | CL96: 0 | CM96: 0 | CN96: 0 | CO96: 0 | CP96: 0 | CQ96: 0 | CR96: 0 | CS96: 12.58849446 | CT96: 0 | CU96: 0 | CV96: 0 | CW96: 0 | CX96: 0 | CY96: 0 | CZ96: 0 | DA96: 0 | DB96: 0 | DC96: 0 | DD96: 0 | DE96: 0 | DF96: 0 | DG96: 0 | DH96: 0 | DI96: 0
C97: > 11 kV & < = 22 kV ; Circuit Breaker | D97: 36.70503046 | E97: 6.058467666 | F97: 33.53583427 | G97: 15.25996534 | H97: 96.64644714 | I97: 87.49046794 | J97: 55.95320624 | K97: 85.45580589 | L97: 70.19584055 | M97: 39.67590988 | N97: 107.8370884 | O97: 54.93587522 | P97: 78.33448873 | Q97: 81.3864818 | R97: 70.19584055 | S97: 30.51993068 | T97: 29.50259965 | U97: 109.8717504 | V97: 77.31715771 | W97: 55.95320624 | X97: 41.71057192 | Y97: 32.55459272 | Z97: 25.43327556 | AA97: 53.91854419 | AB97: 22.3812825 | AC97: 13.22530329 | AD97: 7.121317158 | AE97: 17.29462738 | AF97: 33.57192374 | AG97: 45.77989601 | AH97: 7.121317158 | AI97: 7.121317158 | AJ97: 20.34662045 | AK97: 36.62391681 | AL97: 37.64124783 | AM97: 32.55459272 | AN97: 28.48526863 | AO97: 19.32928943 | AP97: 13.22530329 | AQ97: 4.06932409 | AR97: 10.17331023 | AS97: 3.051993068 | AT97: 1.017331023 | AU97: 5.086655113 | AV97: 17.29462738 | AW97: 6.103986135 | AX97: 2.034662045 | AY97: 5.086655113 | AZ97: 2.034662045 | BA97: 7.121317158 | BB97: 9.155979203 | BC97: 5.086655113 | BD97: 15.25996534 | BE97: 2.034662045 | BF97: 1.017331023 | BG97: 9.155979203 | BH97: 4.06932409 | BI97: 2.034662045 | BJ97: 0 | BK97: 0 | BL97: 2.034662045 | BM97: 3.051993068 | BN97: 0 | BO97: 0 | BP97: 0 | BQ97: 1.017331023 | BR97: 0 | BS97: 1.017331023 | BT97: 1.017331023 | BU97: 0 | BV97: 0 | BW97: 0 | BX97: 0 | BY97: 0 | BZ97: 0 | CA97: 0 | CB97: 0 | CC97: 0 | CD97: 0 | CE97: 0 | CF97: 0 | CG97: 0 | CH97: 0 | CI97: 0 | CJ97: 0 | CK97: 0 | CL97: 0 | CM97: 0 | CN97: 0 | CO97: 0 | CP97: 0 | CQ97: 0 | CR97: 0 | CS97: 0 | CT97: 0 | CU97: 0 | CV97: 0 | CW97: 0 | CX97: 0 | CY97: 0 | CZ97: 0 | DA97: 0 | DB97: 0 | DC97: 0 | DD97: 0 | DE97: 0 | DF97: 0 | DG97: 0 | DH97: 0 | DI97: 0
C98: > 22 kV & < = 33 kV ; Switch | D98: 55.58069546 | E98: 7.45524617 | F98: 50.24403183 | G98: 33.08743363 | H98: 338.1122124 | I98: 291.5830088 | J98: 259.5295575 | K98: 286.4130973 | L98: 245.0538053 | M98: 96.16035398 | N98: 174.7430088 | O98: 88.92247788 | P98: 71.34477876 | Q98: 28.95150442 | R98: 39.29132743 | S98: 42.39327434 | T98: 14.47575221 | U98: 26.88353982 | V98: 53.76707965 | W98: 34.12141593 | X98: 15.50973451 | Y98: 36.18938053 | Z98: 24.81557522 | AA98: 18.61168142 | AB98: 17.57769912 | AC98: 7.237876106 | AD98: 8.271858407 | AE98: 15.50973451 | AF98: 12.40778761 | AG98: 26.88353982 | AH98: 21.71362832 | AI98: 11.37380531 | AJ98: 14.47575221 | AK98: 5.169911504 | AL98: 19.64566372 | AM98: 76.51469027 | AN98: 31.01946903 | AO98: 35.15539823 | AP98: 32.05345133 | AQ98: 24.81557522 | AR98: 6.203893805 | AS98: 2.067964602 | AT98: 6.203893805 | AU98: 18.61168142 | AV98: 8.271858407 | AW98: 7.237876106 | AX98: 4.135929204 | AY98: 7.237876106 | AZ98: 35.15539823 | BA98: 24.81557522 | BB98: 33.08743363 | BC98: 36.18938053 | BD98: 31.01946903 | BE98: 7.237876106 | BF98: 42.39327434 | BG98: 14.47575221 | BH98: 9.305840708 | BI98: 3.101946903 | BJ98: 12.40778761 | BK98: 3.101946903 | BL98: 3.101946903 | BM98: 9.305840708 | BN98: 1.033982301 | BO98: 3.101946903 | BP98: 2.067964602 | BQ98: 2.067964602 | BR98: 2.067964602 | BS98: 5.169911504 | BT98: 0 | BU98: 1.033982301 | BV98: 0 | BW98: 0 | BX98: 0 | BY98: 0 | BZ98: 0 | CA98: 0 | CB98: 0 | CC98: 0 | CD98: 0 | CE98: 0 | CF98: 0 | CG98: 0 | CH98: 0 | CI98: 0 | CJ98: 0 | CK98: 0 | CL98: 0 | CM98: 0 | CN98: 0 | CO98: 0 | CP98: 0 | CQ98: 0 | CR98: 0 | CS98: 0 | CT98: 0 | CU98: 0 | CV98: 0 | CW98: 0 | CX98: 0 | CY98: 0 | CZ98: 0 | DA98: 0 | DB98: 0 | DC98: 0 | DD98: 0 | DE98: 0 | DF98: 0 | DG98: 0 | DH98: 0 | DI98: 0
C99: > 22 kV & < = 33 kV ; Circuit Breaker | D99: 54.73150864 | E99: 7.398074657 | F99: 1.00795756 | G99: 4.043835616 | H99: 16.17534247 | I99: 30.32876712 | J99: 19.20821918 | K99: 10.10958904 | L99: 11.12054795 | M99: 2.021917808 | N99: 36.39452055 | O99: 21.23013699 | P99: 18.19726027 | Q99: 6.065753425 | R99: 8.087671233 | S99: 17.18630137 | T99: 8.087671233 | U99: 14.15342466 | V99: 17.18630137 | W99: 8.087671233 | X99: 5.054794521 | Y99: 4.043835616 | Z99: 1.010958904 | AA99: 4.043835616 | AB99: 17.18630137 | AC99: 2.021917808 | AD99: 0 | AE99: 1.010958904 | AF99: 0 | AG99: 0 | AH99: 1.010958904 | AI99: 0 | AJ99: 0 | AK99: 7.076712329 | AL99: 1.010958904 | AM99: 6.065753425 | AN99: 0 | AO99: 8.087671233 | AP99: 4.043835616 | AQ99: 0 | AR99: 1.010958904 | AS99: 3.032876712 | AT99: 1.010958904 | AU99: 0 | AV99: 4.043835616 | AW99: 0 | AX99: 0 | AY99: 0 | AZ99: 0 | BA99: 5.054794521 | BB99: 0 | BC99: 12.13150685 | BD99: 6.065753425 | BE99: 0 | BF99: 13.14246575 | BG99: 1.010958904 | BH99: 0 | BI99: 0 | BJ99: 0 | BK99: 0 | BL99: 2.021917808 | BM99: 0 | BN99: 0 | BO99: 0 | BP99: 0 | BQ99: 0 | BR99: 0 | BS99: 8.087671233 | BT99: 3.032876712 | BU99: 0 | BV99: 0 | BW99: 0 | BX99: 0 | BY99: 0 | BZ99: 0 | CA99: 0 | CB99: 0 | CC99: 0 | CD99: 0 | CE99: 0 | CF99: 0 | CG99: 0 | CH99: 0 | CI99: 0 | CJ99: 0 | CK99: 0 | CL99: 0 | CM99: 0 | CN99: 0 | CO99: 0 | CP99: 0 | CQ99: 0 | CR99: 0 | CS99: 0 | CT99: 0 | CU99: 0 | CV99: 0 | CW99: 0 | CX99: 0 | CY99: 0 | CZ99: 0 | DA99: 0 | DB99: 0 | DC99: 0 | DD99: 0 | DE99: 0 | DF99: 0 | DG99: 0 | DH99: 0 | DI99: 0
C100: > 33 kV & < = 66 kV ; Switch | D100: 65.0884562 | E100: 8.067741704 | F100: 19.33247555 | G100: 4.098411071 | H100: 40.98411071 | I100: 30.73808303 | J100: 57.377755 | K100: 66.59917991 | L100: 39.95950794 | M100: 49.18093285 | N100: 89.1404408 | O100: 77.86981035 | P100: 33.81189134 | Q100: 50.20553562 | R100: 40.98411071 | S100: 26.63967196 | T100: 28.6888775 | U100: 26.63967196 | V100: 49.18093285 | W100: 38.93490518 | X100: 31.7626858 | Y100: 43.03331625 | Z100: 23.56586366 | AA100: 18.44284982 | AB100: 40.98411071 | AC100: 10.24602768 | AD100: 19.46745259 | AE100: 29.71348027 | AF100: 61.47616607 | AG100: 7.172219375 | AH100: 26.63967196 | AI100: 34.83649411 | AJ100: 37.91030241 | AK100: 54.30394669 | AL100: 50.20553562 | AM100: 102.4602768 | AN100: 29.71348027 | AO100: 61.47616607 | AP100: 40.98411071 | AQ100: 33.81189134 | AR100: 72.74679651 | AS100: 69.67298821 | AT100: 19.46745259 | AU100: 10.24602768 | AV100: 34.83649411 | AW100: 6.147616607 | AX100: 15.36904152 | AY100: 9.22142491 | AZ100: 55.32854946 | BA100: 9.22142491 | BB100: 17.41824705 | BC100: 14.34443875 | BD100: 11.27063045 | BE100: 4.098411071 | BF100: 57.377755 | BG100: 21.51665812 | BH100: 8.196822142 | BI100: 11.27063045 | BJ100: 8.196822142 | BK100: 7.172219375 | BL100: 14.34443875 | BM100: 0 | BN100: 0 | BO100: 10.24602768 | BP100: 0 | BQ100: 0 | BR100: 0 | BS100: 0 | BT100: 0 | BU100: 0 | BV100: 0 | BW100: 0 | BX100: 0 | BY100: 2.049205536 | BZ100: 0 | CA100: 0 | CB100: 0 | CC100: 0 | CD100: 0 | CE100: 0 | CF100: 0 | CG100: 0 | CH100: 0 | CI100: 0 | CJ100: 0 | CK100: 0 | CL100: 0 | CM100: 0 | CN100: 0 | CO100: 0 | CP100: 0 | CQ100: 0 | CR100: 0 | CS100: 0 | CT100: 0 | CU100: 0 | CV100: 0 | CW100: 0 | CX100: 0 | CY100: 0 | CZ100: 0 | DA100: 0 | DB100: 0 | DC100: 0 | DD100: 0 | DE100: 0 | DF100: 0 | DG100: 0 | DH100: 0 | DI100: 0
C101: > 33 kV & < = 66 kV ; Circuit Breaker | D101: 57.50537456 | E101: 7.583229824 | F101: 11.07815275 | G101: 0 | H101: 14.15526802 | I101: 18.19963031 | J101: 17.18853974 | K101: 20.22181146 | L101: 4.044362292 | M101: 12.13308688 | N101: 13.14417745 | O101: 18.19963031 | P101: 19.21072089 | Q101: 20.22181146 | R101: 32.35489834 | S101: 16.17744917 | T101: 21.23290203 | U101: 18.19963031 | V101: 6.066543438 | W101: 19.21072089 | X101: 4.044362292 | Y101: 9.099815157 | Z101: 11.1219963 | AA101: 4.044362292 | AB101: 7.077634011 | AC101: 5.055452865 | AD101: 10.11090573 | AE101: 3.033271719 | AF101: 33.36598891 | AG101: 1.011090573 | AH101: 1.011090573 | AI101: 5.055452865 | AJ101: 7.077634011 | AK101: 8.088724584 | AL101: 20.22181146 | AM101: 13.14417745 | AN101: 9.099815157 | AO101: 10.11090573 | AP101: 13.14417745 | AQ101: 8.088724584 | AR101: 7.077634011 | AS101: 12.13308688 | AT101: 9.099815157 | AU101: 0 | AV101: 1.011090573 | AW101: 10.11090573 | AX101: 0 | AY101: 7.077634011 | AZ101: 11.1219963 | BA101: 12.13308688 | BB101: 1.011090573 | BC101: 5.055452865 | BD101: 7.077634011 | BE101: 0 | BF101: 2.022181146 | BG101: 0 | BH101: 4.044362292 | BI101: 0 | BJ101: 0 | BK101: 0 | BL101: 1.011090573 | BM101: 0 | BN101: 0 | BO101: 1.011090573 | BP101: 1.011090573 | BQ101: 2.022181146 | BR101: 0 | BS101: 0 | BT101: 0 | BU101: 0 | BV101: 0 | BW101: 0 | BX101: 0 | BY101: 0 | BZ101: 0 | CA101: 0 | CB101: 0 | CC101: 0 | CD101: 0 | CE101: 0 | CF101: 0 | CG101: 0 | CH101: 0 | CI101: 0 | CJ101: 0 | CK101: 0 | CL101: 0 | CM101: 0 | CN101: 0 | CO101: 0 | CP101: 0 | CQ101: 0 | CR101: 0 | CS101: 0 | CT101: 0 | CU101: 0 | CV101: 0 | CW101: 0 | CX101: 0 | CY101: 0 | CZ101: 0 | DA101: 0 | DB101: 0 | DC101: 0 | DD101: 0 | DE101: 0 | DF101: 0 | DG101: 0 | DH101: 0 | DI101: 0
C102: > 66 kV & < = 132 kV ; Switch | D102: 39.92648032 | E102: 6.318740406 | F102: 5.13029316 | G102: 0 | H102: 29.2815534 | I102: 17.16504854 | J102: 7.067961165 | K102: 37.3592233 | L102: 8.077669903 | M102: 1.009708738 | N102: 17.16504854 | O102: 7.067961165 | P102: 15.14563107 | Q102: 31.30097087 | R102: 14.13592233 | S102: 0 | T102: 4.038834951 | U102: 10.09708738 | V102: 1.009708738 | W102: 0 | X102: 1.009708738 | Y102: 0 | Z102: 0 | AA102: 2.019417476 | AB102: 3.029126214 | AC102: 12.11650485 | AD102: 0 | AE102: 7.067961165 | AF102: 9.087378641 | AG102: 2.019417476 | AH102: 3.029126214 | AI102: 0 | AJ102: 4.038834951 | AK102: 3.029126214 | AL102: 1.009708738 | AM102: 21.2038835 | AN102: 0 | AO102: 10.09708738 | AP102: 2.019417476 | AQ102: 5.048543689 | AR102: 0 | AS102: 0 | AT102: 2.019417476 | AU102: 0 | AV102: 0 | AW102: 0 | AX102: 0 | AY102: 0 | AZ102: 0 | BA102: 0 | BB102: 21.2038835 | BC102: 0 | BD102: 1.009708738 | BE102: 0 | BF102: 0 | BG102: 0 | BH102: 0 | BI102: 2.019417476 | BJ102: 0 | BK102: 0 | BL102: 0 | BM102: 0 | BN102: 0 | BO102: 0 | BP102: 0 | BQ102: 0 | BR102: 0 | BS102: 0 | BT102: 0 | BU102: 0 | BV102: 0 | BW102: 0 | BX102: 0 | BY102: 0 | BZ102: 0 | CA102: 0 | CB102: 0 | CC102: 0 | CD102: 0 | CE102: 0 | CF102: 0 | CG102: 0 | CH102: 0 | CI102: 0 | CJ102: 0 | CK102: 0 | CL102: 0 | CM102: 0 | CN102: 0 | CO102: 0 | CP102: 0 | CQ102: 0 | CR102: 0 | CS102: 0 | CT102: 0 | CU102: 0 | CV102: 0 | CW102: 0 | CX102: 0 | CY102: 0 | CZ102: 0 | DA102: 0 | DB102: 0 | DC102: 0 | DD102: 0 | DE102: 0 | DF102: 0 | DG102: 0 | DH102: 0 | DI102: 0
